Workbook

Sheet Anleitung
B1: ANLEITUNG
B3: Einleitung
B5: Mit dem vorliegenden Excel-Tool können die Lebenszykluskosten (Definition siehe Anhang) von Fahrzeugen berechnet werden. Die enthaltenen Produktegruppen werden zukünftig ausgebaut - als erstes stehen 'Personenwagen' zur Verfügung. Das Tool wurde von der Geschäftsstelle Vorbild Energie und Klima entwickelt und unterstützt die Akteure bei der Umsetzung der gemeinsamen Massnahme 'Nr. 10 Lebenszykluskosten-Betrachtung'. Das Tool richtet sich in erster Linie an Personen im Beschaffungsprozess, kann aber auch anderen Nutzergruppen wie internen und externen Fachingenieuren dienlich sein. Bei komplexen Beschaffungen wird die Zusammenarbeit mit Fachexperten erwartet, die beim Befüllen der gefragten Daten unterstützen. Im Tabellenblatt "Anhang" finden Sie Quellenangaben sowie weitere Informationen zum Tool und zu verwendeten Begriffen.
B6: Vorgehen
C8: 1) | D8: Wählen Sie die Produktegruppe (solange keine Produktegruppe ausgewählt ist, wird alles eingeblendet). Geben Sie allgemeine Angaben wie Kalkulationszinssatz und Energiepreise ein, falls Sie nicht mit den Default-Werten rechnen wollen.
C9: 2) | D9: Füllen Sie die gefragen Daten zum Produkt ein.
D10: Bei Produktegruppen mit komplexer Eingabe (z.B. Personenwagen) ist für jede Variante ein eigenes Input-Blatt (Produkt_V1 bis Produkt_V5) verfügbar. Falls Sie die Berechnungen einsehen möchten, finden Sie diese auf dem jeweiligen Produkteblatt (gruppiert ausgeblendet, siehe Hinweis dazu unten).
C11: 3) | D11: Vergleichen Sie die Lebenszykluskosten der Varianten.
B13: Bedienung
D15: Eingabefelder und Überschreiben von Default-Werten. Wenn Default-Werte verfügbar sind, müssen keine eigenen Daten eingesetzt werden und die Default-Werte werden für die Berechnungen verwendet.
B17: BITTE WÄHLEN | D17: Auswahlfelder: Durch Anklicken erscheint ein Dropdown.
B19: K | D19: Kommentarfelder mit Hilfestellungen zur Dateneingabe, Quellenangaben, etc. Kommentarfelder sind, wo möglich, am linken Rand.
D21: Alle Berechnungen können eingesehen werden. Damit das Tool übersichtlich erscheint, sind die Berechnungen teilweise durch Gruppierung ausgeblendet. Diese können durch Klicken auf das "+" in den Zeilen-, respektive Spaltenüberschriften jederzeit eingeblendet werden.
B22: Das Excel-Tool ist ohne Passwort geschützt. Der Blattschutz kann unter "Überprüfen -> Blattschutz aufheben" aufgehoben werden. Das Tool kann grundsätzlich nach eigenen Bedürfnissen angepasst werden. Es ist jedoch zu berücksichtigen, dass dadurch Berechnungsfehler entstehen könnten. Möglicherweise muss auch der Visual Basic Code angepasst werden.
B23: Hinweise zum Tool
B25: Die Geschäftsstelle Vorbild Energie und Klima übernimmt keine Haftung für die Richtigkeit der Berechnungen.

Sheet Input_Generell
B1: GRUNDLAGENDATEN
B3: Wahl der Produktegruppe
A5: K | B5: Produktegruppe | C5: Personenwagen
B7: Angaben zu den Energieträgern | O7: Rechenhilfe Energiepreise | W7: Rechenwerte
A8: K | B8: Energieträger | C8: Anteil Biogas | E8: Energiepreis [Rp./kWh] | G8: Treibhausgase [g CO2eq/kWh] | K8: Umweltbelastungsp. UBP'13 [UBP/kWh] | N8: K | O8: Energieträger | P8: Einheit | Q8: Preis | R8: Preis in Rp./kWh | T8: Umrechnungsfaktor in kWh(Heizwert) | W8: Energietr.-Nr. | X8: Anteil Biogas | Y8: Energiepreis / HT [Rp./kWh] | Z8: Niedertarif [Rp./kWh] | AA8: Treibhausgase [g CO2eq/kWh] | AB8: UBP'13 [UBP/kWh]
D9: Default über-schreiben | F9: Default über-schreiben | J9: Default über-schreiben | L9: Default über-schreiben | W9: 0 | X9: 0 | Y9: 0 | Z9: 0 | AA9: 0 | AB9: 0
A10: K | B10: CNG | C10: 0.2 | E10: =X10*Biogaspreis+(1-X10)*Erdgaspreis -> 11.4 | I10: =X10*EF_Biogas+(1-X10)*EF_Erdgas -> 207 | K10: =X10*AB12+(1-X10)*AB11 -> 192.2 | O10: =B10 -> CNG | P10: CHF/kg | R10: =Q10*100*U10 -> 0 | T10: kg/kWh | U10: =1/13.81 -> 0.07241129616 | W10: 1 | X10: =IF(ISNUMBER(D10),D10,C10) -> 0.2 | Y10: =IF(ISNUMBER(F10),F10,E10) -> 11.4 | AA10: =IF(ISNUMBER(J10),J10,I10) -> 207 | AB10: =IF(ISNUMBER(L10),L10,K10) -> 192.2
B11: Erdgas-Anteil | E11: =11.4/(0.8+0.2*1.8) -> 9.827586207 | I11: 230 | K11: 200 | Y11: =IF(ISNUMBER(F11),F11,E11) -> 9.827586207 | AA11: =IF(ISNUMBER(J11),J11,I11) -> 230 | AB11: =IF(ISNUMBER(L11),L11,K11) -> 200
B12: Biogas-Anteil | E12: =E11*1.8 -> 17.68965517 | I12: 115 | K12: 161 | Y12: =IF(ISNUMBER(F12),F12,E12) -> 17.68965517 | AA12: =IF(ISNUMBER(J12),J12,I12) -> 115 | AB12: =IF(ISNUMBER(L12),L12,K12) -> 161
B13: Benzin | E13: 18 | I13: 320 | K13: 309 | O13: =B13 -> Benzin | P13: CHF/Liter | R13: =Q13*100*U13 -> 0 | T13: Liter/kWh | U13: =1/8.72 -> 0.1146788991 | W13: 3 | Y13: =IF(ISNUMBER(F13),F13,E13) -> 18 | AA13: =IF(ISNUMBER(J13),J13,I13) -> 320 | AB13: 309
B14: Diesel | E14: 17 | I14: 304 | K14: 292 | O14: =B14 -> Diesel | P14: CHF/Liter | R14: =Q14*100*U14 -> 0 | T14: Liter/kWh | U14: =1/9.91 -> 0.1009081736 | W14: 4 | Y14: =IF(ISNUMBER(F14),F14,E14) -> 17 | AA14: 304 | AB14: 292
B15: Weitere | E15: kein Default | I15: kein Default | K15: kein Default | W15: 11 | Y15: =F15 -> 0 | AA15: =J15 -> 0 | AB15: =L15 -> 0
C16: Leistungspreis [CHF/kW/Monat] | E16: Hochtarif [Rp./kWh] | G16: Niedertarif [Rp./kWh] | I16: Treibhausgase [g CO2eq/kWh] | K16: Umweltbelastungsp. UBP'13 [UBP/kWh]
A17: K | B17: Strom eigene Ladestation | D17: Default über-schreiben | F17: Default über-schreiben | H17: Default über-schreiben | J17: Default über-schreiben | L17: Default über-schreiben | X17: Leistungspreis [CHF/kW/mt]
A18: K | B18: STROMPRODUKT BITTE WÄHLEN | C18: =VLOOKUP($B$18,$B$42:$H$48,7,0) -> 0 | E18: =VLOOKUP($B$18,$B$42:$F$48,3,0) -> 0 | G18: =VLOOKUP($B$18,$B$42:$H$48,4,0) -> 0 | I18: =VLOOKUP($B$18,$B$42:$H$48,5,0) -> 0 | K18: =VLOOKUP($B$18,$B$42:$H$48,6,0) -> 0 | O18: Strom | P18: CHF/kWh | R18: =Q18*U18 -> 0 | T18: kWh/kWh | U18: 100 | W18: 13 | X18: =IF(ISNUMBER(D18),D18,C18) -> 0 | Y18: =IF(ISNUMBER(F18),F18,E18) -> 0 | Z18: =IF(ISNUMBER(H18),H18,G18) -> 0 | AA18: =IF(ISNUMBER(J18),J18,I18) -> 0 | AB18: =IF(ISNUMBER(L18),L18,K18) -> 0
X19: Verbrauchs-unabh. Ladekosten alle Fahrz. [CHF/a] | Y19: Verbrauchs-basiert [Rp./kWh]
C20: Verbrauchsunabh. Ladekosten alle Fahrz. [CHF/a] | E20: Verbrauchsbasiert [Rp./kWh] | I20: Treibhausgase [g CO2eq/kWh] | K20: Umweltbelastungsp. UBP'13 [UBP/kWh]
B21: Strom externe Ladestation | F21: Default über-schreiben | J21: Default über-schreiben | L21: Default über-schreiben
A22: K | B22: STROMPRODUKT BITTE WÄHLEN | C22: kein Default | E22: 70 | I22: =VLOOKUP($B$22,$B$42:$H$48,5,0) -> 0 | K22: =VLOOKUP($B$22,$B$42:$H$48,6,0) -> 0 | W22: 14 | X22: =IF(ISNUMBER(D22),D22,C22) -> kein Default | Y22: =IF(ISNUMBER(F22),F22,E22) -> 70 | AA22: =IF(ISNUMBER(J22),J22,I22) -> 0 | AB22: =IF(ISNUMBER(L22),L22,K22) -> 0
B24: Ergänzende Angaben für Elektrofahrzeuge: | E24: Default über-schreiben
A25: K | B25: Anteil eigene Ladestation | D25: 0.8 | Y25: =IF(ISNUMBER(E25),E25,D25) -> 0.8 | Z25: =1-Anteil_Intern -> 0.2
A26: K | B26: Anteil Hochtarif | D26: 0.5 | Y26: =IF(ISNUMBER(E26),E26,D26) -> 0.5 | Z26: =1-Anteil_HT -> 0.5
B27: Wie sollen die externen Kosten von Treibhausgasemissionen (THG) in die LCC-Berechnung eingerechnet werden? | E27: Default über-schreiben
A28: K | B28: BITTE WÄHLEN | C28: CHF/tCO2eq | D28: =VLOOKUP(B28,B52:C55,2,0) -> 0 | X28: =IF(ISNUMBER(E28),E28,D28) -> 0
B30: Angaben zu Zinssatz und Preissteigerungen
E31: Default über-schreiben
A32: K | B32: Energiepreissteigerung | D32: 0.01 | X32: =IF(ISNUMBER(E32),E32,D32) -> 0.01
A33: K | B33: Kalkulationszinssatz | D33: 0.025 | X33: =IF(ISNUMBER(E33),E33,D33) -> 0.025
A34: K | B34: Preissteigerung | D34: 0.01 | X34: =IF(ISNUMBER(E34),E34,D34) -> 0.01
B39: Auswahllisten
B40: Auswahlliste Strommix und Defaultwerte
B41: Stromprodukt | C41: Energie-preis [Rp./kWh] | D41: Hochtarif [Rp./kWh] | E41: Niedertarif [Rp./kWh] | F41: Treibhaus-gase [gCO2eq/ kWh] | G41: UBP'13 [UBP/kWh] | H41: Leistungs-preis [CHF/kW]
A42: K | B42: STROMPRODUKT BITTE WÄHLEN | C42: 0 | D42: 0 | E42: 0 | F42: 0 | G42: 0 | H42: 0
B43: Mix Stromprodukte aus erneuerbaren Energien | C43: =1.5*C44 -> 13.5 | D43: =1.5*D44 -> 15 | E43: 12 | F43: 15 | G43: =47.8+(438-347) -> 138.8 | H43: 10
B44: CH-Verbrauchermix (nicht erneuerb. Strompr.) | C44: 9 | D44: 10 | E44: 8 | F44: 102 | G44: =347+(438-347) -> 438 | H44: 10
B45: ENTSO-E-Mix (Strom aus europäischem Netz) | C45: 9 | D45: 10 | E45: 8 | F45: 524 | G45: =548+(438-347) -> 639 | H45: 10
B46: Photovoltaik | C46: =2*C44 -> 18 | D46: =2*D44 -> 20 | E46: 16 | F46: 96 | G46: =174+(438-347) -> 265 | H46: 10
B47: Wasserkraft | C47: =1.5*C44 -> 13.5 | D47: =1.5*D44 -> 15 | E47: 12 | F47: 12 | G47: =43.8+(438-347) -> 134.8 | H47: 10
B48: Weitere | C48: kein Default | D48: kein Default | E48: kein Default | F48: kein Default | G48: kein Default | H48: 10
B50: Auswahlliste Kosten Treibhausgase
B51: Kostenpunkt | C51: CHF/tCO2eq | D51: Anzeige
B52: BITTE WÄHLEN | C52: 0 | D52: Kosten für THG: nicht gewählt
B53: Keine Kosten für THG berücksichtigen | C53: 0 | D53: Kosten für THG: nicht berücksichtigt
B54: Externe Kosten Treibhausgasemissionen | C54: 121.5 | D54: Externe Kosten Treibhausgasemissionen
B55: Kompensationskosten Treibhausgase | C55: 30 | D55: Kompensationskosten Treibhausgase
A57: K | B57: Auswahlliste Produktegruppe
B58: BITTE WÄHLEN
B59: Personenwagen

Sheet Input_PW
B1: DATENEINGABE PERSONENWAGEN
B3: Allgemeine Angaben (durch den Beschaffer einzugeben)
B5: Projekt
B6: Unternehmen
B7: Zuständig
B8: Datum
B10: Stückzahl Personenwagen
B11: Fahrleistung pro Personenwagen und Jahr | D11: km/a
A13: K | B13: Betrachtungszeit der Lebenszyklusrechnung | D13: Jahre
B15: Angaben des Anbieters (mit Angebot abzugeben)
B17: Angaben der verschiedenen Varianten werden in den Tabellenblättern PW_V1 bis PW_V5 eingegeben.
B18: Hinweis: Das vorliegende Tool ermöglicht Vergleiche zwischen Personenwagen mit gleichem Nutzen. Unterschiedliche durchschnittliche Anzahl Insassen bei der Nutzung können folglich nicht abgebildet werden.

Sheet PW_V1
B1: DATENEINGABE PERSONENWAGEN
B3: Angaben des Anbieters (mit Angebot abzugeben)
B5: Variante | C5: V1
A6: K | B6: Variantenbezeichnung (kurz) | G6: K | H6: Rechenhilfe Treibstoffverbrauch
B7: Variantenbeschreibung | H7: Energie-träger | I7: Menge | J7: kWh | L7: Umrechnungsfaktor in kWh(Heizwert)
B8: Personenwagen, Treibstoffart | C8: BITTE WÄHLEN | H8: CNG [kg] | J8: =I8*M8 -> 0 | L8: kWh/kg | M8: 13.81
A9: K | B9: Treibstoffverbrauch pro 100 km und Fahrzeug | D9: kWh/100km/Fahrzeug | H9: Benzin [Liter] | J9: =I9*M9 -> 0 | L9: kWh/Liter | M9: 8.72
B10: ="Treibstoffverbrauch ("&VLOOKUP(C12,C123:G128,3,0)&")" -> Treibstoffverbrauch (Energieträger) | C10: =C9/100*Fahrleistung_PW/1000 -> 0 | D10: MWh/a/Fahrzeug | H10: Diesel [Liter] | J10: =I10*M10 -> 0 | L10: kWh/Liter | M10: 9.91
A11: K | B11: Max. Leistungsbedarf (für Laden von Elektrofahrz.) | D11: kW
B12: Antrieb Nummer | C12: =IF(ISBLANK(C8),0,VLOOKUP(C8,$B$123:$G$128,2,0)) -> 0
B13: Energieträger Nummer | C13: =IF(ISBLANK(C8),0,VLOOKUP(C8,$B$123:$F$128,3,0)) -> 0
A15: K | B15: Förderbeiträge total | D15: CHF | K15: Rechenwerte | O15: Berechnungen | AW15: Berechnungen
P16: (Re)Investition in CHF im Jahr… | AW16: Restwert nach Abschreibung am Ende des Jahres… (Berücksichtigt Reinvestition nach Ablauf der Lebensdauer)
K17: Lebens- dauer [a] | L17: Zwischen-resultate | M17: Jährliche Ab-schreibung [CHF/a] | O17: Jahr | P17: 0 | Q17: 1 | R17: 2 | S17: 3 | T17: 4 | U17: 5 | V17: 6 | W17: 7 | X17: 8 | Y17: 9 | Z17: 10 | AA17: 11 | AB17: 12 | AC17: 13 | AD17: 14 | AE17: 15 | AF17: 16 | AG17: 17 | AH17: 18 | AI17: 19 | AJ17: 20 | AK17: 21 | AL17: 22 | AM17: 23 | AN17: 24 | AO17: 25 | AP17: 26 | AQ17: 27 | AR17: 28 | AS17: 29 | AT17: 30 | AW17: 0 | AX17: 1 | AY17: 2 | AZ17: 3 | BA17: 4 | BB17: 5 | BC17: 6 | BD17: 7 | BE17: 8 | BF17: 9 | BG17: 10 | BH17: 11 | BI17: 12 | BJ17: 13 | BK17: 14 | BL17: 15 | BM17: 16 | BN17: 17 | BO17: 18 | BP17: 19 | BQ17: 20 | BR17: 21 | BS17: 22 | BT17: 23 | BU17: 24 | BV17: 25 | BW17: 26 | BX17: 27 | BY17: 28 | BZ17: 29 | CA17: 30
A18: K | B18: Investitionskosten | C18: Beschreibung | D18: Investition (alle Fahrz.) [CHF] | E18: Lebensdauer [a] | F18: Default überschreiben | O18: Kilometer | P18: 0 | Q18: =Q17*Fahrleistung_PW -> 0 | R18: 0 | S18: 0 | T18: 0 | U18: 0 | V18: 0 | W18: 0 | X18: 0 | Y18: 0 | Z18: 0 | AA18: 0 | AB18: 0 | AC18: 0 | AD18: 0 | AE18: 0 | AF18: 0 | AG18: 0 | AH18: 0 | AI18: 0 | AJ18: 0 | AK18: 0 | AL18: 0 | AM18: 0 | AN18: 0 | AO18: 0 | AP18: 0 | AQ18: 0 | AR18: 0 | AS18: 0 | AT18: 0 | AU18: Restwert am Ende der Betrachtungszeit
A19: K | B19: Fahrzeuge | E19: 10 | G19: =IF(K19<Betrachtungszeit_PW,"Achtung: es erfolgt eine Reinvestition","") ->  | K19: =IF(ISNUMBER(F19),F19,IF(ISNUMBER(E19),E19,0)) -> 10 | O19: =B19 -> Fahrzeuge | P19: =D19 -> 0 | Q19: =IF(Betrachtungszeit_PW<Q$17,0,IF(AND(P$17<>0,P$17/($K19)=INT(P$17/($K19))),$D19,0)) -> 0 | R19: 0 | S19: 0 | T19: 0 | U19: 0 | V19: 0 | W19: 0 | X19: 0 | Y19: 0 | Z19: 0 | AA19: 0 | AB19: 0 | AC19: 0 | AD19: 0 | AE19: 0 | AF19: 0 | AG19: 0 | AH19: 0 | AI19: 0 | AJ19: 0 | AK19: 0 | AL19: 0 | AM19: 0 | AN19: 0 | AO19: 0 | AP19: 0 | AQ19: 0 | AR19: 0 | AS19: 0 | AT19: 0 | AU19: =SUMIF($AW$17:$CA$17,Betrachtungszeit_PW,AW19:CA19) -> 0 | AW19: =$D19 -> 0 | AX19: =MAX(AW19-$M26+Q19,0) -> 0 | AY19: 0 | AZ19: 0 | BA19: 0 | BB19: 0 | BC19: 0 | BD19: 0 | BE19: 0 | BF19: 0 | BG19: 0 | BH19: 0 | BI19: 0 | BJ19: 0 | BK19: 0 | BL19: 0 | BM19: 0 | BN19: 0 | BO19: 0 | BP19: 0 | BQ19: 0 | BR19: 0 | BS19: 0 | BT19: 0 | BU19: 0 | BV19: 0 | BW19: 0 | BX19: 0 | BY19: 0 | BZ19: 0 | CA19: 0
B20: Zubehör / Infrastruktur | E20: 10 | K20: 10 | M20: =1/K20*D20 -> 0 | O20: =B20&": "&C20 -> Zubehör / Infrastruktur: | P20: 0 | Q20: =IF(Betrachtungszeit_PW<Q$17,0,IF(AND(P$17<>0,P$17/($K20)=INT(P$17/($K20))),$D20,0)) -> 0 | R20: 0 | S20: 0 | T20: 0 | U20: 0 | V20: 0 | W20: 0 | X20: 0 | Y20: 0 | Z20: 0 | AA20: 0 | AB20: 0 | AC20: 0 | AD20: 0 | AE20: 0 | AF20: 0 | AG20: 0 | AH20: 0 | AI20: 0 | AJ20: 0 | AK20: 0 | AL20: 0 | AM20: 0 | AN20: 0 | AO20: 0 | AP20: 0 | AQ20: 0 | AR20: 0 | AS20: 0 | AT20: 0 | AU20: 0 | AW20: =$D20 -> 0 | AX20: =AW20-$M20+Q20 -> 0 | AY20: =AX20-$M20+R20 -> 0 | AZ20: =AY20-$M20+S20 -> 0 | BA20: =AZ20-$M20+T20 -> 0 | BB20: =BA20-$M20+U20 -> 0 | BC20: =BB20-$M20+V20 -> 0 | BD20: =BC20-$M20+W20 -> 0 | BE20: =BD20-$M20+X20 -> 0 | BF20: =BE20-$M20+Y20 -> 0 | BG20: =BF20-$M20+Z20 -> 0 | BH20: =BG20-$M20+AA20 -> 0 | BI20: =BH20-$M20+AB20 -> 0 | BJ20: =BI20-$M20+AC20 -> 0 | BK20: =BJ20-$M20+AD20 -> 0 | BL20: =BK20-$M20+AE20 -> 0 | BM20: =BL20-$M20+AF20 -> 0 | BN20: =BM20-$M20+AG20 -> 0 | BO20: =BN20-$M20+AH20 -> 0 | BP20: =BO20-$M20+AI20 -> 0 | BQ20: =BP20-$M20+AJ20 -> 0 | BR20: =BQ20-$M20+AK20 -> 0 | BS20: =BR20-$M20+AL20 -> 0 | BT20: =BS20-$M20+AM20 -> 0 | BU20: =BT20-$M20+AN20 -> 0 | BV20: =BU20-$M20+AO20 -> 0 | BW20: =BV20-$M20+AP20 -> 0 | BX20: =BW20-$M20+AQ20 -> 0 | BY20: =BX20-$M20+AR20 -> 0 | BZ20: =BY20-$M20+AS20 -> 0 | CA20: =BZ20-$M20+AT20 -> 0
B21: Zubehör / Infrastruktur | E21: 10 | K21: 10 | M21: =1/K21*D21 -> 0 | O21: =B21&": "&C21 -> Zubehör / Infrastruktur: | P21: 0 | Q21: =IF(Betrachtungszeit_PW<Q$17,0,IF(AND(P$17<>0,P$17/($K21)=INT(P$17/($K21))),$D21,0)) -> 0 | R21: 0 | S21: 0 | T21: 0 | U21: 0 | V21: 0 | W21: 0 | X21: 0 | Y21: 0 | Z21: 0 | AA21: 0 | AB21: 0 | AC21: 0 | AD21: 0 | AE21: 0 | AF21: 0 | AG21: 0 | AH21: 0 | AI21: 0 | AJ21: 0 | AK21: 0 | AL21: 0 | AM21: 0 | AN21: 0 | AO21: 0 | AP21: 0 | AQ21: 0 | AR21: 0 | AS21: 0 | AT21: 0 | AU21: 0 | AW21: =$D21 -> 0 | AX21: =AW21-$M21+Q21 -> 0 | AY21: =AX21-$M21+R21 -> 0 | AZ21: =AY21-$M21+S21 -> 0 | BA21: =AZ21-$M21+T21 -> 0 | BB21: =BA21-$M21+U21 -> 0 | BC21: =BB21-$M21+V21 -> 0 | BD21: =BC21-$M21+W21 -> 0 | BE21: =BD21-$M21+X21 -> 0 | BF21: =BE21-$M21+Y21 -> 0 | BG21: =BF21-$M21+Z21 -> 0 | BH21: =BG21-$M21+AA21 -> 0 | BI21: =BH21-$M21+AB21 -> 0 | BJ21: =BI21-$M21+AC21 -> 0 | BK21: =BJ21-$M21+AD21 -> 0 | BL21: =BK21-$M21+AE21 -> 0 | BM21: =BL21-$M21+AF21 -> 0 | BN21: =BM21-$M21+AG21 -> 0 | BO21: =BN21-$M21+AH21 -> 0 | BP21: =BO21-$M21+AI21 -> 0 | BQ21: =BP21-$M21+AJ21 -> 0 | BR21: =BQ21-$M21+AK21 -> 0 | BS21: =BR21-$M21+AL21 -> 0 | BT21: =BS21-$M21+AM21 -> 0 | BU21: =BT21-$M21+AN21 -> 0 | BV21: =BU21-$M21+AO21 -> 0 | BW21: =BV21-$M21+AP21 -> 0 | BX21: =BW21-$M21+AQ21 -> 0 | BY21: =BX21-$M21+AR21 -> 0 | BZ21: =BY21-$M21+AS21 -> 0 | CA21: =BZ21-$M21+AT21 -> 0
B22: Zubehör / Infrastruktur | E22: 10 | K22: 10 | M22: =1/K22*D22 -> 0 | O22: Zubehör / Infrastruktur: | P22: 0 | Q22: =IF(Betrachtungszeit_PW<Q$17,0,IF(AND(P$17<>0,P$17/($K22)=INT(P$17/($K22))),$D22,0)) -> 0 | R22: 0 | S22: 0 | T22: 0 | U22: 0 | V22: 0 | W22: 0 | X22: 0 | Y22: 0 | Z22: 0 | AA22: 0 | AB22: 0 | AC22: 0 | AD22: 0 | AE22: 0 | AF22: 0 | AG22: 0 | AH22: 0 | AI22: 0 | AJ22: 0 | AK22: 0 | AL22: 0 | AM22: 0 | AN22: 0 | AO22: 0 | AP22: 0 | AQ22: 0 | AR22: 0 | AS22: 0 | AT22: 0 | AU22: 0 | AW22: 0 | AX22: 0 | AY22: 0 | AZ22: 0 | BA22: 0 | BB22: 0 | BC22: 0 | BD22: 0 | BE22: 0 | BF22: 0 | BG22: 0 | BH22: 0 | BI22: 0 | BJ22: 0 | BK22: 0 | BL22: 0 | BM22: 0 | BN22: 0 | BO22: 0 | BP22: 0 | BQ22: 0 | BR22: 0 | BS22: 0 | BT22: 0 | BU22: 0 | BV22: 0 | BW22: 0 | BX22: 0 | BY22: 0 | BZ22: 0 | CA22: 0
B23: Zubehör / Infrastruktur | E23: 10 | K23: 10 | M23: =1/K23*D23 -> 0 | O23: Zubehör / Infrastruktur: | P23: 0 | Q23: =IF(Betrachtungszeit_PW<Q$17,0,IF(AND(P$17<>0,P$17/($K23)=INT(P$17/($K23))),$D23,0)) -> 0 | R23: 0 | S23: 0 | T23: 0 | U23: 0 | V23: 0 | W23: 0 | X23: 0 | Y23: 0 | Z23: 0 | AA23: 0 | AB23: 0 | AC23: 0 | AD23: 0 | AE23: 0 | AF23: 0 | AG23: 0 | AH23: 0 | AI23: 0 | AJ23: 0 | AK23: 0 | AL23: 0 | AM23: 0 | AN23: 0 | AO23: 0 | AP23: 0 | AQ23: 0 | AR23: 0 | AS23: 0 | AT23: 0 | AU23: 0 | AW23: 0 | AX23: 0 | AY23: 0 | AZ23: 0 | BA23: 0 | BB23: 0 | BC23: 0 | BD23: 0 | BE23: 0 | BF23: 0 | BG23: 0 | BH23: 0 | BI23: 0 | BJ23: 0 | BK23: 0 | BL23: 0 | BM23: 0 | BN23: 0 | BO23: 0 | BP23: 0 | BQ23: 0 | BR23: 0 | BS23: 0 | BT23: 0 | BU23: 0 | BV23: 0 | BW23: 0 | BX23: 0 | BY23: 0 | BZ23: 0 | CA23: 0
B24: Zubehör / Infrastruktur | E24: 10 | K24: 10 | M24: =1/K24*D24 -> 0 | O24: Zubehör / Infrastruktur: | P24: 0 | Q24: =IF(Betrachtungszeit_PW<Q$17,0,IF(AND(P$17<>0,P$17/($K24)=INT(P$17/($K24))),$D24,0)) -> 0 | R24: 0 | S24: 0 | T24: 0 | U24: 0 | V24: 0 | W24: 0 | X24: 0 | Y24: 0 | Z24: 0 | AA24: 0 | AB24: 0 | AC24: 0 | AD24: 0 | AE24: 0 | AF24: 0 | AG24: 0 | AH24: 0 | AI24: 0 | AJ24: 0 | AK24: 0 | AL24: 0 | AM24: 0 | AN24: 0 | AO24: 0 | AP24: 0 | AQ24: 0 | AR24: 0 | AS24: 0 | AT24: 0 | AU24: 0 | AW24: 0 | AX24: 0 | AY24: 0 | AZ24: 0 | BA24: 0 | BB24: 0 | BC24: 0 | BD24: 0 | BE24: 0 | BF24: 0 | BG24: 0 | BH24: 0 | BI24: 0 | BJ24: 0 | BK24: 0 | BL24: 0 | BM24: 0 | BN24: 0 | BO24: 0 | BP24: 0 | BQ24: 0 | BR24: 0 | BS24: 0 | BT24: 0 | BU24: 0 | BV24: 0 | BW24: 0 | BX24: 0 | BY24: 0 | BZ24: 0 | CA24: 0
B25: Investitionskosten abzügl. Förderbeiträge total | D25: CHF | E25: =D19+SUM(D20:D24)-C15 -> 0 | L25: =E26*D19 -> 0 | O25: (Re)Investition abzüglich Restwert und Fördergeld | AU25: Nettobarwert
A26: K | B26: Wertminderung der Fahrzeuge pro Jahr aufgrund Lebensdauer | E26: =1/K19 -> 0.1 | M26: =L25+Fahrleistung_PW/10000*D19*L27 -> 0 | O26: (Re)Investition abzüglich Fördergeld | P26: =E25 -> 0 | Q26: =SUM(Q19:Q24) -> 0 | R26: 0 | S26: 0 | T26: 0 | U26: 0 | V26: 0 | W26: 0 | X26: 0 | Y26: 0 | Z26: 0 | AA26: 0 | AB26: 0 | AC26: 0 | AD26: 0 | AE26: 0 | AF26: 0 | AG26: 0 | AH26: 0 | AI26: 0 | AJ26: 0 | AK26: 0 | AL26: 0 | AM26: 0 | AN26: 0 | AO26: 0 | AP26: 0 | AQ26: 0 | AR26: 0 | AS26: 0 | AT26: 0
A27: K | B27: Zusätzliche Wertminderung pro 10'000 km | E27: 0.02 | L27: =IF(ISNUMBER(F27),F27,IF(ISNUMBER(E27),E27,0)) -> 0.02 | O27: Restwert | P27: =IF(Betrachtungszeit_PW=P17,-($L$28+$E$29),0) -> 0 | Q27: 0 | R27: 0 | S27: 0 | T27: 0 | U27: 0 | V27: 0 | W27: 0 | X27: 0 | Y27: 0 | Z27: 0 | AA27: 0 | AB27: 0 | AC27: 0 | AD27: 0 | AE27: 0 | AF27: 0 | AG27: 0 | AH27: 0 | AI27: 0 | AJ27: 0 | AK27: 0 | AL27: 0 | AM27: 0 | AN27: 0 | AO27: 0 | AP27: 0 | AQ27: 0 | AR27: 0 | AS27: 0 | AT27: 0
A28: K | B28: Restwert Fahrzeuge am Ende der Betrachtungszeit | D28: CHF | E28: =AU19 -> 0 | L28: =IF(ISNUMBER(F28),F28,E28) -> 0 | O28: Kosten inkl. Preissteigerung | P28: =SUM(P26:P27)*(1+Inflationsindex)^P$17 -> 0 | Q28: 0 | R28: 0 | S28: 0 | T28: 0 | U28: 0 | V28: 0 | W28: 0 | X28: 0 | Y28: 0 | Z28: 0 | AA28: 0 | AB28: 0 | AC28: 0 | AD28: 0 | AE28: 0 | AF28: 0 | AG28: 0 | AH28: 0 | AI28: 0 | AJ28: 0 | AK28: 0 | AL28: 0 | AM28: 0 | AN28: 0 | AO28: 0 | AP28: 0 | AQ28: 0 | AR28: 0 | AS28: 0 | AT28: 0
B29: Restwert Zubehör am Ende der Betrachtungszeit | D29: CHF | E29: =SUM(AU20:AU24) -> 0 | O29: Barwert | P29: =P28*(1+Kalkulationszinssatz)^-P$17 -> 0 | Q29: 0 | R29: 0 | S29: 0 | T29: 0 | U29: 0 | V29: 0 | W29: 0 | X29: 0 | Y29: 0 | Z29: 0 | AA29: 0 | AB29: 0 | AC29: 0 | AD29: 0 | AE29: 0 | AF29: 0 | AG29: 0 | AH29: 0 | AI29: 0 | AJ29: 0 | AK29: 0 | AL29: 0 | AM29: 0 | AN29: 0 | AO29: 0 | AP29: 0 | AQ29: 0 | AR29: 0 | AS29: 0 | AT29: 0 | AU29: =SUM(P29:AT29) -> 0
A31: K | B31: Ersatzteile / Verbrauchsmaterial mit erstmaliger Investition nach Lebensdauer | K31: Lebens- dauer [a] | M31: Jährliche Ab-schreibung [CHF/a] | O31: Ersatzteile | AW31: Restwert nach Abschreibung am Ende des Jahres… (Berücksichtigt Reinvestition nach Ablauf der Lebensdauer) Ersatzteile haben erst nach Ablauf der ersten Lebensdauer einen Restwert
B32: 1. Ersatzteile / Verbrauchsmaterial mit Lebensdauer in Jahren | E32: Lebensdauer [a] | O32: =B32 -> 1. Ersatzteile / Verbrauchsmaterial mit Lebensdauer in Jahren | AU32: Restwert am Ende der Betrachtungszeit
B33: Weitere Ersatzteile | E33: 10 | K33: =IF(ISNUMBER(F33),F33,IF(ISNUMBER(E33),E33,0)) -> 10 | M33: =1/K33*D33 -> 0 | O33: =B33&": "&C33 -> Weitere Ersatzteile: | P33: 0 | Q33: =IF(Betrachtungszeit_PW<Q$17,0,IF(AND(P$17<>0,P$17/($K33)=INT(P$17/($K33))),$D33,0)) -> 0 | R33: 0 | S33: 0 | T33: 0 | U33: 0 | V33: 0 | W33: 0 | X33: 0 | Y33: 0 | Z33: 0 | AA33: 0 | AB33: 0 | AC33: 0 | AD33: 0 | AE33: 0 | AF33: 0 | AG33: 0 | AH33: 0 | AI33: 0 | AJ33: 0 | AK33: 0 | AL33: 0 | AM33: 0 | AN33: 0 | AO33: 0 | AP33: 0 | AQ33: 0 | AR33: 0 | AS33: 0 | AT33: 0 | AU33: =SUMIF($AW$17:$CA$17,Betrachtungszeit_PW,AW33:CA33) -> 0 | AW33: 0 | AX33: =IF((AW33+Q33)=0,0,AW33-$M33+Q33) -> 0 | AY33: =IF((AX33+R33)=0,0,AX33-$M33+R33) -> 0 | AZ33: 0 | BA33: 0 | BB33: 0 | BC33: 0 | BD33: 0 | BE33: 0 | BF33: 0 | BG33: 0 | BH33: 0 | BI33: 0 | BJ33: 0 | BK33: 0 | BL33: 0 | BM33: 0 | BN33: 0 | BO33: 0 | BP33: 0 | BQ33: 0 | BR33: 0 | BS33: 0 | BT33: 0 | BU33: 0 | BV33: 0 | BW33: 0 | BX33: 0 | BY33: 0 | BZ33: 0 | CA33: 0
B34: Weitere Ersatzteile | E34: 10 | K34: =IF(ISNUMBER(F34),F34,IF(ISNUMBER(E34),E34,0)) -> 10 | M34: =1/K34*D34 -> 0 | O34: =B34&": "&C34 -> Weitere Ersatzteile: | P34: 0 | Q34: =IF(Betrachtungszeit_PW<Q$17,0,IF(AND(P$17<>0,P$17/($K34)=INT(P$17/($K34))),$D34,0)) -> 0 | R34: 0 | S34: 0 | T34: 0 | U34: 0 | V34: 0 | W34: 0 | X34: 0 | Y34: 0 | Z34: 0 | AA34: 0 | AB34: 0 | AC34: 0 | AD34: 0 | AE34: 0 | AF34: 0 | AG34: 0 | AH34: 0 | AI34: 0 | AJ34: 0 | AK34: 0 | AL34: 0 | AM34: 0 | AN34: 0 | AO34: 0 | AP34: 0 | AQ34: 0 | AR34: 0 | AS34: 0 | AT34: 0 | AU34: =SUMIF($AW$17:$CA$17,Betrachtungszeit_PW,AW34:CA34) -> 0 | AW34: 0 | AX34: =IF((AW34+Q34)=0,0,AW34-$M34+Q34) -> 0 | AY34: =IF((AX34+R34)=0,0,AX34-$M34+R34) -> 0 | AZ34: =IF((AY34+S34)=0,0,AY34-$M34+S34) -> 0 | BA34: =IF((AZ34+T34)=0,0,AZ34-$M34+T34) -> 0 | BB34: =IF((BA34+U34)=0,0,BA34-$M34+U34) -> 0 | BC34: =IF((BB34+V34)=0,0,BB34-$M34+V34) -> 0 | BD34: =IF((BC34+W34)=0,0,BC34-$M34+W34) -> 0 | BE34: =IF((BD34+X34)=0,0,BD34-$M34+X34) -> 0 | BF34: =IF((BE34+Y34)=0,0,BE34-$M34+Y34) -> 0 | BG34: =IF((BF34+Z34)=0,0,BF34-$M34+Z34) -> 0 | BH34: =IF((BG34+AA34)=0,0,BG34-$M34+AA34) -> 0 | BI34: =IF((BH34+AB34)=0,0,BH34-$M34+AB34) -> 0 | BJ34: =IF((BI34+AC34)=0,0,BI34-$M34+AC34) -> 0 | BK34: =IF((BJ34+AD34)=0,0,BJ34-$M34+AD34) -> 0 | BL34: =IF((BK34+AE34)=0,0,BK34-$M34+AE34) -> 0 | BM34: =IF((BL34+AF34)=0,0,BL34-$M34+AF34) -> 0 | BN34: =IF((BM34+AG34)=0,0,BM34-$M34+AG34) -> 0 | BO34: =IF((BN34+AH34)=0,0,BN34-$M34+AH34) -> 0 | BP34: =IF((BO34+AI34)=0,0,BO34-$M34+AI34) -> 0 | BQ34: =IF((BP34+AJ34)=0,0,BP34-$M34+AJ34) -> 0 | BR34: =IF((BQ34+AK34)=0,0,BQ34-$M34+AK34) -> 0 | BS34: =IF((BR34+AL34)=0,0,BR34-$M34+AL34) -> 0 | BT34: =IF((BS34+AM34)=0,0,BS34-$M34+AM34) -> 0 | BU34: =IF((BT34+AN34)=0,0,BT34-$M34+AN34) -> 0 | BV34: =IF((BU34+AO34)=0,0,BU34-$M34+AO34) -> 0 | BW34: =IF((BV34+AP34)=0,0,BV34-$M34+AP34) -> 0 | BX34: =IF((BW34+AQ34)=0,0,BW34-$M34+AQ34) -> 0 | BY34: =IF((BX34+AR34)=0,0,BX34-$M34+AR34) -> 0 | BZ34: =IF((BY34+AS34)=0,0,BY34-$M34+AS34) -> 0 | CA34: =IF((BZ34+AT34)=0,0,BZ34-$M34+AT34) -> 0
B35: Weitere Ersatzteile | E35: 10 | K35: =IF(ISNUMBER(F35),F35,IF(ISNUMBER(E35),E35,0)) -> 10 | M35: =1/K35*D35 -> 0 | O35: Weitere Ersatzteile: | P35: 0 | Q35: =IF(Betrachtungszeit_PW<Q$17,0,IF(AND(P$17<>0,P$17/($K35)=INT(P$17/($K35))),$D35,0)) -> 0 | R35: 0 | S35: 0 | T35: 0 | U35: 0 | V35: 0 | W35: 0 | X35: 0 | Y35: 0 | Z35: 0 | AA35: 0 | AB35: 0 | AC35: 0 | AD35: 0 | AE35: 0 | AF35: 0 | AG35: 0 | AH35: 0 | AI35: 0 | AJ35: 0 | AK35: 0 | AL35: 0 | AM35: 0 | AN35: 0 | AO35: 0 | AP35: 0 | AQ35: 0 | AR35: 0 | AS35: 0 | AT35: 0 | AU35: =SUMIF($AW$17:$CA$17,Betrachtungszeit_PW,AW35:CA35) -> 0 | AW35: 0 | AX35: 0 | AY35: 0 | AZ35: 0 | BA35: 0 | BB35: 0 | BC35: 0 | BD35: 0 | BE35: 0 | BF35: 0 | BG35: 0 | BH35: 0 | BI35: 0 | BJ35: 0 | BK35: 0 | BL35: 0 | BM35: 0 | BN35: 0 | BO35: 0 | BP35: 0 | BQ35: 0 | BR35: 0 | BS35: 0 | BT35: 0 | BU35: 0 | BV35: 0 | BW35: 0 | BX35: 0 | BY35: 0 | BZ35: 0 | CA35: 0
B36: Weitere Ersatzteile | E36: 10 | K36: =IF(ISNUMBER(F36),F36,IF(ISNUMBER(E36),E36,0)) -> 10 | M36: =1/K36*D36 -> 0 | O36: Weitere Ersatzteile: | P36: 0 | Q36: =IF(Betrachtungszeit_PW<Q$17,0,IF(AND(P$17<>0,P$17/($K36)=INT(P$17/($K36))),$D36,0)) -> 0 | R36: 0 | S36: 0 | T36: 0 | U36: 0 | V36: 0 | W36: 0 | X36: 0 | Y36: 0 | Z36: 0 | AA36: 0 | AB36: 0 | AC36: 0 | AD36: 0 | AE36: 0 | AF36: 0 | AG36: 0 | AH36: 0 | AI36: 0 | AJ36: 0 | AK36: 0 | AL36: 0 | AM36: 0 | AN36: 0 | AO36: 0 | AP36: 0 | AQ36: 0 | AR36: 0 | AS36: 0 | AT36: 0 | AU36: =SUMIF($AW$17:$CA$17,Betrachtungszeit_PW,AW36:CA36) -> 0 | AW36: 0 | AX36: 0 | AY36: 0 | AZ36: 0 | BA36: 0 | BB36: 0 | BC36: 0 | BD36: 0 | BE36: 0 | BF36: 0 | BG36: 0 | BH36: 0 | BI36: 0 | BJ36: 0 | BK36: 0 | BL36: 0 | BM36: 0 | BN36: 0 | BO36: 0 | BP36: 0 | BQ36: 0 | BR36: 0 | BS36: 0 | BT36: 0 | BU36: 0 | BV36: 0 | BW36: 0 | BX36: 0 | BY36: 0 | BZ36: 0 | CA36: 0
B37: Weitere Ersatzteile | E37: 10 | K37: =IF(ISNUMBER(F37),F37,IF(ISNUMBER(E37),E37,0)) -> 10 | M37: =1/K37*D37 -> 0 | O37: Weitere Ersatzteile: | P37: 0 | Q37: =IF(Betrachtungszeit_PW<Q$17,0,IF(AND(P$17<>0,P$17/($K37)=INT(P$17/($K37))),$D37,0)) -> 0 | R37: 0 | S37: 0 | T37: 0 | U37: 0 | V37: 0 | W37: 0 | X37: 0 | Y37: 0 | Z37: 0 | AA37: 0 | AB37: 0 | AC37: 0 | AD37: 0 | AE37: 0 | AF37: 0 | AG37: 0 | AH37: 0 | AI37: 0 | AJ37: 0 | AK37: 0 | AL37: 0 | AM37: 0 | AN37: 0 | AO37: 0 | AP37: 0 | AQ37: 0 | AR37: 0 | AS37: 0 | AT37: 0 | AU37: =SUMIF($AW$17:$CA$17,Betrachtungszeit_PW,AW37:CA37) -> 0 | AW37: 0 | AX37: 0 | AY37: 0 | AZ37: 0 | BA37: 0 | BB37: 0 | BC37: 0 | BD37: 0 | BE37: 0 | BF37: 0 | BG37: 0 | BH37: 0 | BI37: 0 | BJ37: 0 | BK37: 0 | BL37: 0 | BM37: 0 | BN37: 0 | BO37: 0 | BP37: 0 | BQ37: 0 | BR37: 0 | BS37: 0 | BT37: 0 | BU37: 0 | BV37: 0 | BW37: 0 | BX37: 0 | BY37: 0 | BZ37: 0 | CA37: 0
B38: 2. Ersatzteile / Verbrauchsmaterial mit Lebensdauer in Kilometern | E38: Lebensdauer [km] | K38: Lebens-dauer [km] | O38: 2. Ersatzteile / Verbrauchsmaterial mit Lebensdauer in Kilometern
A39: K | B39: Ersatz-Reifen (Set) | E39: 30000 | K39: =IF(ISNUMBER(F39),F39,IF(ISNUMBER(E39),E39,0)) -> 30000 | M39: =1/(K39/Fahrleistung_PW)*D39 ->  | O39: =B39&": "&C39 -> Ersatz-Reifen (Set): | P39: 0 | Q39: =IF(Betrachtungszeit_PW*Fahrleistung_PW<Q$18,0,IF(Q$18-(COUNTIF($P39:P39,">0")*$K39)>$K39,$D39,0)) -> 0 | R39: =IF(Betrachtungszeit_PW*Fahrleistung_PW<R$18,0,IF(R$18-(COUNTIF($P39:Q39,">0")*$K39)>$K39,$D39,0)) -> 0 | S39: =IF(Betrachtungszeit_PW*Fahrleistung_PW<S$18,0,IF(S$18-(COUNTIF($P39:R39,">0")*$K39)>$K39,$D39,0)) -> 0 | T39: =IF(Betrachtungszeit_PW*Fahrleistung_PW<T$18,0,IF(T$18-(COUNTIF($P39:S39,">0")*$K39)>$K39,$D39,0)) -> 0 | U39: =IF(Betrachtungszeit_PW*Fahrleistung_PW<U$18,0,IF(U$18-(COUNTIF($P39:T39,">0")*$K39)>$K39,$D39,0)) -> 0 | V39: =IF(Betrachtungszeit_PW*Fahrleistung_PW<V$18,0,IF(V$18-(COUNTIF($P39:U39,">0")*$K39)>$K39,$D39,0)) -> 0 | W39: =IF(Betrachtungszeit_PW*Fahrleistung_PW<W$18,0,IF(W$18-(COUNTIF($P39:V39,">0")*$K39)>$K39,$D39,0)) -> 0 | X39: =IF(Betrachtungszeit_PW*Fahrleistung_PW<X$18,0,IF(X$18-(COUNTIF($P39:W39,">0")*$K39)>$K39,$D39,0)) -> 0 | Y39: =IF(Betrachtungszeit_PW*Fahrleistung_PW<Y$18,0,IF(Y$18-(COUNTIF($P39:X39,">0")*$K39)>$K39,$D39,0)) -> 0 | Z39: =IF(Betrachtungszeit_PW*Fahrleistung_PW<Z$18,0,IF(Z$18-(COUNTIF($P39:Y39,">0")*$K39)>$K39,$D39,0)) -> 0 | AA39: =IF(Betrachtungszeit_PW*Fahrleistung_PW<AA$18,0,IF(AA$18-(COUNTIF($P39:Z39,">0")*$K39)>$K39,$D39,0)) -> 0 | AB39: =IF(Betrachtungszeit_PW*Fahrleistung_PW<AB$18,0,IF(AB$18-(COUNTIF($P39:AA39,">0")*$K39)>$K39,$D39,0)) -> 0 | AC39: =IF(Betrachtungszeit_PW*Fahrleistung_PW<AC$18,0,IF(AC$18-(COUNTIF($P39:AB39,">0")*$K39)>$K39,$D39,0)) -> 0 | AD39: =IF(Betrachtungszeit_PW*Fahrleistung_PW<AD$18,0,IF(AD$18-(COUNTIF($P39:AC39,">0")*$K39)>$K39,$D39,0)) -> 0 | AE39: =IF(Betrachtungszeit_PW*Fahrleistung_PW<AE$18,0,IF(AE$18-(COUNTIF($P39:AD39,">0")*$K39)>$K39,$D39,0)) -> 0 | AF39: =IF(Betrachtungszeit_PW*Fahrleistung_PW<AF$18,0,IF(AF$18-(COUNTIF($P39:AE39,">0")*$K39)>$K39,$D39,0)) -> 0 | AG39: =IF(Betrachtungszeit_PW*Fahrleistung_PW<AG$18,0,IF(AG$18-(COUNTIF($P39:AF39,">0")*$K39)>$K39,$D39,0)) -> 0 | AH39: =IF(Betrachtungszeit_PW*Fahrleistung_PW<AH$18,0,IF(AH$18-(COUNTIF($P39:AG39,">0")*$K39)>$K39,$D39,0)) -> 0 | AI39: =IF(Betrachtungszeit_PW*Fahrleistung_PW<AI$18,0,IF(AI$18-(COUNTIF($P39:AH39,">0")*$K39)>$K39,$D39,0)) -> 0 | AJ39: =IF(Betrachtungszeit_PW*Fahrleistung_PW<AJ$18,0,IF(AJ$18-(COUNTIF($P39:AI39,">0")*$K39)>$K39,$D39,0)) -> 0 | AK39: =IF(Betrachtungszeit_PW*Fahrleistung_PW<AK$18,0,IF(AK$18-(COUNTIF($P39:AJ39,">0")*$K39)>$K39,$D39,0)) -> 0 | AL39: =IF(Betrachtungszeit_PW*Fahrleistung_PW<AL$18,0,IF(AL$18-(COUNTIF($P39:AK39,">0")*$K39)>$K39,$D39,0)) -> 0 | AM39: =IF(Betrachtungszeit_PW*Fahrleistung_PW<AM$18,0,IF(AM$18-(COUNTIF($P39:AL39,">0")*$K39)>$K39,$D39,0)) -> 0 | AN39: =IF(Betrachtungszeit_PW*Fahrleistung_PW<AN$18,0,IF(AN$18-(COUNTIF($P39:AM39,">0")*$K39)>$K39,$D39,0)) -> 0 | AO39: =IF(Betrachtungszeit_PW*Fahrleistung_PW<AO$18,0,IF(AO$18-(COUNTIF($P39:AN39,">0")*$K39)>$K39,$D39,0)) -> 0 | AP39: =IF(Betrachtungszeit_PW*Fahrleistung_PW<AP$18,0,IF(AP$18-(COUNTIF($P39:AO39,">0")*$K39)>$K39,$D39,0)) -> 0 | AQ39: =IF(Betrachtungszeit_PW*Fahrleistung_PW<AQ$18,0,IF(AQ$18-(COUNTIF($P39:AP39,">0")*$K39)>$K39,$D39,0)) -> 0 | AR39: =IF(Betrachtungszeit_PW*Fahrleistung_PW<AR$18,0,IF(AR$18-(COUNTIF($P39:AQ39,">0")*$K39)>$K39,$D39,0)) -> 0 | AS39: =IF(Betrachtungszeit_PW*Fahrleistung_PW<AS$18,0,IF(AS$18-(COUNTIF($P39:AR39,">0")*$K39)>$K39,$D39,0)) -> 0 | AT39: =IF(Betrachtungszeit_PW*Fahrleistung_PW<AT$18,0,IF(AT$18-(COUNTIF($P39:AS39,">0")*$K39)>$K39,$D39,0)) -> 0 | AU39: =SUMIF($AW$17:$CA$17,Betrachtungszeit_PW,AW39:CA39) -> 0 | AW39: 0 | AX39: =IF((AW39+Q39)=0,0,AW39-$M39+Q39) -> 0 | AY39: =IF((AX39+R39)=0,0,AX39-$M39+R39) -> 0 | AZ39: 0 | BA39: 0 | BB39: 0 | BC39: 0 | BD39: 0 | BE39: 0 | BF39: 0 | BG39: 0 | BH39: 0 | BI39: 0 | BJ39: 0 | BK39: 0 | BL39: 0 | BM39: 0 | BN39: 0 | BO39: 0 | BP39: 0 | BQ39: 0 | BR39: 0 | BS39: 0 | BT39: 0 | BU39: 0 | BV39: 0 | BW39: 0 | BX39: 0 | BY39: 0 | BZ39: 0 | CA39: 0
A40: K | B40: Ersatz-Batterie bei Elektrofahrzeugen | E40: 100000 | K40: 100000 | O40: =B40&": "&C40 -> Ersatz-Batterie bei Elektrofahrzeugen: | P40: 0 | Q40: =IF(Betrachtungszeit_PW*Fahrleistung_PW<Q$18,0,IF(Q$18-(COUNTIF($P40:P40,">0")*$K40)>$K40,$D40,0)) -> 0 | R40: =IF(Betrachtungszeit_PW*Fahrleistung_PW<R$18,0,IF(R$18-(COUNTIF($P40:Q40,">0")*$K40)>$K40,$D40,0)) -> 0 | S40: =IF(Betrachtungszeit_PW*Fahrleistung_PW<S$18,0,IF(S$18-(COUNTIF($P40:R40,">0")*$K40)>$K40,$D40,0)) -> 0 | T40: =IF(Betrachtungszeit_PW*Fahrleistung_PW<T$18,0,IF(T$18-(COUNTIF($P40:S40,">0")*$K40)>$K40,$D40,0)) -> 0 | U40: =IF(Betrachtungszeit_PW*Fahrleistung_PW<U$18,0,IF(U$18-(COUNTIF($P40:T40,">0")*$K40)>$K40,$D40,0)) -> 0 | V40: =IF(Betrachtungszeit_PW*Fahrleistung_PW<V$18,0,IF(V$18-(COUNTIF($P40:U40,">0")*$K40)>$K40,$D40,0)) -> 0 | W40: =IF(Betrachtungszeit_PW*Fahrleistung_PW<W$18,0,IF(W$18-(COUNTIF($P40:V40,">0")*$K40)>$K40,$D40,0)) -> 0 | X40: =IF(Betrachtungszeit_PW*Fahrleistung_PW<X$18,0,IF(X$18-(COUNTIF($P40:W40,">0")*$K40)>$K40,$D40,0)) -> 0 | Y40: =IF(Betrachtungszeit_PW*Fahrleistung_PW<Y$18,0,IF(Y$18-(COUNTIF($P40:X40,">0")*$K40)>$K40,$D40,0)) -> 0 | Z40: =IF(Betrachtungszeit_PW*Fahrleistung_PW<Z$18,0,IF(Z$18-(COUNTIF($P40:Y40,">0")*$K40)>$K40,$D40,0)) -> 0 | AA40: =IF(Betrachtungszeit_PW*Fahrleistung_PW<AA$18,0,IF(AA$18-(COUNTIF($P40:Z40,">0")*$K40)>$K40,$D40,0)) -> 0 | AB40: =IF(Betrachtungszeit_PW*Fahrleistung_PW<AB$18,0,IF(AB$18-(COUNTIF($P40:AA40,">0")*$K40)>$K40,$D40,0)) -> 0 | AC40: =IF(Betrachtungszeit_PW*Fahrleistung_PW<AC$18,0,IF(AC$18-(COUNTIF($P40:AB40,">0")*$K40)>$K40,$D40,0)) -> 0 | AD40: =IF(Betrachtungszeit_PW*Fahrleistung_PW<AD$18,0,IF(AD$18-(COUNTIF($P40:AC40,">0")*$K40)>$K40,$D40,0)) -> 0 | AE40: =IF(Betrachtungszeit_PW*Fahrleistung_PW<AE$18,0,IF(AE$18-(COUNTIF($P40:AD40,">0")*$K40)>$K40,$D40,0)) -> 0 | AF40: =IF(Betrachtungszeit_PW*Fahrleistung_PW<AF$18,0,IF(AF$18-(COUNTIF($P40:AE40,">0")*$K40)>$K40,$D40,0)) -> 0 | AG40: =IF(Betrachtungszeit_PW*Fahrleistung_PW<AG$18,0,IF(AG$18-(COUNTIF($P40:AF40,">0")*$K40)>$K40,$D40,0)) -> 0 | AH40: =IF(Betrachtungszeit_PW*Fahrleistung_PW<AH$18,0,IF(AH$18-(COUNTIF($P40:AG40,">0")*$K40)>$K40,$D40,0)) -> 0 | AI40: =IF(Betrachtungszeit_PW*Fahrleistung_PW<AI$18,0,IF(AI$18-(COUNTIF($P40:AH40,">0")*$K40)>$K40,$D40,0)) -> 0 | AJ40: =IF(Betrachtungszeit_PW*Fahrleistung_PW<AJ$18,0,IF(AJ$18-(COUNTIF($P40:AI40,">0")*$K40)>$K40,$D40,0)) -> 0 | AK40: =IF(Betrachtungszeit_PW*Fahrleistung_PW<AK$18,0,IF(AK$18-(COUNTIF($P40:AJ40,">0")*$K40)>$K40,$D40,0)) -> 0 | AL40: =IF(Betrachtungszeit_PW*Fahrleistung_PW<AL$18,0,IF(AL$18-(COUNTIF($P40:AK40,">0")*$K40)>$K40,$D40,0)) -> 0 | AM40: =IF(Betrachtungszeit_PW*Fahrleistung_PW<AM$18,0,IF(AM$18-(COUNTIF($P40:AL40,">0")*$K40)>$K40,$D40,0)) -> 0 | AN40: =IF(Betrachtungszeit_PW*Fahrleistung_PW<AN$18,0,IF(AN$18-(COUNTIF($P40:AM40,">0")*$K40)>$K40,$D40,0)) -> 0 | AO40: =IF(Betrachtungszeit_PW*Fahrleistung_PW<AO$18,0,IF(AO$18-(COUNTIF($P40:AN40,">0")*$K40)>$K40,$D40,0)) -> 0 | AP40: =IF(Betrachtungszeit_PW*Fahrleistung_PW<AP$18,0,IF(AP$18-(COUNTIF($P40:AO40,">0")*$K40)>$K40,$D40,0)) -> 0 | AQ40: =IF(Betrachtungszeit_PW*Fahrleistung_PW<AQ$18,0,IF(AQ$18-(COUNTIF($P40:AP40,">0")*$K40)>$K40,$D40,0)) -> 0 | AR40: =IF(Betrachtungszeit_PW*Fahrleistung_PW<AR$18,0,IF(AR$18-(COUNTIF($P40:AQ40,">0")*$K40)>$K40,$D40,0)) -> 0 | AS40: =IF(Betrachtungszeit_PW*Fahrleistung_PW<AS$18,0,IF(AS$18-(COUNTIF($P40:AR40,">0")*$K40)>$K40,$D40,0)) -> 0 | AT40: =IF(Betrachtungszeit_PW*Fahrleistung_PW<AT$18,0,IF(AT$18-(COUNTIF($P40:AS40,">0")*$K40)>$K40,$D40,0)) -> 0 | AU40: 0 | AW40: 0 | AX40: =IF((AW40+Q40)=0,0,AW40-$M40+Q40) -> 0 | AY40: 0 | AZ40: 0 | BA40: 0 | BB40: 0 | BC40: 0 | BD40: 0 | BE40: 0 | BF40: 0 | BG40: 0 | BH40: 0 | BI40: 0 | BJ40: 0 | BK40: 0 | BL40: 0 | BM40: 0 | BN40: 0 | BO40: 0 | BP40: 0 | BQ40: 0 | BR40: 0 | BS40: 0 | BT40: 0 | BU40: 0 | BV40: 0 | BW40: 0 | BX40: 0 | BY40: 0 | BZ40: 0 | CA40: 0
B41: Weitere Ersatzteile | E41: 150000 | K41: 150000 | O41: Weitere Ersatzteile: | P41: 0 | Q41: =IF(Betrachtungszeit_PW*Fahrleistung_PW<Q$18,0,IF(Q$18-(COUNTIF($P41:P41,">0")*$K41)>$K41,$D41,0)) -> 0 | R41: =IF(Betrachtungszeit_PW*Fahrleistung_PW<R$18,0,IF(R$18-(COUNTIF($P41:Q41,">0")*$K41)>$K41,$D41,0)) -> 0 | S41: =IF(Betrachtungszeit_PW*Fahrleistung_PW<S$18,0,IF(S$18-(COUNTIF($P41:R41,">0")*$K41)>$K41,$D41,0)) -> 0 | T41: =IF(Betrachtungszeit_PW*Fahrleistung_PW<T$18,0,IF(T$18-(COUNTIF($P41:S41,">0")*$K41)>$K41,$D41,0)) -> 0 | U41: =IF(Betrachtungszeit_PW*Fahrleistung_PW<U$18,0,IF(U$18-(COUNTIF($P41:T41,">0")*$K41)>$K41,$D41,0)) -> 0 | V41: =IF(Betrachtungszeit_PW*Fahrleistung_PW<V$18,0,IF(V$18-(COUNTIF($P41:U41,">0")*$K41)>$K41,$D41,0)) -> 0 | W41: =IF(Betrachtungszeit_PW*Fahrleistung_PW<W$18,0,IF(W$18-(COUNTIF($P41:V41,">0")*$K41)>$K41,$D41,0)) -> 0 | X41: =IF(Betrachtungszeit_PW*Fahrleistung_PW<X$18,0,IF(X$18-(COUNTIF($P41:W41,">0")*$K41)>$K41,$D41,0)) -> 0 | Y41: =IF(Betrachtungszeit_PW*Fahrleistung_PW<Y$18,0,IF(Y$18-(COUNTIF($P41:X41,">0")*$K41)>$K41,$D41,0)) -> 0 | Z41: =IF(Betrachtungszeit_PW*Fahrleistung_PW<Z$18,0,IF(Z$18-(COUNTIF($P41:Y41,">0")*$K41)>$K41,$D41,0)) -> 0 | AA41: =IF(Betrachtungszeit_PW*Fahrleistung_PW<AA$18,0,IF(AA$18-(COUNTIF($P41:Z41,">0")*$K41)>$K41,$D41,0)) -> 0 | AB41: =IF(Betrachtungszeit_PW*Fahrleistung_PW<AB$18,0,IF(AB$18-(COUNTIF($P41:AA41,">0")*$K41)>$K41,$D41,0)) -> 0 | AC41: =IF(Betrachtungszeit_PW*Fahrleistung_PW<AC$18,0,IF(AC$18-(COUNTIF($P41:AB41,">0")*$K41)>$K41,$D41,0)) -> 0 | AD41: =IF(Betrachtungszeit_PW*Fahrleistung_PW<AD$18,0,IF(AD$18-(COUNTIF($P41:AC41,">0")*$K41)>$K41,$D41,0)) -> 0 | AE41: =IF(Betrachtungszeit_PW*Fahrleistung_PW<AE$18,0,IF(AE$18-(COUNTIF($P41:AD41,">0")*$K41)>$K41,$D41,0)) -> 0 | AF41: =IF(Betrachtungszeit_PW*Fahrleistung_PW<AF$18,0,IF(AF$18-(COUNTIF($P41:AE41,">0")*$K41)>$K41,$D41,0)) -> 0 | AG41: =IF(Betrachtungszeit_PW*Fahrleistung_PW<AG$18,0,IF(AG$18-(COUNTIF($P41:AF41,">0")*$K41)>$K41,$D41,0)) -> 0 | AH41: =IF(Betrachtungszeit_PW*Fahrleistung_PW<AH$18,0,IF(AH$18-(COUNTIF($P41:AG41,">0")*$K41)>$K41,$D41,0)) -> 0 | AI41: =IF(Betrachtungszeit_PW*Fahrleistung_PW<AI$18,0,IF(AI$18-(COUNTIF($P41:AH41,">0")*$K41)>$K41,$D41,0)) -> 0 | AJ41: =IF(Betrachtungszeit_PW*Fahrleistung_PW<AJ$18,0,IF(AJ$18-(COUNTIF($P41:AI41,">0")*$K41)>$K41,$D41,0)) -> 0 | AK41: =IF(Betrachtungszeit_PW*Fahrleistung_PW<AK$18,0,IF(AK$18-(COUNTIF($P41:AJ41,">0")*$K41)>$K41,$D41,0)) -> 0 | AL41: =IF(Betrachtungszeit_PW*Fahrleistung_PW<AL$18,0,IF(AL$18-(COUNTIF($P41:AK41,">0")*$K41)>$K41,$D41,0)) -> 0 | AM41: =IF(Betrachtungszeit_PW*Fahrleistung_PW<AM$18,0,IF(AM$18-(COUNTIF($P41:AL41,">0")*$K41)>$K41,$D41,0)) -> 0 | AN41: =IF(Betrachtungszeit_PW*Fahrleistung_PW<AN$18,0,IF(AN$18-(COUNTIF($P41:AM41,">0")*$K41)>$K41,$D41,0)) -> 0 | AO41: =IF(Betrachtungszeit_PW*Fahrleistung_PW<AO$18,0,IF(AO$18-(COUNTIF($P41:AN41,">0")*$K41)>$K41,$D41,0)) -> 0 | AP41: =IF(Betrachtungszeit_PW*Fahrleistung_PW<AP$18,0,IF(AP$18-(COUNTIF($P41:AO41,">0")*$K41)>$K41,$D41,0)) -> 0 | AQ41: =IF(Betrachtungszeit_PW*Fahrleistung_PW<AQ$18,0,IF(AQ$18-(COUNTIF($P41:AP41,">0")*$K41)>$K41,$D41,0)) -> 0 | AR41: =IF(Betrachtungszeit_PW*Fahrleistung_PW<AR$18,0,IF(AR$18-(COUNTIF($P41:AQ41,">0")*$K41)>$K41,$D41,0)) -> 0 | AS41: =IF(Betrachtungszeit_PW*Fahrleistung_PW<AS$18,0,IF(AS$18-(COUNTIF($P41:AR41,">0")*$K41)>$K41,$D41,0)) -> 0 | AT41: =IF(Betrachtungszeit_PW*Fahrleistung_PW<AT$18,0,IF(AT$18-(COUNTIF($P41:AS41,">0")*$K41)>$K41,$D41,0)) -> 0 | AU41: 0 | AW41: 0 | AX41: 0 | AY41: 0 | AZ41: 0 | BA41: 0 | BB41: 0 | BC41: 0 | BD41: 0 | BE41: 0 | BF41: 0 | BG41: 0 | BH41: 0 | BI41: 0 | BJ41: 0 | BK41: 0 | BL41: 0 | BM41: 0 | BN41: 0 | BO41: 0 | BP41: 0 | BQ41: 0 | BR41: 0 | BS41: 0 | BT41: 0 | BU41: 0 | BV41: 0 | BW41: 0 | BX41: 0 | BY41: 0 | BZ41: 0 | CA41: 0
B42: Weitere Ersatzteile | E42: 150000 | K42: 150000 | O42: Weitere Ersatzteile: | P42: 0 | Q42: =IF(Betrachtungszeit_PW*Fahrleistung_PW<Q$18,0,IF(Q$18-(COUNTIF($P42:P42,">0")*$K42)>$K42,$D42,0)) -> 0 | R42: =IF(Betrachtungszeit_PW*Fahrleistung_PW<R$18,0,IF(R$18-(COUNTIF($P42:Q42,">0")*$K42)>$K42,$D42,0)) -> 0 | S42: =IF(Betrachtungszeit_PW*Fahrleistung_PW<S$18,0,IF(S$18-(COUNTIF($P42:R42,">0")*$K42)>$K42,$D42,0)) -> 0 | T42: =IF(Betrachtungszeit_PW*Fahrleistung_PW<T$18,0,IF(T$18-(COUNTIF($P42:S42,">0")*$K42)>$K42,$D42,0)) -> 0 | U42: =IF(Betrachtungszeit_PW*Fahrleistung_PW<U$18,0,IF(U$18-(COUNTIF($P42:T42,">0")*$K42)>$K42,$D42,0)) -> 0 | V42: =IF(Betrachtungszeit_PW*Fahrleistung_PW<V$18,0,IF(V$18-(COUNTIF($P42:U42,">0")*$K42)>$K42,$D42,0)) -> 0 | W42: =IF(Betrachtungszeit_PW*Fahrleistung_PW<W$18,0,IF(W$18-(COUNTIF($P42:V42,">0")*$K42)>$K42,$D42,0)) -> 0 | X42: =IF(Betrachtungszeit_PW*Fahrleistung_PW<X$18,0,IF(X$18-(COUNTIF($P42:W42,">0")*$K42)>$K42,$D42,0)) -> 0 | Y42: =IF(Betrachtungszeit_PW*Fahrleistung_PW<Y$18,0,IF(Y$18-(COUNTIF($P42:X42,">0")*$K42)>$K42,$D42,0)) -> 0 | Z42: =IF(Betrachtungszeit_PW*Fahrleistung_PW<Z$18,0,IF(Z$18-(COUNTIF($P42:Y42,">0")*$K42)>$K42,$D42,0)) -> 0 | AA42: =IF(Betrachtungszeit_PW*Fahrleistung_PW<AA$18,0,IF(AA$18-(COUNTIF($P42:Z42,">0")*$K42)>$K42,$D42,0)) -> 0 | AB42: =IF(Betrachtungszeit_PW*Fahrleistung_PW<AB$18,0,IF(AB$18-(COUNTIF($P42:AA42,">0")*$K42)>$K42,$D42,0)) -> 0 | AC42: =IF(Betrachtungszeit_PW*Fahrleistung_PW<AC$18,0,IF(AC$18-(COUNTIF($P42:AB42,">0")*$K42)>$K42,$D42,0)) -> 0 | AD42: =IF(Betrachtungszeit_PW*Fahrleistung_PW<AD$18,0,IF(AD$18-(COUNTIF($P42:AC42,">0")*$K42)>$K42,$D42,0)) -> 0 | AE42: =IF(Betrachtungszeit_PW*Fahrleistung_PW<AE$18,0,IF(AE$18-(COUNTIF($P42:AD42,">0")*$K42)>$K42,$D42,0)) -> 0 | AF42: =IF(Betrachtungszeit_PW*Fahrleistung_PW<AF$18,0,IF(AF$18-(COUNTIF($P42:AE42,">0")*$K42)>$K42,$D42,0)) -> 0 | AG42: =IF(Betrachtungszeit_PW*Fahrleistung_PW<AG$18,0,IF(AG$18-(COUNTIF($P42:AF42,">0")*$K42)>$K42,$D42,0)) -> 0 | AH42: =IF(Betrachtungszeit_PW*Fahrleistung_PW<AH$18,0,IF(AH$18-(COUNTIF($P42:AG42,">0")*$K42)>$K42,$D42,0)) -> 0 | AI42: =IF(Betrachtungszeit_PW*Fahrleistung_PW<AI$18,0,IF(AI$18-(COUNTIF($P42:AH42,">0")*$K42)>$K42,$D42,0)) -> 0 | AJ42: =IF(Betrachtungszeit_PW*Fahrleistung_PW<AJ$18,0,IF(AJ$18-(COUNTIF($P42:AI42,">0")*$K42)>$K42,$D42,0)) -> 0 | AK42: =IF(Betrachtungszeit_PW*Fahrleistung_PW<AK$18,0,IF(AK$18-(COUNTIF($P42:AJ42,">0")*$K42)>$K42,$D42,0)) -> 0 | AL42: =IF(Betrachtungszeit_PW*Fahrleistung_PW<AL$18,0,IF(AL$18-(COUNTIF($P42:AK42,">0")*$K42)>$K42,$D42,0)) -> 0 | AM42: =IF(Betrachtungszeit_PW*Fahrleistung_PW<AM$18,0,IF(AM$18-(COUNTIF($P42:AL42,">0")*$K42)>$K42,$D42,0)) -> 0 | AN42: =IF(Betrachtungszeit_PW*Fahrleistung_PW<AN$18,0,IF(AN$18-(COUNTIF($P42:AM42,">0")*$K42)>$K42,$D42,0)) -> 0 | AO42: =IF(Betrachtungszeit_PW*Fahrleistung_PW<AO$18,0,IF(AO$18-(COUNTIF($P42:AN42,">0")*$K42)>$K42,$D42,0)) -> 0 | AP42: =IF(Betrachtungszeit_PW*Fahrleistung_PW<AP$18,0,IF(AP$18-(COUNTIF($P42:AO42,">0")*$K42)>$K42,$D42,0)) -> 0 | AQ42: =IF(Betrachtungszeit_PW*Fahrleistung_PW<AQ$18,0,IF(AQ$18-(COUNTIF($P42:AP42,">0")*$K42)>$K42,$D42,0)) -> 0 | AR42: =IF(Betrachtungszeit_PW*Fahrleistung_PW<AR$18,0,IF(AR$18-(COUNTIF($P42:AQ42,">0")*$K42)>$K42,$D42,0)) -> 0 | AS42: =IF(Betrachtungszeit_PW*Fahrleistung_PW<AS$18,0,IF(AS$18-(COUNTIF($P42:AR42,">0")*$K42)>$K42,$D42,0)) -> 0 | AT42: =IF(Betrachtungszeit_PW*Fahrleistung_PW<AT$18,0,IF(AT$18-(COUNTIF($P42:AS42,">0")*$K42)>$K42,$D42,0)) -> 0 | AU42: 0 | AW42: 0 | AX42: 0 | AY42: 0 | AZ42: 0 | BA42: 0 | BB42: 0 | BC42: 0 | BD42: 0 | BE42: 0 | BF42: 0 | BG42: 0 | BH42: 0 | BI42: 0 | BJ42: 0 | BK42: 0 | BL42: 0 | BM42: 0 | BN42: 0 | BO42: 0 | BP42: 0 | BQ42: 0 | BR42: 0 | BS42: 0 | BT42: 0 | BU42: 0 | BV42: 0 | BW42: 0 | BX42: 0 | BY42: 0 | BZ42: 0 | CA42: 0
B43: Weitere Ersatzteile | E43: 150000 | K43: 150000 | O43: Weitere Ersatzteile: | P43: 0 | Q43: =IF(Betrachtungszeit_PW*Fahrleistung_PW<Q$18,0,IF(Q$18-(COUNTIF($P43:P43,">0")*$K43)>$K43,$D43,0)) -> 0 | R43: =IF(Betrachtungszeit_PW*Fahrleistung_PW<R$18,0,IF(R$18-(COUNTIF($P43:Q43,">0")*$K43)>$K43,$D43,0)) -> 0 | S43: =IF(Betrachtungszeit_PW*Fahrleistung_PW<S$18,0,IF(S$18-(COUNTIF($P43:R43,">0")*$K43)>$K43,$D43,0)) -> 0 | T43: =IF(Betrachtungszeit_PW*Fahrleistung_PW<T$18,0,IF(T$18-(COUNTIF($P43:S43,">0")*$K43)>$K43,$D43,0)) -> 0 | U43: =IF(Betrachtungszeit_PW*Fahrleistung_PW<U$18,0,IF(U$18-(COUNTIF($P43:T43,">0")*$K43)>$K43,$D43,0)) -> 0 | V43: =IF(Betrachtungszeit_PW*Fahrleistung_PW<V$18,0,IF(V$18-(COUNTIF($P43:U43,">0")*$K43)>$K43,$D43,0)) -> 0 | W43: =IF(Betrachtungszeit_PW*Fahrleistung_PW<W$18,0,IF(W$18-(COUNTIF($P43:V43,">0")*$K43)>$K43,$D43,0)) -> 0 | X43: =IF(Betrachtungszeit_PW*Fahrleistung_PW<X$18,0,IF(X$18-(COUNTIF($P43:W43,">0")*$K43)>$K43,$D43,0)) -> 0 | Y43: =IF(Betrachtungszeit_PW*Fahrleistung_PW<Y$18,0,IF(Y$18-(COUNTIF($P43:X43,">0")*$K43)>$K43,$D43,0)) -> 0 | Z43: =IF(Betrachtungszeit_PW*Fahrleistung_PW<Z$18,0,IF(Z$18-(COUNTIF($P43:Y43,">0")*$K43)>$K43,$D43,0)) -> 0 | AA43: =IF(Betrachtungszeit_PW*Fahrleistung_PW<AA$18,0,IF(AA$18-(COUNTIF($P43:Z43,">0")*$K43)>$K43,$D43,0)) -> 0 | AB43: =IF(Betrachtungszeit_PW*Fahrleistung_PW<AB$18,0,IF(AB$18-(COUNTIF($P43:AA43,">0")*$K43)>$K43,$D43,0)) -> 0 | AC43: =IF(Betrachtungszeit_PW*Fahrleistung_PW<AC$18,0,IF(AC$18-(COUNTIF($P43:AB43,">0")*$K43)>$K43,$D43,0)) -> 0 | AD43: =IF(Betrachtungszeit_PW*Fahrleistung_PW<AD$18,0,IF(AD$18-(COUNTIF($P43:AC43,">0")*$K43)>$K43,$D43,0)) -> 0 | AE43: =IF(Betrachtungszeit_PW*Fahrleistung_PW<AE$18,0,IF(AE$18-(COUNTIF($P43:AD43,">0")*$K43)>$K43,$D43,0)) -> 0 | AF43: =IF(Betrachtungszeit_PW*Fahrleistung_PW<AF$18,0,IF(AF$18-(COUNTIF($P43:AE43,">0")*$K43)>$K43,$D43,0)) -> 0 | AG43: =IF(Betrachtungszeit_PW*Fahrleistung_PW<AG$18,0,IF(AG$18-(COUNTIF($P43:AF43,">0")*$K43)>$K43,$D43,0)) -> 0 | AH43: =IF(Betrachtungszeit_PW*Fahrleistung_PW<AH$18,0,IF(AH$18-(COUNTIF($P43:AG43,">0")*$K43)>$K43,$D43,0)) -> 0 | AI43: =IF(Betrachtungszeit_PW*Fahrleistung_PW<AI$18,0,IF(AI$18-(COUNTIF($P43:AH43,">0")*$K43)>$K43,$D43,0)) -> 0 | AJ43: =IF(Betrachtungszeit_PW*Fahrleistung_PW<AJ$18,0,IF(AJ$18-(COUNTIF($P43:AI43,">0")*$K43)>$K43,$D43,0)) -> 0 | AK43: =IF(Betrachtungszeit_PW*Fahrleistung_PW<AK$18,0,IF(AK$18-(COUNTIF($P43:AJ43,">0")*$K43)>$K43,$D43,0)) -> 0 | AL43: =IF(Betrachtungszeit_PW*Fahrleistung_PW<AL$18,0,IF(AL$18-(COUNTIF($P43:AK43,">0")*$K43)>$K43,$D43,0)) -> 0 | AM43: =IF(Betrachtungszeit_PW*Fahrleistung_PW<AM$18,0,IF(AM$18-(COUNTIF($P43:AL43,">0")*$K43)>$K43,$D43,0)) -> 0 | AN43: =IF(Betrachtungszeit_PW*Fahrleistung_PW<AN$18,0,IF(AN$18-(COUNTIF($P43:AM43,">0")*$K43)>$K43,$D43,0)) -> 0 | AO43: =IF(Betrachtungszeit_PW*Fahrleistung_PW<AO$18,0,IF(AO$18-(COUNTIF($P43:AN43,">0")*$K43)>$K43,$D43,0)) -> 0 | AP43: =IF(Betrachtungszeit_PW*Fahrleistung_PW<AP$18,0,IF(AP$18-(COUNTIF($P43:AO43,">0")*$K43)>$K43,$D43,0)) -> 0 | AQ43: =IF(Betrachtungszeit_PW*Fahrleistung_PW<AQ$18,0,IF(AQ$18-(COUNTIF($P43:AP43,">0")*$K43)>$K43,$D43,0)) -> 0 | AR43: =IF(Betrachtungszeit_PW*Fahrleistung_PW<AR$18,0,IF(AR$18-(COUNTIF($P43:AQ43,">0")*$K43)>$K43,$D43,0)) -> 0 | AS43: =IF(Betrachtungszeit_PW*Fahrleistung_PW<AS$18,0,IF(AS$18-(COUNTIF($P43:AR43,">0")*$K43)>$K43,$D43,0)) -> 0 | AT43: =IF(Betrachtungszeit_PW*Fahrleistung_PW<AT$18,0,IF(AT$18-(COUNTIF($P43:AS43,">0")*$K43)>$K43,$D43,0)) -> 0 | AU43: 0 | AW43: 0 | AX43: 0 | AY43: 0 | AZ43: 0 | BA43: 0 | BB43: 0 | BC43: 0 | BD43: 0 | BE43: 0 | BF43: 0 | BG43: 0 | BH43: 0 | BI43: 0 | BJ43: 0 | BK43: 0 | BL43: 0 | BM43: 0 | BN43: 0 | BO43: 0 | BP43: 0 | BQ43: 0 | BR43: 0 | BS43: 0 | BT43: 0 | BU43: 0 | BV43: 0 | BW43: 0 | BX43: 0 | BY43: 0 | BZ43: 0 | CA43: 0
B44: Weitere Ersatzteile | E44: 150000 | K44: 150000 | O44: Weitere Ersatzteile: | P44: 0 | Q44: =IF(Betrachtungszeit_PW*Fahrleistung_PW<Q$18,0,IF(Q$18-(COUNTIF($P44:P44,">0")*$K44)>$K44,$D44,0)) -> 0 | R44: =IF(Betrachtungszeit_PW*Fahrleistung_PW<R$18,0,IF(R$18-(COUNTIF($P44:Q44,">0")*$K44)>$K44,$D44,0)) -> 0 | S44: =IF(Betrachtungszeit_PW*Fahrleistung_PW<S$18,0,IF(S$18-(COUNTIF($P44:R44,">0")*$K44)>$K44,$D44,0)) -> 0 | T44: =IF(Betrachtungszeit_PW*Fahrleistung_PW<T$18,0,IF(T$18-(COUNTIF($P44:S44,">0")*$K44)>$K44,$D44,0)) -> 0 | U44: =IF(Betrachtungszeit_PW*Fahrleistung_PW<U$18,0,IF(U$18-(COUNTIF($P44:T44,">0")*$K44)>$K44,$D44,0)) -> 0 | V44: =IF(Betrachtungszeit_PW*Fahrleistung_PW<V$18,0,IF(V$18-(COUNTIF($P44:U44,">0")*$K44)>$K44,$D44,0)) -> 0 | W44: =IF(Betrachtungszeit_PW*Fahrleistung_PW<W$18,0,IF(W$18-(COUNTIF($P44:V44,">0")*$K44)>$K44,$D44,0)) -> 0 | X44: =IF(Betrachtungszeit_PW*Fahrleistung_PW<X$18,0,IF(X$18-(COUNTIF($P44:W44,">0")*$K44)>$K44,$D44,0)) -> 0 | Y44: =IF(Betrachtungszeit_PW*Fahrleistung_PW<Y$18,0,IF(Y$18-(COUNTIF($P44:X44,">0")*$K44)>$K44,$D44,0)) -> 0 | Z44: =IF(Betrachtungszeit_PW*Fahrleistung_PW<Z$18,0,IF(Z$18-(COUNTIF($P44:Y44,">0")*$K44)>$K44,$D44,0)) -> 0 | AA44: =IF(Betrachtungszeit_PW*Fahrleistung_PW<AA$18,0,IF(AA$18-(COUNTIF($P44:Z44,">0")*$K44)>$K44,$D44,0)) -> 0 | AB44: =IF(Betrachtungszeit_PW*Fahrleistung_PW<AB$18,0,IF(AB$18-(COUNTIF($P44:AA44,">0")*$K44)>$K44,$D44,0)) -> 0 | AC44: =IF(Betrachtungszeit_PW*Fahrleistung_PW<AC$18,0,IF(AC$18-(COUNTIF($P44:AB44,">0")*$K44)>$K44,$D44,0)) -> 0 | AD44: =IF(Betrachtungszeit_PW*Fahrleistung_PW<AD$18,0,IF(AD$18-(COUNTIF($P44:AC44,">0")*$K44)>$K44,$D44,0)) -> 0 | AE44: =IF(Betrachtungszeit_PW*Fahrleistung_PW<AE$18,0,IF(AE$18-(COUNTIF($P44:AD44,">0")*$K44)>$K44,$D44,0)) -> 0 | AF44: =IF(Betrachtungszeit_PW*Fahrleistung_PW<AF$18,0,IF(AF$18-(COUNTIF($P44:AE44,">0")*$K44)>$K44,$D44,0)) -> 0 | AG44: =IF(Betrachtungszeit_PW*Fahrleistung_PW<AG$18,0,IF(AG$18-(COUNTIF($P44:AF44,">0")*$K44)>$K44,$D44,0)) -> 0 | AH44: =IF(Betrachtungszeit_PW*Fahrleistung_PW<AH$18,0,IF(AH$18-(COUNTIF($P44:AG44,">0")*$K44)>$K44,$D44,0)) -> 0 | AI44: =IF(Betrachtungszeit_PW*Fahrleistung_PW<AI$18,0,IF(AI$18-(COUNTIF($P44:AH44,">0")*$K44)>$K44,$D44,0)) -> 0 | AJ44: =IF(Betrachtungszeit_PW*Fahrleistung_PW<AJ$18,0,IF(AJ$18-(COUNTIF($P44:AI44,">0")*$K44)>$K44,$D44,0)) -> 0 | AK44: =IF(Betrachtungszeit_PW*Fahrleistung_PW<AK$18,0,IF(AK$18-(COUNTIF($P44:AJ44,">0")*$K44)>$K44,$D44,0)) -> 0 | AL44: =IF(Betrachtungszeit_PW*Fahrleistung_PW<AL$18,0,IF(AL$18-(COUNTIF($P44:AK44,">0")*$K44)>$K44,$D44,0)) -> 0 | AM44: =IF(Betrachtungszeit_PW*Fahrleistung_PW<AM$18,0,IF(AM$18-(COUNTIF($P44:AL44,">0")*$K44)>$K44,$D44,0)) -> 0 | AN44: =IF(Betrachtungszeit_PW*Fahrleistung_PW<AN$18,0,IF(AN$18-(COUNTIF($P44:AM44,">0")*$K44)>$K44,$D44,0)) -> 0 | AO44: =IF(Betrachtungszeit_PW*Fahrleistung_PW<AO$18,0,IF(AO$18-(COUNTIF($P44:AN44,">0")*$K44)>$K44,$D44,0)) -> 0 | AP44: =IF(Betrachtungszeit_PW*Fahrleistung_PW<AP$18,0,IF(AP$18-(COUNTIF($P44:AO44,">0")*$K44)>$K44,$D44,0)) -> 0 | AQ44: =IF(Betrachtungszeit_PW*Fahrleistung_PW<AQ$18,0,IF(AQ$18-(COUNTIF($P44:AP44,">0")*$K44)>$K44,$D44,0)) -> 0 | AR44: =IF(Betrachtungszeit_PW*Fahrleistung_PW<AR$18,0,IF(AR$18-(COUNTIF($P44:AQ44,">0")*$K44)>$K44,$D44,0)) -> 0 | AS44: =IF(Betrachtungszeit_PW*Fahrleistung_PW<AS$18,0,IF(AS$18-(COUNTIF($P44:AR44,">0")*$K44)>$K44,$D44,0)) -> 0 | AT44: =IF(Betrachtungszeit_PW*Fahrleistung_PW<AT$18,0,IF(AT$18-(COUNTIF($P44:AS44,">0")*$K44)>$K44,$D44,0)) -> 0 | AU44: 0 | AW44: 0 | AX44: 0 | AY44: 0 | AZ44: 0 | BA44: 0 | BB44: 0 | BC44: 0 | BD44: 0 | BE44: 0 | BF44: 0 | BG44: 0 | BH44: 0 | BI44: 0 | BJ44: 0 | BK44: 0 | BL44: 0 | BM44: 0 | BN44: 0 | BO44: 0 | BP44: 0 | BQ44: 0 | BR44: 0 | BS44: 0 | BT44: 0 | BU44: 0 | BV44: 0 | BW44: 0 | BX44: 0 | BY44: 0 | BZ44: 0 | CA44: 0
B45: Weitere Ersatzteile | E45: 150000 | K45: 150000 | O45: Weitere Ersatzteile: | P45: 0 | Q45: =IF(Betrachtungszeit_PW*Fahrleistung_PW<Q$18,0,IF(Q$18-(COUNTIF($P45:P45,">0")*$K45)>$K45,$D45,0)) -> 0 | R45: =IF(Betrachtungszeit_PW*Fahrleistung_PW<R$18,0,IF(R$18-(COUNTIF($P45:Q45,">0")*$K45)>$K45,$D45,0)) -> 0 | S45: =IF(Betrachtungszeit_PW*Fahrleistung_PW<S$18,0,IF(S$18-(COUNTIF($P45:R45,">0")*$K45)>$K45,$D45,0)) -> 0 | T45: =IF(Betrachtungszeit_PW*Fahrleistung_PW<T$18,0,IF(T$18-(COUNTIF($P45:S45,">0")*$K45)>$K45,$D45,0)) -> 0 | U45: =IF(Betrachtungszeit_PW*Fahrleistung_PW<U$18,0,IF(U$18-(COUNTIF($P45:T45,">0")*$K45)>$K45,$D45,0)) -> 0 | V45: =IF(Betrachtungszeit_PW*Fahrleistung_PW<V$18,0,IF(V$18-(COUNTIF($P45:U45,">0")*$K45)>$K45,$D45,0)) -> 0 | W45: =IF(Betrachtungszeit_PW*Fahrleistung_PW<W$18,0,IF(W$18-(COUNTIF($P45:V45,">0")*$K45)>$K45,$D45,0)) -> 0 | X45: =IF(Betrachtungszeit_PW*Fahrleistung_PW<X$18,0,IF(X$18-(COUNTIF($P45:W45,">0")*$K45)>$K45,$D45,0)) -> 0 | Y45: =IF(Betrachtungszeit_PW*Fahrleistung_PW<Y$18,0,IF(Y$18-(COUNTIF($P45:X45,">0")*$K45)>$K45,$D45,0)) -> 0 | Z45: =IF(Betrachtungszeit_PW*Fahrleistung_PW<Z$18,0,IF(Z$18-(COUNTIF($P45:Y45,">0")*$K45)>$K45,$D45,0)) -> 0 | AA45: =IF(Betrachtungszeit_PW*Fahrleistung_PW<AA$18,0,IF(AA$18-(COUNTIF($P45:Z45,">0")*$K45)>$K45,$D45,0)) -> 0 | AB45: =IF(Betrachtungszeit_PW*Fahrleistung_PW<AB$18,0,IF(AB$18-(COUNTIF($P45:AA45,">0")*$K45)>$K45,$D45,0)) -> 0 | AC45: =IF(Betrachtungszeit_PW*Fahrleistung_PW<AC$18,0,IF(AC$18-(COUNTIF($P45:AB45,">0")*$K45)>$K45,$D45,0)) -> 0 | AD45: =IF(Betrachtungszeit_PW*Fahrleistung_PW<AD$18,0,IF(AD$18-(COUNTIF($P45:AC45,">0")*$K45)>$K45,$D45,0)) -> 0 | AE45: =IF(Betrachtungszeit_PW*Fahrleistung_PW<AE$18,0,IF(AE$18-(COUNTIF($P45:AD45,">0")*$K45)>$K45,$D45,0)) -> 0 | AF45: =IF(Betrachtungszeit_PW*Fahrleistung_PW<AF$18,0,IF(AF$18-(COUNTIF($P45:AE45,">0")*$K45)>$K45,$D45,0)) -> 0 | AG45: =IF(Betrachtungszeit_PW*Fahrleistung_PW<AG$18,0,IF(AG$18-(COUNTIF($P45:AF45,">0")*$K45)>$K45,$D45,0)) -> 0 | AH45: =IF(Betrachtungszeit_PW*Fahrleistung_PW<AH$18,0,IF(AH$18-(COUNTIF($P45:AG45,">0")*$K45)>$K45,$D45,0)) -> 0 | AI45: =IF(Betrachtungszeit_PW*Fahrleistung_PW<AI$18,0,IF(AI$18-(COUNTIF($P45:AH45,">0")*$K45)>$K45,$D45,0)) -> 0 | AJ45: =IF(Betrachtungszeit_PW*Fahrleistung_PW<AJ$18,0,IF(AJ$18-(COUNTIF($P45:AI45,">0")*$K45)>$K45,$D45,0)) -> 0 | AK45: =IF(Betrachtungszeit_PW*Fahrleistung_PW<AK$18,0,IF(AK$18-(COUNTIF($P45:AJ45,">0")*$K45)>$K45,$D45,0)) -> 0 | AL45: =IF(Betrachtungszeit_PW*Fahrleistung_PW<AL$18,0,IF(AL$18-(COUNTIF($P45:AK45,">0")*$K45)>$K45,$D45,0)) -> 0 | AM45: =IF(Betrachtungszeit_PW*Fahrleistung_PW<AM$18,0,IF(AM$18-(COUNTIF($P45:AL45,">0")*$K45)>$K45,$D45,0)) -> 0 | AN45: =IF(Betrachtungszeit_PW*Fahrleistung_PW<AN$18,0,IF(AN$18-(COUNTIF($P45:AM45,">0")*$K45)>$K45,$D45,0)) -> 0 | AO45: =IF(Betrachtungszeit_PW*Fahrleistung_PW<AO$18,0,IF(AO$18-(COUNTIF($P45:AN45,">0")*$K45)>$K45,$D45,0)) -> 0 | AP45: =IF(Betrachtungszeit_PW*Fahrleistung_PW<AP$18,0,IF(AP$18-(COUNTIF($P45:AO45,">0")*$K45)>$K45,$D45,0)) -> 0 | AQ45: =IF(Betrachtungszeit_PW*Fahrleistung_PW<AQ$18,0,IF(AQ$18-(COUNTIF($P45:AP45,">0")*$K45)>$K45,$D45,0)) -> 0 | AR45: =IF(Betrachtungszeit_PW*Fahrleistung_PW<AR$18,0,IF(AR$18-(COUNTIF($P45:AQ45,">0")*$K45)>$K45,$D45,0)) -> 0 | AS45: =IF(Betrachtungszeit_PW*Fahrleistung_PW<AS$18,0,IF(AS$18-(COUNTIF($P45:AR45,">0")*$K45)>$K45,$D45,0)) -> 0 | AT45: =IF(Betrachtungszeit_PW*Fahrleistung_PW<AT$18,0,IF(AT$18-(COUNTIF($P45:AS45,">0")*$K45)>$K45,$D45,0)) -> 0 | AU45: 0 | AW45: 0 | AX45: 0 | AY45: 0 | AZ45: 0 | BA45: 0 | BB45: 0 | BC45: 0 | BD45: 0 | BE45: 0 | BF45: 0 | BG45: 0 | BH45: 0 | BI45: 0 | BJ45: 0 | BK45: 0 | BL45: 0 | BM45: 0 | BN45: 0 | BO45: 0 | BP45: 0 | BQ45: 0 | BR45: 0 | BS45: 0 | BT45: 0 | BU45: 0 | BV45: 0 | BW45: 0 | BX45: 0 | BY45: 0 | BZ45: 0 | CA45: 0
B46: Restwert Ersatzteile am Ende der Betrachtungszeit | C46: CHF | D46: =SUM(AU33:AU45) -> 0 | O46: Kosten Ersatzteile abzüglich Restwert | AU46: Nettobarwert
O47: Kosten Ersatzteile | P47: =SUM(P33:P37,P39:P45) -> 0 | Q47: =SUM(Q33:Q37,Q39:Q45) -> 0 | R47: 0 | S47: 0 | T47: 0 | U47: 0 | V47: 0 | W47: 0 | X47: 0 | Y47: 0 | Z47: 0 | AA47: 0 | AB47: 0 | AC47: 0 | AD47: 0 | AE47: 0 | AF47: 0 | AG47: 0 | AH47: 0 | AI47: 0 | AJ47: 0 | AK47: 0 | AL47: 0 | AM47: 0 | AN47: 0 | AO47: 0 | AP47: 0 | AQ47: 0 | AR47: 0 | AS47: 0 | AT47: 0
O48: Restwert Ersatzteile | P48: =IF(Betrachtungszeit_PW=P17,-$D$46,0) -> 0 | Q48: 0 | R48: 0 | S48: 0 | T48: 0 | U48: 0 | V48: 0 | W48: 0 | X48: 0 | Y48: 0 | Z48: 0 | AA48: 0 | AB48: 0 | AC48: 0 | AD48: 0 | AE48: 0 | AF48: 0 | AG48: 0 | AH48: 0 | AI48: 0 | AJ48: 0 | AK48: 0 | AL48: 0 | AM48: 0 | AN48: 0 | AO48: 0 | AP48: 0 | AQ48: 0 | AR48: 0 | AS48: 0 | AT48: 0
B49: Service- und Reparaturkosten | C49: Beschreibung | D49: Kosten (alle Fahrz.) [CHF/a] | O49: Kosten inkl. Preissteigerung | P49: =SUM(P47:P48)*(1+Inflationsindex)^P$17 -> 0 | Q49: 0 | R49: 0 | S49: 0 | T49: 0 | U49: 0 | V49: 0 | W49: 0 | X49: 0 | Y49: 0 | Z49: 0 | AA49: 0 | AB49: 0 | AC49: 0 | AD49: 0 | AE49: 0 | AF49: 0 | AG49: 0 | AH49: 0 | AI49: 0 | AJ49: 0 | AK49: 0 | AL49: 0 | AM49: 0 | AN49: 0 | AO49: 0 | AP49: 0 | AQ49: 0 | AR49: 0 | AS49: 0 | AT49: 0
B50: Servicekosten | O50: Barwert | P50: =P49*(1+Kalkulationszinssatz)^-P$17 -> 0 | Q50: 0 | R50: 0 | S50: 0 | T50: 0 | U50: 0 | V50: 0 | W50: 0 | X50: 0 | Y50: 0 | Z50: 0 | AA50: 0 | AB50: 0 | AC50: 0 | AD50: 0 | AE50: 0 | AF50: 0 | AG50: 0 | AH50: 0 | AI50: 0 | AJ50: 0 | AK50: 0 | AL50: 0 | AM50: 0 | AN50: 0 | AO50: 0 | AP50: 0 | AQ50: 0 | AR50: 0 | AS50: 0 | AT50: 0 | AU50: =SUM(P50:AT50) -> 0
B51: Reperaturkosten
B52: Weitere jährliche Service- und Reparaturkosten
B53: Weitere jährliche Service- und Reparaturkosten
B54: Weitere jährliche Service- und Reparaturkosten
B55: Total | D55: =SUM(D50:D54) -> 0 | O55: Service- und Reparaturkosten | AU55: Nettobarwert
O56: Kosten inkl. Preissteigerung | P56: 0 | Q56: =IF(Q$17<=Betrachtungszeit_PW,D55+D55*Inflationsindex,0) -> 0 | R56: =IF(R$17<=Betrachtungszeit_PW,Q56+Q56*Inflationsindex,0) -> 0 | S56: 0 | T56: 0 | U56: 0 | V56: 0 | W56: 0 | X56: 0 | Y56: 0 | Z56: 0 | AA56: 0 | AB56: 0 | AC56: 0 | AD56: 0 | AE56: 0 | AF56: 0 | AG56: 0 | AH56: 0 | AI56: 0 | AJ56: 0 | AK56: 0 | AL56: 0 | AM56: 0 | AN56: 0 | AO56: 0 | AP56: 0 | AQ56: 0 | AR56: 0 | AS56: 0 | AT56: 0
A57: K | B57: Betriebskosten | O57: Barwert | P57: 0 | Q57: =Q56*(1+Kalkulationszinssatz)^-Q$17 -> 0 | R57: 0 | S57: 0 | T57: 0 | U57: 0 | V57: 0 | W57: 0 | X57: 0 | Y57: 0 | Z57: 0 | AA57: 0 | AB57: 0 | AC57: 0 | AD57: 0 | AE57: 0 | AF57: 0 | AG57: 0 | AH57: 0 | AI57: 0 | AJ57: 0 | AK57: 0 | AL57: 0 | AM57: 0 | AN57: 0 | AO57: 0 | AP57: 0 | AQ57: 0 | AR57: 0 | AS57: 0 | AT57: 0 | AU57: =SUM(P57:AT57) -> 0
B58: Verkehrssteuer
B59: Haftpflicht-Versicherung
B60: Kasko-Versicherung
B61: Weitere Versicherungen
B62: Pannenhilfe, Assistance
B63: Garagierungskosten
B64: Autobahnvignette
B65: Strassenbenützungsgebühren
B66: Mitgliedsbeiträge
B67: Nebenauslagen
B68: Fahrzeugpflege
B69: Weitere jährliche Betriebskosten | O69: Betriebskosten | AU69: Nettobarwert
B70: Weitere jährliche Betriebskosten | O70: Kosten inkl. Preissteigerung | P70: 0 | Q70: =IF(Q$17<=Betrachtungszeit_PW,D72+D72*Inflationsindex,0) -> 0 | R70: =IF(R$17<=Betrachtungszeit_PW,Q70+Q70*Inflationsindex,0) -> 0 | S70: 0 | T70: 0 | U70: 0 | V70: 0 | W70: 0 | X70: 0 | Y70: 0 | Z70: 0 | AA70: 0 | AB70: 0 | AC70: 0 | AD70: 0 | AE70: 0 | AF70: 0 | AG70: 0 | AH70: 0 | AI70: 0 | AJ70: 0 | AK70: 0 | AL70: 0 | AM70: 0 | AN70: 0 | AO70: 0 | AP70: 0 | AQ70: 0 | AR70: 0 | AS70: 0 | AT70: 0
B71: Weitere jährliche Betriebskosten | O71: Barwert | P71: 0 | Q71: =Q70*(1+Kalkulationszinssatz)^-Q$17 -> 0 | R71: 0 | S71: 0 | T71: 0 | U71: 0 | V71: 0 | W71: 0 | X71: 0 | Y71: 0 | Z71: 0 | AA71: 0 | AB71: 0 | AC71: 0 | AD71: 0 | AE71: 0 | AF71: 0 | AG71: 0 | AH71: 0 | AI71: 0 | AJ71: 0 | AK71: 0 | AL71: 0 | AM71: 0 | AN71: 0 | AO71: 0 | AP71: 0 | AQ71: 0 | AR71: 0 | AS71: 0 | AT71: 0 | AU71: =SUM(P71:AT71) -> 0
B72: Total | D72: =SUM(D58:D71) -> 0
B74: Energie- und Ladekosten | C74: ="Treibstoff: "&$C$8 -> Treibstoff: BITTE WÄHLEN | D74: Total | O74: Energie- und Ladekosten | AU74: Nettobarwert
A75: K | B75: Leistungskosten (eigene Ladestation) | C75: =IF(C13=13,C11*12,0)*VLOOKUP(C13,Input_Generell!$W$9:$AB$22,2,0) -> 0 | D75: =SUM(C75:C75) -> 0 | E75: CHF/a | O75: Leistungskosten (eigene Ladestation) inkl. Energiepreissteigerung | P75: 0 | Q75: =IF(Q$17<=Betrachtungszeit_PW,$D$75*(1+Energiepreissteigerung),0) -> 0 | R75: =IF(R$17<=Betrachtungszeit_PW,Q75*(1+Energiepreissteigerung),0) -> 0 | S75: 0 | T75: 0 | U75: 0 | V75: 0 | W75: 0 | X75: 0 | Y75: 0 | Z75: 0 | AA75: 0 | AB75: 0 | AC75: 0 | AD75: 0 | AE75: 0 | AF75: 0 | AG75: 0 | AH75: 0 | AI75: 0 | AJ75: 0 | AK75: 0 | AL75: 0 | AM75: 0 | AN75: 0 | AO75: 0 | AP75: 0 | AQ75: 0 | AR75: 0 | AS75: 0 | AT75: 0
A76: K | B76: Energiekosten (eigene Ladestation) | C76: =IF(C13=13,Anteil_Intern*C10*Stückzahl_PW*1000*(Anteil_HT*StrompreisHT/100+Anteil_NT*StrompreisNT/100),0) -> 0 | D76: =SUM(C76:C76) -> 0 | E76: CHF/a | O76: Energiekosten (eigene Ladestation) inkl. Energiepreissteigerung | P76: 0 | Q76: =IF(Q$17<=Betrachtungszeit_PW,$D$76*(1+Energiepreissteigerung),0) -> 0 | R76: =IF(R$17<=Betrachtungszeit_PW,Q76*(1+Energiepreissteigerung),0) -> 0 | S76: 0 | T76: 0 | U76: 0 | V76: 0 | W76: 0 | X76: 0 | Y76: 0 | Z76: 0 | AA76: 0 | AB76: 0 | AC76: 0 | AD76: 0 | AE76: 0 | AF76: 0 | AG76: 0 | AH76: 0 | AI76: 0 | AJ76: 0 | AK76: 0 | AL76: 0 | AM76: 0 | AN76: 0 | AO76: 0 | AP76: 0 | AQ76: 0 | AR76: 0 | AS76: 0 | AT76: 0
B77: Energiekosten (externes Tanken/Laden) | C77: =IF(C13=13,Anteil_Extern*Verbrauchsbasiert_Preis/100*C10*Stückzahl_PW*1000,VLOOKUP(C13,Input_Generell!$W$9:$AB$22,3,0)/100*C10*Stückzahl_PW*1000) -> 0 | D77: =SUM(C77:C77) -> 0 | E77: CHF/a | O77: Energiekosten (externes Tanken/Laden) inkl. Energiepreissteigerung | P77: 0 | Q77: =IF(Q$17<=Betrachtungszeit_PW,$D$77*(1+Energiepreissteigerung),0) -> 0 | R77: =IF(R$17<=Betrachtungszeit_PW,Q77*(1+Energiepreissteigerung),0) -> 0 | S77: 0 | T77: 0 | U77: 0 | V77: 0 | W77: 0 | X77: 0 | Y77: 0 | Z77: 0 | AA77: 0 | AB77: 0 | AC77: 0 | AD77: 0 | AE77: 0 | AF77: 0 | AG77: 0 | AH77: 0 | AI77: 0 | AJ77: 0 | AK77: 0 | AL77: 0 | AM77: 0 | AN77: 0 | AO77: 0 | AP77: 0 | AQ77: 0 | AR77: 0 | AS77: 0 | AT77: 0
A78: K | B78: Strompreisunabhängige Ladekosten (externes Laden) | C78: =IF(C13=13,Input_Generell!D22,0) -> 0 | D78: =SUM(C78:C78) -> 0 | E78: CHF/a | O78: Strompreisunabh. Ladekosten (externes Laden) inkl. Preissteigerung | P78: 0 | Q78: =IF(Q$17<=Betrachtungszeit_PW,$D$78*(1+Inflationsindex),0) -> 0 | R78: =IF(R$17<=Betrachtungszeit_PW,Q78*(1+Inflationsindex),0) -> 0 | S78: 0 | T78: 0 | U78: 0 | V78: 0 | W78: 0 | X78: 0 | Y78: 0 | Z78: 0 | AA78: 0 | AB78: 0 | AC78: 0 | AD78: 0 | AE78: 0 | AF78: 0 | AG78: 0 | AH78: 0 | AI78: 0 | AJ78: 0 | AK78: 0 | AL78: 0 | AM78: 0 | AN78: 0 | AO78: 0 | AP78: 0 | AQ78: 0 | AR78: 0 | AS78: 0 | AT78: 0
B79: Total | C79: =SUM(C75:C78) -> 0 | D79: =SUM(D75:D78) -> 0 | E79: CHF/a | O79: Barwert | P79: 0 | Q79: =SUM(Q75:Q78)*(1+Kalkulationszinssatz)^-Q$17 -> 0 | R79: 0 | S79: 0 | T79: 0 | U79: 0 | V79: 0 | W79: 0 | X79: 0 | Y79: 0 | Z79: 0 | AA79: 0 | AB79: 0 | AC79: 0 | AD79: 0 | AE79: 0 | AF79: 0 | AG79: 0 | AH79: 0 | AI79: 0 | AJ79: 0 | AK79: 0 | AL79: 0 | AM79: 0 | AN79: 0 | AO79: 0 | AP79: 0 | AQ79: 0 | AR79: 0 | AS79: 0 | AT79: 0 | AU79: =SUM(P79:AT79) -> 0
B81: Betrieb: Externe Kosten | C81: ="Treibstoff: "&$C$8 -> Treibstoff: BITTE WÄHLEN | D81: Total
B82: Treibhausgasemissionen (THG) | C82: =C10*Stückzahl_PW*(1/1000)*IF(C13=13,Anteil_Intern*EF_Strom+Anteil_Extern*EF_Verbrauchsbasiert,VLOOKUP(C13,Input_Generell!$W$9:$AB$22,5,0)) -> 0 | D82: =SUM(C82:C82) -> 0 | E82: tCO2eq/a | O82: Betrieb: Externe Kosten Treibhausgasemissionen | AU82: Nettobarwert
B83: Umweltbelastungspunkte UBP'13 | C83: =C10*Stückzahl_PW*1000*IF(C13=13,Anteil_Intern*UBP_Strom+Anteil_Extern*UBP_Strom_Extern,VLOOKUP(C13,Input_Generell!$W$9:$AB$22,6,0)) -> 0 | D83: =SUM(C83:C83) -> 0 | E83: UBP/a | O83: Kosten inkl. Preissteigerung | P83: 0 | Q83: =IF(Q$17<=Betrachtungszeit_PW,D84+D84*Inflationsindex,0) -> 0 | R83: =IF(R$17<=Betrachtungszeit_PW,Q83+Q83*Inflationsindex,0) -> 0 | S83: 0 | T83: 0 | U83: 0 | V83: 0 | W83: 0 | X83: 0 | Y83: 0 | Z83: 0 | AA83: 0 | AB83: 0 | AC83: 0 | AD83: 0 | AE83: 0 | AF83: 0 | AG83: 0 | AH83: 0 | AI83: 0 | AJ83: 0 | AK83: 0 | AL83: 0 | AM83: 0 | AN83: 0 | AO83: 0 | AP83: 0 | AQ83: 0 | AR83: 0 | AS83: 0 | AT83: 0
B84: =VLOOKUP(Input_Generell!$B$28,Input_Generell!$B$52:$D$55,3,0) -> Kosten für THG: nicht gewählt | C84: =C82*Kosten_THG -> 0 | D84: =SUM(C84:C84) -> 0 | E84: CHF/a | O84: Barwert | P84: 0 | Q84: =Q83*(1+Kalkulationszinssatz)^-Q$17 -> 0 | R84: 0 | S84: 0 | T84: 0 | U84: 0 | V84: 0 | W84: 0 | X84: 0 | Y84: 0 | Z84: 0 | AA84: 0 | AB84: 0 | AC84: 0 | AD84: 0 | AE84: 0 | AF84: 0 | AG84: 0 | AH84: 0 | AI84: 0 | AJ84: 0 | AK84: 0 | AL84: 0 | AM84: 0 | AN84: 0 | AO84: 0 | AP84: 0 | AQ84: 0 | AR84: 0 | AS84: 0 | AT84: 0 | AU84: =SUM(P84:AT84) -> 0
B86: Entsorgungskosten | O86: Entsorgung am Ende der Betrachtungszeit der Lebenszyklusrechnung | AU86: Nettobarwert
A87: K | B87: Entsorgungskosten | E87: CHF | O87: Kosten inkl. Preissteigerung | P87: 0 | Q87: =IF(Q$17=Betrachtungszeit_PW,$D$87*(1+Inflationsindex)^Q$17,0) -> 0 | R87: 0 | S87: 0 | T87: 0 | U87: 0 | V87: 0 | W87: 0 | X87: 0 | Y87: 0 | Z87: 0 | AA87: 0 | AB87: 0 | AC87: 0 | AD87: 0 | AE87: 0 | AF87: 0 | AG87: 0 | AH87: 0 | AI87: 0 | AJ87: 0 | AK87: 0 | AL87: 0 | AM87: 0 | AN87: 0 | AO87: 0 | AP87: 0 | AQ87: 0 | AR87: 0 | AS87: 0 | AT87: 0
O88: Barwert | P88: 0 | Q88: =Q87*(1+Kalkulationszinssatz)^-Q$17 -> 0 | R88: 0 | S88: 0 | T88: 0 | U88: 0 | V88: 0 | W88: 0 | X88: 0 | Y88: 0 | Z88: 0 | AA88: 0 | AB88: 0 | AC88: 0 | AD88: 0 | AE88: 0 | AF88: 0 | AG88: 0 | AH88: 0 | AI88: 0 | AJ88: 0 | AK88: 0 | AL88: 0 | AM88: 0 | AN88: 0 | AO88: 0 | AP88: 0 | AQ88: 0 | AR88: 0 | AS88: 0 | AT88: 0 | AU88: =SUM(P88:AT88) -> 0
B90: Umweltrelevante Angaben Erstellung und Entsorgung der Fahrzeuge
B91: Die Treibhausgas-Emissionen und Umweltbelastungspunkte, die aus der Erstellung und Entsorgung der Fahrzeuge entstehen, können nachfolgend berechnet werden. Mit Hilfe des mobitools (2017) kann die Grössenordnung der Treibhausgas-Emissionen und Umweltbelastungspunkte aus der Herstellung und Entsorgung ermittelt werden. Mobitool gibt diese Emissionen pro Kilometer aus (ausgehend von einer typischen Distanz über die Lebensdauer). Insbesondere wenn die Fahrzeuge über die Lebensdauer besonders wenig oder besonders viele Kilometer zurücklegen und/oder Fahrzeuge mit erneuerbaren Treibstoffen verglichen werden, empfiehlt sich jedoch eine genauere Abklärung. Falls aus der Erstellung und Entsorgung keine Daten einbezogen werden sollen, können die Eingabewerte leer gelassen werden. Die Vorgehensweise für die Ermittlung der Eingabewerte mit Hilfe des mobitools wird nachfolgend beschrieben. Im mobitool, in der Zeile des betroffenen Fahrzeugmodells: - Auslastung auf 1 setzen (somit werden die Werte pro Kilometer anstelle pro Personen-Kilometer ausgegeben) - Das 'Fahrzeuggewicht' sowie bei Elektro-Fahrzeugen das 'Batteriegewicht' und die 'Anzahl Batteriewechsel über Lebensdauer' anpassen - Im grauen Bereich oben links den gewünschten Indikator wählen ('Treibhausgaspotenzial' resp. 'UBP13') - In der Spalte 'Fahrzeugherstellung / -entsorgung' können die Werte für CO2eq resp. UBP abgelesen werden
B93: Erstellung und Entsorgung Fahrzeug: Externe Kosten | C93: Fahrzeugherstellung / -entsorgung | E93: Total
B94: Treibhausgasemissionen (THG) | D94: g CO2eq / km / Fahrz. | E94: =Stückzahl_PW*Betrachtungszeit_PW*Fahrleistung_PW*C94/1000000 -> 0 | F94: tCO2eq
B95: Umweltbelastungspunkte UBP'13 | D95: UBP / km / Fahrz. | E95: =Stückzahl_PW*Betrachtungszeit_PW*Fahrleistung_PW*C95 -> 0 | F95: UBP | O95: Erstellung / Entsorgung: Externe Kosten Treibhausgasemissionen | AU95: Nettobarwert
A96: K | B96: =VLOOKUP(Input_Generell!$B$28,Input_Generell!$B$52:$D$55,3,0) -> Kosten für THG: nicht gewählt | E96: =E94*Kosten_THG -> 0 | F96: CHF | O96: Barwert | P96: =E96 -> 0 | AU96: =SUM(P96:AT96) -> 0
B99: Lebenszykluskosten
B100: Kosten des Fahrzeugs über den gesamten Lebenszyklus gesehen (in Form des Nettobarwertes = Kapitalwert).
O101: Barwerte | AU101: Nettobarwert
A102: K | B102: Anschaffungskosten (abzüglich Förderbeitrag, Restwert) | E102: =AU102 -> 0 | F102: CHF | O102: =B102 -> Anschaffungskosten (abzüglich Förderbeitrag, Restwert) | P102: =P29 -> 0 | Q102: 0 | R102: 0 | S102: 0 | T102: 0 | U102: 0 | V102: 0 | W102: 0 | X102: 0 | Y102: 0 | Z102: 0 | AA102: 0 | AB102: 0 | AC102: 0 | AD102: 0 | AE102: 0 | AF102: 0 | AG102: 0 | AH102: 0 | AI102: 0 | AJ102: 0 | AK102: 0 | AL102: 0 | AM102: 0 | AN102: 0 | AO102: 0 | AP102: 0 | AQ102: 0 | AR102: 0 | AS102: 0 | AT102: 0 | AU102: 0
B103: Kosten Ersatzteile (abzüglich Restwert) | E103: =AU103 -> 0 | F103: CHF | O103: Kosten Ersatzteile (abzüglich Restwert) | P103: =P50 -> 0 | Q103: 0 | R103: 0 | S103: 0 | T103: 0 | U103: 0 | V103: 0 | W103: 0 | X103: 0 | Y103: 0 | Z103: 0 | AA103: 0 | AB103: 0 | AC103: 0 | AD103: 0 | AE103: 0 | AF103: 0 | AG103: 0 | AH103: 0 | AI103: 0 | AJ103: 0 | AK103: 0 | AL103: 0 | AM103: 0 | AN103: 0 | AO103: 0 | AP103: 0 | AQ103: 0 | AR103: 0 | AS103: 0 | AT103: 0 | AU103: 0
B104: Service- und Reparaturkosten | E104: =AU104 -> 0 | F104: CHF | O104: Service- und Reparaturkosten | P104: =P57 -> 0 | Q104: 0 | R104: 0 | S104: 0 | T104: 0 | U104: 0 | V104: 0 | W104: 0 | X104: 0 | Y104: 0 | Z104: 0 | AA104: 0 | AB104: 0 | AC104: 0 | AD104: 0 | AE104: 0 | AF104: 0 | AG104: 0 | AH104: 0 | AI104: 0 | AJ104: 0 | AK104: 0 | AL104: 0 | AM104: 0 | AN104: 0 | AO104: 0 | AP104: 0 | AQ104: 0 | AR104: 0 | AS104: 0 | AT104: 0 | AU104: 0
B105: Betriebskosten | E105: =AU105 -> 0 | F105: CHF | O105: Betriebskosten | P105: =P71 -> 0 | Q105: 0 | R105: 0 | S105: 0 | T105: 0 | U105: 0 | V105: 0 | W105: 0 | X105: 0 | Y105: 0 | Z105: 0 | AA105: 0 | AB105: 0 | AC105: 0 | AD105: 0 | AE105: 0 | AF105: 0 | AG105: 0 | AH105: 0 | AI105: 0 | AJ105: 0 | AK105: 0 | AL105: 0 | AM105: 0 | AN105: 0 | AO105: 0 | AP105: 0 | AQ105: 0 | AR105: 0 | AS105: 0 | AT105: 0 | AU105: 0
B106: Energiekosten | E106: 0 | F106: CHF | O106: Energiekosten | P106: =P79 -> 0 | Q106: 0 | R106: 0 | S106: 0 | T106: 0 | U106: 0 | V106: 0 | W106: 0 | X106: 0 | Y106: 0 | Z106: 0 | AA106: 0 | AB106: 0 | AC106: 0 | AD106: 0 | AE106: 0 | AF106: 0 | AG106: 0 | AH106: 0 | AI106: 0 | AJ106: 0 | AK106: 0 | AL106: 0 | AM106: 0 | AN106: 0 | AO106: 0 | AP106: 0 | AQ106: 0 | AR106: 0 | AS106: 0 | AT106: 0 | AU106: 0
A107: K | B107: =VLOOKUP(Input_Generell!$B$28,Input_Generell!$B$52:$D$55,3,0)&" (Betrieb und Erstellung/Entsorgung)" -> Kosten für THG: nicht gewählt (Betrieb und Erstellung/Entsorgung) | E107: 0 | F107: CHF | O107: Kosten für THG: nicht gewählt (Betrieb und Erstellung/Entsorgung) | P107: =P84+P96 -> 0 | Q107: 0 | R107: 0 | S107: 0 | T107: 0 | U107: 0 | V107: 0 | W107: 0 | X107: 0 | Y107: 0 | Z107: 0 | AA107: 0 | AB107: 0 | AC107: 0 | AD107: 0 | AE107: 0 | AF107: 0 | AG107: 0 | AH107: 0 | AI107: 0 | AJ107: 0 | AK107: 0 | AL107: 0 | AM107: 0 | AN107: 0 | AO107: 0 | AP107: 0 | AQ107: 0 | AR107: 0 | AS107: 0 | AT107: 0 | AU107: 0
B108: Entsorgungskosten | E108: 0 | F108: CHF | O108: Entsorgungskosten | P108: =P88 -> 0 | Q108: 0 | R108: 0 | S108: 0 | T108: 0 | U108: 0 | V108: 0 | W108: 0 | X108: 0 | Y108: 0 | Z108: 0 | AA108: 0 | AB108: 0 | AC108: 0 | AD108: 0 | AE108: 0 | AF108: 0 | AG108: 0 | AH108: 0 | AI108: 0 | AJ108: 0 | AK108: 0 | AL108: 0 | AM108: 0 | AN108: 0 | AO108: 0 | AP108: 0 | AQ108: 0 | AR108: 0 | AS108: 0 | AT108: 0 | AU108: 0
B109: Total | E109: 0 | F109: CHF | O109: Total | P109: =SUM(P102:P108) -> 0 | Q109: 0 | R109: 0 | S109: 0 | T109: 0 | U109: 0 | V109: 0 | W109: 0 | X109: 0 | Y109: 0 | Z109: 0 | AA109: 0 | AB109: 0 | AC109: 0 | AD109: 0 | AE109: 0 | AF109: 0 | AG109: 0 | AH109: 0 | AI109: 0 | AJ109: 0 | AK109: 0 | AL109: 0 | AM109: 0 | AN109: 0 | AO109: 0 | AP109: 0 | AQ109: 0 | AR109: 0 | AS109: 0 | AT109: 0 | AU109: 0
O110: Total aufsummiert | P110: =P109 -> 0 | Q110: =P110+Q109 -> 0 | R110: =Q110+R109 -> 0 | S110: =R110+S109 -> 0 | T110: 0 | U110: 0 | V110: 0 | W110: 0 | X110: 0 | Y110: 0 | Z110: 0 | AA110: 0 | AB110: 0 | AC110: 0 | AD110: 0 | AE110: 0 | AF110: 0 | AG110: 0 | AH110: 0 | AI110: 0 | AJ110: 0 | AK110: 0 | AL110: 0 | AM110: 0 | AN110: 0 | AO110: 0 | AP110: 0 | AQ110: 0 | AR110: 0 | AS110: 0 | AT110: =AS110+AT109 -> 0
B111: Treibhausgasemissionen Erstellung/Entsorgung Fahrzeuge (Scope 3) | E111: =E94 -> 0 | F111: tCO2eq | O111: Diagramm Anzeige Betrachtungszeit | P111: =IF(P17=Betrachtungszeit_PW,MAX(Resultate_PW!$D$14:$H$14),0) -> 0 | Q111: =IF(Q17=Betrachtungszeit_PW,MAX(Resultate_PW!$D$14:$H$14),0) -> 0 | R111: =IF(R17=Betrachtungszeit_PW,MAX(Resultate_PW!$D$14:$H$14),0) -> 0 | S111: =IF(S17=Betrachtungszeit_PW,MAX(Resultate_PW!$D$14:$H$14),0) -> 0 | T111: =IF(T17=Betrachtungszeit_PW,MAX(Resultate_PW!$D$14:$H$14),0) -> 0 | U111: =IF(U17=Betrachtungszeit_PW,MAX(Resultate_PW!$D$14:$H$14),0) -> 0 | V111: =IF(V17=Betrachtungszeit_PW,MAX(Resultate_PW!$D$14:$H$14),0) -> 0 | W111: =IF(W17=Betrachtungszeit_PW,MAX(Resultate_PW!$D$14:$H$14),0) -> 0 | X111: =IF(X17=Betrachtungszeit_PW,MAX(Resultate_PW!$D$14:$H$14),0) -> 0 | Y111: =IF(Y17=Betrachtungszeit_PW,MAX(Resultate_PW!$D$14:$H$14),0) -> 0 | Z111: =IF(Z17=Betrachtungszeit_PW,MAX(Resultate_PW!$D$14:$H$14),0) -> 0 | AA111: =IF(AA17=Betrachtungszeit_PW,MAX(Resultate_PW!$D$14:$H$14),0) -> 0 | AB111: =IF(AB17=Betrachtungszeit_PW,MAX(Resultate_PW!$D$14:$H$14),0) -> 0 | AC111: =IF(AC17=Betrachtungszeit_PW,MAX(Resultate_PW!$D$14:$H$14),0) -> 0 | AD111: =IF(AD17=Betrachtungszeit_PW,MAX(Resultate_PW!$D$14:$H$14),0) -> 0 | AE111: =IF(AE17=Betrachtungszeit_PW,MAX(Resultate_PW!$D$14:$H$14),0) -> 0 | AF111: =IF(AF17=Betrachtungszeit_PW,MAX(Resultate_PW!$D$14:$H$14),0) -> 0 | AG111: =IF(AG17=Betrachtungszeit_PW,MAX(Resultate_PW!$D$14:$H$14),0) -> 0 | AH111: =IF(AH17=Betrachtungszeit_PW,MAX(Resultate_PW!$D$14:$H$14),0) -> 0 | AI111: =IF(AI17=Betrachtungszeit_PW,MAX(Resultate_PW!$D$14:$H$14),0) -> 0 | AJ111: =IF(AJ17=Betrachtungszeit_PW,MAX(Resultate_PW!$D$14:$H$14),0) -> 0 | AK111: =IF(AK17=Betrachtungszeit_PW,MAX(Resultate_PW!$D$14:$H$14),0) -> 0 | AL111: =IF(AL17=Betrachtungszeit_PW,MAX(Resultate_PW!$D$14:$H$14),0) -> 0 | AM111: =IF(AM17=Betrachtungszeit_PW,MAX(Resultate_PW!$D$14:$H$14),0) -> 0 | AN111: =IF(AN17=Betrachtungszeit_PW,MAX(Resultate_PW!$D$14:$H$14),0) -> 0 | AO111: =IF(AO17=Betrachtungszeit_PW,MAX(Resultate_PW!$D$14:$H$14),0) -> 0 | AP111: =IF(AP17=Betrachtungszeit_PW,MAX(Resultate_PW!$D$14:$H$14),0) -> 0 | AQ111: =IF(AQ17=Betrachtungszeit_PW,MAX(Resultate_PW!$D$14:$H$14),0) -> 0 | AR111: =IF(AR17=Betrachtungszeit_PW,MAX(Resultate_PW!$D$14:$H$14),0) -> 0 | AS111: =IF(AS17=Betrachtungszeit_PW,MAX(Resultate_PW!$D$14:$H$14),0) -> 0 | AT111: =IF(AT17=Betrachtungszeit_PW,MAX(Resultate_PW!$D$14:$H$14),0) -> 0
B112: Treibhausgasemissionen Betrieb (Scope 1 und 2) | E112: =Betrachtungszeit_PW*D82 -> 0 | F112: tCO2eq
B113: Umweltbelastungspunkte UBP'13 Erstellung/Entsorgung Fahrzeuge | E113: =E95 -> 0 | F113: UBP
B114: Umweltbelastungspunkte UBP'13 Betrieb | E114: =Betrachtungszeit_PW*D83 -> 0 | F114: UBP
A115: K | B115: Gestehungskosten pro km | E115: =IF(C9=0,0,E109*100/(Stückzahl_PW*Fahrleistung_PW*Betrachtungszeit_PW)) -> 0 | F115: Rp./km
A116: K | B116: Jahreskosten pro km | E116: =IF(C9=0,0,((1+Kalkulationszinssatz)^Betrachtungszeit_PW*Kalkulationszinssatz)/((1+Kalkulationszinssatz)^Betrachtungszeit_PW-1)*E109*100/(Stückzahl_PW*Fahrleistung_PW)) -> 0 | F116: Rp./km
B120: Auswahlfelder und Defaultwerte
B122: Auswahlfeld | C122: Antrieb Nummer | D122: Energieträger-Nummer | E122: Energieträger
B123: BITTE WÄHLEN | C123: 0 | D123: 0 | E123: Energieträger
B124: Elektrizität | C124: 1 | D124: 13 | E124: Strom
B125: CNG | C125: 3 | D125: 1 | E125: ="CNG ("&Input_Generell!X10*100&"% Biogas)" -> CNG (20% Biogas)
B126: Benzin | C126: 5 | D126: 3 | E126: Benzin
B127: Diesel | C127: 6 | D127: 4 | E127: Diesel
B128: Weiterer Antrieb | C128: 14 | D128: 11 | E128: =Input_Generell!B15 -> Weitere
B131: Auswahlfeld
B132: BITTE WÄHLEN
B133: ja
B134: nein

Sheet PW_V2
B1: DATENEINGABE PERSONENWAGEN
B3: Angaben des Anbieters (mit Angebot abzugeben)
B5: Variante | C5: V2
A6: K | B6: Variantenbezeichnung (kurz) | G6: K | H6: Rechenhilfe Treibstoffverbrauch
B7: Variantenbeschreibung | H7: Energie-träger | I7: Menge | J7: kWh | L7: Umrechnungsfaktor in kWh(Heizwert)
B8: Personenwagen, Treibstoffart | C8: BITTE WÄHLEN | H8: CNG [kg] | J8: =I8*M8 -> 0 | L8: kWh/kg | M8: 13.81
A9: K | B9: Treibstoffverbrauch pro 100 km und Fahrzeug | D9: kWh/100km/Fahrzeug | H9: Benzin [Liter] | J9: =I9*M9 -> 0 | L9: kWh/Liter | M9: 8.72
B10: ="Treibstoffverbrauch ("&VLOOKUP(C12,C123:G128,3,0)&")" -> Treibstoffverbrauch (Energieträger) | C10: =C9/100*Fahrleistung_PW/1000 -> 0 | D10: MWh/a/Fahrzeug | H10: Diesel [Liter] | J10: =I10*M10 -> 0 | L10: kWh/Liter | M10: 9.91
A11: K | B11: Max. Leistungsbedarf (für Laden von Elektrofahrz.) | D11: kW
B12: Antrieb Nummer | C12: =IF(ISBLANK(C8),0,VLOOKUP(C8,$B$123:$G$128,2,0)) -> 0
B13: Energieträger Nummer | C13: =IF(ISBLANK(C8),0,VLOOKUP(C8,$B$123:$F$128,3,0)) -> 0
A15: K | B15: Förderbeiträge total | D15: CHF | K15: Rechenwerte | O15: Berechnungen | AW15: Berechnungen
P16: (Re)Investition in CHF im Jahr… | AW16: Restwert nach Abschreibung am Ende des Jahres… (Berücksichtigt Reinvestition nach Ablauf der Lebensdauer)
K17: Lebens- dauer [a] | L17: Zwischen-resultate | M17: Jährliche Ab-schreibung [CHF/a] | O17: Jahr | P17: 0 | Q17: 1 | R17: 2 | S17: 3 | T17: 4 | U17: 5 | V17: 6 | W17: 7 | X17: 8 | Y17: 9 | Z17: 10 | AA17: 11 | AB17: 12 | AC17: 13 | AD17: 14 | AE17: 15 | AF17: 16 | AG17: 17 | AH17: 18 | AI17: 19 | AJ17: 20 | AK17: 21 | AL17: 22 | AM17: 23 | AN17: 24 | AO17: 25 | AP17: 26 | AQ17: 27 | AR17: 28 | AS17: 29 | AT17: 30 | AW17: 0 | AX17: 1 | AY17: 2 | AZ17: 3 | BA17: 4 | BB17: 5 | BC17: 6 | BD17: 7 | BE17: 8 | BF17: 9 | BG17: 10 | BH17: 11 | BI17: 12 | BJ17: 13 | BK17: 14 | BL17: 15 | BM17: 16 | BN17: 17 | BO17: 18 | BP17: 19 | BQ17: 20 | BR17: 21 | BS17: 22 | BT17: 23 | BU17: 24 | BV17: 25 | BW17: 26 | BX17: 27 | BY17: 28 | BZ17: 29 | CA17: 30
A18: K | B18: Investitionskosten | C18: Beschreibung | D18: Investition (alle Fahrz.) [CHF] | E18: Lebensdauer [a] | F18: Default überschreiben | O18: Kilometer | P18: 0 | Q18: =Q17*Fahrleistung_PW -> 0 | R18: 0 | S18: 0 | T18: 0 | U18: 0 | V18: 0 | W18: 0 | X18: 0 | Y18: 0 | Z18: 0 | AA18: 0 | AB18: 0 | AC18: 0 | AD18: 0 | AE18: 0 | AF18: 0 | AG18: 0 | AH18: 0 | AI18: 0 | AJ18: 0 | AK18: 0 | AL18: 0 | AM18: 0 | AN18: 0 | AO18: 0 | AP18: 0 | AQ18: 0 | AR18: 0 | AS18: 0 | AT18: 0 | AU18: Restwert am Ende der Betrachtungszeit
A19: K | B19: Fahrzeuge | E19: 10 | G19: =IF(K19<Betrachtungszeit_PW,"Achtung: es erfolgt eine Reinvestition","") ->  | K19: =IF(ISNUMBER(F19),F19,IF(ISNUMBER(E19),E19,0)) -> 10 | O19: =B19 -> Fahrzeuge | P19: =D19 -> 0 | Q19: =IF(Betrachtungszeit_PW<Q$17,0,IF(AND(P$17<>0,P$17/($K19)=INT(P$17/($K19))),$D19,0)) -> 0 | R19: 0 | S19: 0 | T19: 0 | U19: 0 | V19: 0 | W19: 0 | X19: 0 | Y19: 0 | Z19: 0 | AA19: 0 | AB19: 0 | AC19: 0 | AD19: 0 | AE19: 0 | AF19: 0 | AG19: 0 | AH19: 0 | AI19: 0 | AJ19: 0 | AK19: 0 | AL19: 0 | AM19: 0 | AN19: 0 | AO19: 0 | AP19: 0 | AQ19: 0 | AR19: 0 | AS19: 0 | AT19: 0 | AU19: =SUMIF($AW$17:$CA$17,Betrachtungszeit_PW,AW19:CA19) -> 0 | AW19: =$D19 -> 0 | AX19: =MAX(AW19-$M26+Q19,0) -> 0 | AY19: 0 | AZ19: 0 | BA19: 0 | BB19: 0 | BC19: 0 | BD19: 0 | BE19: 0 | BF19: 0 | BG19: 0 | BH19: 0 | BI19: 0 | BJ19: 0 | BK19: 0 | BL19: 0 | BM19: 0 | BN19: 0 | BO19: 0 | BP19: 0 | BQ19: 0 | BR19: 0 | BS19: 0 | BT19: 0 | BU19: 0 | BV19: 0 | BW19: 0 | BX19: 0 | BY19: 0 | BZ19: 0 | CA19: 0
B20: Zubehör / Infrastruktur | E20: 10 | K20: 10 | M20: =1/K20*D20 -> 0 | O20: =B20&": "&C20 -> Zubehör / Infrastruktur: | P20: 0 | Q20: 0 | R20: 0 | S20: 0 | T20: 0 | U20: 0 | V20: 0 | W20: 0 | X20: 0 | Y20: 0 | Z20: 0 | AA20: 0 | AB20: 0 | AC20: 0 | AD20: 0 | AE20: 0 | AF20: 0 | AG20: 0 | AH20: 0 | AI20: 0 | AJ20: 0 | AK20: 0 | AL20: 0 | AM20: 0 | AN20: 0 | AO20: 0 | AP20: 0 | AQ20: 0 | AR20: 0 | AS20: 0 | AT20: 0 | AU20: 0 | AW20: =$D20 -> 0 | AX20: =AW20-$M20+Q20 -> 0 | AY20: =AX20-$M20+R20 -> 0 | AZ20: 0 | BA20: 0 | BB20: 0 | BC20: 0 | BD20: 0 | BE20: 0 | BF20: 0 | BG20: 0 | BH20: 0 | BI20: 0 | BJ20: 0 | BK20: 0 | BL20: 0 | BM20: 0 | BN20: 0 | BO20: 0 | BP20: 0 | BQ20: 0 | BR20: 0 | BS20: 0 | BT20: 0 | BU20: 0 | BV20: 0 | BW20: 0 | BX20: 0 | BY20: 0 | BZ20: 0 | CA20: 0
B21: Zubehör / Infrastruktur | E21: 10 | K21: 10 | M21: =1/K21*D21 -> 0 | O21: =B21&": "&C21 -> Zubehör / Infrastruktur: | P21: 0 | Q21: 0 | R21: 0 | S21: 0 | T21: 0 | U21: 0 | V21: 0 | W21: 0 | X21: 0 | Y21: 0 | Z21: 0 | AA21: 0 | AB21: 0 | AC21: 0 | AD21: 0 | AE21: 0 | AF21: 0 | AG21: 0 | AH21: 0 | AI21: 0 | AJ21: 0 | AK21: 0 | AL21: 0 | AM21: 0 | AN21: 0 | AO21: 0 | AP21: 0 | AQ21: 0 | AR21: 0 | AS21: 0 | AT21: 0 | AU21: 0 | AW21: =$D21 -> 0 | AX21: =AW21-$M21+Q21 -> 0 | AY21: 0 | AZ21: 0 | BA21: 0 | BB21: 0 | BC21: 0 | BD21: 0 | BE21: 0 | BF21: 0 | BG21: 0 | BH21: 0 | BI21: 0 | BJ21: 0 | BK21: 0 | BL21: 0 | BM21: 0 | BN21: 0 | BO21: 0 | BP21: 0 | BQ21: 0 | BR21: 0 | BS21: 0 | BT21: 0 | BU21: 0 | BV21: 0 | BW21: 0 | BX21: 0 | BY21: 0 | BZ21: 0 | CA21: 0
B22: Zubehör / Infrastruktur | E22: 10 | K22: 10 | M22: =1/K22*D22 -> 0 | O22: Zubehör / Infrastruktur: | P22: 0 | Q22: 0 | R22: 0 | S22: 0 | T22: 0 | U22: 0 | V22: 0 | W22: 0 | X22: 0 | Y22: 0 | Z22: 0 | AA22: 0 | AB22: 0 | AC22: 0 | AD22: 0 | AE22: 0 | AF22: 0 | AG22: 0 | AH22: 0 | AI22: 0 | AJ22: 0 | AK22: 0 | AL22: 0 | AM22: 0 | AN22: 0 | AO22: 0 | AP22: 0 | AQ22: 0 | AR22: 0 | AS22: 0 | AT22: 0 | AU22: 0 | AW22: 0 | AX22: 0 | AY22: 0 | AZ22: 0 | BA22: 0 | BB22: 0 | BC22: 0 | BD22: 0 | BE22: 0 | BF22: 0 | BG22: 0 | BH22: 0 | BI22: 0 | BJ22: 0 | BK22: 0 | BL22: 0 | BM22: 0 | BN22: 0 | BO22: 0 | BP22: 0 | BQ22: 0 | BR22: 0 | BS22: 0 | BT22: 0 | BU22: 0 | BV22: 0 | BW22: 0 | BX22: 0 | BY22: 0 | BZ22: 0 | CA22: 0
B23: Zubehör / Infrastruktur | E23: 10 | K23: 10 | M23: =1/K23*D23 -> 0 | O23: Zubehör / Infrastruktur: | P23: 0 | Q23: 0 | R23: 0 | S23: 0 | T23: 0 | U23: 0 | V23: 0 | W23: 0 | X23: 0 | Y23: 0 | Z23: 0 | AA23: 0 | AB23: 0 | AC23: 0 | AD23: 0 | AE23: 0 | AF23: 0 | AG23: 0 | AH23: 0 | AI23: 0 | AJ23: 0 | AK23: 0 | AL23: 0 | AM23: 0 | AN23: 0 | AO23: 0 | AP23: 0 | AQ23: 0 | AR23: 0 | AS23: 0 | AT23: 0 | AU23: 0 | AW23: 0 | AX23: 0 | AY23: 0 | AZ23: 0 | BA23: 0 | BB23: 0 | BC23: 0 | BD23: 0 | BE23: 0 | BF23: 0 | BG23: 0 | BH23: 0 | BI23: 0 | BJ23: 0 | BK23: 0 | BL23: 0 | BM23: 0 | BN23: 0 | BO23: 0 | BP23: 0 | BQ23: 0 | BR23: 0 | BS23: 0 | BT23: 0 | BU23: 0 | BV23: 0 | BW23: 0 | BX23: 0 | BY23: 0 | BZ23: 0 | CA23: 0
B24: Zubehör / Infrastruktur | E24: 10 | K24: 10 | M24: =1/K24*D24 -> 0 | O24: Zubehör / Infrastruktur: | P24: 0 | Q24: 0 | R24: 0 | S24: 0 | T24: 0 | U24: 0 | V24: 0 | W24: 0 | X24: 0 | Y24: 0 | Z24: 0 | AA24: 0 | AB24: 0 | AC24: 0 | AD24: 0 | AE24: 0 | AF24: 0 | AG24: 0 | AH24: 0 | AI24: 0 | AJ24: 0 | AK24: 0 | AL24: 0 | AM24: 0 | AN24: 0 | AO24: 0 | AP24: 0 | AQ24: 0 | AR24: 0 | AS24: 0 | AT24: 0 | AU24: 0 | AW24: 0 | AX24: 0 | AY24: 0 | AZ24: 0 | BA24: 0 | BB24: 0 | BC24: 0 | BD24: 0 | BE24: 0 | BF24: 0 | BG24: 0 | BH24: 0 | BI24: 0 | BJ24: 0 | BK24: 0 | BL24: 0 | BM24: 0 | BN24: 0 | BO24: 0 | BP24: 0 | BQ24: 0 | BR24: 0 | BS24: 0 | BT24: 0 | BU24: 0 | BV24: 0 | BW24: 0 | BX24: 0 | BY24: 0 | BZ24: 0 | CA24: 0
B25: Investitionskosten abzügl. Förderbeiträge total | D25: CHF | E25: =D19+SUM(D20:D24)-C15 -> 0 | L25: =E26*D19 -> 0 | O25: (Re)Investition abzüglich Restwert und Fördergeld | AU25: Nettobarwert
A26: K | B26: Wertminderung der Fahrzeuge pro Jahr aufgrund Lebensdauer | E26: =1/K19 -> 0.1 | M26: =L25+Fahrleistung_PW/10000*D19*L27 -> 0 | O26: (Re)Investition abzüglich Fördergeld | P26: =E25 -> 0 | Q26: =SUM(Q19:Q24) -> 0 | R26: 0 | S26: 0 | T26: 0 | U26: 0 | V26: 0 | W26: 0 | X26: 0 | Y26: 0 | Z26: 0 | AA26: 0 | AB26: 0 | AC26: 0 | AD26: 0 | AE26: 0 | AF26: 0 | AG26: 0 | AH26: 0 | AI26: 0 | AJ26: 0 | AK26: 0 | AL26: 0 | AM26: 0 | AN26: 0 | AO26: 0 | AP26: 0 | AQ26: 0 | AR26: 0 | AS26: 0 | AT26: 0
A27: K | B27: Zusätzliche Wertminderung pro 10'000 km | E27: 0.02 | L27: =IF(ISNUMBER(F27),F27,IF(ISNUMBER(E27),E27,0)) -> 0.02 | O27: Restwert | P27: =IF(Betrachtungszeit_PW=P17,-($L$28+$E$29),0) -> 0 | Q27: 0 | R27: 0 | S27: 0 | T27: 0 | U27: 0 | V27: 0 | W27: 0 | X27: 0 | Y27: 0 | Z27: 0 | AA27: 0 | AB27: 0 | AC27: 0 | AD27: 0 | AE27: 0 | AF27: 0 | AG27: 0 | AH27: 0 | AI27: 0 | AJ27: 0 | AK27: 0 | AL27: 0 | AM27: 0 | AN27: 0 | AO27: 0 | AP27: 0 | AQ27: 0 | AR27: 0 | AS27: 0 | AT27: 0
A28: K | B28: Restwert Fahrzeuge am Ende der Betrachtungszeit | D28: CHF | E28: =AU19 -> 0 | L28: =IF(ISNUMBER(F28),F28,E28) -> 0 | O28: Kosten inkl. Preissteigerung | P28: =SUM(P26:P27)*(1+Inflationsindex)^P$17 -> 0 | Q28: 0 | R28: 0 | S28: 0 | T28: 0 | U28: 0 | V28: 0 | W28: 0 | X28: 0 | Y28: 0 | Z28: 0 | AA28: 0 | AB28: 0 | AC28: 0 | AD28: 0 | AE28: 0 | AF28: 0 | AG28: 0 | AH28: 0 | AI28: 0 | AJ28: 0 | AK28: 0 | AL28: 0 | AM28: 0 | AN28: 0 | AO28: 0 | AP28: 0 | AQ28: 0 | AR28: 0 | AS28: 0 | AT28: 0
B29: Restwert Zubehör am Ende der Betrachtungszeit | D29: CHF | E29: =SUM(AU20:AU24) -> 0 | O29: Barwert | P29: =P28*(1+Kalkulationszinssatz)^-P$17 -> 0 | Q29: 0 | R29: 0 | S29: 0 | T29: 0 | U29: 0 | V29: 0 | W29: 0 | X29: 0 | Y29: 0 | Z29: 0 | AA29: 0 | AB29: 0 | AC29: 0 | AD29: 0 | AE29: 0 | AF29: 0 | AG29: 0 | AH29: 0 | AI29: 0 | AJ29: 0 | AK29: 0 | AL29: 0 | AM29: 0 | AN29: 0 | AO29: 0 | AP29: 0 | AQ29: 0 | AR29: 0 | AS29: 0 | AT29: 0 | AU29: =SUM(P29:AT29) -> 0
A31: K | B31: Ersatzteile / Verbrauchsmaterial mit erstmaliger Investition nach Lebensdauer | K31: Lebens- dauer [a] | M31: Jährliche Ab-schreibung [CHF/a] | O31: Ersatzteile | AW31: Restwert nach Abschreibung am Ende des Jahres… (Berücksichtigt Reinvestition nach Ablauf der Lebensdauer) Ersatzteile haben erst nach Ablauf der ersten Lebensdauer einen Restwert
B32: 1. Ersatzteile / Verbrauchsmaterial mit Lebensdauer in Jahren | E32: Lebensdauer [a] | O32: =B32 -> 1. Ersatzteile / Verbrauchsmaterial mit Lebensdauer in Jahren | AU32: Restwert am Ende der Betrachtungszeit
B33: Weitere Ersatzteile | E33: 10 | K33: =IF(ISNUMBER(F33),F33,IF(ISNUMBER(E33),E33,0)) -> 10 | M33: =1/K33*D33 -> 0 | O33: =B33&": "&C33 -> Weitere Ersatzteile: | P33: 0 | Q33: =IF(Betrachtungszeit_PW<Q$17,0,IF(AND(P$17<>0,P$17/($K33)=INT(P$17/($K33))),$D33,0)) -> 0 | R33: 0 | S33: 0 | T33: 0 | U33: 0 | V33: 0 | W33: 0 | X33: 0 | Y33: 0 | Z33: 0 | AA33: 0 | AB33: 0 | AC33: 0 | AD33: 0 | AE33: 0 | AF33: 0 | AG33: 0 | AH33: 0 | AI33: 0 | AJ33: 0 | AK33: 0 | AL33: 0 | AM33: 0 | AN33: 0 | AO33: 0 | AP33: 0 | AQ33: 0 | AR33: 0 | AS33: 0 | AT33: 0 | AU33: =SUMIF($AW$17:$CA$17,Betrachtungszeit_PW,AW33:CA33) -> 0 | AW33: 0 | AX33: =IF((AW33+Q33)=0,0,AW33-$M33+Q33) -> 0 | AY33: =IF((AX33+R33)=0,0,AX33-$M33+R33) -> 0 | AZ33: 0 | BA33: 0 | BB33: 0 | BC33: 0 | BD33: 0 | BE33: 0 | BF33: 0 | BG33: 0 | BH33: 0 | BI33: 0 | BJ33: 0 | BK33: 0 | BL33: 0 | BM33: 0 | BN33: 0 | BO33: 0 | BP33: 0 | BQ33: 0 | BR33: 0 | BS33: 0 | BT33: 0 | BU33: 0 | BV33: 0 | BW33: 0 | BX33: 0 | BY33: 0 | BZ33: 0 | CA33: 0
B34: Weitere Ersatzteile | E34: 10 | K34: =IF(ISNUMBER(F34),F34,IF(ISNUMBER(E34),E34,0)) -> 10 | M34: =1/K34*D34 -> 0 | O34: =B34&": "&C34 -> Weitere Ersatzteile: | P34: 0 | Q34: 0 | R34: 0 | S34: 0 | T34: 0 | U34: 0 | V34: 0 | W34: 0 | X34: 0 | Y34: 0 | Z34: 0 | AA34: 0 | AB34: 0 | AC34: 0 | AD34: 0 | AE34: 0 | AF34: 0 | AG34: 0 | AH34: 0 | AI34: 0 | AJ34: 0 | AK34: 0 | AL34: 0 | AM34: 0 | AN34: 0 | AO34: 0 | AP34: 0 | AQ34: 0 | AR34: 0 | AS34: 0 | AT34: 0 | AU34: =SUMIF($AW$17:$CA$17,Betrachtungszeit_PW,AW34:CA34) -> 0 | AW34: 0 | AX34: =IF((AW34+Q34)=0,0,AW34-$M34+Q34) -> 0 | AY34: 0 | AZ34: 0 | BA34: 0 | BB34: 0 | BC34: 0 | BD34: 0 | BE34: 0 | BF34: 0 | BG34: 0 | BH34: 0 | BI34: 0 | BJ34: 0 | BK34: 0 | BL34: 0 | BM34: 0 | BN34: 0 | BO34: 0 | BP34: 0 | BQ34: 0 | BR34: 0 | BS34: 0 | BT34: 0 | BU34: 0 | BV34: 0 | BW34: 0 | BX34: 0 | BY34: 0 | BZ34: 0 | CA34: 0
B35: Weitere Ersatzteile | E35: 10 | K35: =IF(ISNUMBER(F35),F35,IF(ISNUMBER(E35),E35,0)) -> 10 | M35: =1/K35*D35 -> 0 | O35: Weitere Ersatzteile: | P35: 0 | Q35: 0 | R35: 0 | S35: 0 | T35: 0 | U35: 0 | V35: 0 | W35: 0 | X35: 0 | Y35: 0 | Z35: 0 | AA35: 0 | AB35: 0 | AC35: 0 | AD35: 0 | AE35: 0 | AF35: 0 | AG35: 0 | AH35: 0 | AI35: 0 | AJ35: 0 | AK35: 0 | AL35: 0 | AM35: 0 | AN35: 0 | AO35: 0 | AP35: 0 | AQ35: 0 | AR35: 0 | AS35: 0 | AT35: 0 | AU35: =SUMIF($AW$17:$CA$17,Betrachtungszeit_PW,AW35:CA35) -> 0 | AW35: 0 | AX35: 0 | AY35: 0 | AZ35: 0 | BA35: 0 | BB35: 0 | BC35: 0 | BD35: 0 | BE35: 0 | BF35: 0 | BG35: 0 | BH35: 0 | BI35: 0 | BJ35: 0 | BK35: 0 | BL35: 0 | BM35: 0 | BN35: 0 | BO35: 0 | BP35: 0 | BQ35: 0 | BR35: 0 | BS35: 0 | BT35: 0 | BU35: 0 | BV35: 0 | BW35: 0 | BX35: 0 | BY35: 0 | BZ35: 0 | CA35: 0
B36: Weitere Ersatzteile | E36: 10 | K36: =IF(ISNUMBER(F36),F36,IF(ISNUMBER(E36),E36,0)) -> 10 | M36: =1/K36*D36 -> 0 | O36: Weitere Ersatzteile: | P36: 0 | Q36: 0 | R36: 0 | S36: 0 | T36: 0 | U36: 0 | V36: 0 | W36: 0 | X36: 0 | Y36: 0 | Z36: 0 | AA36: 0 | AB36: 0 | AC36: 0 | AD36: 0 | AE36: 0 | AF36: 0 | AG36: 0 | AH36: 0 | AI36: 0 | AJ36: 0 | AK36: 0 | AL36: 0 | AM36: 0 | AN36: 0 | AO36: 0 | AP36: 0 | AQ36: 0 | AR36: 0 | AS36: 0 | AT36: 0 | AU36: =SUMIF($AW$17:$CA$17,Betrachtungszeit_PW,AW36:CA36) -> 0 | AW36: 0 | AX36: 0 | AY36: 0 | AZ36: 0 | BA36: 0 | BB36: 0 | BC36: 0 | BD36: 0 | BE36: 0 | BF36: 0 | BG36: 0 | BH36: 0 | BI36: 0 | BJ36: 0 | BK36: 0 | BL36: 0 | BM36: 0 | BN36: 0 | BO36: 0 | BP36: 0 | BQ36: 0 | BR36: 0 | BS36: 0 | BT36: 0 | BU36: 0 | BV36: 0 | BW36: 0 | BX36: 0 | BY36: 0 | BZ36: 0 | CA36: 0
B37: Weitere Ersatzteile | E37: 10 | K37: =IF(ISNUMBER(F37),F37,IF(ISNUMBER(E37),E37,0)) -> 10 | M37: =1/K37*D37 -> 0 | O37: Weitere Ersatzteile: | P37: 0 | Q37: 0 | R37: 0 | S37: 0 | T37: 0 | U37: 0 | V37: 0 | W37: 0 | X37: 0 | Y37: 0 | Z37: 0 | AA37: 0 | AB37: 0 | AC37: 0 | AD37: 0 | AE37: 0 | AF37: 0 | AG37: 0 | AH37: 0 | AI37: 0 | AJ37: 0 | AK37: 0 | AL37: 0 | AM37: 0 | AN37: 0 | AO37: 0 | AP37: 0 | AQ37: 0 | AR37: 0 | AS37: 0 | AT37: 0 | AU37: =SUMIF($AW$17:$CA$17,Betrachtungszeit_PW,AW37:CA37) -> 0 | AW37: 0 | AX37: 0 | AY37: 0 | AZ37: 0 | BA37: 0 | BB37: 0 | BC37: 0 | BD37: 0 | BE37: 0 | BF37: 0 | BG37: 0 | BH37: 0 | BI37: 0 | BJ37: 0 | BK37: 0 | BL37: 0 | BM37: 0 | BN37: 0 | BO37: 0 | BP37: 0 | BQ37: 0 | BR37: 0 | BS37: 0 | BT37: 0 | BU37: 0 | BV37: 0 | BW37: 0 | BX37: 0 | BY37: 0 | BZ37: 0 | CA37: 0
B38: 2. Ersatzteile / Verbrauchsmaterial mit Lebensdauer in Kilometern | E38: Lebensdauer [km] | K38: Lebens-dauer [km] | O38: 2. Ersatzteile / Verbrauchsmaterial mit Lebensdauer in Kilometern
A39: K | B39: Ersatz-Reifen (Set) | E39: 30000 | K39: =IF(ISNUMBER(F39),F39,IF(ISNUMBER(E39),E39,0)) -> 30000 | M39: =1/(K39/Fahrleistung_PW)*D39 ->  | O39: =B39&": "&C39 -> Ersatz-Reifen (Set): | P39: 0 | Q39: =IF(Betrachtungszeit_PW*Fahrleistung_PW<Q$18,0,IF(Q$18-(COUNTIF($P39:P39,">0")*$K39)>$K39,$D39,0)) -> 0 | R39: =IF(Betrachtungszeit_PW*Fahrleistung_PW<R$18,0,IF(R$18-(COUNTIF($P39:Q39,">0")*$K39)>$K39,$D39,0)) -> 0 | S39: =IF(Betrachtungszeit_PW*Fahrleistung_PW<S$18,0,IF(S$18-(COUNTIF($P39:R39,">0")*$K39)>$K39,$D39,0)) -> 0 | T39: =IF(Betrachtungszeit_PW*Fahrleistung_PW<T$18,0,IF(T$18-(COUNTIF($P39:S39,">0")*$K39)>$K39,$D39,0)) -> 0 | U39: =IF(Betrachtungszeit_PW*Fahrleistung_PW<U$18,0,IF(U$18-(COUNTIF($P39:T39,">0")*$K39)>$K39,$D39,0)) -> 0 | V39: =IF(Betrachtungszeit_PW*Fahrleistung_PW<V$18,0,IF(V$18-(COUNTIF($P39:U39,">0")*$K39)>$K39,$D39,0)) -> 0 | W39: =IF(Betrachtungszeit_PW*Fahrleistung_PW<W$18,0,IF(W$18-(COUNTIF($P39:V39,">0")*$K39)>$K39,$D39,0)) -> 0 | X39: =IF(Betrachtungszeit_PW*Fahrleistung_PW<X$18,0,IF(X$18-(COUNTIF($P39:W39,">0")*$K39)>$K39,$D39,0)) -> 0 | Y39: =IF(Betrachtungszeit_PW*Fahrleistung_PW<Y$18,0,IF(Y$18-(COUNTIF($P39:X39,">0")*$K39)>$K39,$D39,0)) -> 0 | Z39: =IF(Betrachtungszeit_PW*Fahrleistung_PW<Z$18,0,IF(Z$18-(COUNTIF($P39:Y39,">0")*$K39)>$K39,$D39,0)) -> 0 | AA39: =IF(Betrachtungszeit_PW*Fahrleistung_PW<AA$18,0,IF(AA$18-(COUNTIF($P39:Z39,">0")*$K39)>$K39,$D39,0)) -> 0 | AB39: =IF(Betrachtungszeit_PW*Fahrleistung_PW<AB$18,0,IF(AB$18-(COUNTIF($P39:AA39,">0")*$K39)>$K39,$D39,0)) -> 0 | AC39: =IF(Betrachtungszeit_PW*Fahrleistung_PW<AC$18,0,IF(AC$18-(COUNTIF($P39:AB39,">0")*$K39)>$K39,$D39,0)) -> 0 | AD39: =IF(Betrachtungszeit_PW*Fahrleistung_PW<AD$18,0,IF(AD$18-(COUNTIF($P39:AC39,">0")*$K39)>$K39,$D39,0)) -> 0 | AE39: =IF(Betrachtungszeit_PW*Fahrleistung_PW<AE$18,0,IF(AE$18-(COUNTIF($P39:AD39,">0")*$K39)>$K39,$D39,0)) -> 0 | AF39: =IF(Betrachtungszeit_PW*Fahrleistung_PW<AF$18,0,IF(AF$18-(COUNTIF($P39:AE39,">0")*$K39)>$K39,$D39,0)) -> 0 | AG39: =IF(Betrachtungszeit_PW*Fahrleistung_PW<AG$18,0,IF(AG$18-(COUNTIF($P39:AF39,">0")*$K39)>$K39,$D39,0)) -> 0 | AH39: =IF(Betrachtungszeit_PW*Fahrleistung_PW<AH$18,0,IF(AH$18-(COUNTIF($P39:AG39,">0")*$K39)>$K39,$D39,0)) -> 0 | AI39: =IF(Betrachtungszeit_PW*Fahrleistung_PW<AI$18,0,IF(AI$18-(COUNTIF($P39:AH39,">0")*$K39)>$K39,$D39,0)) -> 0 | AJ39: =IF(Betrachtungszeit_PW*Fahrleistung_PW<AJ$18,0,IF(AJ$18-(COUNTIF($P39:AI39,">0")*$K39)>$K39,$D39,0)) -> 0 | AK39: =IF(Betrachtungszeit_PW*Fahrleistung_PW<AK$18,0,IF(AK$18-(COUNTIF($P39:AJ39,">0")*$K39)>$K39,$D39,0)) -> 0 | AL39: =IF(Betrachtungszeit_PW*Fahrleistung_PW<AL$18,0,IF(AL$18-(COUNTIF($P39:AK39,">0")*$K39)>$K39,$D39,0)) -> 0 | AM39: =IF(Betrachtungszeit_PW*Fahrleistung_PW<AM$18,0,IF(AM$18-(COUNTIF($P39:AL39,">0")*$K39)>$K39,$D39,0)) -> 0 | AN39: =IF(Betrachtungszeit_PW*Fahrleistung_PW<AN$18,0,IF(AN$18-(COUNTIF($P39:AM39,">0")*$K39)>$K39,$D39,0)) -> 0 | AO39: =IF(Betrachtungszeit_PW*Fahrleistung_PW<AO$18,0,IF(AO$18-(COUNTIF($P39:AN39,">0")*$K39)>$K39,$D39,0)) -> 0 | AP39: =IF(Betrachtungszeit_PW*Fahrleistung_PW<AP$18,0,IF(AP$18-(COUNTIF($P39:AO39,">0")*$K39)>$K39,$D39,0)) -> 0 | AQ39: =IF(Betrachtungszeit_PW*Fahrleistung_PW<AQ$18,0,IF(AQ$18-(COUNTIF($P39:AP39,">0")*$K39)>$K39,$D39,0)) -> 0 | AR39: =IF(Betrachtungszeit_PW*Fahrleistung_PW<AR$18,0,IF(AR$18-(COUNTIF($P39:AQ39,">0")*$K39)>$K39,$D39,0)) -> 0 | AS39: =IF(Betrachtungszeit_PW*Fahrleistung_PW<AS$18,0,IF(AS$18-(COUNTIF($P39:AR39,">0")*$K39)>$K39,$D39,0)) -> 0 | AT39: =IF(Betrachtungszeit_PW*Fahrleistung_PW<AT$18,0,IF(AT$18-(COUNTIF($P39:AS39,">0")*$K39)>$K39,$D39,0)) -> 0 | AU39: =SUMIF($AW$17:$CA$17,Betrachtungszeit_PW,AW39:CA39) -> 0 | AW39: 0 | AX39: =IF((AW39+Q39)=0,0,AW39-$M39+Q39) -> 0 | AY39: =IF((AX39+R39)=0,0,AX39-$M39+R39) -> 0 | AZ39: 0 | BA39: 0 | BB39: 0 | BC39: 0 | BD39: 0 | BE39: 0 | BF39: 0 | BG39: 0 | BH39: 0 | BI39: 0 | BJ39: 0 | BK39: 0 | BL39: 0 | BM39: 0 | BN39: 0 | BO39: =IF((BN39+AH39)=0,0,BN39-$M39+AH39) -> 0 | BP39: 0 | BQ39: 0 | BR39: 0 | BS39: 0 | BT39: 0 | BU39: 0 | BV39: 0 | BW39: 0 | BX39: 0 | BY39: 0 | BZ39: 0 | CA39: 0
A40: K | B40: Ersatz-Batterie bei Elektrofahrzeugen | E40: 100000 | K40: 100000 | O40: =B40&": "&C40 -> Ersatz-Batterie bei Elektrofahrzeugen: | P40: 0 | Q40: =IF(Betrachtungszeit_PW*Fahrleistung_PW<Q$18,0,IF(Q$18-(COUNTIF($P40:P40,">0")*$K40)>$K40,$D40,0)) -> 0 | R40: =IF(Betrachtungszeit_PW*Fahrleistung_PW<R$18,0,IF(R$18-(COUNTIF($P40:Q40,">0")*$K40)>$K40,$D40,0)) -> 0 | S40: =IF(Betrachtungszeit_PW*Fahrleistung_PW<S$18,0,IF(S$18-(COUNTIF($P40:R40,">0")*$K40)>$K40,$D40,0)) -> 0 | T40: =IF(Betrachtungszeit_PW*Fahrleistung_PW<T$18,0,IF(T$18-(COUNTIF($P40:S40,">0")*$K40)>$K40,$D40,0)) -> 0 | U40: =IF(Betrachtungszeit_PW*Fahrleistung_PW<U$18,0,IF(U$18-(COUNTIF($P40:T40,">0")*$K40)>$K40,$D40,0)) -> 0 | V40: =IF(Betrachtungszeit_PW*Fahrleistung_PW<V$18,0,IF(V$18-(COUNTIF($P40:U40,">0")*$K40)>$K40,$D40,0)) -> 0 | W40: =IF(Betrachtungszeit_PW*Fahrleistung_PW<W$18,0,IF(W$18-(COUNTIF($P40:V40,">0")*$K40)>$K40,$D40,0)) -> 0 | X40: =IF(Betrachtungszeit_PW*Fahrleistung_PW<X$18,0,IF(X$18-(COUNTIF($P40:W40,">0")*$K40)>$K40,$D40,0)) -> 0 | Y40: =IF(Betrachtungszeit_PW*Fahrleistung_PW<Y$18,0,IF(Y$18-(COUNTIF($P40:X40,">0")*$K40)>$K40,$D40,0)) -> 0 | Z40: =IF(Betrachtungszeit_PW*Fahrleistung_PW<Z$18,0,IF(Z$18-(COUNTIF($P40:Y40,">0")*$K40)>$K40,$D40,0)) -> 0 | AA40: =IF(Betrachtungszeit_PW*Fahrleistung_PW<AA$18,0,IF(AA$18-(COUNTIF($P40:Z40,">0")*$K40)>$K40,$D40,0)) -> 0 | AB40: =IF(Betrachtungszeit_PW*Fahrleistung_PW<AB$18,0,IF(AB$18-(COUNTIF($P40:AA40,">0")*$K40)>$K40,$D40,0)) -> 0 | AC40: =IF(Betrachtungszeit_PW*Fahrleistung_PW<AC$18,0,IF(AC$18-(COUNTIF($P40:AB40,">0")*$K40)>$K40,$D40,0)) -> 0 | AD40: =IF(Betrachtungszeit_PW*Fahrleistung_PW<AD$18,0,IF(AD$18-(COUNTIF($P40:AC40,">0")*$K40)>$K40,$D40,0)) -> 0 | AE40: =IF(Betrachtungszeit_PW*Fahrleistung_PW<AE$18,0,IF(AE$18-(COUNTIF($P40:AD40,">0")*$K40)>$K40,$D40,0)) -> 0 | AF40: =IF(Betrachtungszeit_PW*Fahrleistung_PW<AF$18,0,IF(AF$18-(COUNTIF($P40:AE40,">0")*$K40)>$K40,$D40,0)) -> 0 | AG40: =IF(Betrachtungszeit_PW*Fahrleistung_PW<AG$18,0,IF(AG$18-(COUNTIF($P40:AF40,">0")*$K40)>$K40,$D40,0)) -> 0 | AH40: =IF(Betrachtungszeit_PW*Fahrleistung_PW<AH$18,0,IF(AH$18-(COUNTIF($P40:AG40,">0")*$K40)>$K40,$D40,0)) -> 0 | AI40: =IF(Betrachtungszeit_PW*Fahrleistung_PW<AI$18,0,IF(AI$18-(COUNTIF($P40:AH40,">0")*$K40)>$K40,$D40,0)) -> 0 | AJ40: =IF(Betrachtungszeit_PW*Fahrleistung_PW<AJ$18,0,IF(AJ$18-(COUNTIF($P40:AI40,">0")*$K40)>$K40,$D40,0)) -> 0 | AK40: =IF(Betrachtungszeit_PW*Fahrleistung_PW<AK$18,0,IF(AK$18-(COUNTIF($P40:AJ40,">0")*$K40)>$K40,$D40,0)) -> 0 | AL40: =IF(Betrachtungszeit_PW*Fahrleistung_PW<AL$18,0,IF(AL$18-(COUNTIF($P40:AK40,">0")*$K40)>$K40,$D40,0)) -> 0 | AM40: =IF(Betrachtungszeit_PW*Fahrleistung_PW<AM$18,0,IF(AM$18-(COUNTIF($P40:AL40,">0")*$K40)>$K40,$D40,0)) -> 0 | AN40: =IF(Betrachtungszeit_PW*Fahrleistung_PW<AN$18,0,IF(AN$18-(COUNTIF($P40:AM40,">0")*$K40)>$K40,$D40,0)) -> 0 | AO40: =IF(Betrachtungszeit_PW*Fahrleistung_PW<AO$18,0,IF(AO$18-(COUNTIF($P40:AN40,">0")*$K40)>$K40,$D40,0)) -> 0 | AP40: =IF(Betrachtungszeit_PW*Fahrleistung_PW<AP$18,0,IF(AP$18-(COUNTIF($P40:AO40,">0")*$K40)>$K40,$D40,0)) -> 0 | AQ40: =IF(Betrachtungszeit_PW*Fahrleistung_PW<AQ$18,0,IF(AQ$18-(COUNTIF($P40:AP40,">0")*$K40)>$K40,$D40,0)) -> 0 | AR40: =IF(Betrachtungszeit_PW*Fahrleistung_PW<AR$18,0,IF(AR$18-(COUNTIF($P40:AQ40,">0")*$K40)>$K40,$D40,0)) -> 0 | AS40: =IF(Betrachtungszeit_PW*Fahrleistung_PW<AS$18,0,IF(AS$18-(COUNTIF($P40:AR40,">0")*$K40)>$K40,$D40,0)) -> 0 | AT40: =IF(Betrachtungszeit_PW*Fahrleistung_PW<AT$18,0,IF(AT$18-(COUNTIF($P40:AS40,">0")*$K40)>$K40,$D40,0)) -> 0 | AU40: 0 | AW40: 0 | AX40: =IF((AW40+Q40)=0,0,AW40-$M40+Q40) -> 0 | AY40: 0 | AZ40: 0 | BA40: 0 | BB40: 0 | BC40: 0 | BD40: 0 | BE40: 0 | BF40: 0 | BG40: 0 | BH40: 0 | BI40: 0 | BJ40: 0 | BK40: 0 | BL40: 0 | BM40: 0 | BN40: 0 | BO40: 0 | BP40: 0 | BQ40: 0 | BR40: 0 | BS40: 0 | BT40: 0 | BU40: 0 | BV40: 0 | BW40: 0 | BX40: 0 | BY40: 0 | BZ40: 0 | CA40: 0
B41: Weitere Ersatzteile | E41: 150000 | K41: 150000 | O41: Weitere Ersatzteile: | P41: 0 | Q41: =IF(Betrachtungszeit_PW*Fahrleistung_PW<Q$18,0,IF(Q$18-(COUNTIF($P41:P41,">0")*$K41)>$K41,$D41,0)) -> 0 | R41: =IF(Betrachtungszeit_PW*Fahrleistung_PW<R$18,0,IF(R$18-(COUNTIF($P41:Q41,">0")*$K41)>$K41,$D41,0)) -> 0 | S41: =IF(Betrachtungszeit_PW*Fahrleistung_PW<S$18,0,IF(S$18-(COUNTIF($P41:R41,">0")*$K41)>$K41,$D41,0)) -> 0 | T41: =IF(Betrachtungszeit_PW*Fahrleistung_PW<T$18,0,IF(T$18-(COUNTIF($P41:S41,">0")*$K41)>$K41,$D41,0)) -> 0 | U41: =IF(Betrachtungszeit_PW*Fahrleistung_PW<U$18,0,IF(U$18-(COUNTIF($P41:T41,">0")*$K41)>$K41,$D41,0)) -> 0 | V41: =IF(Betrachtungszeit_PW*Fahrleistung_PW<V$18,0,IF(V$18-(COUNTIF($P41:U41,">0")*$K41)>$K41,$D41,0)) -> 0 | W41: =IF(Betrachtungszeit_PW*Fahrleistung_PW<W$18,0,IF(W$18-(COUNTIF($P41:V41,">0")*$K41)>$K41,$D41,0)) -> 0 | X41: =IF(Betrachtungszeit_PW*Fahrleistung_PW<X$18,0,IF(X$18-(COUNTIF($P41:W41,">0")*$K41)>$K41,$D41,0)) -> 0 | Y41: =IF(Betrachtungszeit_PW*Fahrleistung_PW<Y$18,0,IF(Y$18-(COUNTIF($P41:X41,">0")*$K41)>$K41,$D41,0)) -> 0 | Z41: =IF(Betrachtungszeit_PW*Fahrleistung_PW<Z$18,0,IF(Z$18-(COUNTIF($P41:Y41,">0")*$K41)>$K41,$D41,0)) -> 0 | AA41: =IF(Betrachtungszeit_PW*Fahrleistung_PW<AA$18,0,IF(AA$18-(COUNTIF($P41:Z41,">0")*$K41)>$K41,$D41,0)) -> 0 | AB41: =IF(Betrachtungszeit_PW*Fahrleistung_PW<AB$18,0,IF(AB$18-(COUNTIF($P41:AA41,">0")*$K41)>$K41,$D41,0)) -> 0 | AC41: =IF(Betrachtungszeit_PW*Fahrleistung_PW<AC$18,0,IF(AC$18-(COUNTIF($P41:AB41,">0")*$K41)>$K41,$D41,0)) -> 0 | AD41: =IF(Betrachtungszeit_PW*Fahrleistung_PW<AD$18,0,IF(AD$18-(COUNTIF($P41:AC41,">0")*$K41)>$K41,$D41,0)) -> 0 | AE41: =IF(Betrachtungszeit_PW*Fahrleistung_PW<AE$18,0,IF(AE$18-(COUNTIF($P41:AD41,">0")*$K41)>$K41,$D41,0)) -> 0 | AF41: =IF(Betrachtungszeit_PW*Fahrleistung_PW<AF$18,0,IF(AF$18-(COUNTIF($P41:AE41,">0")*$K41)>$K41,$D41,0)) -> 0 | AG41: =IF(Betrachtungszeit_PW*Fahrleistung_PW<AG$18,0,IF(AG$18-(COUNTIF($P41:AF41,">0")*$K41)>$K41,$D41,0)) -> 0 | AH41: =IF(Betrachtungszeit_PW*Fahrleistung_PW<AH$18,0,IF(AH$18-(COUNTIF($P41:AG41,">0")*$K41)>$K41,$D41,0)) -> 0 | AI41: =IF(Betrachtungszeit_PW*Fahrleistung_PW<AI$18,0,IF(AI$18-(COUNTIF($P41:AH41,">0")*$K41)>$K41,$D41,0)) -> 0 | AJ41: =IF(Betrachtungszeit_PW*Fahrleistung_PW<AJ$18,0,IF(AJ$18-(COUNTIF($P41:AI41,">0")*$K41)>$K41,$D41,0)) -> 0 | AK41: =IF(Betrachtungszeit_PW*Fahrleistung_PW<AK$18,0,IF(AK$18-(COUNTIF($P41:AJ41,">0")*$K41)>$K41,$D41,0)) -> 0 | AL41: =IF(Betrachtungszeit_PW*Fahrleistung_PW<AL$18,0,IF(AL$18-(COUNTIF($P41:AK41,">0")*$K41)>$K41,$D41,0)) -> 0 | AM41: =IF(Betrachtungszeit_PW*Fahrleistung_PW<AM$18,0,IF(AM$18-(COUNTIF($P41:AL41,">0")*$K41)>$K41,$D41,0)) -> 0 | AN41: =IF(Betrachtungszeit_PW*Fahrleistung_PW<AN$18,0,IF(AN$18-(COUNTIF($P41:AM41,">0")*$K41)>$K41,$D41,0)) -> 0 | AO41: =IF(Betrachtungszeit_PW*Fahrleistung_PW<AO$18,0,IF(AO$18-(COUNTIF($P41:AN41,">0")*$K41)>$K41,$D41,0)) -> 0 | AP41: =IF(Betrachtungszeit_PW*Fahrleistung_PW<AP$18,0,IF(AP$18-(COUNTIF($P41:AO41,">0")*$K41)>$K41,$D41,0)) -> 0 | AQ41: =IF(Betrachtungszeit_PW*Fahrleistung_PW<AQ$18,0,IF(AQ$18-(COUNTIF($P41:AP41,">0")*$K41)>$K41,$D41,0)) -> 0 | AR41: =IF(Betrachtungszeit_PW*Fahrleistung_PW<AR$18,0,IF(AR$18-(COUNTIF($P41:AQ41,">0")*$K41)>$K41,$D41,0)) -> 0 | AS41: =IF(Betrachtungszeit_PW*Fahrleistung_PW<AS$18,0,IF(AS$18-(COUNTIF($P41:AR41,">0")*$K41)>$K41,$D41,0)) -> 0 | AT41: =IF(Betrachtungszeit_PW*Fahrleistung_PW<AT$18,0,IF(AT$18-(COUNTIF($P41:AS41,">0")*$K41)>$K41,$D41,0)) -> 0 | AU41: 0 | AW41: 0 | AX41: 0 | AY41: 0 | AZ41: 0 | BA41: 0 | BB41: 0 | BC41: 0 | BD41: 0 | BE41: 0 | BF41: 0 | BG41: 0 | BH41: 0 | BI41: 0 | BJ41: 0 | BK41: 0 | BL41: 0 | BM41: 0 | BN41: 0 | BO41: 0 | BP41: 0 | BQ41: 0 | BR41: 0 | BS41: 0 | BT41: 0 | BU41: 0 | BV41: 0 | BW41: 0 | BX41: 0 | BY41: 0 | BZ41: 0 | CA41: 0
B42: Weitere Ersatzteile | E42: 150000 | K42: 150000 | O42: Weitere Ersatzteile: | P42: 0 | Q42: =IF(Betrachtungszeit_PW*Fahrleistung_PW<Q$18,0,IF(Q$18-(COUNTIF($P42:P42,">0")*$K42)>$K42,$D42,0)) -> 0 | R42: =IF(Betrachtungszeit_PW*Fahrleistung_PW<R$18,0,IF(R$18-(COUNTIF($P42:Q42,">0")*$K42)>$K42,$D42,0)) -> 0 | S42: =IF(Betrachtungszeit_PW*Fahrleistung_PW<S$18,0,IF(S$18-(COUNTIF($P42:R42,">0")*$K42)>$K42,$D42,0)) -> 0 | T42: =IF(Betrachtungszeit_PW*Fahrleistung_PW<T$18,0,IF(T$18-(COUNTIF($P42:S42,">0")*$K42)>$K42,$D42,0)) -> 0 | U42: =IF(Betrachtungszeit_PW*Fahrleistung_PW<U$18,0,IF(U$18-(COUNTIF($P42:T42,">0")*$K42)>$K42,$D42,0)) -> 0 | V42: =IF(Betrachtungszeit_PW*Fahrleistung_PW<V$18,0,IF(V$18-(COUNTIF($P42:U42,">0")*$K42)>$K42,$D42,0)) -> 0 | W42: =IF(Betrachtungszeit_PW*Fahrleistung_PW<W$18,0,IF(W$18-(COUNTIF($P42:V42,">0")*$K42)>$K42,$D42,0)) -> 0 | X42: =IF(Betrachtungszeit_PW*Fahrleistung_PW<X$18,0,IF(X$18-(COUNTIF($P42:W42,">0")*$K42)>$K42,$D42,0)) -> 0 | Y42: =IF(Betrachtungszeit_PW*Fahrleistung_PW<Y$18,0,IF(Y$18-(COUNTIF($P42:X42,">0")*$K42)>$K42,$D42,0)) -> 0 | Z42: =IF(Betrachtungszeit_PW*Fahrleistung_PW<Z$18,0,IF(Z$18-(COUNTIF($P42:Y42,">0")*$K42)>$K42,$D42,0)) -> 0 | AA42: =IF(Betrachtungszeit_PW*Fahrleistung_PW<AA$18,0,IF(AA$18-(COUNTIF($P42:Z42,">0")*$K42)>$K42,$D42,0)) -> 0 | AB42: =IF(Betrachtungszeit_PW*Fahrleistung_PW<AB$18,0,IF(AB$18-(COUNTIF($P42:AA42,">0")*$K42)>$K42,$D42,0)) -> 0 | AC42: =IF(Betrachtungszeit_PW*Fahrleistung_PW<AC$18,0,IF(AC$18-(COUNTIF($P42:AB42,">0")*$K42)>$K42,$D42,0)) -> 0 | AD42: =IF(Betrachtungszeit_PW*Fahrleistung_PW<AD$18,0,IF(AD$18-(COUNTIF($P42:AC42,">0")*$K42)>$K42,$D42,0)) -> 0 | AE42: =IF(Betrachtungszeit_PW*Fahrleistung_PW<AE$18,0,IF(AE$18-(COUNTIF($P42:AD42,">0")*$K42)>$K42,$D42,0)) -> 0 | AF42: =IF(Betrachtungszeit_PW*Fahrleistung_PW<AF$18,0,IF(AF$18-(COUNTIF($P42:AE42,">0")*$K42)>$K42,$D42,0)) -> 0 | AG42: =IF(Betrachtungszeit_PW*Fahrleistung_PW<AG$18,0,IF(AG$18-(COUNTIF($P42:AF42,">0")*$K42)>$K42,$D42,0)) -> 0 | AH42: =IF(Betrachtungszeit_PW*Fahrleistung_PW<AH$18,0,IF(AH$18-(COUNTIF($P42:AG42,">0")*$K42)>$K42,$D42,0)) -> 0 | AI42: =IF(Betrachtungszeit_PW*Fahrleistung_PW<AI$18,0,IF(AI$18-(COUNTIF($P42:AH42,">0")*$K42)>$K42,$D42,0)) -> 0 | AJ42: =IF(Betrachtungszeit_PW*Fahrleistung_PW<AJ$18,0,IF(AJ$18-(COUNTIF($P42:AI42,">0")*$K42)>$K42,$D42,0)) -> 0 | AK42: =IF(Betrachtungszeit_PW*Fahrleistung_PW<AK$18,0,IF(AK$18-(COUNTIF($P42:AJ42,">0")*$K42)>$K42,$D42,0)) -> 0 | AL42: =IF(Betrachtungszeit_PW*Fahrleistung_PW<AL$18,0,IF(AL$18-(COUNTIF($P42:AK42,">0")*$K42)>$K42,$D42,0)) -> 0 | AM42: =IF(Betrachtungszeit_PW*Fahrleistung_PW<AM$18,0,IF(AM$18-(COUNTIF($P42:AL42,">0")*$K42)>$K42,$D42,0)) -> 0 | AN42: =IF(Betrachtungszeit_PW*Fahrleistung_PW<AN$18,0,IF(AN$18-(COUNTIF($P42:AM42,">0")*$K42)>$K42,$D42,0)) -> 0 | AO42: =IF(Betrachtungszeit_PW*Fahrleistung_PW<AO$18,0,IF(AO$18-(COUNTIF($P42:AN42,">0")*$K42)>$K42,$D42,0)) -> 0 | AP42: =IF(Betrachtungszeit_PW*Fahrleistung_PW<AP$18,0,IF(AP$18-(COUNTIF($P42:AO42,">0")*$K42)>$K42,$D42,0)) -> 0 | AQ42: =IF(Betrachtungszeit_PW*Fahrleistung_PW<AQ$18,0,IF(AQ$18-(COUNTIF($P42:AP42,">0")*$K42)>$K42,$D42,0)) -> 0 | AR42: =IF(Betrachtungszeit_PW*Fahrleistung_PW<AR$18,0,IF(AR$18-(COUNTIF($P42:AQ42,">0")*$K42)>$K42,$D42,0)) -> 0 | AS42: =IF(Betrachtungszeit_PW*Fahrleistung_PW<AS$18,0,IF(AS$18-(COUNTIF($P42:AR42,">0")*$K42)>$K42,$D42,0)) -> 0 | AT42: =IF(Betrachtungszeit_PW*Fahrleistung_PW<AT$18,0,IF(AT$18-(COUNTIF($P42:AS42,">0")*$K42)>$K42,$D42,0)) -> 0 | AU42: 0 | AW42: 0 | AX42: 0 | AY42: 0 | AZ42: 0 | BA42: 0 | BB42: 0 | BC42: 0 | BD42: 0 | BE42: 0 | BF42: 0 | BG42: 0 | BH42: 0 | BI42: 0 | BJ42: 0 | BK42: 0 | BL42: 0 | BM42: 0 | BN42: 0 | BO42: 0 | BP42: 0 | BQ42: 0 | BR42: 0 | BS42: 0 | BT42: 0 | BU42: 0 | BV42: 0 | BW42: 0 | BX42: 0 | BY42: 0 | BZ42: 0 | CA42: 0
B43: Weitere Ersatzteile | E43: 150000 | K43: 150000 | O43: Weitere Ersatzteile: | P43: 0 | Q43: =IF(Betrachtungszeit_PW*Fahrleistung_PW<Q$18,0,IF(Q$18-(COUNTIF($P43:P43,">0")*$K43)>$K43,$D43,0)) -> 0 | R43: =IF(Betrachtungszeit_PW*Fahrleistung_PW<R$18,0,IF(R$18-(COUNTIF($P43:Q43,">0")*$K43)>$K43,$D43,0)) -> 0 | S43: =IF(Betrachtungszeit_PW*Fahrleistung_PW<S$18,0,IF(S$18-(COUNTIF($P43:R43,">0")*$K43)>$K43,$D43,0)) -> 0 | T43: =IF(Betrachtungszeit_PW*Fahrleistung_PW<T$18,0,IF(T$18-(COUNTIF($P43:S43,">0")*$K43)>$K43,$D43,0)) -> 0 | U43: =IF(Betrachtungszeit_PW*Fahrleistung_PW<U$18,0,IF(U$18-(COUNTIF($P43:T43,">0")*$K43)>$K43,$D43,0)) -> 0 | V43: =IF(Betrachtungszeit_PW*Fahrleistung_PW<V$18,0,IF(V$18-(COUNTIF($P43:U43,">0")*$K43)>$K43,$D43,0)) -> 0 | W43: =IF(Betrachtungszeit_PW*Fahrleistung_PW<W$18,0,IF(W$18-(COUNTIF($P43:V43,">0")*$K43)>$K43,$D43,0)) -> 0 | X43: =IF(Betrachtungszeit_PW*Fahrleistung_PW<X$18,0,IF(X$18-(COUNTIF($P43:W43,">0")*$K43)>$K43,$D43,0)) -> 0 | Y43: =IF(Betrachtungszeit_PW*Fahrleistung_PW<Y$18,0,IF(Y$18-(COUNTIF($P43:X43,">0")*$K43)>$K43,$D43,0)) -> 0 | Z43: =IF(Betrachtungszeit_PW*Fahrleistung_PW<Z$18,0,IF(Z$18-(COUNTIF($P43:Y43,">0")*$K43)>$K43,$D43,0)) -> 0 | AA43: =IF(Betrachtungszeit_PW*Fahrleistung_PW<AA$18,0,IF(AA$18-(COUNTIF($P43:Z43,">0")*$K43)>$K43,$D43,0)) -> 0 | AB43: =IF(Betrachtungszeit_PW*Fahrleistung_PW<AB$18,0,IF(AB$18-(COUNTIF($P43:AA43,">0")*$K43)>$K43,$D43,0)) -> 0 | AC43: =IF(Betrachtungszeit_PW*Fahrleistung_PW<AC$18,0,IF(AC$18-(COUNTIF($P43:AB43,">0")*$K43)>$K43,$D43,0)) -> 0 | AD43: =IF(Betrachtungszeit_PW*Fahrleistung_PW<AD$18,0,IF(AD$18-(COUNTIF($P43:AC43,">0")*$K43)>$K43,$D43,0)) -> 0 | AE43: =IF(Betrachtungszeit_PW*Fahrleistung_PW<AE$18,0,IF(AE$18-(COUNTIF($P43:AD43,">0")*$K43)>$K43,$D43,0)) -> 0 | AF43: =IF(Betrachtungszeit_PW*Fahrleistung_PW<AF$18,0,IF(AF$18-(COUNTIF($P43:AE43,">0")*$K43)>$K43,$D43,0)) -> 0 | AG43: =IF(Betrachtungszeit_PW*Fahrleistung_PW<AG$18,0,IF(AG$18-(COUNTIF($P43:AF43,">0")*$K43)>$K43,$D43,0)) -> 0 | AH43: =IF(Betrachtungszeit_PW*Fahrleistung_PW<AH$18,0,IF(AH$18-(COUNTIF($P43:AG43,">0")*$K43)>$K43,$D43,0)) -> 0 | AI43: =IF(Betrachtungszeit_PW*Fahrleistung_PW<AI$18,0,IF(AI$18-(COUNTIF($P43:AH43,">0")*$K43)>$K43,$D43,0)) -> 0 | AJ43: =IF(Betrachtungszeit_PW*Fahrleistung_PW<AJ$18,0,IF(AJ$18-(COUNTIF($P43:AI43,">0")*$K43)>$K43,$D43,0)) -> 0 | AK43: =IF(Betrachtungszeit_PW*Fahrleistung_PW<AK$18,0,IF(AK$18-(COUNTIF($P43:AJ43,">0")*$K43)>$K43,$D43,0)) -> 0 | AL43: =IF(Betrachtungszeit_PW*Fahrleistung_PW<AL$18,0,IF(AL$18-(COUNTIF($P43:AK43,">0")*$K43)>$K43,$D43,0)) -> 0 | AM43: =IF(Betrachtungszeit_PW*Fahrleistung_PW<AM$18,0,IF(AM$18-(COUNTIF($P43:AL43,">0")*$K43)>$K43,$D43,0)) -> 0 | AN43: =IF(Betrachtungszeit_PW*Fahrleistung_PW<AN$18,0,IF(AN$18-(COUNTIF($P43:AM43,">0")*$K43)>$K43,$D43,0)) -> 0 | AO43: =IF(Betrachtungszeit_PW*Fahrleistung_PW<AO$18,0,IF(AO$18-(COUNTIF($P43:AN43,">0")*$K43)>$K43,$D43,0)) -> 0 | AP43: =IF(Betrachtungszeit_PW*Fahrleistung_PW<AP$18,0,IF(AP$18-(COUNTIF($P43:AO43,">0")*$K43)>$K43,$D43,0)) -> 0 | AQ43: =IF(Betrachtungszeit_PW*Fahrleistung_PW<AQ$18,0,IF(AQ$18-(COUNTIF($P43:AP43,">0")*$K43)>$K43,$D43,0)) -> 0 | AR43: =IF(Betrachtungszeit_PW*Fahrleistung_PW<AR$18,0,IF(AR$18-(COUNTIF($P43:AQ43,">0")*$K43)>$K43,$D43,0)) -> 0 | AS43: =IF(Betrachtungszeit_PW*Fahrleistung_PW<AS$18,0,IF(AS$18-(COUNTIF($P43:AR43,">0")*$K43)>$K43,$D43,0)) -> 0 | AT43: =IF(Betrachtungszeit_PW*Fahrleistung_PW<AT$18,0,IF(AT$18-(COUNTIF($P43:AS43,">0")*$K43)>$K43,$D43,0)) -> 0 | AU43: 0 | AW43: 0 | AX43: 0 | AY43: 0 | AZ43: 0 | BA43: 0 | BB43: 0 | BC43: 0 | BD43: 0 | BE43: 0 | BF43: 0 | BG43: 0 | BH43: 0 | BI43: 0 | BJ43: 0 | BK43: 0 | BL43: 0 | BM43: 0 | BN43: 0 | BO43: 0 | BP43: 0 | BQ43: 0 | BR43: 0 | BS43: 0 | BT43: 0 | BU43: 0 | BV43: 0 | BW43: 0 | BX43: 0 | BY43: 0 | BZ43: 0 | CA43: 0
B44: Weitere Ersatzteile | E44: 150000 | K44: 150000 | O44: Weitere Ersatzteile: | P44: 0 | Q44: =IF(Betrachtungszeit_PW*Fahrleistung_PW<Q$18,0,IF(Q$18-(COUNTIF($P44:P44,">0")*$K44)>$K44,$D44,0)) -> 0 | R44: =IF(Betrachtungszeit_PW*Fahrleistung_PW<R$18,0,IF(R$18-(COUNTIF($P44:Q44,">0")*$K44)>$K44,$D44,0)) -> 0 | S44: =IF(Betrachtungszeit_PW*Fahrleistung_PW<S$18,0,IF(S$18-(COUNTIF($P44:R44,">0")*$K44)>$K44,$D44,0)) -> 0 | T44: =IF(Betrachtungszeit_PW*Fahrleistung_PW<T$18,0,IF(T$18-(COUNTIF($P44:S44,">0")*$K44)>$K44,$D44,0)) -> 0 | U44: =IF(Betrachtungszeit_PW*Fahrleistung_PW<U$18,0,IF(U$18-(COUNTIF($P44:T44,">0")*$K44)>$K44,$D44,0)) -> 0 | V44: =IF(Betrachtungszeit_PW*Fahrleistung_PW<V$18,0,IF(V$18-(COUNTIF($P44:U44,">0")*$K44)>$K44,$D44,0)) -> 0 | W44: =IF(Betrachtungszeit_PW*Fahrleistung_PW<W$18,0,IF(W$18-(COUNTIF($P44:V44,">0")*$K44)>$K44,$D44,0)) -> 0 | X44: =IF(Betrachtungszeit_PW*Fahrleistung_PW<X$18,0,IF(X$18-(COUNTIF($P44:W44,">0")*$K44)>$K44,$D44,0)) -> 0 | Y44: =IF(Betrachtungszeit_PW*Fahrleistung_PW<Y$18,0,IF(Y$18-(COUNTIF($P44:X44,">0")*$K44)>$K44,$D44,0)) -> 0 | Z44: =IF(Betrachtungszeit_PW*Fahrleistung_PW<Z$18,0,IF(Z$18-(COUNTIF($P44:Y44,">0")*$K44)>$K44,$D44,0)) -> 0 | AA44: =IF(Betrachtungszeit_PW*Fahrleistung_PW<AA$18,0,IF(AA$18-(COUNTIF($P44:Z44,">0")*$K44)>$K44,$D44,0)) -> 0 | AB44: =IF(Betrachtungszeit_PW*Fahrleistung_PW<AB$18,0,IF(AB$18-(COUNTIF($P44:AA44,">0")*$K44)>$K44,$D44,0)) -> 0 | AC44: =IF(Betrachtungszeit_PW*Fahrleistung_PW<AC$18,0,IF(AC$18-(COUNTIF($P44:AB44,">0")*$K44)>$K44,$D44,0)) -> 0 | AD44: =IF(Betrachtungszeit_PW*Fahrleistung_PW<AD$18,0,IF(AD$18-(COUNTIF($P44:AC44,">0")*$K44)>$K44,$D44,0)) -> 0 | AE44: =IF(Betrachtungszeit_PW*Fahrleistung_PW<AE$18,0,IF(AE$18-(COUNTIF($P44:AD44,">0")*$K44)>$K44,$D44,0)) -> 0 | AF44: =IF(Betrachtungszeit_PW*Fahrleistung_PW<AF$18,0,IF(AF$18-(COUNTIF($P44:AE44,">0")*$K44)>$K44,$D44,0)) -> 0 | AG44: =IF(Betrachtungszeit_PW*Fahrleistung_PW<AG$18,0,IF(AG$18-(COUNTIF($P44:AF44,">0")*$K44)>$K44,$D44,0)) -> 0 | AH44: =IF(Betrachtungszeit_PW*Fahrleistung_PW<AH$18,0,IF(AH$18-(COUNTIF($P44:AG44,">0")*$K44)>$K44,$D44,0)) -> 0 | AI44: =IF(Betrachtungszeit_PW*Fahrleistung_PW<AI$18,0,IF(AI$18-(COUNTIF($P44:AH44,">0")*$K44)>$K44,$D44,0)) -> 0 | AJ44: =IF(Betrachtungszeit_PW*Fahrleistung_PW<AJ$18,0,IF(AJ$18-(COUNTIF($P44:AI44,">0")*$K44)>$K44,$D44,0)) -> 0 | AK44: =IF(Betrachtungszeit_PW*Fahrleistung_PW<AK$18,0,IF(AK$18-(COUNTIF($P44:AJ44,">0")*$K44)>$K44,$D44,0)) -> 0 | AL44: =IF(Betrachtungszeit_PW*Fahrleistung_PW<AL$18,0,IF(AL$18-(COUNTIF($P44:AK44,">0")*$K44)>$K44,$D44,0)) -> 0 | AM44: =IF(Betrachtungszeit_PW*Fahrleistung_PW<AM$18,0,IF(AM$18-(COUNTIF($P44:AL44,">0")*$K44)>$K44,$D44,0)) -> 0 | AN44: =IF(Betrachtungszeit_PW*Fahrleistung_PW<AN$18,0,IF(AN$18-(COUNTIF($P44:AM44,">0")*$K44)>$K44,$D44,0)) -> 0 | AO44: =IF(Betrachtungszeit_PW*Fahrleistung_PW<AO$18,0,IF(AO$18-(COUNTIF($P44:AN44,">0")*$K44)>$K44,$D44,0)) -> 0 | AP44: =IF(Betrachtungszeit_PW*Fahrleistung_PW<AP$18,0,IF(AP$18-(COUNTIF($P44:AO44,">0")*$K44)>$K44,$D44,0)) -> 0 | AQ44: =IF(Betrachtungszeit_PW*Fahrleistung_PW<AQ$18,0,IF(AQ$18-(COUNTIF($P44:AP44,">0")*$K44)>$K44,$D44,0)) -> 0 | AR44: =IF(Betrachtungszeit_PW*Fahrleistung_PW<AR$18,0,IF(AR$18-(COUNTIF($P44:AQ44,">0")*$K44)>$K44,$D44,0)) -> 0 | AS44: =IF(Betrachtungszeit_PW*Fahrleistung_PW<AS$18,0,IF(AS$18-(COUNTIF($P44:AR44,">0")*$K44)>$K44,$D44,0)) -> 0 | AT44: =IF(Betrachtungszeit_PW*Fahrleistung_PW<AT$18,0,IF(AT$18-(COUNTIF($P44:AS44,">0")*$K44)>$K44,$D44,0)) -> 0 | AU44: 0 | AW44: 0 | AX44: 0 | AY44: 0 | AZ44: 0 | BA44: 0 | BB44: 0 | BC44: 0 | BD44: 0 | BE44: 0 | BF44: 0 | BG44: 0 | BH44: 0 | BI44: 0 | BJ44: 0 | BK44: 0 | BL44: 0 | BM44: 0 | BN44: 0 | BO44: 0 | BP44: 0 | BQ44: 0 | BR44: 0 | BS44: 0 | BT44: 0 | BU44: 0 | BV44: 0 | BW44: 0 | BX44: 0 | BY44: 0 | BZ44: 0 | CA44: 0
B45: Weitere Ersatzteile | E45: 150000 | K45: 150000 | O45: Weitere Ersatzteile: | P45: 0 | Q45: =IF(Betrachtungszeit_PW*Fahrleistung_PW<Q$18,0,IF(Q$18-(COUNTIF($P45:P45,">0")*$K45)>$K45,$D45,0)) -> 0 | R45: =IF(Betrachtungszeit_PW*Fahrleistung_PW<R$18,0,IF(R$18-(COUNTIF($P45:Q45,">0")*$K45)>$K45,$D45,0)) -> 0 | S45: =IF(Betrachtungszeit_PW*Fahrleistung_PW<S$18,0,IF(S$18-(COUNTIF($P45:R45,">0")*$K45)>$K45,$D45,0)) -> 0 | T45: =IF(Betrachtungszeit_PW*Fahrleistung_PW<T$18,0,IF(T$18-(COUNTIF($P45:S45,">0")*$K45)>$K45,$D45,0)) -> 0 | U45: =IF(Betrachtungszeit_PW*Fahrleistung_PW<U$18,0,IF(U$18-(COUNTIF($P45:T45,">0")*$K45)>$K45,$D45,0)) -> 0 | V45: =IF(Betrachtungszeit_PW*Fahrleistung_PW<V$18,0,IF(V$18-(COUNTIF($P45:U45,">0")*$K45)>$K45,$D45,0)) -> 0 | W45: =IF(Betrachtungszeit_PW*Fahrleistung_PW<W$18,0,IF(W$18-(COUNTIF($P45:V45,">0")*$K45)>$K45,$D45,0)) -> 0 | X45: =IF(Betrachtungszeit_PW*Fahrleistung_PW<X$18,0,IF(X$18-(COUNTIF($P45:W45,">0")*$K45)>$K45,$D45,0)) -> 0 | Y45: =IF(Betrachtungszeit_PW*Fahrleistung_PW<Y$18,0,IF(Y$18-(COUNTIF($P45:X45,">0")*$K45)>$K45,$D45,0)) -> 0 | Z45: =IF(Betrachtungszeit_PW*Fahrleistung_PW<Z$18,0,IF(Z$18-(COUNTIF($P45:Y45,">0")*$K45)>$K45,$D45,0)) -> 0 | AA45: =IF(Betrachtungszeit_PW*Fahrleistung_PW<AA$18,0,IF(AA$18-(COUNTIF($P45:Z45,">0")*$K45)>$K45,$D45,0)) -> 0 | AB45: =IF(Betrachtungszeit_PW*Fahrleistung_PW<AB$18,0,IF(AB$18-(COUNTIF($P45:AA45,">0")*$K45)>$K45,$D45,0)) -> 0 | AC45: =IF(Betrachtungszeit_PW*Fahrleistung_PW<AC$18,0,IF(AC$18-(COUNTIF($P45:AB45,">0")*$K45)>$K45,$D45,0)) -> 0 | AD45: =IF(Betrachtungszeit_PW*Fahrleistung_PW<AD$18,0,IF(AD$18-(COUNTIF($P45:AC45,">0")*$K45)>$K45,$D45,0)) -> 0 | AE45: =IF(Betrachtungszeit_PW*Fahrleistung_PW<AE$18,0,IF(AE$18-(COUNTIF($P45:AD45,">0")*$K45)>$K45,$D45,0)) -> 0 | AF45: =IF(Betrachtungszeit_PW*Fahrleistung_PW<AF$18,0,IF(AF$18-(COUNTIF($P45:AE45,">0")*$K45)>$K45,$D45,0)) -> 0 | AG45: =IF(Betrachtungszeit_PW*Fahrleistung_PW<AG$18,0,IF(AG$18-(COUNTIF($P45:AF45,">0")*$K45)>$K45,$D45,0)) -> 0 | AH45: =IF(Betrachtungszeit_PW*Fahrleistung_PW<AH$18,0,IF(AH$18-(COUNTIF($P45:AG45,">0")*$K45)>$K45,$D45,0)) -> 0 | AI45: =IF(Betrachtungszeit_PW*Fahrleistung_PW<AI$18,0,IF(AI$18-(COUNTIF($P45:AH45,">0")*$K45)>$K45,$D45,0)) -> 0 | AJ45: =IF(Betrachtungszeit_PW*Fahrleistung_PW<AJ$18,0,IF(AJ$18-(COUNTIF($P45:AI45,">0")*$K45)>$K45,$D45,0)) -> 0 | AK45: =IF(Betrachtungszeit_PW*Fahrleistung_PW<AK$18,0,IF(AK$18-(COUNTIF($P45:AJ45,">0")*$K45)>$K45,$D45,0)) -> 0 | AL45: =IF(Betrachtungszeit_PW*Fahrleistung_PW<AL$18,0,IF(AL$18-(COUNTIF($P45:AK45,">0")*$K45)>$K45,$D45,0)) -> 0 | AM45: =IF(Betrachtungszeit_PW*Fahrleistung_PW<AM$18,0,IF(AM$18-(COUNTIF($P45:AL45,">0")*$K45)>$K45,$D45,0)) -> 0 | AN45: =IF(Betrachtungszeit_PW*Fahrleistung_PW<AN$18,0,IF(AN$18-(COUNTIF($P45:AM45,">0")*$K45)>$K45,$D45,0)) -> 0 | AO45: =IF(Betrachtungszeit_PW*Fahrleistung_PW<AO$18,0,IF(AO$18-(COUNTIF($P45:AN45,">0")*$K45)>$K45,$D45,0)) -> 0 | AP45: =IF(Betrachtungszeit_PW*Fahrleistung_PW<AP$18,0,IF(AP$18-(COUNTIF($P45:AO45,">0")*$K45)>$K45,$D45,0)) -> 0 | AQ45: =IF(Betrachtungszeit_PW*Fahrleistung_PW<AQ$18,0,IF(AQ$18-(COUNTIF($P45:AP45,">0")*$K45)>$K45,$D45,0)) -> 0 | AR45: =IF(Betrachtungszeit_PW*Fahrleistung_PW<AR$18,0,IF(AR$18-(COUNTIF($P45:AQ45,">0")*$K45)>$K45,$D45,0)) -> 0 | AS45: =IF(Betrachtungszeit_PW*Fahrleistung_PW<AS$18,0,IF(AS$18-(COUNTIF($P45:AR45,">0")*$K45)>$K45,$D45,0)) -> 0 | AT45: =IF(Betrachtungszeit_PW*Fahrleistung_PW<AT$18,0,IF(AT$18-(COUNTIF($P45:AS45,">0")*$K45)>$K45,$D45,0)) -> 0 | AU45: 0 | AW45: 0 | AX45: 0 | AY45: 0 | AZ45: 0 | BA45: 0 | BB45: 0 | BC45: 0 | BD45: 0 | BE45: 0 | BF45: 0 | BG45: 0 | BH45: 0 | BI45: 0 | BJ45: 0 | BK45: 0 | BL45: 0 | BM45: 0 | BN45: 0 | BO45: 0 | BP45: 0 | BQ45: 0 | BR45: 0 | BS45: 0 | BT45: 0 | BU45: 0 | BV45: 0 | BW45: 0 | BX45: 0 | BY45: 0 | BZ45: 0 | CA45: 0
B46: Restwert Ersatzteile am Ende der Betrachtungszeit | C46: CHF | D46: =SUM(AU33:AU45) -> 0 | O46: Kosten Ersatzteile abzüglich Restwert | AU46: Nettobarwert
O47: Kosten Ersatzteile | P47: =SUM(P33:P37,P39:P45) -> 0 | Q47: =SUM(Q33:Q37,Q39:Q45) -> 0 | R47: 0 | S47: 0 | T47: 0 | U47: 0 | V47: 0 | W47: 0 | X47: 0 | Y47: 0 | Z47: 0 | AA47: 0 | AB47: 0 | AC47: 0 | AD47: 0 | AE47: 0 | AF47: 0 | AG47: 0 | AH47: 0 | AI47: 0 | AJ47: 0 | AK47: 0 | AL47: 0 | AM47: 0 | AN47: 0 | AO47: 0 | AP47: 0 | AQ47: 0 | AR47: 0 | AS47: 0 | AT47: 0
O48: Restwert Ersatzteile | P48: =IF(Betrachtungszeit_PW=P17,-$D$46,0) -> 0 | Q48: 0 | R48: 0 | S48: 0 | T48: 0 | U48: 0 | V48: 0 | W48: 0 | X48: 0 | Y48: 0 | Z48: 0 | AA48: 0 | AB48: 0 | AC48: 0 | AD48: 0 | AE48: 0 | AF48: 0 | AG48: 0 | AH48: 0 | AI48: 0 | AJ48: 0 | AK48: 0 | AL48: 0 | AM48: 0 | AN48: 0 | AO48: 0 | AP48: 0 | AQ48: 0 | AR48: 0 | AS48: 0 | AT48: 0
B49: Service- und Reparaturkosten | C49: Beschreibung | D49: Kosten (alle Fahrz.) [CHF/a] | O49: Kosten inkl. Preissteigerung | P49: =SUM(P47:P48)*(1+Inflationsindex)^P$17 -> 0 | Q49: 0 | R49: 0 | S49: 0 | T49: 0 | U49: 0 | V49: 0 | W49: 0 | X49: 0 | Y49: 0 | Z49: 0 | AA49: 0 | AB49: 0 | AC49: 0 | AD49: 0 | AE49: 0 | AF49: 0 | AG49: 0 | AH49: 0 | AI49: 0 | AJ49: 0 | AK49: 0 | AL49: 0 | AM49: 0 | AN49: 0 | AO49: 0 | AP49: 0 | AQ49: 0 | AR49: 0 | AS49: 0 | AT49: 0
B50: Servicekosten | O50: Barwert | P50: =P49*(1+Kalkulationszinssatz)^-P$17 -> 0 | Q50: 0 | R50: 0 | S50: 0 | T50: 0 | U50: 0 | V50: 0 | W50: 0 | X50: 0 | Y50: 0 | Z50: 0 | AA50: 0 | AB50: 0 | AC50: 0 | AD50: 0 | AE50: 0 | AF50: 0 | AG50: 0 | AH50: 0 | AI50: 0 | AJ50: 0 | AK50: 0 | AL50: 0 | AM50: 0 | AN50: 0 | AO50: 0 | AP50: 0 | AQ50: 0 | AR50: 0 | AS50: 0 | AT50: 0 | AU50: =SUM(P50:AT50) -> 0
B51: Reperaturkosten
B52: Weitere jährliche Service- und Reparaturkosten
B53: Weitere jährliche Service- und Reparaturkosten
B54: Weitere jährliche Service- und Reparaturkosten
B55: Total | D55: =SUM(D50:D54) -> 0 | O55: Service- und Reparaturkosten | AU55: Nettobarwert
O56: Kosten inkl. Preissteigerung | P56: 0 | Q56: =IF(Q$17<=Betrachtungszeit_PW,D55+D55*Inflationsindex,0) -> 0 | R56: =IF(R$17<=Betrachtungszeit_PW,Q56+Q56*Inflationsindex,0) -> 0 | S56: 0 | T56: 0 | U56: 0 | V56: 0 | W56: 0 | X56: 0 | Y56: 0 | Z56: 0 | AA56: 0 | AB56: 0 | AC56: 0 | AD56: 0 | AE56: 0 | AF56: 0 | AG56: 0 | AH56: 0 | AI56: 0 | AJ56: 0 | AK56: 0 | AL56: 0 | AM56: 0 | AN56: 0 | AO56: 0 | AP56: 0 | AQ56: 0 | AR56: 0 | AS56: 0 | AT56: 0
A57: K | B57: Betriebskosten | O57: Barwert | P57: 0 | Q57: =Q56*(1+Kalkulationszinssatz)^-Q$17 -> 0 | R57: 0 | S57: 0 | T57: 0 | U57: 0 | V57: 0 | W57: 0 | X57: 0 | Y57: 0 | Z57: 0 | AA57: 0 | AB57: 0 | AC57: 0 | AD57: 0 | AE57: 0 | AF57: 0 | AG57: 0 | AH57: 0 | AI57: 0 | AJ57: 0 | AK57: 0 | AL57: 0 | AM57: 0 | AN57: 0 | AO57: 0 | AP57: 0 | AQ57: 0 | AR57: 0 | AS57: 0 | AT57: 0 | AU57: =SUM(P57:AT57) -> 0
B58: Verkehrssteuer
B59: Haftpflicht-Versicherung
B60: Kasko-Versicherung
B61: Weitere Versicherungen
B62: Pannenhilfe, Assistance
B63: Garagierungskosten
B64: Autobahnvignette
B65: Strassenbenützungsgebühren
B66: Mitgliedsbeiträge
B67: Nebenauslagen
B68: Fahrzeugpflege
B69: Weitere jährliche Betriebskosten | O69: Betriebskosten | AU69: Nettobarwert
B70: Weitere jährliche Betriebskosten | O70: Kosten inkl. Preissteigerung | P70: 0 | Q70: =IF(Q$17<=Betrachtungszeit_PW,D72+D72*Inflationsindex,0) -> 0 | R70: =IF(R$17<=Betrachtungszeit_PW,Q70+Q70*Inflationsindex,0) -> 0 | S70: 0 | T70: 0 | U70: 0 | V70: 0 | W70: 0 | X70: 0 | Y70: 0 | Z70: 0 | AA70: 0 | AB70: 0 | AC70: 0 | AD70: 0 | AE70: 0 | AF70: 0 | AG70: 0 | AH70: 0 | AI70: 0 | AJ70: 0 | AK70: 0 | AL70: 0 | AM70: 0 | AN70: 0 | AO70: 0 | AP70: 0 | AQ70: 0 | AR70: 0 | AS70: 0 | AT70: 0
B71: Weitere jährliche Betriebskosten | O71: Barwert | P71: 0 | Q71: =Q70*(1+Kalkulationszinssatz)^-Q$17 -> 0 | R71: 0 | S71: 0 | T71: 0 | U71: 0 | V71: 0 | W71: 0 | X71: 0 | Y71: 0 | Z71: 0 | AA71: 0 | AB71: 0 | AC71: 0 | AD71: 0 | AE71: 0 | AF71: 0 | AG71: 0 | AH71: 0 | AI71: 0 | AJ71: 0 | AK71: 0 | AL71: 0 | AM71: 0 | AN71: 0 | AO71: 0 | AP71: 0 | AQ71: 0 | AR71: 0 | AS71: 0 | AT71: 0 | AU71: =SUM(P71:AT71) -> 0
B72: Total | D72: =SUM(D58:D71) -> 0
B74: Energie- und Ladekosten | C74: ="Treibstoff: "&$C$8 -> Treibstoff: BITTE WÄHLEN | D74: Total | O74: Energie- und Ladekosten | AU74: Nettobarwert
A75: K | B75: Leistungskosten (eigene Ladestation) | C75: =IF(C13=13,C11*12,0)*VLOOKUP(C13,Input_Generell!$W$9:$AB$22,2,0) -> 0 | D75: =SUM(C75:C75) -> 0 | E75: CHF/a | O75: Leistungskosten (eigene Ladestation) inkl. Energiepreissteigerung | P75: 0 | Q75: =IF(Q$17<=Betrachtungszeit_PW,$D$75*(1+Energiepreissteigerung),0) -> 0 | R75: =IF(R$17<=Betrachtungszeit_PW,Q75*(1+Energiepreissteigerung),0) -> 0 | S75: 0 | T75: 0 | U75: 0 | V75: 0 | W75: 0 | X75: 0 | Y75: 0 | Z75: 0 | AA75: 0 | AB75: 0 | AC75: 0 | AD75: 0 | AE75: 0 | AF75: 0 | AG75: 0 | AH75: 0 | AI75: 0 | AJ75: 0 | AK75: 0 | AL75: 0 | AM75: 0 | AN75: 0 | AO75: 0 | AP75: 0 | AQ75: 0 | AR75: 0 | AS75: 0 | AT75: 0
A76: K | B76: Energiekosten (eigene Ladestation) | C76: =IF(C13=13,Anteil_Intern*C10*Stückzahl_PW*1000*(Anteil_HT*StrompreisHT/100+Anteil_NT*StrompreisNT/100),0) -> 0 | D76: =SUM(C76:C76) -> 0 | E76: CHF/a | O76: Energiekosten (eigene Ladestation) inkl. Energiepreissteigerung | P76: 0 | Q76: =IF(Q$17<=Betrachtungszeit_PW,$D$76*(1+Energiepreissteigerung),0) -> 0 | R76: =IF(R$17<=Betrachtungszeit_PW,Q76*(1+Energiepreissteigerung),0) -> 0 | S76: 0 | T76: 0 | U76: 0 | V76: 0 | W76: 0 | X76: 0 | Y76: 0 | Z76: 0 | AA76: 0 | AB76: 0 | AC76: 0 | AD76: 0 | AE76: 0 | AF76: 0 | AG76: 0 | AH76: 0 | AI76: 0 | AJ76: 0 | AK76: 0 | AL76: 0 | AM76: 0 | AN76: 0 | AO76: 0 | AP76: 0 | AQ76: 0 | AR76: 0 | AS76: 0 | AT76: 0
B77: Energiekosten (externes Tanken/Laden) | C77: =IF(C13=13,Anteil_Extern*Verbrauchsbasiert_Preis/100*C10*Stückzahl_PW*1000,VLOOKUP(C13,Input_Generell!$W$9:$AB$22,3,0)/100*C10*Stückzahl_PW*1000) -> 0 | D77: =SUM(C77:C77) -> 0 | E77: CHF/a | O77: Energiekosten (externes Tanken/Laden) inkl. Energiepreissteigerung | P77: 0 | Q77: =IF(Q$17<=Betrachtungszeit_PW,$D$77*(1+Energiepreissteigerung),0) -> 0 | R77: =IF(R$17<=Betrachtungszeit_PW,Q77*(1+Energiepreissteigerung),0) -> 0 | S77: 0 | T77: 0 | U77: 0 | V77: 0 | W77: 0 | X77: 0 | Y77: 0 | Z77: 0 | AA77: 0 | AB77: 0 | AC77: 0 | AD77: 0 | AE77: 0 | AF77: 0 | AG77: 0 | AH77: 0 | AI77: 0 | AJ77: 0 | AK77: 0 | AL77: 0 | AM77: 0 | AN77: 0 | AO77: 0 | AP77: 0 | AQ77: 0 | AR77: 0 | AS77: 0 | AT77: 0
A78: K | B78: Strompreisunabhängige Ladekosten (externes Laden) | C78: =IF(C13=13,Input_Generell!D22,0) -> 0 | D78: =SUM(C78:C78) -> 0 | E78: CHF/a | O78: Strompreisunabh. Ladekosten (externes Laden) inkl. Preissteigerung | P78: 0 | Q78: =IF(Q$17<=Betrachtungszeit_PW,$D$78*(1+Inflationsindex),0) -> 0 | R78: =IF(R$17<=Betrachtungszeit_PW,Q78*(1+Inflationsindex),0) -> 0 | S78: 0 | T78: 0 | U78: 0 | V78: 0 | W78: 0 | X78: 0 | Y78: 0 | Z78: 0 | AA78: 0 | AB78: 0 | AC78: 0 | AD78: 0 | AE78: 0 | AF78: 0 | AG78: 0 | AH78: 0 | AI78: 0 | AJ78: 0 | AK78: 0 | AL78: 0 | AM78: 0 | AN78: 0 | AO78: 0 | AP78: 0 | AQ78: 0 | AR78: 0 | AS78: 0 | AT78: 0
B79: Total | C79: =SUM(C75:C78) -> 0 | D79: =SUM(D75:D78) -> 0 | E79: CHF/a | O79: Barwert | P79: 0 | Q79: =SUM(Q75:Q78)*(1+Kalkulationszinssatz)^-Q$17 -> 0 | R79: 0 | S79: 0 | T79: 0 | U79: 0 | V79: 0 | W79: 0 | X79: 0 | Y79: 0 | Z79: 0 | AA79: 0 | AB79: 0 | AC79: 0 | AD79: 0 | AE79: 0 | AF79: 0 | AG79: 0 | AH79: 0 | AI79: 0 | AJ79: 0 | AK79: 0 | AL79: 0 | AM79: 0 | AN79: 0 | AO79: 0 | AP79: 0 | AQ79: 0 | AR79: 0 | AS79: 0 | AT79: 0 | AU79: =SUM(P79:AT79) -> 0
B81: Betrieb: Externe Kosten | C81: ="Treibstoff: "&$C$8 -> Treibstoff: BITTE WÄHLEN | D81: Total
B82: Treibhausgasemissionen (THG) | C82: =C10*Stückzahl_PW*(1/1000)*IF(C13=13,Anteil_Intern*EF_Strom+Anteil_Extern*EF_Verbrauchsbasiert,VLOOKUP(C13,Input_Generell!$W$9:$AB$22,5,0)) -> 0 | D82: =SUM(C82:C82) -> 0 | E82: tCO2eq/a | O82: Betrieb: Externe Kosten Treibhausgasemissionen | AU82: Nettobarwert
B83: Umweltbelastungspunkte UBP'13 | C83: =C10*Stückzahl_PW*1000*IF(C13=13,Anteil_Intern*UBP_Strom+Anteil_Extern*UBP_Strom_Extern,VLOOKUP(C13,Input_Generell!$W$9:$AB$22,6,0)) -> 0 | D83: =SUM(C83:C83) -> 0 | E83: UBP/a | O83: Kosten inkl. Preissteigerung | P83: 0 | Q83: =IF(Q$17<=Betrachtungszeit_PW,D84+D84*Inflationsindex,0) -> 0 | R83: =IF(R$17<=Betrachtungszeit_PW,Q83+Q83*Inflationsindex,0) -> 0 | S83: 0 | T83: 0 | U83: 0 | V83: 0 | W83: 0 | X83: 0 | Y83: 0 | Z83: 0 | AA83: 0 | AB83: 0 | AC83: 0 | AD83: 0 | AE83: 0 | AF83: 0 | AG83: 0 | AH83: 0 | AI83: 0 | AJ83: 0 | AK83: 0 | AL83: 0 | AM83: 0 | AN83: 0 | AO83: 0 | AP83: 0 | AQ83: 0 | AR83: 0 | AS83: 0 | AT83: 0
B84: =VLOOKUP(Input_Generell!$B$28,Input_Generell!$B$52:$D$55,3,0) -> Kosten für THG: nicht gewählt | C84: =C82*Kosten_THG -> 0 | D84: =SUM(C84:C84) -> 0 | E84: CHF/a | O84: Barwert | P84: 0 | Q84: =Q83*(1+Kalkulationszinssatz)^-Q$17 -> 0 | R84: 0 | S84: 0 | T84: 0 | U84: 0 | V84: 0 | W84: 0 | X84: 0 | Y84: 0 | Z84: 0 | AA84: 0 | AB84: 0 | AC84: 0 | AD84: 0 | AE84: 0 | AF84: 0 | AG84: 0 | AH84: 0 | AI84: 0 | AJ84: 0 | AK84: 0 | AL84: 0 | AM84: 0 | AN84: 0 | AO84: 0 | AP84: 0 | AQ84: 0 | AR84: 0 | AS84: 0 | AT84: 0 | AU84: =SUM(P84:AT84) -> 0
B86: Entsorgungskosten | O86: Entsorgung am Ende der Betrachtungszeit der Lebenszyklusrechnung | AU86: Nettobarwert
A87: K | B87: Entsorgungskosten | E87: CHF | O87: Kosten inkl. Preissteigerung | P87: 0 | Q87: =IF(Q$17=Betrachtungszeit_PW,$D$87*(1+Inflationsindex)^Q$17,0) -> 0 | R87: 0 | S87: 0 | T87: 0 | U87: 0 | V87: 0 | W87: 0 | X87: 0 | Y87: 0 | Z87: 0 | AA87: 0 | AB87: 0 | AC87: 0 | AD87: 0 | AE87: 0 | AF87: 0 | AG87: 0 | AH87: 0 | AI87: 0 | AJ87: 0 | AK87: 0 | AL87: 0 | AM87: 0 | AN87: 0 | AO87: 0 | AP87: 0 | AQ87: 0 | AR87: 0 | AS87: 0 | AT87: 0
O88: Barwert | P88: 0 | Q88: =Q87*(1+Kalkulationszinssatz)^-Q$17 -> 0 | R88: 0 | S88: 0 | T88: 0 | U88: 0 | V88: 0 | W88: 0 | X88: 0 | Y88: 0 | Z88: 0 | AA88: 0 | AB88: 0 | AC88: 0 | AD88: 0 | AE88: 0 | AF88: 0 | AG88: 0 | AH88: 0 | AI88: 0 | AJ88: 0 | AK88: 0 | AL88: 0 | AM88: 0 | AN88: 0 | AO88: 0 | AP88: 0 | AQ88: 0 | AR88: 0 | AS88: 0 | AT88: 0 | AU88: =SUM(P88:AT88) -> 0
B90: Umweltrelevante Angaben Erstellung und Entsorgung der Fahrzeuge
B91: Die Treibhausgas-Emissionen und Umweltbelastungspunkte, die aus der Erstellung und Entsorgung der Fahrzeuge entstehen, können nachfolgend berechnet werden. Mit Hilfe des mobitools (2017) kann die Grössenordnung der Treibhausgas-Emissionen und Umweltbelastungspunkte aus der Herstellung und Entsorgung ermittelt werden. Mobitool gibt diese Emissionen pro Kilometer aus (ausgehend von einer typischen Distanz über die Lebensdauer). Insbesondere wenn die Fahrzeuge über die Lebensdauer besonders wenig oder besonders viele Kilometer zurücklegen und/oder Fahrzeuge mit erneuerbaren Treibstoffen verglichen werden, empfiehlt sich jedoch eine genauere Abklärung. Falls aus der Erstellung und Entsorgung keine Daten einbezogen werden sollen, können die Eingabewerte leer gelassen werden. Die Vorgehensweise für die Ermittlung der Eingabewerte mit Hilfe des mobitools wird nachfolgend beschrieben. Im mobitool, in der Zeile des betroffenen Fahrzeugmodells: - Auslastung auf 1 setzen (somit werden die Werte pro Kilometer anstelle pro Personen-Kilometer ausgegeben) - Das 'Fahrzeuggewicht' sowie bei Elektro-Fahrzeugen das 'Batteriegewicht' und die 'Anzahl Batteriewechsel über Lebensdauer' anpassen - Im grauen Bereich oben links den gewünschten Indikator wählen ('Treibhausgaspotenzial' resp. 'UBP13') - In der Spalte 'Fahrzeugherstellung / -entsorgung' können die Werte für CO2eq resp. UBP abgelesen werden
B93: Erstellung und Entsorgung Fahrzeug: Externe Kosten | C93: Fahrzeugherstellung / -entsorgung | E93: Total
B94: Treibhausgasemissionen (THG) | D94: g CO2eq / km / Fahrz. | E94: =Stückzahl_PW*Betrachtungszeit_PW*Fahrleistung_PW*C94/1000000 -> 0 | F94: tCO2eq
B95: Umweltbelastungspunkte UBP'13 | D95: UBP / km / Fahrz. | E95: =Stückzahl_PW*Betrachtungszeit_PW*Fahrleistung_PW*C95 -> 0 | F95: UBP | O95: Erstellung / Entsorgung: Externe Kosten Treibhausgasemissionen | AU95: Nettobarwert
A96: K | B96: =VLOOKUP(Input_Generell!$B$28,Input_Generell!$B$52:$D$55,3,0) -> Kosten für THG: nicht gewählt | E96: =E94*Kosten_THG -> 0 | F96: CHF | O96: Barwert | P96: =E96 -> 0 | AU96: =SUM(P96:AT96) -> 0
B99: Lebenszykluskosten
B100: Kosten des Fahrzeugs über den gesamten Lebenszyklus gesehen (in Form des Nettobarwertes = Kapitalwert).
O101: Barwerte | AU101: Nettobarwert
A102: K | B102: Anschaffungskosten (abzüglich Förderbeitrag, Restwert) | E102: =AU102 -> 0 | F102: CHF | O102: =B102 -> Anschaffungskosten (abzüglich Förderbeitrag, Restwert) | P102: =P29 -> 0 | Q102: 0 | R102: 0 | S102: 0 | T102: 0 | U102: 0 | V102: 0 | W102: 0 | X102: 0 | Y102: 0 | Z102: 0 | AA102: 0 | AB102: 0 | AC102: 0 | AD102: 0 | AE102: 0 | AF102: 0 | AG102: 0 | AH102: 0 | AI102: 0 | AJ102: 0 | AK102: 0 | AL102: 0 | AM102: 0 | AN102: 0 | AO102: 0 | AP102: 0 | AQ102: 0 | AR102: 0 | AS102: 0 | AT102: 0 | AU102: 0
B103: Kosten Ersatzteile (abzüglich Restwert) | E103: =AU103 -> 0 | F103: CHF | O103: Kosten Ersatzteile (abzüglich Restwert) | P103: =P50 -> 0 | Q103: 0 | R103: 0 | S103: 0 | T103: 0 | U103: 0 | V103: 0 | W103: 0 | X103: 0 | Y103: 0 | Z103: 0 | AA103: 0 | AB103: 0 | AC103: 0 | AD103: 0 | AE103: 0 | AF103: 0 | AG103: 0 | AH103: 0 | AI103: 0 | AJ103: 0 | AK103: 0 | AL103: 0 | AM103: 0 | AN103: 0 | AO103: 0 | AP103: 0 | AQ103: 0 | AR103: 0 | AS103: 0 | AT103: 0 | AU103: 0
B104: Service- und Reparaturkosten | E104: =AU104 -> 0 | F104: CHF | O104: Service- und Reparaturkosten | P104: =P57 -> 0 | Q104: 0 | R104: 0 | S104: 0 | T104: 0 | U104: 0 | V104: 0 | W104: 0 | X104: 0 | Y104: 0 | Z104: 0 | AA104: 0 | AB104: 0 | AC104: 0 | AD104: 0 | AE104: 0 | AF104: 0 | AG104: 0 | AH104: 0 | AI104: 0 | AJ104: 0 | AK104: 0 | AL104: 0 | AM104: 0 | AN104: 0 | AO104: 0 | AP104: 0 | AQ104: 0 | AR104: 0 | AS104: 0 | AT104: 0 | AU104: 0
B105: Betriebskosten | E105: =AU105 -> 0 | F105: CHF | O105: Betriebskosten | P105: =P71 -> 0 | Q105: 0 | R105: 0 | S105: 0 | T105: 0 | U105: 0 | V105: 0 | W105: 0 | X105: 0 | Y105: 0 | Z105: 0 | AA105: 0 | AB105: 0 | AC105: 0 | AD105: 0 | AE105: 0 | AF105: 0 | AG105: 0 | AH105: 0 | AI105: 0 | AJ105: 0 | AK105: 0 | AL105: 0 | AM105: 0 | AN105: 0 | AO105: 0 | AP105: 0 | AQ105: 0 | AR105: 0 | AS105: 0 | AT105: 0 | AU105: 0
B106: Energiekosten | E106: 0 | F106: CHF | O106: Energiekosten | P106: =P79 -> 0 | Q106: 0 | R106: 0 | S106: 0 | T106: 0 | U106: 0 | V106: 0 | W106: 0 | X106: 0 | Y106: 0 | Z106: 0 | AA106: 0 | AB106: 0 | AC106: 0 | AD106: 0 | AE106: 0 | AF106: 0 | AG106: 0 | AH106: 0 | AI106: 0 | AJ106: 0 | AK106: 0 | AL106: 0 | AM106: 0 | AN106: 0 | AO106: 0 | AP106: 0 | AQ106: 0 | AR106: 0 | AS106: 0 | AT106: 0 | AU106: 0
A107: K | B107: =VLOOKUP(Input_Generell!$B$28,Input_Generell!$B$52:$D$55,3,0)&" (Betrieb und Erstellung/Entsorgung)" -> Kosten für THG: nicht gewählt (Betrieb und Erstellung/Entsorgung) | E107: 0 | F107: CHF | O107: Kosten für THG: nicht gewählt (Betrieb und Erstellung/Entsorgung) | P107: =P84+P96 -> 0 | Q107: 0 | R107: 0 | S107: 0 | T107: 0 | U107: 0 | V107: 0 | W107: 0 | X107: 0 | Y107: 0 | Z107: 0 | AA107: 0 | AB107: 0 | AC107: 0 | AD107: 0 | AE107: 0 | AF107: 0 | AG107: 0 | AH107: 0 | AI107: 0 | AJ107: 0 | AK107: 0 | AL107: 0 | AM107: 0 | AN107: 0 | AO107: 0 | AP107: 0 | AQ107: 0 | AR107: 0 | AS107: 0 | AT107: 0 | AU107: 0
B108: Entsorgungskosten | E108: 0 | F108: CHF | O108: Entsorgungskosten | P108: =P88 -> 0 | Q108: 0 | R108: 0 | S108: 0 | T108: 0 | U108: 0 | V108: 0 | W108: 0 | X108: 0 | Y108: 0 | Z108: 0 | AA108: 0 | AB108: 0 | AC108: 0 | AD108: 0 | AE108: 0 | AF108: 0 | AG108: 0 | AH108: 0 | AI108: 0 | AJ108: 0 | AK108: 0 | AL108: 0 | AM108: 0 | AN108: 0 | AO108: 0 | AP108: 0 | AQ108: 0 | AR108: 0 | AS108: 0 | AT108: 0 | AU108: 0
B109: Total | E109: 0 | F109: CHF | O109: Total | P109: =SUM(P102:P108) -> 0 | Q109: 0 | R109: 0 | S109: 0 | T109: 0 | U109: 0 | V109: 0 | W109: 0 | X109: 0 | Y109: 0 | Z109: 0 | AA109: 0 | AB109: 0 | AC109: 0 | AD109: 0 | AE109: 0 | AF109: 0 | AG109: 0 | AH109: 0 | AI109: 0 | AJ109: 0 | AK109: 0 | AL109: 0 | AM109: 0 | AN109: 0 | AO109: 0 | AP109: 0 | AQ109: 0 | AR109: 0 | AS109: 0 | AT109: 0 | AU109: 0
O110: Total aufsummiert | P110: =P109 -> 0 | Q110: =P110+Q109 -> 0 | R110: =Q110+R109 -> 0 | S110: =R110+S109 -> 0 | T110: 0 | U110: 0 | V110: 0 | W110: 0 | X110: 0 | Y110: 0 | Z110: 0 | AA110: 0 | AB110: 0 | AC110: 0 | AD110: 0 | AE110: 0 | AF110: 0 | AG110: 0 | AH110: 0 | AI110: 0 | AJ110: 0 | AK110: 0 | AL110: 0 | AM110: 0 | AN110: 0 | AO110: 0 | AP110: 0 | AQ110: 0 | AR110: 0 | AS110: 0 | AT110: =AS110+AT109 -> 0
B111: Treibhausgasemissionen Erstellung/Entsorgung Fahrzeuge (Scope 3) | E111: =E94 -> 0 | F111: tCO2eq | O111: Diagramm Anzeige Betrachtungszeit | P111: =IF(P17=Betrachtungszeit_PW,MAX(Resultate_PW!$D$14:$H$14),0) -> 0 | Q111: =IF(Q17=Betrachtungszeit_PW,MAX(Resultate_PW!$D$14:$H$14),0) -> 0 | R111: =IF(R17=Betrachtungszeit_PW,MAX(Resultate_PW!$D$14:$H$14),0) -> 0 | S111: =IF(S17=Betrachtungszeit_PW,MAX(Resultate_PW!$D$14:$H$14),0) -> 0 | T111: =IF(T17=Betrachtungszeit_PW,MAX(Resultate_PW!$D$14:$H$14),0) -> 0 | U111: =IF(U17=Betrachtungszeit_PW,MAX(Resultate_PW!$D$14:$H$14),0) -> 0 | V111: =IF(V17=Betrachtungszeit_PW,MAX(Resultate_PW!$D$14:$H$14),0) -> 0 | W111: =IF(W17=Betrachtungszeit_PW,MAX(Resultate_PW!$D$14:$H$14),0) -> 0 | X111: =IF(X17=Betrachtungszeit_PW,MAX(Resultate_PW!$D$14:$H$14),0) -> 0 | Y111: =IF(Y17=Betrachtungszeit_PW,MAX(Resultate_PW!$D$14:$H$14),0) -> 0 | Z111: =IF(Z17=Betrachtungszeit_PW,MAX(Resultate_PW!$D$14:$H$14),0) -> 0 | AA111: =IF(AA17=Betrachtungszeit_PW,MAX(Resultate_PW!$D$14:$H$14),0) -> 0 | AB111: =IF(AB17=Betrachtungszeit_PW,MAX(Resultate_PW!$D$14:$H$14),0) -> 0 | AC111: =IF(AC17=Betrachtungszeit_PW,MAX(Resultate_PW!$D$14:$H$14),0) -> 0 | AD111: =IF(AD17=Betrachtungszeit_PW,MAX(Resultate_PW!$D$14:$H$14),0) -> 0 | AE111: =IF(AE17=Betrachtungszeit_PW,MAX(Resultate_PW!$D$14:$H$14),0) -> 0 | AF111: =IF(AF17=Betrachtungszeit_PW,MAX(Resultate_PW!$D$14:$H$14),0) -> 0 | AG111: =IF(AG17=Betrachtungszeit_PW,MAX(Resultate_PW!$D$14:$H$14),0) -> 0 | AH111: =IF(AH17=Betrachtungszeit_PW,MAX(Resultate_PW!$D$14:$H$14),0) -> 0 | AI111: =IF(AI17=Betrachtungszeit_PW,MAX(Resultate_PW!$D$14:$H$14),0) -> 0 | AJ111: =IF(AJ17=Betrachtungszeit_PW,MAX(Resultate_PW!$D$14:$H$14),0) -> 0 | AK111: =IF(AK17=Betrachtungszeit_PW,MAX(Resultate_PW!$D$14:$H$14),0) -> 0 | AL111: =IF(AL17=Betrachtungszeit_PW,MAX(Resultate_PW!$D$14:$H$14),0) -> 0 | AM111: =IF(AM17=Betrachtungszeit_PW,MAX(Resultate_PW!$D$14:$H$14),0) -> 0 | AN111: =IF(AN17=Betrachtungszeit_PW,MAX(Resultate_PW!$D$14:$H$14),0) -> 0 | AO111: =IF(AO17=Betrachtungszeit_PW,MAX(Resultate_PW!$D$14:$H$14),0) -> 0 | AP111: =IF(AP17=Betrachtungszeit_PW,MAX(Resultate_PW!$D$14:$H$14),0) -> 0 | AQ111: =IF(AQ17=Betrachtungszeit_PW,MAX(Resultate_PW!$D$14:$H$14),0) -> 0 | AR111: =IF(AR17=Betrachtungszeit_PW,MAX(Resultate_PW!$D$14:$H$14),0) -> 0 | AS111: =IF(AS17=Betrachtungszeit_PW,MAX(Resultate_PW!$D$14:$H$14),0) -> 0 | AT111: =IF(AT17=Betrachtungszeit_PW,MAX(Resultate_PW!$D$14:$H$14),0) -> 0
B112: Treibhausgasemissionen Betrieb (Scope 1 und 2) | E112: =Betrachtungszeit_PW*D82 -> 0 | F112: tCO2eq
B113: Umweltbelastungspunkte UBP'13 Erstellung/Entsorgung Fahrzeuge | E113: =E95 -> 0 | F113: UBP
B114: Umweltbelastungspunkte UBP'13 Betrieb | E114: =Betrachtungszeit_PW*D83 -> 0 | F114: UBP
A115: K | B115: Gestehungskosten pro km | E115: =IF(C9=0,0,E109*100/(Stückzahl_PW*Fahrleistung_PW*Betrachtungszeit_PW)) -> 0 | F115: Rp./km
A116: K | B116: Jahreskosten pro km | E116: =IF(C9=0,0,((1+Kalkulationszinssatz)^Betrachtungszeit_PW*Kalkulationszinssatz)/((1+Kalkulationszinssatz)^Betrachtungszeit_PW-1)*E109*100/(Stückzahl_PW*Fahrleistung_PW)) -> 0 | F116: Rp./km
B120: Auswahlfelder und Defaultwerte
B122: Auswahlfeld | C122: Antrieb Nummer | D122: Energieträger-Nummer | E122: Energieträger
B123: BITTE WÄHLEN | C123: 0 | D123: 0 | E123: Energieträger
B124: Elektrizität | C124: 1 | D124: 13 | E124: Strom
B125: CNG | C125: 3 | D125: 1 | E125: ="CNG ("&Input_Generell!X10*100&"% Biogas)" -> CNG (20% Biogas)
B126: Benzin | C126: 5 | D126: 3 | E126: Benzin
B127: Diesel | C127: 6 | D127: 4 | E127: Diesel
B128: Weiterer Antrieb | C128: 14 | D128: 11 | E128: =Input_Generell!B15 -> Weitere
B131: Auswahlfeld
B132: BITTE WÄHLEN
B133: ja
B134: nein

Sheet PW_V3
B1: DATENEINGABE PERSONENWAGEN
B3: Angaben des Anbieters (mit Angebot abzugeben)
B5: Variante | C5: V3
A6: K | B6: Variantenbezeichnung (kurz) | G6: K | H6: Rechenhilfe Treibstoffverbrauch
B7: Variantenbeschreibung | H7: Energie-träger | I7: Menge | J7: kWh | L7: Umrechnungsfaktor in kWh(Heizwert)
B8: Personenwagen, Treibstoffart | C8: BITTE WÄHLEN | H8: CNG [kg] | J8: =I8*M8 -> 0 | L8: kWh/kg | M8: 13.81
A9: K | B9: Treibstoffverbrauch pro 100 km und Fahrzeug | D9: kWh/100km/Fahrzeug | H9: Benzin [Liter] | J9: =I9*M9 -> 0 | L9: kWh/Liter | M9: 8.72
B10: ="Treibstoffverbrauch ("&VLOOKUP(C12,C123:G128,3,0)&")" -> Treibstoffverbrauch (Energieträger) | C10: =C9/100*Fahrleistung_PW/1000 -> 0 | D10: MWh/a/Fahrzeug | H10: Diesel [Liter] | J10: =I10*M10 -> 0 | L10: kWh/Liter | M10: 9.91
A11: K | B11: Max. Leistungsbedarf (für Laden von Elektrofahrz.) | D11: kW
B12: Antrieb Nummer | C12: =IF(ISBLANK(C8),0,VLOOKUP(C8,$B$123:$G$128,2,0)) -> 0
B13: Energieträger Nummer | C13: =IF(ISBLANK(C8),0,VLOOKUP(C8,$B$123:$F$128,3,0)) -> 0
A15: K | B15: Förderbeiträge total | D15: CHF | K15: Rechenwerte | O15: Berechnungen | AW15: Berechnungen
P16: (Re)Investition in CHF im Jahr… | AW16: Restwert nach Abschreibung am Ende des Jahres… (Berücksichtigt Reinvestition nach Ablauf der Lebensdauer)
K17: Lebens- dauer [a] | L17: Zwischen-resultate | M17: Jährliche Ab-schreibung [CHF/a] | O17: Jahr | P17: 0 | Q17: 1 | R17: 2 | S17: 3 | T17: 4 | U17: 5 | V17: 6 | W17: 7 | X17: 8 | Y17: 9 | Z17: 10 | AA17: 11 | AB17: 12 | AC17: 13 | AD17: 14 | AE17: 15 | AF17: 16 | AG17: 17 | AH17: 18 | AI17: 19 | AJ17: 20 | AK17: 21 | AL17: 22 | AM17: 23 | AN17: 24 | AO17: 25 | AP17: 26 | AQ17: 27 | AR17: 28 | AS17: 29 | AT17: 30 | AW17: 0 | AX17: 1 | AY17: 2 | AZ17: 3 | BA17: 4 | BB17: 5 | BC17: 6 | BD17: 7 | BE17: 8 | BF17: 9 | BG17: 10 | BH17: 11 | BI17: 12 | BJ17: 13 | BK17: 14 | BL17: 15 | BM17: 16 | BN17: 17 | BO17: 18 | BP17: 19 | BQ17: 20 | BR17: 21 | BS17: 22 | BT17: 23 | BU17: 24 | BV17: 25 | BW17: 26 | BX17: 27 | BY17: 28 | BZ17: 29 | CA17: 30
A18: K | B18: Investitionskosten | C18: Beschreibung | D18: Investition (alle Fahrz.) [CHF] | E18: Lebensdauer [a] | F18: Default überschreiben | O18: Kilometer | P18: 0 | Q18: =Q17*Fahrleistung_PW -> 0 | R18: 0 | S18: 0 | T18: 0 | U18: 0 | V18: 0 | W18: 0 | X18: 0 | Y18: 0 | Z18: 0 | AA18: 0 | AB18: 0 | AC18: 0 | AD18: 0 | AE18: 0 | AF18: 0 | AG18: 0 | AH18: 0 | AI18: 0 | AJ18: 0 | AK18: 0 | AL18: 0 | AM18: 0 | AN18: 0 | AO18: 0 | AP18: 0 | AQ18: 0 | AR18: 0 | AS18: 0 | AT18: 0 | AU18: Restwert am Ende der Betrachtungszeit
A19: K | B19: Fahrzeuge | E19: 10 | G19: =IF(K19<Betrachtungszeit_PW,"Achtung: es erfolgt eine Reinvestition","") ->  | K19: =IF(ISNUMBER(F19),F19,IF(ISNUMBER(E19),E19,0)) -> 10 | O19: =B19 -> Fahrzeuge | P19: =D19 -> 0 | Q19: =IF(Betrachtungszeit_PW<Q$17,0,IF(AND(P$17<>0,P$17/($K19)=INT(P$17/($K19))),$D19,0)) -> 0 | R19: 0 | S19: 0 | T19: 0 | U19: 0 | V19: 0 | W19: 0 | X19: 0 | Y19: 0 | Z19: 0 | AA19: 0 | AB19: 0 | AC19: 0 | AD19: 0 | AE19: 0 | AF19: 0 | AG19: 0 | AH19: 0 | AI19: 0 | AJ19: 0 | AK19: 0 | AL19: 0 | AM19: 0 | AN19: 0 | AO19: 0 | AP19: 0 | AQ19: 0 | AR19: 0 | AS19: 0 | AT19: 0 | AU19: =SUMIF($AW$17:$CA$17,Betrachtungszeit_PW,AW19:CA19) -> 0 | AW19: =$D19 -> 0 | AX19: =MAX(AW19-$M26+Q19,0) -> 0 | AY19: 0 | AZ19: 0 | BA19: 0 | BB19: 0 | BC19: 0 | BD19: 0 | BE19: 0 | BF19: 0 | BG19: 0 | BH19: 0 | BI19: 0 | BJ19: 0 | BK19: 0 | BL19: 0 | BM19: 0 | BN19: 0 | BO19: 0 | BP19: 0 | BQ19: 0 | BR19: 0 | BS19: 0 | BT19: 0 | BU19: 0 | BV19: 0 | BW19: 0 | BX19: 0 | BY19: 0 | BZ19: 0 | CA19: 0
B20: Zubehör / Infrastruktur | E20: 10 | K20: 10 | M20: =1/K20*D20 -> 0 | O20: =B20&": "&C20 -> Zubehör / Infrastruktur: | P20: 0 | Q20: 0 | R20: 0 | S20: 0 | T20: 0 | U20: 0 | V20: 0 | W20: 0 | X20: 0 | Y20: 0 | Z20: 0 | AA20: 0 | AB20: 0 | AC20: 0 | AD20: 0 | AE20: 0 | AF20: 0 | AG20: 0 | AH20: 0 | AI20: 0 | AJ20: 0 | AK20: 0 | AL20: 0 | AM20: 0 | AN20: 0 | AO20: 0 | AP20: 0 | AQ20: 0 | AR20: 0 | AS20: 0 | AT20: 0 | AU20: 0 | AW20: =$D20 -> 0 | AX20: =AW20-$M20+Q20 -> 0 | AY20: =AX20-$M20+R20 -> 0 | AZ20: 0 | BA20: 0 | BB20: 0 | BC20: 0 | BD20: 0 | BE20: 0 | BF20: 0 | BG20: 0 | BH20: 0 | BI20: 0 | BJ20: 0 | BK20: 0 | BL20: 0 | BM20: 0 | BN20: 0 | BO20: 0 | BP20: 0 | BQ20: 0 | BR20: 0 | BS20: 0 | BT20: 0 | BU20: 0 | BV20: 0 | BW20: 0 | BX20: 0 | BY20: 0 | BZ20: 0 | CA20: 0
B21: Zubehör / Infrastruktur | E21: 10 | K21: 10 | M21: =1/K21*D21 -> 0 | O21: =B21&": "&C21 -> Zubehör / Infrastruktur: | P21: 0 | Q21: 0 | R21: 0 | S21: 0 | T21: 0 | U21: 0 | V21: 0 | W21: 0 | X21: 0 | Y21: 0 | Z21: 0 | AA21: 0 | AB21: 0 | AC21: 0 | AD21: 0 | AE21: 0 | AF21: 0 | AG21: 0 | AH21: 0 | AI21: 0 | AJ21: 0 | AK21: 0 | AL21: 0 | AM21: 0 | AN21: 0 | AO21: 0 | AP21: 0 | AQ21: 0 | AR21: 0 | AS21: 0 | AT21: 0 | AU21: 0 | AW21: =$D21 -> 0 | AX21: =AW21-$M21+Q21 -> 0 | AY21: 0 | AZ21: 0 | BA21: 0 | BB21: 0 | BC21: 0 | BD21: 0 | BE21: 0 | BF21: 0 | BG21: 0 | BH21: 0 | BI21: 0 | BJ21: 0 | BK21: 0 | BL21: 0 | BM21: 0 | BN21: 0 | BO21: 0 | BP21: 0 | BQ21: 0 | BR21: 0 | BS21: 0 | BT21: 0 | BU21: 0 | BV21: 0 | BW21: 0 | BX21: 0 | BY21: 0 | BZ21: 0 | CA21: 0
B22: Zubehör / Infrastruktur | E22: 10 | K22: 10 | M22: =1/K22*D22 -> 0 | O22: Zubehör / Infrastruktur: | P22: 0 | Q22: 0 | R22: 0 | S22: 0 | T22: 0 | U22: 0 | V22: 0 | W22: 0 | X22: 0 | Y22: 0 | Z22: 0 | AA22: 0 | AB22: 0 | AC22: 0 | AD22: 0 | AE22: 0 | AF22: 0 | AG22: 0 | AH22: 0 | AI22: 0 | AJ22: 0 | AK22: 0 | AL22: 0 | AM22: 0 | AN22: 0 | AO22: 0 | AP22: 0 | AQ22: 0 | AR22: 0 | AS22: 0 | AT22: 0 | AU22: 0 | AW22: 0 | AX22: 0 | AY22: 0 | AZ22: 0 | BA22: 0 | BB22: 0 | BC22: 0 | BD22: 0 | BE22: 0 | BF22: 0 | BG22: 0 | BH22: 0 | BI22: 0 | BJ22: 0 | BK22: 0 | BL22: 0 | BM22: 0 | BN22: 0 | BO22: 0 | BP22: 0 | BQ22: 0 | BR22: 0 | BS22: 0 | BT22: 0 | BU22: 0 | BV22: 0 | BW22: 0 | BX22: 0 | BY22: 0 | BZ22: 0 | CA22: 0
B23: Zubehör / Infrastruktur | E23: 10 | K23: 10 | M23: =1/K23*D23 -> 0 | O23: Zubehör / Infrastruktur: | P23: 0 | Q23: 0 | R23: 0 | S23: 0 | T23: 0 | U23: 0 | V23: 0 | W23: 0 | X23: 0 | Y23: 0 | Z23: 0 | AA23: 0 | AB23: 0 | AC23: 0 | AD23: 0 | AE23: 0 | AF23: 0 | AG23: 0 | AH23: 0 | AI23: 0 | AJ23: 0 | AK23: 0 | AL23: 0 | AM23: 0 | AN23: 0 | AO23: 0 | AP23: 0 | AQ23: 0 | AR23: 0 | AS23: 0 | AT23: 0 | AU23: 0 | AW23: 0 | AX23: 0 | AY23: 0 | AZ23: 0 | BA23: 0 | BB23: 0 | BC23: 0 | BD23: 0 | BE23: 0 | BF23: 0 | BG23: 0 | BH23: 0 | BI23: 0 | BJ23: 0 | BK23: 0 | BL23: 0 | BM23: 0 | BN23: 0 | BO23: 0 | BP23: 0 | BQ23: 0 | BR23: 0 | BS23: 0 | BT23: 0 | BU23: 0 | BV23: 0 | BW23: 0 | BX23: 0 | BY23: 0 | BZ23: 0 | CA23: 0
B24: Zubehör / Infrastruktur | E24: 10 | K24: 10 | M24: =1/K24*D24 -> 0 | O24: Zubehör / Infrastruktur: | P24: 0 | Q24: 0 | R24: 0 | S24: 0 | T24: 0 | U24: 0 | V24: 0 | W24: 0 | X24: 0 | Y24: 0 | Z24: 0 | AA24: 0 | AB24: 0 | AC24: 0 | AD24: 0 | AE24: 0 | AF24: 0 | AG24: 0 | AH24: 0 | AI24: 0 | AJ24: 0 | AK24: 0 | AL24: 0 | AM24: 0 | AN24: 0 | AO24: 0 | AP24: 0 | AQ24: 0 | AR24: 0 | AS24: 0 | AT24: 0 | AU24: 0 | AW24: 0 | AX24: 0 | AY24: 0 | AZ24: 0 | BA24: 0 | BB24: 0 | BC24: 0 | BD24: 0 | BE24: 0 | BF24: 0 | BG24: 0 | BH24: 0 | BI24: 0 | BJ24: 0 | BK24: 0 | BL24: 0 | BM24: 0 | BN24: 0 | BO24: 0 | BP24: 0 | BQ24: 0 | BR24: 0 | BS24: 0 | BT24: 0 | BU24: 0 | BV24: 0 | BW24: 0 | BX24: 0 | BY24: 0 | BZ24: 0 | CA24: 0
B25: Investitionskosten abzügl. Förderbeiträge total | D25: CHF | E25: =D19+SUM(D20:D24)-C15 -> 0 | L25: =E26*D19 -> 0 | O25: (Re)Investition abzüglich Restwert und Fördergeld | AU25: Nettobarwert
A26: K | B26: Wertminderung der Fahrzeuge pro Jahr aufgrund Lebensdauer | E26: =1/K19 -> 0.1 | M26: =L25+Fahrleistung_PW/10000*D19*L27 -> 0 | O26: (Re)Investition abzüglich Fördergeld | P26: =E25 -> 0 | Q26: =SUM(Q19:Q24) -> 0 | R26: 0 | S26: 0 | T26: 0 | U26: 0 | V26: 0 | W26: 0 | X26: 0 | Y26: 0 | Z26: 0 | AA26: 0 | AB26: 0 | AC26: 0 | AD26: 0 | AE26: 0 | AF26: 0 | AG26: 0 | AH26: 0 | AI26: 0 | AJ26: 0 | AK26: 0 | AL26: 0 | AM26: 0 | AN26: 0 | AO26: 0 | AP26: 0 | AQ26: 0 | AR26: 0 | AS26: 0 | AT26: 0
A27: K | B27: Zusätzliche Wertminderung pro 10'000 km | E27: 0.02 | L27: =IF(ISNUMBER(F27),F27,IF(ISNUMBER(E27),E27,0)) -> 0.02 | O27: Restwert | P27: =IF(Betrachtungszeit_PW=P17,-($L$28+$E$29),0) -> 0 | Q27: 0 | R27: 0 | S27: 0 | T27: 0 | U27: 0 | V27: 0 | W27: 0 | X27: 0 | Y27: 0 | Z27: 0 | AA27: 0 | AB27: 0 | AC27: 0 | AD27: 0 | AE27: 0 | AF27: 0 | AG27: 0 | AH27: 0 | AI27: 0 | AJ27: 0 | AK27: 0 | AL27: 0 | AM27: 0 | AN27: 0 | AO27: 0 | AP27: 0 | AQ27: 0 | AR27: 0 | AS27: 0 | AT27: 0
A28: K | B28: Restwert Fahrzeuge am Ende der Betrachtungszeit | D28: CHF | E28: =AU19 -> 0 | L28: =IF(ISNUMBER(F28),F28,E28) -> 0 | O28: Kosten inkl. Preissteigerung | P28: =SUM(P26:P27)*(1+Inflationsindex)^P$17 -> 0 | Q28: 0 | R28: 0 | S28: 0 | T28: 0 | U28: 0 | V28: 0 | W28: 0 | X28: 0 | Y28: 0 | Z28: 0 | AA28: 0 | AB28: 0 | AC28: 0 | AD28: 0 | AE28: 0 | AF28: 0 | AG28: 0 | AH28: 0 | AI28: 0 | AJ28: 0 | AK28: 0 | AL28: 0 | AM28: 0 | AN28: 0 | AO28: 0 | AP28: 0 | AQ28: 0 | AR28: 0 | AS28: 0 | AT28: 0
B29: Restwert Zubehör am Ende der Betrachtungszeit | D29: CHF | E29: =SUM(AU20:AU24) -> 0 | O29: Barwert | P29: =P28*(1+Kalkulationszinssatz)^-P$17 -> 0 | Q29: 0 | R29: 0 | S29: 0 | T29: 0 | U29: 0 | V29: 0 | W29: 0 | X29: 0 | Y29: 0 | Z29: 0 | AA29: 0 | AB29: 0 | AC29: 0 | AD29: 0 | AE29: 0 | AF29: 0 | AG29: 0 | AH29: 0 | AI29: 0 | AJ29: 0 | AK29: 0 | AL29: 0 | AM29: 0 | AN29: 0 | AO29: 0 | AP29: 0 | AQ29: 0 | AR29: 0 | AS29: 0 | AT29: 0 | AU29: =SUM(P29:AT29) -> 0
A31: K | B31: Ersatzteile / Verbrauchsmaterial mit erstmaliger Investition nach Lebensdauer | K31: Lebens- dauer [a] | M31: Jährliche Ab-schreibung [CHF/a] | O31: Ersatzteile | AW31: Restwert nach Abschreibung am Ende des Jahres… (Berücksichtigt Reinvestition nach Ablauf der Lebensdauer) Ersatzteile haben erst nach Ablauf der ersten Lebensdauer einen Restwert
B32: 1. Ersatzteile / Verbrauchsmaterial mit Lebensdauer in Jahren | E32: Lebensdauer [a] | O32: =B32 -> 1. Ersatzteile / Verbrauchsmaterial mit Lebensdauer in Jahren | AU32: Restwert am Ende der Betrachtungszeit
B33: Weitere Ersatzteile | E33: 10 | K33: =IF(ISNUMBER(F33),F33,IF(ISNUMBER(E33),E33,0)) -> 10 | M33: =1/K33*D33 -> 0 | O33: =B33&": "&C33 -> Weitere Ersatzteile: | P33: 0 | Q33: =IF(Betrachtungszeit_PW<Q$17,0,IF(AND(P$17<>0,P$17/($K33)=INT(P$17/($K33))),$D33,0)) -> 0 | R33: 0 | S33: 0 | T33: 0 | U33: 0 | V33: 0 | W33: 0 | X33: 0 | Y33: 0 | Z33: 0 | AA33: 0 | AB33: 0 | AC33: 0 | AD33: 0 | AE33: 0 | AF33: 0 | AG33: 0 | AH33: 0 | AI33: 0 | AJ33: 0 | AK33: 0 | AL33: 0 | AM33: 0 | AN33: 0 | AO33: 0 | AP33: 0 | AQ33: 0 | AR33: 0 | AS33: 0 | AT33: 0 | AU33: =SUMIF($AW$17:$CA$17,Betrachtungszeit_PW,AW33:CA33) -> 0 | AW33: 0 | AX33: =IF((AW33+Q33)=0,0,AW33-$M33+Q33) -> 0 | AY33: =IF((AX33+R33)=0,0,AX33-$M33+R33) -> 0 | AZ33: 0 | BA33: 0 | BB33: 0 | BC33: 0 | BD33: 0 | BE33: 0 | BF33: 0 | BG33: 0 | BH33: 0 | BI33: 0 | BJ33: 0 | BK33: 0 | BL33: 0 | BM33: 0 | BN33: 0 | BO33: 0 | BP33: 0 | BQ33: 0 | BR33: 0 | BS33: 0 | BT33: 0 | BU33: 0 | BV33: 0 | BW33: 0 | BX33: 0 | BY33: 0 | BZ33: 0 | CA33: 0
B34: Weitere Ersatzteile | E34: 10 | K34: =IF(ISNUMBER(F34),F34,IF(ISNUMBER(E34),E34,0)) -> 10 | M34: =1/K34*D34 -> 0 | O34: =B34&": "&C34 -> Weitere Ersatzteile: | P34: 0 | Q34: 0 | R34: 0 | S34: 0 | T34: 0 | U34: 0 | V34: 0 | W34: 0 | X34: 0 | Y34: 0 | Z34: 0 | AA34: 0 | AB34: 0 | AC34: 0 | AD34: 0 | AE34: 0 | AF34: 0 | AG34: 0 | AH34: 0 | AI34: 0 | AJ34: 0 | AK34: 0 | AL34: 0 | AM34: 0 | AN34: 0 | AO34: 0 | AP34: 0 | AQ34: 0 | AR34: 0 | AS34: 0 | AT34: 0 | AU34: =SUMIF($AW$17:$CA$17,Betrachtungszeit_PW,AW34:CA34) -> 0 | AW34: 0 | AX34: =IF((AW34+Q34)=0,0,AW34-$M34+Q34) -> 0 | AY34: 0 | AZ34: 0 | BA34: 0 | BB34: 0 | BC34: 0 | BD34: 0 | BE34: 0 | BF34: 0 | BG34: 0 | BH34: 0 | BI34: 0 | BJ34: 0 | BK34: 0 | BL34: 0 | BM34: 0 | BN34: 0 | BO34: 0 | BP34: 0 | BQ34: 0 | BR34: 0 | BS34: 0 | BT34: 0 | BU34: 0 | BV34: 0 | BW34: 0 | BX34: 0 | BY34: 0 | BZ34: 0 | CA34: 0
B35: Weitere Ersatzteile | E35: 10 | K35: =IF(ISNUMBER(F35),F35,IF(ISNUMBER(E35),E35,0)) -> 10 | M35: =1/K35*D35 -> 0 | O35: Weitere Ersatzteile: | P35: 0 | Q35: 0 | R35: 0 | S35: 0 | T35: 0 | U35: 0 | V35: 0 | W35: 0 | X35: 0 | Y35: 0 | Z35: 0 | AA35: 0 | AB35: 0 | AC35: 0 | AD35: 0 | AE35: 0 | AF35: 0 | AG35: 0 | AH35: 0 | AI35: 0 | AJ35: 0 | AK35: 0 | AL35: 0 | AM35: 0 | AN35: 0 | AO35: 0 | AP35: 0 | AQ35: 0 | AR35: 0 | AS35: 0 | AT35: 0 | AU35: =SUMIF($AW$17:$CA$17,Betrachtungszeit_PW,AW35:CA35) -> 0 | AW35: 0 | AX35: 0 | AY35: 0 | AZ35: 0 | BA35: 0 | BB35: 0 | BC35: 0 | BD35: 0 | BE35: 0 | BF35: 0 | BG35: 0 | BH35: 0 | BI35: 0 | BJ35: 0 | BK35: 0 | BL35: 0 | BM35: 0 | BN35: 0 | BO35: 0 | BP35: 0 | BQ35: 0 | BR35: 0 | BS35: 0 | BT35: 0 | BU35: 0 | BV35: 0 | BW35: 0 | BX35: 0 | BY35: 0 | BZ35: 0 | CA35: 0
B36: Weitere Ersatzteile | E36: 10 | K36: =IF(ISNUMBER(F36),F36,IF(ISNUMBER(E36),E36,0)) -> 10 | M36: =1/K36*D36 -> 0 | O36: Weitere Ersatzteile: | P36: 0 | Q36: 0 | R36: 0 | S36: 0 | T36: 0 | U36: 0 | V36: 0 | W36: 0 | X36: 0 | Y36: 0 | Z36: 0 | AA36: 0 | AB36: 0 | AC36: 0 | AD36: 0 | AE36: 0 | AF36: 0 | AG36: 0 | AH36: 0 | AI36: 0 | AJ36: 0 | AK36: 0 | AL36: 0 | AM36: 0 | AN36: 0 | AO36: 0 | AP36: 0 | AQ36: 0 | AR36: 0 | AS36: 0 | AT36: 0 | AU36: =SUMIF($AW$17:$CA$17,Betrachtungszeit_PW,AW36:CA36) -> 0 | AW36: 0 | AX36: 0 | AY36: 0 | AZ36: 0 | BA36: 0 | BB36: 0 | BC36: 0 | BD36: 0 | BE36: 0 | BF36: 0 | BG36: 0 | BH36: 0 | BI36: 0 | BJ36: 0 | BK36: 0 | BL36: 0 | BM36: 0 | BN36: 0 | BO36: 0 | BP36: 0 | BQ36: 0 | BR36: 0 | BS36: 0 | BT36: 0 | BU36: 0 | BV36: 0 | BW36: 0 | BX36: 0 | BY36: 0 | BZ36: 0 | CA36: 0
B37: Weitere Ersatzteile | E37: 10 | K37: =IF(ISNUMBER(F37),F37,IF(ISNUMBER(E37),E37,0)) -> 10 | M37: =1/K37*D37 -> 0 | O37: Weitere Ersatzteile: | P37: 0 | Q37: 0 | R37: 0 | S37: 0 | T37: 0 | U37: 0 | V37: 0 | W37: 0 | X37: 0 | Y37: 0 | Z37: 0 | AA37: 0 | AB37: 0 | AC37: 0 | AD37: 0 | AE37: 0 | AF37: 0 | AG37: 0 | AH37: 0 | AI37: 0 | AJ37: 0 | AK37: 0 | AL37: 0 | AM37: 0 | AN37: 0 | AO37: 0 | AP37: 0 | AQ37: 0 | AR37: 0 | AS37: 0 | AT37: 0 | AU37: =SUMIF($AW$17:$CA$17,Betrachtungszeit_PW,AW37:CA37) -> 0 | AW37: 0 | AX37: 0 | AY37: 0 | AZ37: 0 | BA37: 0 | BB37: 0 | BC37: 0 | BD37: 0 | BE37: 0 | BF37: 0 | BG37: 0 | BH37: 0 | BI37: 0 | BJ37: 0 | BK37: 0 | BL37: 0 | BM37: 0 | BN37: 0 | BO37: 0 | BP37: 0 | BQ37: 0 | BR37: 0 | BS37: 0 | BT37: 0 | BU37: 0 | BV37: 0 | BW37: 0 | BX37: 0 | BY37: 0 | BZ37: 0 | CA37: 0
B38: 2. Ersatzteile / Verbrauchsmaterial mit Lebensdauer in Kilometern | E38: Lebensdauer [km] | K38: Lebens-dauer [km] | O38: 2. Ersatzteile / Verbrauchsmaterial mit Lebensdauer in Kilometern
A39: K | B39: Ersatz-Reifen (Set) | E39: 30000 | K39: =IF(ISNUMBER(F39),F39,IF(ISNUMBER(E39),E39,0)) -> 30000 | M39: =1/(K39/Fahrleistung_PW)*D39 ->  | O39: =B39&": "&C39 -> Ersatz-Reifen (Set): | P39: 0 | Q39: =IF(Betrachtungszeit_PW*Fahrleistung_PW<Q$18,0,IF(Q$18-(COUNTIF($P39:P39,">0")*$K39)>$K39,$D39,0)) -> 0 | R39: =IF(Betrachtungszeit_PW*Fahrleistung_PW<R$18,0,IF(R$18-(COUNTIF($P39:Q39,">0")*$K39)>$K39,$D39,0)) -> 0 | S39: =IF(Betrachtungszeit_PW*Fahrleistung_PW<S$18,0,IF(S$18-(COUNTIF($P39:R39,">0")*$K39)>$K39,$D39,0)) -> 0 | T39: =IF(Betrachtungszeit_PW*Fahrleistung_PW<T$18,0,IF(T$18-(COUNTIF($P39:S39,">0")*$K39)>$K39,$D39,0)) -> 0 | U39: =IF(Betrachtungszeit_PW*Fahrleistung_PW<U$18,0,IF(U$18-(COUNTIF($P39:T39,">0")*$K39)>$K39,$D39,0)) -> 0 | V39: =IF(Betrachtungszeit_PW*Fahrleistung_PW<V$18,0,IF(V$18-(COUNTIF($P39:U39,">0")*$K39)>$K39,$D39,0)) -> 0 | W39: =IF(Betrachtungszeit_PW*Fahrleistung_PW<W$18,0,IF(W$18-(COUNTIF($P39:V39,">0")*$K39)>$K39,$D39,0)) -> 0 | X39: =IF(Betrachtungszeit_PW*Fahrleistung_PW<X$18,0,IF(X$18-(COUNTIF($P39:W39,">0")*$K39)>$K39,$D39,0)) -> 0 | Y39: =IF(Betrachtungszeit_PW*Fahrleistung_PW<Y$18,0,IF(Y$18-(COUNTIF($P39:X39,">0")*$K39)>$K39,$D39,0)) -> 0 | Z39: =IF(Betrachtungszeit_PW*Fahrleistung_PW<Z$18,0,IF(Z$18-(COUNTIF($P39:Y39,">0")*$K39)>$K39,$D39,0)) -> 0 | AA39: =IF(Betrachtungszeit_PW*Fahrleistung_PW<AA$18,0,IF(AA$18-(COUNTIF($P39:Z39,">0")*$K39)>$K39,$D39,0)) -> 0 | AB39: =IF(Betrachtungszeit_PW*Fahrleistung_PW<AB$18,0,IF(AB$18-(COUNTIF($P39:AA39,">0")*$K39)>$K39,$D39,0)) -> 0 | AC39: =IF(Betrachtungszeit_PW*Fahrleistung_PW<AC$18,0,IF(AC$18-(COUNTIF($P39:AB39,">0")*$K39)>$K39,$D39,0)) -> 0 | AD39: =IF(Betrachtungszeit_PW*Fahrleistung_PW<AD$18,0,IF(AD$18-(COUNTIF($P39:AC39,">0")*$K39)>$K39,$D39,0)) -> 0 | AE39: =IF(Betrachtungszeit_PW*Fahrleistung_PW<AE$18,0,IF(AE$18-(COUNTIF($P39:AD39,">0")*$K39)>$K39,$D39,0)) -> 0 | AF39: =IF(Betrachtungszeit_PW*Fahrleistung_PW<AF$18,0,IF(AF$18-(COUNTIF($P39:AE39,">0")*$K39)>$K39,$D39,0)) -> 0 | AG39: =IF(Betrachtungszeit_PW*Fahrleistung_PW<AG$18,0,IF(AG$18-(COUNTIF($P39:AF39,">0")*$K39)>$K39,$D39,0)) -> 0 | AH39: =IF(Betrachtungszeit_PW*Fahrleistung_PW<AH$18,0,IF(AH$18-(COUNTIF($P39:AG39,">0")*$K39)>$K39,$D39,0)) -> 0 | AI39: =IF(Betrachtungszeit_PW*Fahrleistung_PW<AI$18,0,IF(AI$18-(COUNTIF($P39:AH39,">0")*$K39)>$K39,$D39,0)) -> 0 | AJ39: =IF(Betrachtungszeit_PW*Fahrleistung_PW<AJ$18,0,IF(AJ$18-(COUNTIF($P39:AI39,">0")*$K39)>$K39,$D39,0)) -> 0 | AK39: =IF(Betrachtungszeit_PW*Fahrleistung_PW<AK$18,0,IF(AK$18-(COUNTIF($P39:AJ39,">0")*$K39)>$K39,$D39,0)) -> 0 | AL39: =IF(Betrachtungszeit_PW*Fahrleistung_PW<AL$18,0,IF(AL$18-(COUNTIF($P39:AK39,">0")*$K39)>$K39,$D39,0)) -> 0 | AM39: =IF(Betrachtungszeit_PW*Fahrleistung_PW<AM$18,0,IF(AM$18-(COUNTIF($P39:AL39,">0")*$K39)>$K39,$D39,0)) -> 0 | AN39: =IF(Betrachtungszeit_PW*Fahrleistung_PW<AN$18,0,IF(AN$18-(COUNTIF($P39:AM39,">0")*$K39)>$K39,$D39,0)) -> 0 | AO39: =IF(Betrachtungszeit_PW*Fahrleistung_PW<AO$18,0,IF(AO$18-(COUNTIF($P39:AN39,">0")*$K39)>$K39,$D39,0)) -> 0 | AP39: =IF(Betrachtungszeit_PW*Fahrleistung_PW<AP$18,0,IF(AP$18-(COUNTIF($P39:AO39,">0")*$K39)>$K39,$D39,0)) -> 0 | AQ39: =IF(Betrachtungszeit_PW*Fahrleistung_PW<AQ$18,0,IF(AQ$18-(COUNTIF($P39:AP39,">0")*$K39)>$K39,$D39,0)) -> 0 | AR39: =IF(Betrachtungszeit_PW*Fahrleistung_PW<AR$18,0,IF(AR$18-(COUNTIF($P39:AQ39,">0")*$K39)>$K39,$D39,0)) -> 0 | AS39: =IF(Betrachtungszeit_PW*Fahrleistung_PW<AS$18,0,IF(AS$18-(COUNTIF($P39:AR39,">0")*$K39)>$K39,$D39,0)) -> 0 | AT39: =IF(Betrachtungszeit_PW*Fahrleistung_PW<AT$18,0,IF(AT$18-(COUNTIF($P39:AS39,">0")*$K39)>$K39,$D39,0)) -> 0 | AU39: =SUMIF($AW$17:$CA$17,Betrachtungszeit_PW,AW39:CA39) -> 0 | AW39: 0 | AX39: =IF((AW39+Q39)=0,0,AW39-$M39+Q39) -> 0 | AY39: =IF((AX39+R39)=0,0,AX39-$M39+R39) -> 0 | AZ39: 0 | BA39: 0 | BB39: 0 | BC39: 0 | BD39: 0 | BE39: 0 | BF39: 0 | BG39: 0 | BH39: 0 | BI39: 0 | BJ39: 0 | BK39: 0 | BL39: 0 | BM39: 0 | BN39: 0 | BO39: =IF((BN39+AH39)=0,0,BN39-$M39+AH39) -> 0 | BP39: 0 | BQ39: 0 | BR39: 0 | BS39: 0 | BT39: 0 | BU39: 0 | BV39: 0 | BW39: 0 | BX39: 0 | BY39: 0 | BZ39: 0 | CA39: 0
A40: K | B40: Ersatz-Batterie bei Elektrofahrzeugen | E40: 100000 | K40: 100000 | O40: =B40&": "&C40 -> Ersatz-Batterie bei Elektrofahrzeugen: | P40: 0 | Q40: =IF(Betrachtungszeit_PW*Fahrleistung_PW<Q$18,0,IF(Q$18-(COUNTIF($P40:P40,">0")*$K40)>$K40,$D40,0)) -> 0 | R40: =IF(Betrachtungszeit_PW*Fahrleistung_PW<R$18,0,IF(R$18-(COUNTIF($P40:Q40,">0")*$K40)>$K40,$D40,0)) -> 0 | S40: =IF(Betrachtungszeit_PW*Fahrleistung_PW<S$18,0,IF(S$18-(COUNTIF($P40:R40,">0")*$K40)>$K40,$D40,0)) -> 0 | T40: =IF(Betrachtungszeit_PW*Fahrleistung_PW<T$18,0,IF(T$18-(COUNTIF($P40:S40,">0")*$K40)>$K40,$D40,0)) -> 0 | U40: =IF(Betrachtungszeit_PW*Fahrleistung_PW<U$18,0,IF(U$18-(COUNTIF($P40:T40,">0")*$K40)>$K40,$D40,0)) -> 0 | V40: =IF(Betrachtungszeit_PW*Fahrleistung_PW<V$18,0,IF(V$18-(COUNTIF($P40:U40,">0")*$K40)>$K40,$D40,0)) -> 0 | W40: =IF(Betrachtungszeit_PW*Fahrleistung_PW<W$18,0,IF(W$18-(COUNTIF($P40:V40,">0")*$K40)>$K40,$D40,0)) -> 0 | X40: =IF(Betrachtungszeit_PW*Fahrleistung_PW<X$18,0,IF(X$18-(COUNTIF($P40:W40,">0")*$K40)>$K40,$D40,0)) -> 0 | Y40: =IF(Betrachtungszeit_PW*Fahrleistung_PW<Y$18,0,IF(Y$18-(COUNTIF($P40:X40,">0")*$K40)>$K40,$D40,0)) -> 0 | Z40: =IF(Betrachtungszeit_PW*Fahrleistung_PW<Z$18,0,IF(Z$18-(COUNTIF($P40:Y40,">0")*$K40)>$K40,$D40,0)) -> 0 | AA40: =IF(Betrachtungszeit_PW*Fahrleistung_PW<AA$18,0,IF(AA$18-(COUNTIF($P40:Z40,">0")*$K40)>$K40,$D40,0)) -> 0 | AB40: =IF(Betrachtungszeit_PW*Fahrleistung_PW<AB$18,0,IF(AB$18-(COUNTIF($P40:AA40,">0")*$K40)>$K40,$D40,0)) -> 0 | AC40: =IF(Betrachtungszeit_PW*Fahrleistung_PW<AC$18,0,IF(AC$18-(COUNTIF($P40:AB40,">0")*$K40)>$K40,$D40,0)) -> 0 | AD40: =IF(Betrachtungszeit_PW*Fahrleistung_PW<AD$18,0,IF(AD$18-(COUNTIF($P40:AC40,">0")*$K40)>$K40,$D40,0)) -> 0 | AE40: =IF(Betrachtungszeit_PW*Fahrleistung_PW<AE$18,0,IF(AE$18-(COUNTIF($P40:AD40,">0")*$K40)>$K40,$D40,0)) -> 0 | AF40: =IF(Betrachtungszeit_PW*Fahrleistung_PW<AF$18,0,IF(AF$18-(COUNTIF($P40:AE40,">0")*$K40)>$K40,$D40,0)) -> 0 | AG40: =IF(Betrachtungszeit_PW*Fahrleistung_PW<AG$18,0,IF(AG$18-(COUNTIF($P40:AF40,">0")*$K40)>$K40,$D40,0)) -> 0 | AH40: =IF(Betrachtungszeit_PW*Fahrleistung_PW<AH$18,0,IF(AH$18-(COUNTIF($P40:AG40,">0")*$K40)>$K40,$D40,0)) -> 0 | AI40: =IF(Betrachtungszeit_PW*Fahrleistung_PW<AI$18,0,IF(AI$18-(COUNTIF($P40:AH40,">0")*$K40)>$K40,$D40,0)) -> 0 | AJ40: =IF(Betrachtungszeit_PW*Fahrleistung_PW<AJ$18,0,IF(AJ$18-(COUNTIF($P40:AI40,">0")*$K40)>$K40,$D40,0)) -> 0 | AK40: =IF(Betrachtungszeit_PW*Fahrleistung_PW<AK$18,0,IF(AK$18-(COUNTIF($P40:AJ40,">0")*$K40)>$K40,$D40,0)) -> 0 | AL40: =IF(Betrachtungszeit_PW*Fahrleistung_PW<AL$18,0,IF(AL$18-(COUNTIF($P40:AK40,">0")*$K40)>$K40,$D40,0)) -> 0 | AM40: =IF(Betrachtungszeit_PW*Fahrleistung_PW<AM$18,0,IF(AM$18-(COUNTIF($P40:AL40,">0")*$K40)>$K40,$D40,0)) -> 0 | AN40: =IF(Betrachtungszeit_PW*Fahrleistung_PW<AN$18,0,IF(AN$18-(COUNTIF($P40:AM40,">0")*$K40)>$K40,$D40,0)) -> 0 | AO40: =IF(Betrachtungszeit_PW*Fahrleistung_PW<AO$18,0,IF(AO$18-(COUNTIF($P40:AN40,">0")*$K40)>$K40,$D40,0)) -> 0 | AP40: =IF(Betrachtungszeit_PW*Fahrleistung_PW<AP$18,0,IF(AP$18-(COUNTIF($P40:AO40,">0")*$K40)>$K40,$D40,0)) -> 0 | AQ40: =IF(Betrachtungszeit_PW*Fahrleistung_PW<AQ$18,0,IF(AQ$18-(COUNTIF($P40:AP40,">0")*$K40)>$K40,$D40,0)) -> 0 | AR40: =IF(Betrachtungszeit_PW*Fahrleistung_PW<AR$18,0,IF(AR$18-(COUNTIF($P40:AQ40,">0")*$K40)>$K40,$D40,0)) -> 0 | AS40: =IF(Betrachtungszeit_PW*Fahrleistung_PW<AS$18,0,IF(AS$18-(COUNTIF($P40:AR40,">0")*$K40)>$K40,$D40,0)) -> 0 | AT40: =IF(Betrachtungszeit_PW*Fahrleistung_PW<AT$18,0,IF(AT$18-(COUNTIF($P40:AS40,">0")*$K40)>$K40,$D40,0)) -> 0 | AU40: 0 | AW40: 0 | AX40: =IF((AW40+Q40)=0,0,AW40-$M40+Q40) -> 0 | AY40: 0 | AZ40: 0 | BA40: 0 | BB40: 0 | BC40: 0 | BD40: 0 | BE40: 0 | BF40: 0 | BG40: 0 | BH40: 0 | BI40: 0 | BJ40: 0 | BK40: 0 | BL40: 0 | BM40: 0 | BN40: 0 | BO40: 0 | BP40: 0 | BQ40: 0 | BR40: 0 | BS40: 0 | BT40: 0 | BU40: 0 | BV40: 0 | BW40: 0 | BX40: 0 | BY40: 0 | BZ40: 0 | CA40: 0
B41: Weitere Ersatzteile | E41: 150000 | K41: 150000 | O41: Weitere Ersatzteile: | P41: 0 | Q41: =IF(Betrachtungszeit_PW*Fahrleistung_PW<Q$18,0,IF(Q$18-(COUNTIF($P41:P41,">0")*$K41)>$K41,$D41,0)) -> 0 | R41: =IF(Betrachtungszeit_PW*Fahrleistung_PW<R$18,0,IF(R$18-(COUNTIF($P41:Q41,">0")*$K41)>$K41,$D41,0)) -> 0 | S41: =IF(Betrachtungszeit_PW*Fahrleistung_PW<S$18,0,IF(S$18-(COUNTIF($P41:R41,">0")*$K41)>$K41,$D41,0)) -> 0 | T41: =IF(Betrachtungszeit_PW*Fahrleistung_PW<T$18,0,IF(T$18-(COUNTIF($P41:S41,">0")*$K41)>$K41,$D41,0)) -> 0 | U41: =IF(Betrachtungszeit_PW*Fahrleistung_PW<U$18,0,IF(U$18-(COUNTIF($P41:T41,">0")*$K41)>$K41,$D41,0)) -> 0 | V41: =IF(Betrachtungszeit_PW*Fahrleistung_PW<V$18,0,IF(V$18-(COUNTIF($P41:U41,">0")*$K41)>$K41,$D41,0)) -> 0 | W41: =IF(Betrachtungszeit_PW*Fahrleistung_PW<W$18,0,IF(W$18-(COUNTIF($P41:V41,">0")*$K41)>$K41,$D41,0)) -> 0 | X41: =IF(Betrachtungszeit_PW*Fahrleistung_PW<X$18,0,IF(X$18-(COUNTIF($P41:W41,">0")*$K41)>$K41,$D41,0)) -> 0 | Y41: =IF(Betrachtungszeit_PW*Fahrleistung_PW<Y$18,0,IF(Y$18-(COUNTIF($P41:X41,">0")*$K41)>$K41,$D41,0)) -> 0 | Z41: =IF(Betrachtungszeit_PW*Fahrleistung_PW<Z$18,0,IF(Z$18-(COUNTIF($P41:Y41,">0")*$K41)>$K41,$D41,0)) -> 0 | AA41: =IF(Betrachtungszeit_PW*Fahrleistung_PW<AA$18,0,IF(AA$18-(COUNTIF($P41:Z41,">0")*$K41)>$K41,$D41,0)) -> 0 | AB41: =IF(Betrachtungszeit_PW*Fahrleistung_PW<AB$18,0,IF(AB$18-(COUNTIF($P41:AA41,">0")*$K41)>$K41,$D41,0)) -> 0 | AC41: =IF(Betrachtungszeit_PW*Fahrleistung_PW<AC$18,0,IF(AC$18-(COUNTIF($P41:AB41,">0")*$K41)>$K41,$D41,0)) -> 0 | AD41: =IF(Betrachtungszeit_PW*Fahrleistung_PW<AD$18,0,IF(AD$18-(COUNTIF($P41:AC41,">0")*$K41)>$K41,$D41,0)) -> 0 | AE41: =IF(Betrachtungszeit_PW*Fahrleistung_PW<AE$18,0,IF(AE$18-(COUNTIF($P41:AD41,">0")*$K41)>$K41,$D41,0)) -> 0 | AF41: =IF(Betrachtungszeit_PW*Fahrleistung_PW<AF$18,0,IF(AF$18-(COUNTIF($P41:AE41,">0")*$K41)>$K41,$D41,0)) -> 0 | AG41: =IF(Betrachtungszeit_PW*Fahrleistung_PW<AG$18,0,IF(AG$18-(COUNTIF($P41:AF41,">0")*$K41)>$K41,$D41,0)) -> 0 | AH41: =IF(Betrachtungszeit_PW*Fahrleistung_PW<AH$18,0,IF(AH$18-(COUNTIF($P41:AG41,">0")*$K41)>$K41,$D41,0)) -> 0 | AI41: =IF(Betrachtungszeit_PW*Fahrleistung_PW<AI$18,0,IF(AI$18-(COUNTIF($P41:AH41,">0")*$K41)>$K41,$D41,0)) -> 0 | AJ41: =IF(Betrachtungszeit_PW*Fahrleistung_PW<AJ$18,0,IF(AJ$18-(COUNTIF($P41:AI41,">0")*$K41)>$K41,$D41,0)) -> 0 | AK41: =IF(Betrachtungszeit_PW*Fahrleistung_PW<AK$18,0,IF(AK$18-(COUNTIF($P41:AJ41,">0")*$K41)>$K41,$D41,0)) -> 0 | AL41: =IF(Betrachtungszeit_PW*Fahrleistung_PW<AL$18,0,IF(AL$18-(COUNTIF($P41:AK41,">0")*$K41)>$K41,$D41,0)) -> 0 | AM41: =IF(Betrachtungszeit_PW*Fahrleistung_PW<AM$18,0,IF(AM$18-(COUNTIF($P41:AL41,">0")*$K41)>$K41,$D41,0)) -> 0 | AN41: =IF(Betrachtungszeit_PW*Fahrleistung_PW<AN$18,0,IF(AN$18-(COUNTIF($P41:AM41,">0")*$K41)>$K41,$D41,0)) -> 0 | AO41: =IF(Betrachtungszeit_PW*Fahrleistung_PW<AO$18,0,IF(AO$18-(COUNTIF($P41:AN41,">0")*$K41)>$K41,$D41,0)) -> 0 | AP41: =IF(Betrachtungszeit_PW*Fahrleistung_PW<AP$18,0,IF(AP$18-(COUNTIF($P41:AO41,">0")*$K41)>$K41,$D41,0)) -> 0 | AQ41: =IF(Betrachtungszeit_PW*Fahrleistung_PW<AQ$18,0,IF(AQ$18-(COUNTIF($P41:AP41,">0")*$K41)>$K41,$D41,0)) -> 0 | AR41: =IF(Betrachtungszeit_PW*Fahrleistung_PW<AR$18,0,IF(AR$18-(COUNTIF($P41:AQ41,">0")*$K41)>$K41,$D41,0)) -> 0 | AS41: =IF(Betrachtungszeit_PW*Fahrleistung_PW<AS$18,0,IF(AS$18-(COUNTIF($P41:AR41,">0")*$K41)>$K41,$D41,0)) -> 0 | AT41: =IF(Betrachtungszeit_PW*Fahrleistung_PW<AT$18,0,IF(AT$18-(COUNTIF($P41:AS41,">0")*$K41)>$K41,$D41,0)) -> 0 | AU41: 0 | AW41: 0 | AX41: 0 | AY41: 0 | AZ41: 0 | BA41: 0 | BB41: 0 | BC41: 0 | BD41: 0 | BE41: 0 | BF41: 0 | BG41: 0 | BH41: 0 | BI41: 0 | BJ41: 0 | BK41: 0 | BL41: 0 | BM41: 0 | BN41: 0 | BO41: 0 | BP41: 0 | BQ41: 0 | BR41: 0 | BS41: 0 | BT41: 0 | BU41: 0 | BV41: 0 | BW41: 0 | BX41: 0 | BY41: 0 | BZ41: 0 | CA41: 0
B42: Weitere Ersatzteile | E42: 150000 | K42: 150000 | O42: Weitere Ersatzteile: | P42: 0 | Q42: =IF(Betrachtungszeit_PW*Fahrleistung_PW<Q$18,0,IF(Q$18-(COUNTIF($P42:P42,">0")*$K42)>$K42,$D42,0)) -> 0 | R42: =IF(Betrachtungszeit_PW*Fahrleistung_PW<R$18,0,IF(R$18-(COUNTIF($P42:Q42,">0")*$K42)>$K42,$D42,0)) -> 0 | S42: =IF(Betrachtungszeit_PW*Fahrleistung_PW<S$18,0,IF(S$18-(COUNTIF($P42:R42,">0")*$K42)>$K42,$D42,0)) -> 0 | T42: =IF(Betrachtungszeit_PW*Fahrleistung_PW<T$18,0,IF(T$18-(COUNTIF($P42:S42,">0")*$K42)>$K42,$D42,0)) -> 0 | U42: =IF(Betrachtungszeit_PW*Fahrleistung_PW<U$18,0,IF(U$18-(COUNTIF($P42:T42,">0")*$K42)>$K42,$D42,0)) -> 0 | V42: =IF(Betrachtungszeit_PW*Fahrleistung_PW<V$18,0,IF(V$18-(COUNTIF($P42:U42,">0")*$K42)>$K42,$D42,0)) -> 0 | W42: =IF(Betrachtungszeit_PW*Fahrleistung_PW<W$18,0,IF(W$18-(COUNTIF($P42:V42,">0")*$K42)>$K42,$D42,0)) -> 0 | X42: =IF(Betrachtungszeit_PW*Fahrleistung_PW<X$18,0,IF(X$18-(COUNTIF($P42:W42,">0")*$K42)>$K42,$D42,0)) -> 0 | Y42: =IF(Betrachtungszeit_PW*Fahrleistung_PW<Y$18,0,IF(Y$18-(COUNTIF($P42:X42,">0")*$K42)>$K42,$D42,0)) -> 0 | Z42: =IF(Betrachtungszeit_PW*Fahrleistung_PW<Z$18,0,IF(Z$18-(COUNTIF($P42:Y42,">0")*$K42)>$K42,$D42,0)) -> 0 | AA42: =IF(Betrachtungszeit_PW*Fahrleistung_PW<AA$18,0,IF(AA$18-(COUNTIF($P42:Z42,">0")*$K42)>$K42,$D42,0)) -> 0 | AB42: =IF(Betrachtungszeit_PW*Fahrleistung_PW<AB$18,0,IF(AB$18-(COUNTIF($P42:AA42,">0")*$K42)>$K42,$D42,0)) -> 0 | AC42: =IF(Betrachtungszeit_PW*Fahrleistung_PW<AC$18,0,IF(AC$18-(COUNTIF($P42:AB42,">0")*$K42)>$K42,$D42,0)) -> 0 | AD42: =IF(Betrachtungszeit_PW*Fahrleistung_PW<AD$18,0,IF(AD$18-(COUNTIF($P42:AC42,">0")*$K42)>$K42,$D42,0)) -> 0 | AE42: =IF(Betrachtungszeit_PW*Fahrleistung_PW<AE$18,0,IF(AE$18-(COUNTIF($P42:AD42,">0")*$K42)>$K42,$D42,0)) -> 0 | AF42: =IF(Betrachtungszeit_PW*Fahrleistung_PW<AF$18,0,IF(AF$18-(COUNTIF($P42:AE42,">0")*$K42)>$K42,$D42,0)) -> 0 | AG42: =IF(Betrachtungszeit_PW*Fahrleistung_PW<AG$18,0,IF(AG$18-(COUNTIF($P42:AF42,">0")*$K42)>$K42,$D42,0)) -> 0 | AH42: =IF(Betrachtungszeit_PW*Fahrleistung_PW<AH$18,0,IF(AH$18-(COUNTIF($P42:AG42,">0")*$K42)>$K42,$D42,0)) -> 0 | AI42: =IF(Betrachtungszeit_PW*Fahrleistung_PW<AI$18,0,IF(AI$18-(COUNTIF($P42:AH42,">0")*$K42)>$K42,$D42,0)) -> 0 | AJ42: =IF(Betrachtungszeit_PW*Fahrleistung_PW<AJ$18,0,IF(AJ$18-(COUNTIF($P42:AI42,">0")*$K42)>$K42,$D42,0)) -> 0 | AK42: =IF(Betrachtungszeit_PW*Fahrleistung_PW<AK$18,0,IF(AK$18-(COUNTIF($P42:AJ42,">0")*$K42)>$K42,$D42,0)) -> 0 | AL42: =IF(Betrachtungszeit_PW*Fahrleistung_PW<AL$18,0,IF(AL$18-(COUNTIF($P42:AK42,">0")*$K42)>$K42,$D42,0)) -> 0 | AM42: =IF(Betrachtungszeit_PW*Fahrleistung_PW<AM$18,0,IF(AM$18-(COUNTIF($P42:AL42,">0")*$K42)>$K42,$D42,0)) -> 0 | AN42: =IF(Betrachtungszeit_PW*Fahrleistung_PW<AN$18,0,IF(AN$18-(COUNTIF($P42:AM42,">0")*$K42)>$K42,$D42,0)) -> 0 | AO42: =IF(Betrachtungszeit_PW*Fahrleistung_PW<AO$18,0,IF(AO$18-(COUNTIF($P42:AN42,">0")*$K42)>$K42,$D42,0)) -> 0 | AP42: =IF(Betrachtungszeit_PW*Fahrleistung_PW<AP$18,0,IF(AP$18-(COUNTIF($P42:AO42,">0")*$K42)>$K42,$D42,0)) -> 0 | AQ42: =IF(Betrachtungszeit_PW*Fahrleistung_PW<AQ$18,0,IF(AQ$18-(COUNTIF($P42:AP42,">0")*$K42)>$K42,$D42,0)) -> 0 | AR42: =IF(Betrachtungszeit_PW*Fahrleistung_PW<AR$18,0,IF(AR$18-(COUNTIF($P42:AQ42,">0")*$K42)>$K42,$D42,0)) -> 0 | AS42: =IF(Betrachtungszeit_PW*Fahrleistung_PW<AS$18,0,IF(AS$18-(COUNTIF($P42:AR42,">0")*$K42)>$K42,$D42,0)) -> 0 | AT42: =IF(Betrachtungszeit_PW*Fahrleistung_PW<AT$18,0,IF(AT$18-(COUNTIF($P42:AS42,">0")*$K42)>$K42,$D42,0)) -> 0 | AU42: 0 | AW42: 0 | AX42: 0 | AY42: 0 | AZ42: 0 | BA42: 0 | BB42: 0 | BC42: 0 | BD42: 0 | BE42: 0 | BF42: 0 | BG42: 0 | BH42: 0 | BI42: 0 | BJ42: 0 | BK42: 0 | BL42: 0 | BM42: 0 | BN42: 0 | BO42: 0 | BP42: 0 | BQ42: 0 | BR42: 0 | BS42: 0 | BT42: 0 | BU42: 0 | BV42: 0 | BW42: 0 | BX42: 0 | BY42: 0 | BZ42: 0 | CA42: 0
B43: Weitere Ersatzteile | E43: 150000 | K43: 150000 | O43: Weitere Ersatzteile: | P43: 0 | Q43: =IF(Betrachtungszeit_PW*Fahrleistung_PW<Q$18,0,IF(Q$18-(COUNTIF($P43:P43,">0")*$K43)>$K43,$D43,0)) -> 0 | R43: =IF(Betrachtungszeit_PW*Fahrleistung_PW<R$18,0,IF(R$18-(COUNTIF($P43:Q43,">0")*$K43)>$K43,$D43,0)) -> 0 | S43: =IF(Betrachtungszeit_PW*Fahrleistung_PW<S$18,0,IF(S$18-(COUNTIF($P43:R43,">0")*$K43)>$K43,$D43,0)) -> 0 | T43: =IF(Betrachtungszeit_PW*Fahrleistung_PW<T$18,0,IF(T$18-(COUNTIF($P43:S43,">0")*$K43)>$K43,$D43,0)) -> 0 | U43: =IF(Betrachtungszeit_PW*Fahrleistung_PW<U$18,0,IF(U$18-(COUNTIF($P43:T43,">0")*$K43)>$K43,$D43,0)) -> 0 | V43: =IF(Betrachtungszeit_PW*Fahrleistung_PW<V$18,0,IF(V$18-(COUNTIF($P43:U43,">0")*$K43)>$K43,$D43,0)) -> 0 | W43: =IF(Betrachtungszeit_PW*Fahrleistung_PW<W$18,0,IF(W$18-(COUNTIF($P43:V43,">0")*$K43)>$K43,$D43,0)) -> 0 | X43: =IF(Betrachtungszeit_PW*Fahrleistung_PW<X$18,0,IF(X$18-(COUNTIF($P43:W43,">0")*$K43)>$K43,$D43,0)) -> 0 | Y43: =IF(Betrachtungszeit_PW*Fahrleistung_PW<Y$18,0,IF(Y$18-(COUNTIF($P43:X43,">0")*$K43)>$K43,$D43,0)) -> 0 | Z43: =IF(Betrachtungszeit_PW*Fahrleistung_PW<Z$18,0,IF(Z$18-(COUNTIF($P43:Y43,">0")*$K43)>$K43,$D43,0)) -> 0 | AA43: =IF(Betrachtungszeit_PW*Fahrleistung_PW<AA$18,0,IF(AA$18-(COUNTIF($P43:Z43,">0")*$K43)>$K43,$D43,0)) -> 0 | AB43: =IF(Betrachtungszeit_PW*Fahrleistung_PW<AB$18,0,IF(AB$18-(COUNTIF($P43:AA43,">0")*$K43)>$K43,$D43,0)) -> 0 | AC43: =IF(Betrachtungszeit_PW*Fahrleistung_PW<AC$18,0,IF(AC$18-(COUNTIF($P43:AB43,">0")*$K43)>$K43,$D43,0)) -> 0 | AD43: =IF(Betrachtungszeit_PW*Fahrleistung_PW<AD$18,0,IF(AD$18-(COUNTIF($P43:AC43,">0")*$K43)>$K43,$D43,0)) -> 0 | AE43: =IF(Betrachtungszeit_PW*Fahrleistung_PW<AE$18,0,IF(AE$18-(COUNTIF($P43:AD43,">0")*$K43)>$K43,$D43,0)) -> 0 | AF43: =IF(Betrachtungszeit_PW*Fahrleistung_PW<AF$18,0,IF(AF$18-(COUNTIF($P43:AE43,">0")*$K43)>$K43,$D43,0)) -> 0 | AG43: =IF(Betrachtungszeit_PW*Fahrleistung_PW<AG$18,0,IF(AG$18-(COUNTIF($P43:AF43,">0")*$K43)>$K43,$D43,0)) -> 0 | AH43: =IF(Betrachtungszeit_PW*Fahrleistung_PW<AH$18,0,IF(AH$18-(COUNTIF($P43:AG43,">0")*$K43)>$K43,$D43,0)) -> 0 | AI43: =IF(Betrachtungszeit_PW*Fahrleistung_PW<AI$18,0,IF(AI$18-(COUNTIF($P43:AH43,">0")*$K43)>$K43,$D43,0)) -> 0 | AJ43: =IF(Betrachtungszeit_PW*Fahrleistung_PW<AJ$18,0,IF(AJ$18-(COUNTIF($P43:AI43,">0")*$K43)>$K43,$D43,0)) -> 0 | AK43: =IF(Betrachtungszeit_PW*Fahrleistung_PW<AK$18,0,IF(AK$18-(COUNTIF($P43:AJ43,">0")*$K43)>$K43,$D43,0)) -> 0 | AL43: =IF(Betrachtungszeit_PW*Fahrleistung_PW<AL$18,0,IF(AL$18-(COUNTIF($P43:AK43,">0")*$K43)>$K43,$D43,0)) -> 0 | AM43: =IF(Betrachtungszeit_PW*Fahrleistung_PW<AM$18,0,IF(AM$18-(COUNTIF($P43:AL43,">0")*$K43)>$K43,$D43,0)) -> 0 | AN43: =IF(Betrachtungszeit_PW*Fahrleistung_PW<AN$18,0,IF(AN$18-(COUNTIF($P43:AM43,">0")*$K43)>$K43,$D43,0)) -> 0 | AO43: =IF(Betrachtungszeit_PW*Fahrleistung_PW<AO$18,0,IF(AO$18-(COUNTIF($P43:AN43,">0")*$K43)>$K43,$D43,0)) -> 0 | AP43: =IF(Betrachtungszeit_PW*Fahrleistung_PW<AP$18,0,IF(AP$18-(COUNTIF($P43:AO43,">0")*$K43)>$K43,$D43,0)) -> 0 | AQ43: =IF(Betrachtungszeit_PW*Fahrleistung_PW<AQ$18,0,IF(AQ$18-(COUNTIF($P43:AP43,">0")*$K43)>$K43,$D43,0)) -> 0 | AR43: =IF(Betrachtungszeit_PW*Fahrleistung_PW<AR$18,0,IF(AR$18-(COUNTIF($P43:AQ43,">0")*$K43)>$K43,$D43,0)) -> 0 | AS43: =IF(Betrachtungszeit_PW*Fahrleistung_PW<AS$18,0,IF(AS$18-(COUNTIF($P43:AR43,">0")*$K43)>$K43,$D43,0)) -> 0 | AT43: =IF(Betrachtungszeit_PW*Fahrleistung_PW<AT$18,0,IF(AT$18-(COUNTIF($P43:AS43,">0")*$K43)>$K43,$D43,0)) -> 0 | AU43: 0 | AW43: 0 | AX43: 0 | AY43: 0 | AZ43: 0 | BA43: 0 | BB43: 0 | BC43: 0 | BD43: 0 | BE43: 0 | BF43: 0 | BG43: 0 | BH43: 0 | BI43: 0 | BJ43: 0 | BK43: 0 | BL43: 0 | BM43: 0 | BN43: 0 | BO43: 0 | BP43: 0 | BQ43: 0 | BR43: 0 | BS43: 0 | BT43: 0 | BU43: 0 | BV43: 0 | BW43: 0 | BX43: 0 | BY43: 0 | BZ43: 0 | CA43: 0
B44: Weitere Ersatzteile | E44: 150000 | K44: 150000 | O44: Weitere Ersatzteile: | P44: 0 | Q44: =IF(Betrachtungszeit_PW*Fahrleistung_PW<Q$18,0,IF(Q$18-(COUNTIF($P44:P44,">0")*$K44)>$K44,$D44,0)) -> 0 | R44: =IF(Betrachtungszeit_PW*Fahrleistung_PW<R$18,0,IF(R$18-(COUNTIF($P44:Q44,">0")*$K44)>$K44,$D44,0)) -> 0 | S44: =IF(Betrachtungszeit_PW*Fahrleistung_PW<S$18,0,IF(S$18-(COUNTIF($P44:R44,">0")*$K44)>$K44,$D44,0)) -> 0 | T44: =IF(Betrachtungszeit_PW*Fahrleistung_PW<T$18,0,IF(T$18-(COUNTIF($P44:S44,">0")*$K44)>$K44,$D44,0)) -> 0 | U44: =IF(Betrachtungszeit_PW*Fahrleistung_PW<U$18,0,IF(U$18-(COUNTIF($P44:T44,">0")*$K44)>$K44,$D44,0)) -> 0 | V44: =IF(Betrachtungszeit_PW*Fahrleistung_PW<V$18,0,IF(V$18-(COUNTIF($P44:U44,">0")*$K44)>$K44,$D44,0)) -> 0 | W44: =IF(Betrachtungszeit_PW*Fahrleistung_PW<W$18,0,IF(W$18-(COUNTIF($P44:V44,">0")*$K44)>$K44,$D44,0)) -> 0 | X44: =IF(Betrachtungszeit_PW*Fahrleistung_PW<X$18,0,IF(X$18-(COUNTIF($P44:W44,">0")*$K44)>$K44,$D44,0)) -> 0 | Y44: =IF(Betrachtungszeit_PW*Fahrleistung_PW<Y$18,0,IF(Y$18-(COUNTIF($P44:X44,">0")*$K44)>$K44,$D44,0)) -> 0 | Z44: =IF(Betrachtungszeit_PW*Fahrleistung_PW<Z$18,0,IF(Z$18-(COUNTIF($P44:Y44,">0")*$K44)>$K44,$D44,0)) -> 0 | AA44: =IF(Betrachtungszeit_PW*Fahrleistung_PW<AA$18,0,IF(AA$18-(COUNTIF($P44:Z44,">0")*$K44)>$K44,$D44,0)) -> 0 | AB44: =IF(Betrachtungszeit_PW*Fahrleistung_PW<AB$18,0,IF(AB$18-(COUNTIF($P44:AA44,">0")*$K44)>$K44,$D44,0)) -> 0 | AC44: =IF(Betrachtungszeit_PW*Fahrleistung_PW<AC$18,0,IF(AC$18-(COUNTIF($P44:AB44,">0")*$K44)>$K44,$D44,0)) -> 0 | AD44: =IF(Betrachtungszeit_PW*Fahrleistung_PW<AD$18,0,IF(AD$18-(COUNTIF($P44:AC44,">0")*$K44)>$K44,$D44,0)) -> 0 | AE44: =IF(Betrachtungszeit_PW*Fahrleistung_PW<AE$18,0,IF(AE$18-(COUNTIF($P44:AD44,">0")*$K44)>$K44,$D44,0)) -> 0 | AF44: =IF(Betrachtungszeit_PW*Fahrleistung_PW<AF$18,0,IF(AF$18-(COUNTIF($P44:AE44,">0")*$K44)>$K44,$D44,0)) -> 0 | AG44: =IF(Betrachtungszeit_PW*Fahrleistung_PW<AG$18,0,IF(AG$18-(COUNTIF($P44:AF44,">0")*$K44)>$K44,$D44,0)) -> 0 | AH44: =IF(Betrachtungszeit_PW*Fahrleistung_PW<AH$18,0,IF(AH$18-(COUNTIF($P44:AG44,">0")*$K44)>$K44,$D44,0)) -> 0 | AI44: =IF(Betrachtungszeit_PW*Fahrleistung_PW<AI$18,0,IF(AI$18-(COUNTIF($P44:AH44,">0")*$K44)>$K44,$D44,0)) -> 0 | AJ44: =IF(Betrachtungszeit_PW*Fahrleistung_PW<AJ$18,0,IF(AJ$18-(COUNTIF($P44:AI44,">0")*$K44)>$K44,$D44,0)) -> 0 | AK44: =IF(Betrachtungszeit_PW*Fahrleistung_PW<AK$18,0,IF(AK$18-(COUNTIF($P44:AJ44,">0")*$K44)>$K44,$D44,0)) -> 0 | AL44: =IF(Betrachtungszeit_PW*Fahrleistung_PW<AL$18,0,IF(AL$18-(COUNTIF($P44:AK44,">0")*$K44)>$K44,$D44,0)) -> 0 | AM44: =IF(Betrachtungszeit_PW*Fahrleistung_PW<AM$18,0,IF(AM$18-(COUNTIF($P44:AL44,">0")*$K44)>$K44,$D44,0)) -> 0 | AN44: =IF(Betrachtungszeit_PW*Fahrleistung_PW<AN$18,0,IF(AN$18-(COUNTIF($P44:AM44,">0")*$K44)>$K44,$D44,0)) -> 0 | AO44: =IF(Betrachtungszeit_PW*Fahrleistung_PW<AO$18,0,IF(AO$18-(COUNTIF($P44:AN44,">0")*$K44)>$K44,$D44,0)) -> 0 | AP44: =IF(Betrachtungszeit_PW*Fahrleistung_PW<AP$18,0,IF(AP$18-(COUNTIF($P44:AO44,">0")*$K44)>$K44,$D44,0)) -> 0 | AQ44: =IF(Betrachtungszeit_PW*Fahrleistung_PW<AQ$18,0,IF(AQ$18-(COUNTIF($P44:AP44,">0")*$K44)>$K44,$D44,0)) -> 0 | AR44: =IF(Betrachtungszeit_PW*Fahrleistung_PW<AR$18,0,IF(AR$18-(COUNTIF($P44:AQ44,">0")*$K44)>$K44,$D44,0)) -> 0 | AS44: =IF(Betrachtungszeit_PW*Fahrleistung_PW<AS$18,0,IF(AS$18-(COUNTIF($P44:AR44,">0")*$K44)>$K44,$D44,0)) -> 0 | AT44: =IF(Betrachtungszeit_PW*Fahrleistung_PW<AT$18,0,IF(AT$18-(COUNTIF($P44:AS44,">0")*$K44)>$K44,$D44,0)) -> 0 | AU44: 0 | AW44: 0 | AX44: 0 | AY44: 0 | AZ44: 0 | BA44: 0 | BB44: 0 | BC44: 0 | BD44: 0 | BE44: 0 | BF44: 0 | BG44: 0 | BH44: 0 | BI44: 0 | BJ44: 0 | BK44: 0 | BL44: 0 | BM44: 0 | BN44: 0 | BO44: 0 | BP44: 0 | BQ44: 0 | BR44: 0 | BS44: 0 | BT44: 0 | BU44: 0 | BV44: 0 | BW44: 0 | BX44: 0 | BY44: 0 | BZ44: 0 | CA44: 0
B45: Weitere Ersatzteile | E45: 150000 | K45: 150000 | O45: Weitere Ersatzteile: | P45: 0 | Q45: =IF(Betrachtungszeit_PW*Fahrleistung_PW<Q$18,0,IF(Q$18-(COUNTIF($P45:P45,">0")*$K45)>$K45,$D45,0)) -> 0 | R45: =IF(Betrachtungszeit_PW*Fahrleistung_PW<R$18,0,IF(R$18-(COUNTIF($P45:Q45,">0")*$K45)>$K45,$D45,0)) -> 0 | S45: =IF(Betrachtungszeit_PW*Fahrleistung_PW<S$18,0,IF(S$18-(COUNTIF($P45:R45,">0")*$K45)>$K45,$D45,0)) -> 0 | T45: =IF(Betrachtungszeit_PW*Fahrleistung_PW<T$18,0,IF(T$18-(COUNTIF($P45:S45,">0")*$K45)>$K45,$D45,0)) -> 0 | U45: =IF(Betrachtungszeit_PW*Fahrleistung_PW<U$18,0,IF(U$18-(COUNTIF($P45:T45,">0")*$K45)>$K45,$D45,0)) -> 0 | V45: =IF(Betrachtungszeit_PW*Fahrleistung_PW<V$18,0,IF(V$18-(COUNTIF($P45:U45,">0")*$K45)>$K45,$D45,0)) -> 0 | W45: =IF(Betrachtungszeit_PW*Fahrleistung_PW<W$18,0,IF(W$18-(COUNTIF($P45:V45,">0")*$K45)>$K45,$D45,0)) -> 0 | X45: =IF(Betrachtungszeit_PW*Fahrleistung_PW<X$18,0,IF(X$18-(COUNTIF($P45:W45,">0")*$K45)>$K45,$D45,0)) -> 0 | Y45: =IF(Betrachtungszeit_PW*Fahrleistung_PW<Y$18,0,IF(Y$18-(COUNTIF($P45:X45,">0")*$K45)>$K45,$D45,0)) -> 0 | Z45: =IF(Betrachtungszeit_PW*Fahrleistung_PW<Z$18,0,IF(Z$18-(COUNTIF($P45:Y45,">0")*$K45)>$K45,$D45,0)) -> 0 | AA45: =IF(Betrachtungszeit_PW*Fahrleistung_PW<AA$18,0,IF(AA$18-(COUNTIF($P45:Z45,">0")*$K45)>$K45,$D45,0)) -> 0 | AB45: =IF(Betrachtungszeit_PW*Fahrleistung_PW<AB$18,0,IF(AB$18-(COUNTIF($P45:AA45,">0")*$K45)>$K45,$D45,0)) -> 0 | AC45: =IF(Betrachtungszeit_PW*Fahrleistung_PW<AC$18,0,IF(AC$18-(COUNTIF($P45:AB45,">0")*$K45)>$K45,$D45,0)) -> 0 | AD45: =IF(Betrachtungszeit_PW*Fahrleistung_PW<AD$18,0,IF(AD$18-(COUNTIF($P45:AC45,">0")*$K45)>$K45,$D45,0)) -> 0 | AE45: =IF(Betrachtungszeit_PW*Fahrleistung_PW<AE$18,0,IF(AE$18-(COUNTIF($P45:AD45,">0")*$K45)>$K45,$D45,0)) -> 0 | AF45: =IF(Betrachtungszeit_PW*Fahrleistung_PW<AF$18,0,IF(AF$18-(COUNTIF($P45:AE45,">0")*$K45)>$K45,$D45,0)) -> 0 | AG45: =IF(Betrachtungszeit_PW*Fahrleistung_PW<AG$18,0,IF(AG$18-(COUNTIF($P45:AF45,">0")*$K45)>$K45,$D45,0)) -> 0 | AH45: =IF(Betrachtungszeit_PW*Fahrleistung_PW<AH$18,0,IF(AH$18-(COUNTIF($P45:AG45,">0")*$K45)>$K45,$D45,0)) -> 0 | AI45: =IF(Betrachtungszeit_PW*Fahrleistung_PW<AI$18,0,IF(AI$18-(COUNTIF($P45:AH45,">0")*$K45)>$K45,$D45,0)) -> 0 | AJ45: =IF(Betrachtungszeit_PW*Fahrleistung_PW<AJ$18,0,IF(AJ$18-(COUNTIF($P45:AI45,">0")*$K45)>$K45,$D45,0)) -> 0 | AK45: =IF(Betrachtungszeit_PW*Fahrleistung_PW<AK$18,0,IF(AK$18-(COUNTIF($P45:AJ45,">0")*$K45)>$K45,$D45,0)) -> 0 | AL45: =IF(Betrachtungszeit_PW*Fahrleistung_PW<AL$18,0,IF(AL$18-(COUNTIF($P45:AK45,">0")*$K45)>$K45,$D45,0)) -> 0 | AM45: =IF(Betrachtungszeit_PW*Fahrleistung_PW<AM$18,0,IF(AM$18-(COUNTIF($P45:AL45,">0")*$K45)>$K45,$D45,0)) -> 0 | AN45: =IF(Betrachtungszeit_PW*Fahrleistung_PW<AN$18,0,IF(AN$18-(COUNTIF($P45:AM45,">0")*$K45)>$K45,$D45,0)) -> 0 | AO45: =IF(Betrachtungszeit_PW*Fahrleistung_PW<AO$18,0,IF(AO$18-(COUNTIF($P45:AN45,">0")*$K45)>$K45,$D45,0)) -> 0 | AP45: =IF(Betrachtungszeit_PW*Fahrleistung_PW<AP$18,0,IF(AP$18-(COUNTIF($P45:AO45,">0")*$K45)>$K45,$D45,0)) -> 0 | AQ45: =IF(Betrachtungszeit_PW*Fahrleistung_PW<AQ$18,0,IF(AQ$18-(COUNTIF($P45:AP45,">0")*$K45)>$K45,$D45,0)) -> 0 | AR45: =IF(Betrachtungszeit_PW*Fahrleistung_PW<AR$18,0,IF(AR$18-(COUNTIF($P45:AQ45,">0")*$K45)>$K45,$D45,0)) -> 0 | AS45: =IF(Betrachtungszeit_PW*Fahrleistung_PW<AS$18,0,IF(AS$18-(COUNTIF($P45:AR45,">0")*$K45)>$K45,$D45,0)) -> 0 | AT45: =IF(Betrachtungszeit_PW*Fahrleistung_PW<AT$18,0,IF(AT$18-(COUNTIF($P45:AS45,">0")*$K45)>$K45,$D45,0)) -> 0 | AU45: 0 | AW45: 0 | AX45: 0 | AY45: 0 | AZ45: 0 | BA45: 0 | BB45: 0 | BC45: 0 | BD45: 0 | BE45: 0 | BF45: 0 | BG45: 0 | BH45: 0 | BI45: 0 | BJ45: 0 | BK45: 0 | BL45: 0 | BM45: 0 | BN45: 0 | BO45: 0 | BP45: 0 | BQ45: 0 | BR45: 0 | BS45: 0 | BT45: 0 | BU45: 0 | BV45: 0 | BW45: 0 | BX45: 0 | BY45: 0 | BZ45: 0 | CA45: 0
B46: Restwert Ersatzteile am Ende der Betrachtungszeit | C46: CHF | D46: =SUM(AU33:AU45) -> 0 | O46: Kosten Ersatzteile abzüglich Restwert | AU46: Nettobarwert
O47: Kosten Ersatzteile | P47: =SUM(P33:P37,P39:P45) -> 0 | Q47: =SUM(Q33:Q37,Q39:Q45) -> 0 | R47: 0 | S47: 0 | T47: 0 | U47: 0 | V47: 0 | W47: 0 | X47: 0 | Y47: 0 | Z47: 0 | AA47: 0 | AB47: 0 | AC47: 0 | AD47: 0 | AE47: 0 | AF47: 0 | AG47: 0 | AH47: 0 | AI47: 0 | AJ47: 0 | AK47: 0 | AL47: 0 | AM47: 0 | AN47: 0 | AO47: 0 | AP47: 0 | AQ47: 0 | AR47: 0 | AS47: 0 | AT47: 0
O48: Restwert Ersatzteile | P48: =IF(Betrachtungszeit_PW=P17,-$D$46,0) -> 0 | Q48: 0 | R48: 0 | S48: 0 | T48: 0 | U48: 0 | V48: 0 | W48: 0 | X48: 0 | Y48: 0 | Z48: 0 | AA48: 0 | AB48: 0 | AC48: 0 | AD48: 0 | AE48: 0 | AF48: 0 | AG48: 0 | AH48: 0 | AI48: 0 | AJ48: 0 | AK48: 0 | AL48: 0 | AM48: 0 | AN48: 0 | AO48: 0 | AP48: 0 | AQ48: 0 | AR48: 0 | AS48: 0 | AT48: 0
B49: Service- und Reparaturkosten | C49: Beschreibung | D49: Kosten (alle Fahrz.) [CHF/a] | O49: Kosten inkl. Preissteigerung | P49: =SUM(P47:P48)*(1+Inflationsindex)^P$17 -> 0 | Q49: 0 | R49: 0 | S49: 0 | T49: 0 | U49: 0 | V49: 0 | W49: 0 | X49: 0 | Y49: 0 | Z49: 0 | AA49: 0 | AB49: 0 | AC49: 0 | AD49: 0 | AE49: 0 | AF49: 0 | AG49: 0 | AH49: 0 | AI49: 0 | AJ49: 0 | AK49: 0 | AL49: 0 | AM49: 0 | AN49: 0 | AO49: 0 | AP49: 0 | AQ49: 0 | AR49: 0 | AS49: 0 | AT49: 0
B50: Servicekosten | O50: Barwert | P50: =P49*(1+Kalkulationszinssatz)^-P$17 -> 0 | Q50: 0 | R50: 0 | S50: 0 | T50: 0 | U50: 0 | V50: 0 | W50: 0 | X50: 0 | Y50: 0 | Z50: 0 | AA50: 0 | AB50: 0 | AC50: 0 | AD50: 0 | AE50: 0 | AF50: 0 | AG50: 0 | AH50: 0 | AI50: 0 | AJ50: 0 | AK50: 0 | AL50: 0 | AM50: 0 | AN50: 0 | AO50: 0 | AP50: 0 | AQ50: 0 | AR50: 0 | AS50: 0 | AT50: 0 | AU50: =SUM(P50:AT50) -> 0
B51: Reperaturkosten
B52: Weitere jährliche Service- und Reparaturkosten
B53: Weitere jährliche Service- und Reparaturkosten
B54: Weitere jährliche Service- und Reparaturkosten
B55: Total | D55: =SUM(D50:D54) -> 0 | O55: Service- und Reparaturkosten | AU55: Nettobarwert
O56: Kosten inkl. Preissteigerung | P56: 0 | Q56: =IF(Q$17<=Betrachtungszeit_PW,D55+D55*Inflationsindex,0) -> 0 | R56: =IF(R$17<=Betrachtungszeit_PW,Q56+Q56*Inflationsindex,0) -> 0 | S56: 0 | T56: 0 | U56: 0 | V56: 0 | W56: 0 | X56: 0 | Y56: 0 | Z56: 0 | AA56: 0 | AB56: 0 | AC56: 0 | AD56: 0 | AE56: 0 | AF56: 0 | AG56: 0 | AH56: 0 | AI56: 0 | AJ56: 0 | AK56: 0 | AL56: 0 | AM56: 0 | AN56: 0 | AO56: 0 | AP56: 0 | AQ56: 0 | AR56: 0 | AS56: 0 | AT56: 0
A57: K | B57: Betriebskosten | O57: Barwert | P57: 0 | Q57: =Q56*(1+Kalkulationszinssatz)^-Q$17 -> 0 | R57: 0 | S57: 0 | T57: 0 | U57: 0 | V57: 0 | W57: 0 | X57: 0 | Y57: 0 | Z57: 0 | AA57: 0 | AB57: 0 | AC57: 0 | AD57: 0 | AE57: 0 | AF57: 0 | AG57: 0 | AH57: 0 | AI57: 0 | AJ57: 0 | AK57: 0 | AL57: 0 | AM57: 0 | AN57: 0 | AO57: 0 | AP57: 0 | AQ57: 0 | AR57: 0 | AS57: 0 | AT57: 0 | AU57: =SUM(P57:AT57) -> 0
B58: Verkehrssteuer
B59: Haftpflicht-Versicherung
B60: Kasko-Versicherung
B61: Weitere Versicherungen
B62: Pannenhilfe, Assistance
B63: Garagierungskosten
B64: Autobahnvignette
B65: Strassenbenützungsgebühren
B66: Mitgliedsbeiträge
B67: Nebenauslagen
B68: Fahrzeugpflege
B69: Weitere jährliche Betriebskosten | O69: Betriebskosten | AU69: Nettobarwert
B70: Weitere jährliche Betriebskosten | O70: Kosten inkl. Preissteigerung | P70: 0 | Q70: =IF(Q$17<=Betrachtungszeit_PW,D72+D72*Inflationsindex,0) -> 0 | R70: =IF(R$17<=Betrachtungszeit_PW,Q70+Q70*Inflationsindex,0) -> 0 | S70: 0 | T70: 0 | U70: 0 | V70: 0 | W70: 0 | X70: 0 | Y70: 0 | Z70: 0 | AA70: 0 | AB70: 0 | AC70: 0 | AD70: 0 | AE70: 0 | AF70: 0 | AG70: 0 | AH70: 0 | AI70: 0 | AJ70: 0 | AK70: 0 | AL70: 0 | AM70: 0 | AN70: 0 | AO70: 0 | AP70: 0 | AQ70: 0 | AR70: 0 | AS70: 0 | AT70: 0
B71: Weitere jährliche Betriebskosten | O71: Barwert | P71: 0 | Q71: =Q70*(1+Kalkulationszinssatz)^-Q$17 -> 0 | R71: 0 | S71: 0 | T71: 0 | U71: 0 | V71: 0 | W71: 0 | X71: 0 | Y71: 0 | Z71: 0 | AA71: 0 | AB71: 0 | AC71: 0 | AD71: 0 | AE71: 0 | AF71: 0 | AG71: 0 | AH71: 0 | AI71: 0 | AJ71: 0 | AK71: 0 | AL71: 0 | AM71: 0 | AN71: 0 | AO71: 0 | AP71: 0 | AQ71: 0 | AR71: 0 | AS71: 0 | AT71: 0 | AU71: =SUM(P71:AT71) -> 0
B72: Total | D72: =SUM(D58:D71) -> 0
B74: Energie- und Ladekosten | C74: ="Treibstoff: "&$C$8 -> Treibstoff: BITTE WÄHLEN | D74: Total | O74: Energie- und Ladekosten | AU74: Nettobarwert
A75: K | B75: Leistungskosten (eigene Ladestation) | C75: =IF(C13=13,C11*12,0)*VLOOKUP(C13,Input_Generell!$W$9:$AB$22,2,0) -> 0 | D75: =SUM(C75:C75) -> 0 | E75: CHF/a | O75: Leistungskosten (eigene Ladestation) inkl. Energiepreissteigerung | P75: 0 | Q75: =IF(Q$17<=Betrachtungszeit_PW,$D$75*(1+Energiepreissteigerung),0) -> 0 | R75: =IF(R$17<=Betrachtungszeit_PW,Q75*(1+Energiepreissteigerung),0) -> 0 | S75: 0 | T75: 0 | U75: 0 | V75: 0 | W75: 0 | X75: 0 | Y75: 0 | Z75: 0 | AA75: 0 | AB75: 0 | AC75: 0 | AD75: 0 | AE75: 0 | AF75: 0 | AG75: 0 | AH75: 0 | AI75: 0 | AJ75: 0 | AK75: 0 | AL75: 0 | AM75: 0 | AN75: 0 | AO75: 0 | AP75: 0 | AQ75: 0 | AR75: 0 | AS75: 0 | AT75: 0
A76: K | B76: Energiekosten (eigene Ladestation) | C76: =IF(C13=13,Anteil_Intern*C10*Stückzahl_PW*1000*(Anteil_HT*StrompreisHT/100+Anteil_NT*StrompreisNT/100),0) -> 0 | D76: =SUM(C76:C76) -> 0 | E76: CHF/a | O76: Energiekosten (eigene Ladestation) inkl. Energiepreissteigerung | P76: 0 | Q76: =IF(Q$17<=Betrachtungszeit_PW,$D$76*(1+Energiepreissteigerung),0) -> 0 | R76: =IF(R$17<=Betrachtungszeit_PW,Q76*(1+Energiepreissteigerung),0) -> 0 | S76: 0 | T76: 0 | U76: 0 | V76: 0 | W76: 0 | X76: 0 | Y76: 0 | Z76: 0 | AA76: 0 | AB76: 0 | AC76: 0 | AD76: 0 | AE76: 0 | AF76: 0 | AG76: 0 | AH76: 0 | AI76: 0 | AJ76: 0 | AK76: 0 | AL76: 0 | AM76: 0 | AN76: 0 | AO76: 0 | AP76: 0 | AQ76: 0 | AR76: 0 | AS76: 0 | AT76: 0
B77: Energiekosten (externes Tanken/Laden) | C77: =IF(C13=13,Anteil_Extern*Verbrauchsbasiert_Preis/100*C10*Stückzahl_PW*1000,VLOOKUP(C13,Input_Generell!$W$9:$AB$22,3,0)/100*C10*Stückzahl_PW*1000) -> 0 | D77: =SUM(C77:C77) -> 0 | E77: CHF/a | O77: Energiekosten (externes Tanken/Laden) inkl. Energiepreissteigerung | P77: 0 | Q77: =IF(Q$17<=Betrachtungszeit_PW,$D$77*(1+Energiepreissteigerung),0) -> 0 | R77: =IF(R$17<=Betrachtungszeit_PW,Q77*(1+Energiepreissteigerung),0) -> 0 | S77: 0 | T77: 0 | U77: 0 | V77: 0 | W77: 0 | X77: 0 | Y77: 0 | Z77: 0 | AA77: 0 | AB77: 0 | AC77: 0 | AD77: 0 | AE77: 0 | AF77: 0 | AG77: 0 | AH77: 0 | AI77: 0 | AJ77: 0 | AK77: 0 | AL77: 0 | AM77: 0 | AN77: 0 | AO77: 0 | AP77: 0 | AQ77: 0 | AR77: 0 | AS77: 0 | AT77: 0
A78: K | B78: Strompreisunabhängige Ladekosten (externes Laden) | C78: =IF(C13=13,Input_Generell!D22,0) -> 0 | D78: =SUM(C78:C78) -> 0 | E78: CHF/a | O78: Strompreisunabh. Ladekosten (externes Laden) inkl. Preissteigerung | P78: 0 | Q78: =IF(Q$17<=Betrachtungszeit_PW,$D$78*(1+Inflationsindex),0) -> 0 | R78: =IF(R$17<=Betrachtungszeit_PW,Q78*(1+Inflationsindex),0) -> 0 | S78: 0 | T78: 0 | U78: 0 | V78: 0 | W78: 0 | X78: 0 | Y78: 0 | Z78: 0 | AA78: 0 | AB78: 0 | AC78: 0 | AD78: 0 | AE78: 0 | AF78: 0 | AG78: 0 | AH78: 0 | AI78: 0 | AJ78: 0 | AK78: 0 | AL78: 0 | AM78: 0 | AN78: 0 | AO78: 0 | AP78: 0 | AQ78: 0 | AR78: 0 | AS78: 0 | AT78: 0
B79: Total | C79: =SUM(C75:C78) -> 0 | D79: =SUM(D75:D78) -> 0 | E79: CHF/a | O79: Barwert | P79: 0 | Q79: =SUM(Q75:Q78)*(1+Kalkulationszinssatz)^-Q$17 -> 0 | R79: 0 | S79: 0 | T79: 0 | U79: 0 | V79: 0 | W79: 0 | X79: 0 | Y79: 0 | Z79: 0 | AA79: 0 | AB79: 0 | AC79: 0 | AD79: 0 | AE79: 0 | AF79: 0 | AG79: 0 | AH79: 0 | AI79: 0 | AJ79: 0 | AK79: 0 | AL79: 0 | AM79: 0 | AN79: 0 | AO79: 0 | AP79: 0 | AQ79: 0 | AR79: 0 | AS79: 0 | AT79: 0 | AU79: =SUM(P79:AT79) -> 0
B81: Betrieb: Externe Kosten | C81: ="Treibstoff: "&$C$8 -> Treibstoff: BITTE WÄHLEN | D81: Total
B82: Treibhausgasemissionen (THG) | C82: =C10*Stückzahl_PW*(1/1000)*IF(C13=13,Anteil_Intern*EF_Strom+Anteil_Extern*EF_Verbrauchsbasiert,VLOOKUP(C13,Input_Generell!$W$9:$AB$22,5,0)) -> 0 | D82: =SUM(C82:C82) -> 0 | E82: tCO2eq/a | O82: Betrieb: Externe Kosten Treibhausgasemissionen | AU82: Nettobarwert
B83: Umweltbelastungspunkte UBP'13 | C83: =C10*Stückzahl_PW*1000*IF(C13=13,Anteil_Intern*UBP_Strom+Anteil_Extern*UBP_Strom_Extern,VLOOKUP(C13,Input_Generell!$W$9:$AB$22,6,0)) -> 0 | D83: =SUM(C83:C83) -> 0 | E83: UBP/a | O83: Kosten inkl. Preissteigerung | P83: 0 | Q83: =IF(Q$17<=Betrachtungszeit_PW,D84+D84*Inflationsindex,0) -> 0 | R83: =IF(R$17<=Betrachtungszeit_PW,Q83+Q83*Inflationsindex,0) -> 0 | S83: 0 | T83: 0 | U83: 0 | V83: 0 | W83: 0 | X83: 0 | Y83: 0 | Z83: 0 | AA83: 0 | AB83: 0 | AC83: 0 | AD83: 0 | AE83: 0 | AF83: 0 | AG83: 0 | AH83: 0 | AI83: 0 | AJ83: 0 | AK83: 0 | AL83: 0 | AM83: 0 | AN83: 0 | AO83: 0 | AP83: 0 | AQ83: 0 | AR83: 0 | AS83: 0 | AT83: 0
B84: =VLOOKUP(Input_Generell!$B$28,Input_Generell!$B$52:$D$55,3,0) -> Kosten für THG: nicht gewählt | C84: =C82*Kosten_THG -> 0 | D84: =SUM(C84:C84) -> 0 | E84: CHF/a | O84: Barwert | P84: 0 | Q84: =Q83*(1+Kalkulationszinssatz)^-Q$17 -> 0 | R84: 0 | S84: 0 | T84: 0 | U84: 0 | V84: 0 | W84: 0 | X84: 0 | Y84: 0 | Z84: 0 | AA84: 0 | AB84: 0 | AC84: 0 | AD84: 0 | AE84: 0 | AF84: 0 | AG84: 0 | AH84: 0 | AI84: 0 | AJ84: 0 | AK84: 0 | AL84: 0 | AM84: 0 | AN84: 0 | AO84: 0 | AP84: 0 | AQ84: 0 | AR84: 0 | AS84: 0 | AT84: 0 | AU84: =SUM(P84:AT84) -> 0
B86: Entsorgungskosten | O86: Entsorgung am Ende der Betrachtungszeit der Lebenszyklusrechnung | AU86: Nettobarwert
A87: K | B87: Entsorgungskosten | E87: CHF | O87: Kosten inkl. Preissteigerung | P87: 0 | Q87: =IF(Q$17=Betrachtungszeit_PW,$D$87*(1+Inflationsindex)^Q$17,0) -> 0 | R87: 0 | S87: 0 | T87: 0 | U87: 0 | V87: 0 | W87: 0 | X87: 0 | Y87: 0 | Z87: 0 | AA87: 0 | AB87: 0 | AC87: 0 | AD87: 0 | AE87: 0 | AF87: 0 | AG87: 0 | AH87: 0 | AI87: 0 | AJ87: 0 | AK87: 0 | AL87: 0 | AM87: 0 | AN87: 0 | AO87: 0 | AP87: 0 | AQ87: 0 | AR87: 0 | AS87: 0 | AT87: 0
O88: Barwert | P88: 0 | Q88: =Q87*(1+Kalkulationszinssatz)^-Q$17 -> 0 | R88: 0 | S88: 0 | T88: 0 | U88: 0 | V88: 0 | W88: 0 | X88: 0 | Y88: 0 | Z88: 0 | AA88: 0 | AB88: 0 | AC88: 0 | AD88: 0 | AE88: 0 | AF88: 0 | AG88: 0 | AH88: 0 | AI88: 0 | AJ88: 0 | AK88: 0 | AL88: 0 | AM88: 0 | AN88: 0 | AO88: 0 | AP88: 0 | AQ88: 0 | AR88: 0 | AS88: 0 | AT88: 0 | AU88: =SUM(P88:AT88) -> 0
B90: Umweltrelevante Angaben Erstellung und Entsorgung der Fahrzeuge
B91: Die Treibhausgas-Emissionen und Umweltbelastungspunkte, die aus der Erstellung und Entsorgung der Fahrzeuge entstehen, können nachfolgend berechnet werden. Mit Hilfe des mobitools (2017) kann die Grössenordnung der Treibhausgas-Emissionen und Umweltbelastungspunkte aus der Herstellung und Entsorgung ermittelt werden. Mobitool gibt diese Emissionen pro Kilometer aus (ausgehend von einer typischen Distanz über die Lebensdauer). Insbesondere wenn die Fahrzeuge über die Lebensdauer besonders wenig oder besonders viele Kilometer zurücklegen und/oder Fahrzeuge mit erneuerbaren Treibstoffen verglichen werden, empfiehlt sich jedoch eine genauere Abklärung. Falls aus der Erstellung und Entsorgung keine Daten einbezogen werden sollen, können die Eingabewerte leer gelassen werden. Die Vorgehensweise für die Ermittlung der Eingabewerte mit Hilfe des mobitools wird nachfolgend beschrieben. Im mobitool, in der Zeile des betroffenen Fahrzeugmodells: - Auslastung auf 1 setzen (somit werden die Werte pro Kilometer anstelle pro Personen-Kilometer ausgegeben) - Das 'Fahrzeuggewicht' sowie bei Elektro-Fahrzeugen das 'Batteriegewicht' und die 'Anzahl Batteriewechsel über Lebensdauer' anpassen - Im grauen Bereich oben links den gewünschten Indikator wählen ('Treibhausgaspotenzial' resp. 'UBP13') - In der Spalte 'Fahrzeugherstellung / -entsorgung' können die Werte für CO2eq resp. UBP abgelesen werden
B93: Erstellung und Entsorgung Fahrzeug: Externe Kosten | C93: Fahrzeugherstellung / -entsorgung | E93: Total
B94: Treibhausgasemissionen (THG) | D94: g CO2eq / km / Fahrz. | E94: =Stückzahl_PW*Betrachtungszeit_PW*Fahrleistung_PW*C94/1000000 -> 0 | F94: tCO2eq
B95: Umweltbelastungspunkte UBP'13 | D95: UBP / km / Fahrz. | E95: =Stückzahl_PW*Betrachtungszeit_PW*Fahrleistung_PW*C95 -> 0 | F95: UBP | O95: Erstellung / Entsorgung: Externe Kosten Treibhausgasemissionen | AU95: Nettobarwert
A96: K | B96: =VLOOKUP(Input_Generell!$B$28,Input_Generell!$B$52:$D$55,3,0) -> Kosten für THG: nicht gewählt | E96: =E94*Kosten_THG -> 0 | F96: CHF | O96: Barwert | P96: =E96 -> 0 | AU96: =SUM(P96:AT96) -> 0
B99: Lebenszykluskosten
B100: Kosten des Fahrzeugs über den gesamten Lebenszyklus gesehen (in Form des Nettobarwertes = Kapitalwert).
O101: Barwerte | AU101: Nettobarwert
A102: K | B102: Anschaffungskosten (abzüglich Förderbeitrag, Restwert) | E102: =AU102 -> 0 | F102: CHF | O102: =B102 -> Anschaffungskosten (abzüglich Förderbeitrag, Restwert) | P102: =P29 -> 0 | Q102: 0 | R102: 0 | S102: 0 | T102: 0 | U102: 0 | V102: 0 | W102: 0 | X102: 0 | Y102: 0 | Z102: 0 | AA102: 0 | AB102: 0 | AC102: 0 | AD102: 0 | AE102: 0 | AF102: 0 | AG102: 0 | AH102: 0 | AI102: 0 | AJ102: 0 | AK102: 0 | AL102: 0 | AM102: 0 | AN102: 0 | AO102: 0 | AP102: 0 | AQ102: 0 | AR102: 0 | AS102: 0 | AT102: 0 | AU102: 0
B103: Kosten Ersatzteile (abzüglich Restwert) | E103: =AU103 -> 0 | F103: CHF | O103: Kosten Ersatzteile (abzüglich Restwert) | P103: =P50 -> 0 | Q103: 0 | R103: 0 | S103: 0 | T103: 0 | U103: 0 | V103: 0 | W103: 0 | X103: 0 | Y103: 0 | Z103: 0 | AA103: 0 | AB103: 0 | AC103: 0 | AD103: 0 | AE103: 0 | AF103: 0 | AG103: 0 | AH103: 0 | AI103: 0 | AJ103: 0 | AK103: 0 | AL103: 0 | AM103: 0 | AN103: 0 | AO103: 0 | AP103: 0 | AQ103: 0 | AR103: 0 | AS103: 0 | AT103: 0 | AU103: 0
B104: Service- und Reparaturkosten | E104: =AU104 -> 0 | F104: CHF | O104: Service- und Reparaturkosten | P104: =P57 -> 0 | Q104: 0 | R104: 0 | S104: 0 | T104: 0 | U104: 0 | V104: 0 | W104: 0 | X104: 0 | Y104: 0 | Z104: 0 | AA104: 0 | AB104: 0 | AC104: 0 | AD104: 0 | AE104: 0 | AF104: 0 | AG104: 0 | AH104: 0 | AI104: 0 | AJ104: 0 | AK104: 0 | AL104: 0 | AM104: 0 | AN104: 0 | AO104: 0 | AP104: 0 | AQ104: 0 | AR104: 0 | AS104: 0 | AT104: 0 | AU104: 0
B105: Betriebskosten | E105: =AU105 -> 0 | F105: CHF | O105: Betriebskosten | P105: =P71 -> 0 | Q105: 0 | R105: 0 | S105: 0 | T105: 0 | U105: 0 | V105: 0 | W105: 0 | X105: 0 | Y105: 0 | Z105: 0 | AA105: 0 | AB105: 0 | AC105: 0 | AD105: 0 | AE105: 0 | AF105: 0 | AG105: 0 | AH105: 0 | AI105: 0 | AJ105: 0 | AK105: 0 | AL105: 0 | AM105: 0 | AN105: 0 | AO105: 0 | AP105: 0 | AQ105: 0 | AR105: 0 | AS105: 0 | AT105: 0 | AU105: 0
B106: Energiekosten | E106: 0 | F106: CHF | O106: Energiekosten | P106: =P79 -> 0 | Q106: 0 | R106: 0 | S106: 0 | T106: 0 | U106: 0 | V106: 0 | W106: 0 | X106: 0 | Y106: 0 | Z106: 0 | AA106: 0 | AB106: 0 | AC106: 0 | AD106: 0 | AE106: 0 | AF106: 0 | AG106: 0 | AH106: 0 | AI106: 0 | AJ106: 0 | AK106: 0 | AL106: 0 | AM106: 0 | AN106: 0 | AO106: 0 | AP106: 0 | AQ106: 0 | AR106: 0 | AS106: 0 | AT106: 0 | AU106: 0
A107: K | B107: =VLOOKUP(Input_Generell!$B$28,Input_Generell!$B$52:$D$55,3,0)&" (Betrieb und Erstellung/Entsorgung)" -> Kosten für THG: nicht gewählt (Betrieb und Erstellung/Entsorgung) | E107: 0 | F107: CHF | O107: Kosten für THG: nicht gewählt (Betrieb und Erstellung/Entsorgung) | P107: =P84+P96 -> 0 | Q107: 0 | R107: 0 | S107: 0 | T107: 0 | U107: 0 | V107: 0 | W107: 0 | X107: 0 | Y107: 0 | Z107: 0 | AA107: 0 | AB107: 0 | AC107: 0 | AD107: 0 | AE107: 0 | AF107: 0 | AG107: 0 | AH107: 0 | AI107: 0 | AJ107: 0 | AK107: 0 | AL107: 0 | AM107: 0 | AN107: 0 | AO107: 0 | AP107: 0 | AQ107: 0 | AR107: 0 | AS107: 0 | AT107: 0 | AU107: 0
B108: Entsorgungskosten | E108: 0 | F108: CHF | O108: Entsorgungskosten | P108: =P88 -> 0 | Q108: 0 | R108: 0 | S108: 0 | T108: 0 | U108: 0 | V108: 0 | W108: 0 | X108: 0 | Y108: 0 | Z108: 0 | AA108: 0 | AB108: 0 | AC108: 0 | AD108: 0 | AE108: 0 | AF108: 0 | AG108: 0 | AH108: 0 | AI108: 0 | AJ108: 0 | AK108: 0 | AL108: 0 | AM108: 0 | AN108: 0 | AO108: 0 | AP108: 0 | AQ108: 0 | AR108: 0 | AS108: 0 | AT108: 0 | AU108: 0
B109: Total | E109: 0 | F109: CHF | O109: Total | P109: =SUM(P102:P108) -> 0 | Q109: 0 | R109: 0 | S109: 0 | T109: 0 | U109: 0 | V109: 0 | W109: 0 | X109: 0 | Y109: 0 | Z109: 0 | AA109: 0 | AB109: 0 | AC109: 0 | AD109: 0 | AE109: 0 | AF109: 0 | AG109: 0 | AH109: 0 | AI109: 0 | AJ109: 0 | AK109: 0 | AL109: 0 | AM109: 0 | AN109: 0 | AO109: 0 | AP109: 0 | AQ109: 0 | AR109: 0 | AS109: 0 | AT109: 0 | AU109: 0
O110: Total aufsummiert | P110: =P109 -> 0 | Q110: =P110+Q109 -> 0 | R110: =Q110+R109 -> 0 | S110: =R110+S109 -> 0 | T110: 0 | U110: 0 | V110: 0 | W110: 0 | X110: 0 | Y110: 0 | Z110: 0 | AA110: 0 | AB110: 0 | AC110: 0 | AD110: 0 | AE110: 0 | AF110: 0 | AG110: 0 | AH110: 0 | AI110: 0 | AJ110: 0 | AK110: 0 | AL110: 0 | AM110: 0 | AN110: 0 | AO110: 0 | AP110: 0 | AQ110: 0 | AR110: 0 | AS110: 0 | AT110: =AS110+AT109 -> 0
B111: Treibhausgasemissionen Erstellung/Entsorgung Fahrzeuge (Scope 3) | E111: =E94 -> 0 | F111: tCO2eq | O111: Diagramm Anzeige Betrachtungszeit | P111: =IF(P17=Betrachtungszeit_PW,MAX(Resultate_PW!$D$14:$H$14),0) -> 0 | Q111: =IF(Q17=Betrachtungszeit_PW,MAX(Resultate_PW!$D$14:$H$14),0) -> 0 | R111: =IF(R17=Betrachtungszeit_PW,MAX(Resultate_PW!$D$14:$H$14),0) -> 0 | S111: =IF(S17=Betrachtungszeit_PW,MAX(Resultate_PW!$D$14:$H$14),0) -> 0 | T111: =IF(T17=Betrachtungszeit_PW,MAX(Resultate_PW!$D$14:$H$14),0) -> 0 | U111: =IF(U17=Betrachtungszeit_PW,MAX(Resultate_PW!$D$14:$H$14),0) -> 0 | V111: =IF(V17=Betrachtungszeit_PW,MAX(Resultate_PW!$D$14:$H$14),0) -> 0 | W111: =IF(W17=Betrachtungszeit_PW,MAX(Resultate_PW!$D$14:$H$14),0) -> 0 | X111: =IF(X17=Betrachtungszeit_PW,MAX(Resultate_PW!$D$14:$H$14),0) -> 0 | Y111: =IF(Y17=Betrachtungszeit_PW,MAX(Resultate_PW!$D$14:$H$14),0) -> 0 | Z111: =IF(Z17=Betrachtungszeit_PW,MAX(Resultate_PW!$D$14:$H$14),0) -> 0 | AA111: =IF(AA17=Betrachtungszeit_PW,MAX(Resultate_PW!$D$14:$H$14),0) -> 0 | AB111: =IF(AB17=Betrachtungszeit_PW,MAX(Resultate_PW!$D$14:$H$14),0) -> 0 | AC111: =IF(AC17=Betrachtungszeit_PW,MAX(Resultate_PW!$D$14:$H$14),0) -> 0 | AD111: =IF(AD17=Betrachtungszeit_PW,MAX(Resultate_PW!$D$14:$H$14),0) -> 0 | AE111: =IF(AE17=Betrachtungszeit_PW,MAX(Resultate_PW!$D$14:$H$14),0) -> 0 | AF111: =IF(AF17=Betrachtungszeit_PW,MAX(Resultate_PW!$D$14:$H$14),0) -> 0 | AG111: =IF(AG17=Betrachtungszeit_PW,MAX(Resultate_PW!$D$14:$H$14),0) -> 0 | AH111: =IF(AH17=Betrachtungszeit_PW,MAX(Resultate_PW!$D$14:$H$14),0) -> 0 | AI111: =IF(AI17=Betrachtungszeit_PW,MAX(Resultate_PW!$D$14:$H$14),0) -> 0 | AJ111: =IF(AJ17=Betrachtungszeit_PW,MAX(Resultate_PW!$D$14:$H$14),0) -> 0 | AK111: =IF(AK17=Betrachtungszeit_PW,MAX(Resultate_PW!$D$14:$H$14),0) -> 0 | AL111: =IF(AL17=Betrachtungszeit_PW,MAX(Resultate_PW!$D$14:$H$14),0) -> 0 | AM111: =IF(AM17=Betrachtungszeit_PW,MAX(Resultate_PW!$D$14:$H$14),0) -> 0 | AN111: =IF(AN17=Betrachtungszeit_PW,MAX(Resultate_PW!$D$14:$H$14),0) -> 0 | AO111: =IF(AO17=Betrachtungszeit_PW,MAX(Resultate_PW!$D$14:$H$14),0) -> 0 | AP111: =IF(AP17=Betrachtungszeit_PW,MAX(Resultate_PW!$D$14:$H$14),0) -> 0 | AQ111: =IF(AQ17=Betrachtungszeit_PW,MAX(Resultate_PW!$D$14:$H$14),0) -> 0 | AR111: =IF(AR17=Betrachtungszeit_PW,MAX(Resultate_PW!$D$14:$H$14),0) -> 0 | AS111: =IF(AS17=Betrachtungszeit_PW,MAX(Resultate_PW!$D$14:$H$14),0) -> 0 | AT111: =IF(AT17=Betrachtungszeit_PW,MAX(Resultate_PW!$D$14:$H$14),0) -> 0
B112: Treibhausgasemissionen Betrieb (Scope 1 und 2) | E112: =Betrachtungszeit_PW*D82 -> 0 | F112: tCO2eq
B113: Umweltbelastungspunkte UBP'13 Erstellung/Entsorgung Fahrzeuge | E113: =E95 -> 0 | F113: UBP
B114: Umweltbelastungspunkte UBP'13 Betrieb | E114: =Betrachtungszeit_PW*D83 -> 0 | F114: UBP
A115: K | B115: Gestehungskosten pro km | E115: =IF(C9=0,0,E109*100/(Stückzahl_PW*Fahrleistung_PW*Betrachtungszeit_PW)) -> 0 | F115: Rp./km
A116: K | B116: Jahreskosten pro km | E116: =IF(C9=0,0,((1+Kalkulationszinssatz)^Betrachtungszeit_PW*Kalkulationszinssatz)/((1+Kalkulationszinssatz)^Betrachtungszeit_PW-1)*E109*100/(Stückzahl_PW*Fahrleistung_PW)) -> 0 | F116: Rp./km
B120: Auswahlfelder und Defaultwerte
B122: Auswahlfeld | C122: Antrieb Nummer | D122: Energieträger-Nummer | E122: Energieträger
B123: BITTE WÄHLEN | C123: 0 | D123: 0 | E123: Energieträger
B124: Elektrizität | C124: 1 | D124: 13 | E124: Strom
B125: CNG | C125: 3 | D125: 1 | E125: ="CNG ("&Input_Generell!X10*100&"% Biogas)" -> CNG (20% Biogas)
B126: Benzin | C126: 5 | D126: 3 | E126: Benzin
B127: Diesel | C127: 6 | D127: 4 | E127: Diesel
B128: Weiterer Antrieb | C128: 14 | D128: 11 | E128: =Input_Generell!B15 -> Weitere
B131: Auswahlfeld
B132: BITTE WÄHLEN
B133: ja
B134: nein

Sheet PW_V4
B1: DATENEINGABE PERSONENWAGEN
B3: Angaben des Anbieters (mit Angebot abzugeben)
B5: Variante | C5: V4
A6: K | B6: Variantenbezeichnung (kurz) | G6: K | H6: Rechenhilfe Treibstoffverbrauch
B7: Variantenbeschreibung | H7: Energie-träger | I7: Menge | J7: kWh | L7: Umrechnungsfaktor in kWh(Heizwert)
B8: Personenwagen, Treibstoffart | C8: BITTE WÄHLEN | H8: CNG [kg] | J8: =I8*M8 -> 0 | L8: kWh/kg | M8: 13.81
A9: K | B9: Treibstoffverbrauch pro 100 km und Fahrzeug | D9: kWh/100km/Fahrzeug | H9: Benzin [Liter] | J9: =I9*M9 -> 0 | L9: kWh/Liter | M9: 8.72
B10: ="Treibstoffverbrauch ("&VLOOKUP(C12,C123:G128,3,0)&")" -> Treibstoffverbrauch (Energieträger) | C10: =C9/100*Fahrleistung_PW/1000 -> 0 | D10: MWh/a/Fahrzeug | H10: Diesel [Liter] | J10: =I10*M10 -> 0 | L10: kWh/Liter | M10: 9.91
A11: K | B11: Max. Leistungsbedarf (für Laden von Elektrofahrz.) | D11: kW
B12: Antrieb Nummer | C12: =IF(ISBLANK(C8),0,VLOOKUP(C8,$B$123:$G$128,2,0)) -> 0
B13: Energieträger Nummer | C13: =IF(ISBLANK(C8),0,VLOOKUP(C8,$B$123:$F$128,3,0)) -> 0
A15: K | B15: Förderbeiträge total | D15: CHF | K15: Rechenwerte | O15: Berechnungen | AW15: Berechnungen
P16: (Re)Investition in CHF im Jahr… | AW16: Restwert nach Abschreibung am Ende des Jahres… (Berücksichtigt Reinvestition nach Ablauf der Lebensdauer)
K17: Lebens- dauer [a] | L17: Zwischen-resultate | M17: Jährliche Ab-schreibung [CHF/a] | O17: Jahr | P17: 0 | Q17: 1 | R17: 2 | S17: 3 | T17: 4 | U17: 5 | V17: 6 | W17: 7 | X17: 8 | Y17: 9 | Z17: 10 | AA17: 11 | AB17: 12 | AC17: 13 | AD17: 14 | AE17: 15 | AF17: 16 | AG17: 17 | AH17: 18 | AI17: 19 | AJ17: 20 | AK17: 21 | AL17: 22 | AM17: 23 | AN17: 24 | AO17: 25 | AP17: 26 | AQ17: 27 | AR17: 28 | AS17: 29 | AT17: 30 | AW17: 0 | AX17: 1 | AY17: 2 | AZ17: 3 | BA17: 4 | BB17: 5 | BC17: 6 | BD17: 7 | BE17: 8 | BF17: 9 | BG17: 10 | BH17: 11 | BI17: 12 | BJ17: 13 | BK17: 14 | BL17: 15 | BM17: 16 | BN17: 17 | BO17: 18 | BP17: 19 | BQ17: 20 | BR17: 21 | BS17: 22 | BT17: 23 | BU17: 24 | BV17: 25 | BW17: 26 | BX17: 27 | BY17: 28 | BZ17: 29 | CA17: 30
A18: K | B18: Investitionskosten | C18: Beschreibung | D18: Investition (alle Fahrz.) [CHF] | E18: Lebensdauer [a] | F18: Default überschreiben | O18: Kilometer | P18: 0 | Q18: =Q17*Fahrleistung_PW -> 0 | R18: 0 | S18: 0 | T18: 0 | U18: 0 | V18: 0 | W18: 0 | X18: 0 | Y18: 0 | Z18: 0 | AA18: 0 | AB18: 0 | AC18: 0 | AD18: 0 | AE18: 0 | AF18: 0 | AG18: 0 | AH18: 0 | AI18: 0 | AJ18: 0 | AK18: 0 | AL18: 0 | AM18: 0 | AN18: 0 | AO18: 0 | AP18: 0 | AQ18: 0 | AR18: 0 | AS18: 0 | AT18: 0 | AU18: Restwert am Ende der Betrachtungszeit
A19: K | B19: Fahrzeuge | E19: 10 | G19: =IF(K19<Betrachtungszeit_PW,"Achtung: es erfolgt eine Reinvestition","") ->  | K19: =IF(ISNUMBER(F19),F19,IF(ISNUMBER(E19),E19,0)) -> 10 | O19: =B19 -> Fahrzeuge | P19: =D19 -> 0 | Q19: =IF(Betrachtungszeit_PW<Q$17,0,IF(AND(P$17<>0,P$17/($K19)=INT(P$17/($K19))),$D19,0)) -> 0 | R19: 0 | S19: 0 | T19: 0 | U19: 0 | V19: 0 | W19: 0 | X19: 0 | Y19: 0 | Z19: 0 | AA19: 0 | AB19: 0 | AC19: 0 | AD19: 0 | AE19: 0 | AF19: 0 | AG19: 0 | AH19: 0 | AI19: 0 | AJ19: 0 | AK19: 0 | AL19: 0 | AM19: 0 | AN19: 0 | AO19: 0 | AP19: 0 | AQ19: 0 | AR19: 0 | AS19: 0 | AT19: 0 | AU19: =SUMIF($AW$17:$CA$17,Betrachtungszeit_PW,AW19:CA19) -> 0 | AW19: =$D19 -> 0 | AX19: =MAX(AW19-$M26+Q19,0) -> 0 | AY19: 0 | AZ19: 0 | BA19: 0 | BB19: 0 | BC19: 0 | BD19: 0 | BE19: 0 | BF19: 0 | BG19: 0 | BH19: 0 | BI19: 0 | BJ19: 0 | BK19: 0 | BL19: 0 | BM19: 0 | BN19: 0 | BO19: 0 | BP19: 0 | BQ19: 0 | BR19: 0 | BS19: 0 | BT19: 0 | BU19: 0 | BV19: 0 | BW19: 0 | BX19: 0 | BY19: 0 | BZ19: 0 | CA19: 0
B20: Zubehör / Infrastruktur | E20: 10 | K20: 10 | M20: =1/K20*D20 -> 0 | O20: =B20&": "&C20 -> Zubehör / Infrastruktur: | P20: 0 | Q20: 0 | R20: 0 | S20: 0 | T20: 0 | U20: 0 | V20: 0 | W20: 0 | X20: 0 | Y20: 0 | Z20: 0 | AA20: 0 | AB20: 0 | AC20: 0 | AD20: 0 | AE20: 0 | AF20: 0 | AG20: 0 | AH20: 0 | AI20: 0 | AJ20: 0 | AK20: 0 | AL20: 0 | AM20: 0 | AN20: 0 | AO20: 0 | AP20: 0 | AQ20: 0 | AR20: 0 | AS20: 0 | AT20: 0 | AU20: 0 | AW20: =$D20 -> 0 | AX20: =AW20-$M20+Q20 -> 0 | AY20: =AX20-$M20+R20 -> 0 | AZ20: 0 | BA20: 0 | BB20: 0 | BC20: 0 | BD20: 0 | BE20: 0 | BF20: 0 | BG20: 0 | BH20: 0 | BI20: 0 | BJ20: 0 | BK20: 0 | BL20: 0 | BM20: 0 | BN20: 0 | BO20: 0 | BP20: 0 | BQ20: 0 | BR20: 0 | BS20: 0 | BT20: 0 | BU20: 0 | BV20: 0 | BW20: 0 | BX20: 0 | BY20: 0 | BZ20: 0 | CA20: 0
B21: Zubehör / Infrastruktur | E21: 10 | K21: 10 | M21: =1/K21*D21 -> 0 | O21: =B21&": "&C21 -> Zubehör / Infrastruktur: | P21: 0 | Q21: 0 | R21: 0 | S21: 0 | T21: 0 | U21: 0 | V21: 0 | W21: 0 | X21: 0 | Y21: 0 | Z21: 0 | AA21: 0 | AB21: 0 | AC21: 0 | AD21: 0 | AE21: 0 | AF21: 0 | AG21: 0 | AH21: 0 | AI21: 0 | AJ21: 0 | AK21: 0 | AL21: 0 | AM21: 0 | AN21: 0 | AO21: 0 | AP21: 0 | AQ21: 0 | AR21: 0 | AS21: 0 | AT21: 0 | AU21: 0 | AW21: =$D21 -> 0 | AX21: =AW21-$M21+Q21 -> 0 | AY21: 0 | AZ21: 0 | BA21: 0 | BB21: 0 | BC21: 0 | BD21: 0 | BE21: 0 | BF21: 0 | BG21: 0 | BH21: 0 | BI21: 0 | BJ21: 0 | BK21: 0 | BL21: 0 | BM21: 0 | BN21: 0 | BO21: 0 | BP21: 0 | BQ21: 0 | BR21: 0 | BS21: 0 | BT21: 0 | BU21: 0 | BV21: 0 | BW21: 0 | BX21: 0 | BY21: 0 | BZ21: 0 | CA21: 0
B22: Zubehör / Infrastruktur | E22: 10 | K22: 10 | M22: =1/K22*D22 -> 0 | O22: Zubehör / Infrastruktur: | P22: 0 | Q22: 0 | R22: 0 | S22: 0 | T22: 0 | U22: 0 | V22: 0 | W22: 0 | X22: 0 | Y22: 0 | Z22: 0 | AA22: 0 | AB22: 0 | AC22: 0 | AD22: 0 | AE22: 0 | AF22: 0 | AG22: 0 | AH22: 0 | AI22: 0 | AJ22: 0 | AK22: 0 | AL22: 0 | AM22: 0 | AN22: 0 | AO22: 0 | AP22: 0 | AQ22: 0 | AR22: 0 | AS22: 0 | AT22: 0 | AU22: 0 | AW22: 0 | AX22: 0 | AY22: 0 | AZ22: 0 | BA22: 0 | BB22: 0 | BC22: 0 | BD22: 0 | BE22: 0 | BF22: 0 | BG22: 0 | BH22: 0 | BI22: 0 | BJ22: 0 | BK22: 0 | BL22: 0 | BM22: 0 | BN22: 0 | BO22: 0 | BP22: 0 | BQ22: 0 | BR22: 0 | BS22: 0 | BT22: 0 | BU22: 0 | BV22: 0 | BW22: 0 | BX22: 0 | BY22: 0 | BZ22: 0 | CA22: 0
B23: Zubehör / Infrastruktur | E23: 10 | K23: 10 | M23: =1/K23*D23 -> 0 | O23: Zubehör / Infrastruktur: | P23: 0 | Q23: 0 | R23: 0 | S23: 0 | T23: 0 | U23: 0 | V23: 0 | W23: 0 | X23: 0 | Y23: 0 | Z23: 0 | AA23: 0 | AB23: 0 | AC23: 0 | AD23: 0 | AE23: 0 | AF23: 0 | AG23: 0 | AH23: 0 | AI23: 0 | AJ23: 0 | AK23: 0 | AL23: 0 | AM23: 0 | AN23: 0 | AO23: 0 | AP23: 0 | AQ23: 0 | AR23: 0 | AS23: 0 | AT23: 0 | AU23: 0 | AW23: 0 | AX23: 0 | AY23: 0 | AZ23: 0 | BA23: 0 | BB23: 0 | BC23: 0 | BD23: 0 | BE23: 0 | BF23: 0 | BG23: 0 | BH23: 0 | BI23: 0 | BJ23: 0 | BK23: 0 | BL23: 0 | BM23: 0 | BN23: 0 | BO23: 0 | BP23: 0 | BQ23: 0 | BR23: 0 | BS23: 0 | BT23: 0 | BU23: 0 | BV23: 0 | BW23: 0 | BX23: 0 | BY23: 0 | BZ23: 0 | CA23: 0
B24: Zubehör / Infrastruktur | E24: 10 | K24: 10 | M24: =1/K24*D24 -> 0 | O24: Zubehör / Infrastruktur: | P24: 0 | Q24: 0 | R24: 0 | S24: 0 | T24: 0 | U24: 0 | V24: 0 | W24: 0 | X24: 0 | Y24: 0 | Z24: 0 | AA24: 0 | AB24: 0 | AC24: 0 | AD24: 0 | AE24: 0 | AF24: 0 | AG24: 0 | AH24: 0 | AI24: 0 | AJ24: 0 | AK24: 0 | AL24: 0 | AM24: 0 | AN24: 0 | AO24: 0 | AP24: 0 | AQ24: 0 | AR24: 0 | AS24: 0 | AT24: 0 | AU24: 0 | AW24: 0 | AX24: 0 | AY24: 0 | AZ24: 0 | BA24: 0 | BB24: 0 | BC24: 0 | BD24: 0 | BE24: 0 | BF24: 0 | BG24: 0 | BH24: 0 | BI24: 0 | BJ24: 0 | BK24: 0 | BL24: 0 | BM24: 0 | BN24: 0 | BO24: 0 | BP24: 0 | BQ24: 0 | BR24: 0 | BS24: 0 | BT24: 0 | BU24: 0 | BV24: 0 | BW24: 0 | BX24: 0 | BY24: 0 | BZ24: 0 | CA24: 0
B25: Investitionskosten abzügl. Förderbeiträge total | D25: CHF | E25: =D19+SUM(D20:D24)-C15 -> 0 | L25: =E26*D19 -> 0 | O25: (Re)Investition abzüglich Restwert und Fördergeld | AU25: Nettobarwert
A26: K | B26: Wertminderung der Fahrzeuge pro Jahr aufgrund Lebensdauer | E26: =1/K19 -> 0.1 | M26: =L25+Fahrleistung_PW/10000*D19*L27 -> 0 | O26: (Re)Investition abzüglich Fördergeld | P26: =E25 -> 0 | Q26: =SUM(Q19:Q24) -> 0 | R26: 0 | S26: 0 | T26: 0 | U26: 0 | V26: 0 | W26: 0 | X26: 0 | Y26: 0 | Z26: 0 | AA26: 0 | AB26: 0 | AC26: 0 | AD26: 0 | AE26: 0 | AF26: 0 | AG26: 0 | AH26: 0 | AI26: 0 | AJ26: 0 | AK26: 0 | AL26: 0 | AM26: 0 | AN26: 0 | AO26: 0 | AP26: 0 | AQ26: 0 | AR26: 0 | AS26: 0 | AT26: 0
A27: K | B27: Zusätzliche Wertminderung pro 10'000 km | E27: 0.02 | L27: =IF(ISNUMBER(F27),F27,IF(ISNUMBER(E27),E27,0)) -> 0.02 | O27: Restwert | P27: =IF(Betrachtungszeit_PW=P17,-($L$28+$E$29),0) -> 0 | Q27: 0 | R27: 0 | S27: 0 | T27: 0 | U27: 0 | V27: 0 | W27: 0 | X27: 0 | Y27: 0 | Z27: 0 | AA27: 0 | AB27: 0 | AC27: 0 | AD27: 0 | AE27: 0 | AF27: 0 | AG27: 0 | AH27: 0 | AI27: 0 | AJ27: 0 | AK27: 0 | AL27: 0 | AM27: 0 | AN27: 0 | AO27: 0 | AP27: 0 | AQ27: 0 | AR27: 0 | AS27: 0 | AT27: 0
A28: K | B28: Restwert Fahrzeuge am Ende der Betrachtungszeit | D28: CHF | E28: =AU19 -> 0 | L28: =IF(ISNUMBER(F28),F28,E28) -> 0 | O28: Kosten inkl. Preissteigerung | P28: =SUM(P26:P27)*(1+Inflationsindex)^P$17 -> 0 | Q28: 0 | R28: 0 | S28: 0 | T28: 0 | U28: 0 | V28: 0 | W28: 0 | X28: 0 | Y28: 0 | Z28: 0 | AA28: 0 | AB28: 0 | AC28: 0 | AD28: 0 | AE28: 0 | AF28: 0 | AG28: 0 | AH28: 0 | AI28: 0 | AJ28: 0 | AK28: 0 | AL28: 0 | AM28: 0 | AN28: 0 | AO28: 0 | AP28: 0 | AQ28: 0 | AR28: 0 | AS28: 0 | AT28: 0
B29: Restwert Zubehör am Ende der Betrachtungszeit | D29: CHF | E29: =SUM(AU20:AU24) -> 0 | O29: Barwert | P29: =P28*(1+Kalkulationszinssatz)^-P$17 -> 0 | Q29: 0 | R29: 0 | S29: 0 | T29: 0 | U29: 0 | V29: 0 | W29: 0 | X29: 0 | Y29: 0 | Z29: 0 | AA29: 0 | AB29: 0 | AC29: 0 | AD29: 0 | AE29: 0 | AF29: 0 | AG29: 0 | AH29: 0 | AI29: 0 | AJ29: 0 | AK29: 0 | AL29: 0 | AM29: 0 | AN29: 0 | AO29: 0 | AP29: 0 | AQ29: 0 | AR29: 0 | AS29: 0 | AT29: 0 | AU29: =SUM(P29:AT29) -> 0
A31: K | B31: Ersatzteile / Verbrauchsmaterial mit erstmaliger Investition nach Lebensdauer | K31: Lebens- dauer [a] | M31: Jährliche Ab-schreibung [CHF/a] | O31: Ersatzteile | AW31: Restwert nach Abschreibung am Ende des Jahres… (Berücksichtigt Reinvestition nach Ablauf der Lebensdauer) Ersatzteile haben erst nach Ablauf der ersten Lebensdauer einen Restwert
B32: 1. Ersatzteile / Verbrauchsmaterial mit Lebensdauer in Jahren | E32: Lebensdauer [a] | O32: =B32 -> 1. Ersatzteile / Verbrauchsmaterial mit Lebensdauer in Jahren | AU32: Restwert am Ende der Betrachtungszeit
B33: Weitere Ersatzteile | E33: 10 | K33: =IF(ISNUMBER(F33),F33,IF(ISNUMBER(E33),E33,0)) -> 10 | M33: =1/K33*D33 -> 0 | O33: =B33&": "&C33 -> Weitere Ersatzteile: | P33: 0 | Q33: =IF(Betrachtungszeit_PW<Q$17,0,IF(AND(P$17<>0,P$17/($K33)=INT(P$17/($K33))),$D33,0)) -> 0 | R33: 0 | S33: 0 | T33: 0 | U33: 0 | V33: 0 | W33: 0 | X33: 0 | Y33: 0 | Z33: 0 | AA33: 0 | AB33: 0 | AC33: 0 | AD33: 0 | AE33: 0 | AF33: 0 | AG33: 0 | AH33: 0 | AI33: 0 | AJ33: 0 | AK33: 0 | AL33: 0 | AM33: 0 | AN33: 0 | AO33: 0 | AP33: 0 | AQ33: 0 | AR33: 0 | AS33: 0 | AT33: 0 | AU33: =SUMIF($AW$17:$CA$17,Betrachtungszeit_PW,AW33:CA33) -> 0 | AW33: 0 | AX33: =IF((AW33+Q33)=0,0,AW33-$M33+Q33) -> 0 | AY33: =IF((AX33+R33)=0,0,AX33-$M33+R33) -> 0 | AZ33: 0 | BA33: 0 | BB33: 0 | BC33: 0 | BD33: 0 | BE33: 0 | BF33: 0 | BG33: 0 | BH33: 0 | BI33: 0 | BJ33: 0 | BK33: 0 | BL33: 0 | BM33: 0 | BN33: 0 | BO33: 0 | BP33: 0 | BQ33: 0 | BR33: 0 | BS33: 0 | BT33: 0 | BU33: 0 | BV33: 0 | BW33: 0 | BX33: 0 | BY33: 0 | BZ33: 0 | CA33: 0
B34: Weitere Ersatzteile | E34: 10 | K34: =IF(ISNUMBER(F34),F34,IF(ISNUMBER(E34),E34,0)) -> 10 | M34: =1/K34*D34 -> 0 | O34: =B34&": "&C34 -> Weitere Ersatzteile: | P34: 0 | Q34: 0 | R34: 0 | S34: 0 | T34: 0 | U34: 0 | V34: 0 | W34: 0 | X34: 0 | Y34: 0 | Z34: 0 | AA34: 0 | AB34: 0 | AC34: 0 | AD34: 0 | AE34: 0 | AF34: 0 | AG34: 0 | AH34: 0 | AI34: 0 | AJ34: 0 | AK34: 0 | AL34: 0 | AM34: 0 | AN34: 0 | AO34: 0 | AP34: 0 | AQ34: 0 | AR34: 0 | AS34: 0 | AT34: 0 | AU34: =SUMIF($AW$17:$CA$17,Betrachtungszeit_PW,AW34:CA34) -> 0 | AW34: 0 | AX34: =IF((AW34+Q34)=0,0,AW34-$M34+Q34) -> 0 | AY34: 0 | AZ34: 0 | BA34: 0 | BB34: 0 | BC34: 0 | BD34: 0 | BE34: 0 | BF34: 0 | BG34: 0 | BH34: 0 | BI34: 0 | BJ34: 0 | BK34: 0 | BL34: 0 | BM34: 0 | BN34: 0 | BO34: 0 | BP34: 0 | BQ34: 0 | BR34: 0 | BS34: 0 | BT34: 0 | BU34: 0 | BV34: 0 | BW34: 0 | BX34: 0 | BY34: 0 | BZ34: 0 | CA34: 0
B35: Weitere Ersatzteile | E35: 10 | K35: =IF(ISNUMBER(F35),F35,IF(ISNUMBER(E35),E35,0)) -> 10 | M35: =1/K35*D35 -> 0 | O35: Weitere Ersatzteile: | P35: 0 | Q35: 0 | R35: 0 | S35: 0 | T35: 0 | U35: 0 | V35: 0 | W35: 0 | X35: 0 | Y35: 0 | Z35: 0 | AA35: 0 | AB35: 0 | AC35: 0 | AD35: 0 | AE35: 0 | AF35: 0 | AG35: 0 | AH35: 0 | AI35: 0 | AJ35: 0 | AK35: 0 | AL35: 0 | AM35: 0 | AN35: 0 | AO35: 0 | AP35: 0 | AQ35: 0 | AR35: 0 | AS35: 0 | AT35: 0 | AU35: =SUMIF($AW$17:$CA$17,Betrachtungszeit_PW,AW35:CA35) -> 0 | AW35: 0 | AX35: 0 | AY35: 0 | AZ35: 0 | BA35: 0 | BB35: 0 | BC35: 0 | BD35: 0 | BE35: 0 | BF35: 0 | BG35: 0 | BH35: 0 | BI35: 0 | BJ35: 0 | BK35: 0 | BL35: 0 | BM35: 0 | BN35: 0 | BO35: 0 | BP35: 0 | BQ35: 0 | BR35: 0 | BS35: 0 | BT35: 0 | BU35: 0 | BV35: 0 | BW35: 0 | BX35: 0 | BY35: 0 | BZ35: 0 | CA35: 0
B36: Weitere Ersatzteile | E36: 10 | K36: =IF(ISNUMBER(F36),F36,IF(ISNUMBER(E36),E36,0)) -> 10 | M36: =1/K36*D36 -> 0 | O36: Weitere Ersatzteile: | P36: 0 | Q36: 0 | R36: 0 | S36: 0 | T36: 0 | U36: 0 | V36: 0 | W36: 0 | X36: 0 | Y36: 0 | Z36: 0 | AA36: 0 | AB36: 0 | AC36: 0 | AD36: 0 | AE36: 0 | AF36: 0 | AG36: 0 | AH36: 0 | AI36: 0 | AJ36: 0 | AK36: 0 | AL36: 0 | AM36: 0 | AN36: 0 | AO36: 0 | AP36: 0 | AQ36: 0 | AR36: 0 | AS36: 0 | AT36: 0 | AU36: =SUMIF($AW$17:$CA$17,Betrachtungszeit_PW,AW36:CA36) -> 0 | AW36: 0 | AX36: 0 | AY36: 0 | AZ36: 0 | BA36: 0 | BB36: 0 | BC36: 0 | BD36: 0 | BE36: 0 | BF36: 0 | BG36: 0 | BH36: 0 | BI36: 0 | BJ36: 0 | BK36: 0 | BL36: 0 | BM36: 0 | BN36: 0 | BO36: 0 | BP36: 0 | BQ36: 0 | BR36: 0 | BS36: 0 | BT36: 0 | BU36: 0 | BV36: 0 | BW36: 0 | BX36: 0 | BY36: 0 | BZ36: 0 | CA36: 0
B37: Weitere Ersatzteile | E37: 10 | K37: =IF(ISNUMBER(F37),F37,IF(ISNUMBER(E37),E37,0)) -> 10 | M37: =1/K37*D37 -> 0 | O37: Weitere Ersatzteile: | P37: 0 | Q37: 0 | R37: 0 | S37: 0 | T37: 0 | U37: 0 | V37: 0 | W37: 0 | X37: 0 | Y37: 0 | Z37: 0 | AA37: 0 | AB37: 0 | AC37: 0 | AD37: 0 | AE37: 0 | AF37: 0 | AG37: 0 | AH37: 0 | AI37: 0 | AJ37: 0 | AK37: 0 | AL37: 0 | AM37: 0 | AN37: 0 | AO37: 0 | AP37: 0 | AQ37: 0 | AR37: 0 | AS37: 0 | AT37: 0 | AU37: =SUMIF($AW$17:$CA$17,Betrachtungszeit_PW,AW37:CA37) -> 0 | AW37: 0 | AX37: 0 | AY37: 0 | AZ37: 0 | BA37: 0 | BB37: 0 | BC37: 0 | BD37: 0 | BE37: 0 | BF37: 0 | BG37: 0 | BH37: 0 | BI37: 0 | BJ37: 0 | BK37: 0 | BL37: 0 | BM37: 0 | BN37: 0 | BO37: 0 | BP37: 0 | BQ37: 0 | BR37: 0 | BS37: 0 | BT37: 0 | BU37: 0 | BV37: 0 | BW37: 0 | BX37: 0 | BY37: 0 | BZ37: 0 | CA37: 0
B38: 2. Ersatzteile / Verbrauchsmaterial mit Lebensdauer in Kilometern | E38: Lebensdauer [km] | K38: Lebens-dauer [km] | O38: 2. Ersatzteile / Verbrauchsmaterial mit Lebensdauer in Kilometern
A39: K | B39: Ersatz-Reifen (Set) | E39: 30000 | K39: =IF(ISNUMBER(F39),F39,IF(ISNUMBER(E39),E39,0)) -> 30000 | M39: =1/(K39/Fahrleistung_PW)*D39 ->  | O39: =B39&": "&C39 -> Ersatz-Reifen (Set): | P39: 0 | Q39: =IF(Betrachtungszeit_PW*Fahrleistung_PW<Q$18,0,IF(Q$18-(COUNTIF($P39:P39,">0")*$K39)>$K39,$D39,0)) -> 0 | R39: =IF(Betrachtungszeit_PW*Fahrleistung_PW<R$18,0,IF(R$18-(COUNTIF($P39:Q39,">0")*$K39)>$K39,$D39,0)) -> 0 | S39: =IF(Betrachtungszeit_PW*Fahrleistung_PW<S$18,0,IF(S$18-(COUNTIF($P39:R39,">0")*$K39)>$K39,$D39,0)) -> 0 | T39: =IF(Betrachtungszeit_PW*Fahrleistung_PW<T$18,0,IF(T$18-(COUNTIF($P39:S39,">0")*$K39)>$K39,$D39,0)) -> 0 | U39: =IF(Betrachtungszeit_PW*Fahrleistung_PW<U$18,0,IF(U$18-(COUNTIF($P39:T39,">0")*$K39)>$K39,$D39,0)) -> 0 | V39: =IF(Betrachtungszeit_PW*Fahrleistung_PW<V$18,0,IF(V$18-(COUNTIF($P39:U39,">0")*$K39)>$K39,$D39,0)) -> 0 | W39: =IF(Betrachtungszeit_PW*Fahrleistung_PW<W$18,0,IF(W$18-(COUNTIF($P39:V39,">0")*$K39)>$K39,$D39,0)) -> 0 | X39: =IF(Betrachtungszeit_PW*Fahrleistung_PW<X$18,0,IF(X$18-(COUNTIF($P39:W39,">0")*$K39)>$K39,$D39,0)) -> 0 | Y39: =IF(Betrachtungszeit_PW*Fahrleistung_PW<Y$18,0,IF(Y$18-(COUNTIF($P39:X39,">0")*$K39)>$K39,$D39,0)) -> 0 | Z39: =IF(Betrachtungszeit_PW*Fahrleistung_PW<Z$18,0,IF(Z$18-(COUNTIF($P39:Y39,">0")*$K39)>$K39,$D39,0)) -> 0 | AA39: =IF(Betrachtungszeit_PW*Fahrleistung_PW<AA$18,0,IF(AA$18-(COUNTIF($P39:Z39,">0")*$K39)>$K39,$D39,0)) -> 0 | AB39: =IF(Betrachtungszeit_PW*Fahrleistung_PW<AB$18,0,IF(AB$18-(COUNTIF($P39:AA39,">0")*$K39)>$K39,$D39,0)) -> 0 | AC39: =IF(Betrachtungszeit_PW*Fahrleistung_PW<AC$18,0,IF(AC$18-(COUNTIF($P39:AB39,">0")*$K39)>$K39,$D39,0)) -> 0 | AD39: =IF(Betrachtungszeit_PW*Fahrleistung_PW<AD$18,0,IF(AD$18-(COUNTIF($P39:AC39,">0")*$K39)>$K39,$D39,0)) -> 0 | AE39: =IF(Betrachtungszeit_PW*Fahrleistung_PW<AE$18,0,IF(AE$18-(COUNTIF($P39:AD39,">0")*$K39)>$K39,$D39,0)) -> 0 | AF39: =IF(Betrachtungszeit_PW*Fahrleistung_PW<AF$18,0,IF(AF$18-(COUNTIF($P39:AE39,">0")*$K39)>$K39,$D39,0)) -> 0 | AG39: =IF(Betrachtungszeit_PW*Fahrleistung_PW<AG$18,0,IF(AG$18-(COUNTIF($P39:AF39,">0")*$K39)>$K39,$D39,0)) -> 0 | AH39: =IF(Betrachtungszeit_PW*Fahrleistung_PW<AH$18,0,IF(AH$18-(COUNTIF($P39:AG39,">0")*$K39)>$K39,$D39,0)) -> 0 | AI39: =IF(Betrachtungszeit_PW*Fahrleistung_PW<AI$18,0,IF(AI$18-(COUNTIF($P39:AH39,">0")*$K39)>$K39,$D39,0)) -> 0 | AJ39: =IF(Betrachtungszeit_PW*Fahrleistung_PW<AJ$18,0,IF(AJ$18-(COUNTIF($P39:AI39,">0")*$K39)>$K39,$D39,0)) -> 0 | AK39: =IF(Betrachtungszeit_PW*Fahrleistung_PW<AK$18,0,IF(AK$18-(COUNTIF($P39:AJ39,">0")*$K39)>$K39,$D39,0)) -> 0 | AL39: =IF(Betrachtungszeit_PW*Fahrleistung_PW<AL$18,0,IF(AL$18-(COUNTIF($P39:AK39,">0")*$K39)>$K39,$D39,0)) -> 0 | AM39: =IF(Betrachtungszeit_PW*Fahrleistung_PW<AM$18,0,IF(AM$18-(COUNTIF($P39:AL39,">0")*$K39)>$K39,$D39,0)) -> 0 | AN39: =IF(Betrachtungszeit_PW*Fahrleistung_PW<AN$18,0,IF(AN$18-(COUNTIF($P39:AM39,">0")*$K39)>$K39,$D39,0)) -> 0 | AO39: =IF(Betrachtungszeit_PW*Fahrleistung_PW<AO$18,0,IF(AO$18-(COUNTIF($P39:AN39,">0")*$K39)>$K39,$D39,0)) -> 0 | AP39: =IF(Betrachtungszeit_PW*Fahrleistung_PW<AP$18,0,IF(AP$18-(COUNTIF($P39:AO39,">0")*$K39)>$K39,$D39,0)) -> 0 | AQ39: =IF(Betrachtungszeit_PW*Fahrleistung_PW<AQ$18,0,IF(AQ$18-(COUNTIF($P39:AP39,">0")*$K39)>$K39,$D39,0)) -> 0 | AR39: =IF(Betrachtungszeit_PW*Fahrleistung_PW<AR$18,0,IF(AR$18-(COUNTIF($P39:AQ39,">0")*$K39)>$K39,$D39,0)) -> 0 | AS39: =IF(Betrachtungszeit_PW*Fahrleistung_PW<AS$18,0,IF(AS$18-(COUNTIF($P39:AR39,">0")*$K39)>$K39,$D39,0)) -> 0 | AT39: =IF(Betrachtungszeit_PW*Fahrleistung_PW<AT$18,0,IF(AT$18-(COUNTIF($P39:AS39,">0")*$K39)>$K39,$D39,0)) -> 0 | AU39: =SUMIF($AW$17:$CA$17,Betrachtungszeit_PW,AW39:CA39) -> 0 | AW39: 0 | AX39: =IF((AW39+Q39)=0,0,AW39-$M39+Q39) -> 0 | AY39: =IF((AX39+R39)=0,0,AX39-$M39+R39) -> 0 | AZ39: 0 | BA39: 0 | BB39: 0 | BC39: 0 | BD39: 0 | BE39: 0 | BF39: 0 | BG39: 0 | BH39: 0 | BI39: 0 | BJ39: 0 | BK39: 0 | BL39: 0 | BM39: 0 | BN39: 0 | BO39: =IF((BN39+AH39)=0,0,BN39-$M39+AH39) -> 0 | BP39: 0 | BQ39: 0 | BR39: 0 | BS39: 0 | BT39: 0 | BU39: 0 | BV39: 0 | BW39: 0 | BX39: 0 | BY39: 0 | BZ39: 0 | CA39: 0
A40: K | B40: Ersatz-Batterie bei Elektrofahrzeugen | E40: 100000 | K40: 100000 | O40: =B40&": "&C40 -> Ersatz-Batterie bei Elektrofahrzeugen: | P40: 0 | Q40: =IF(Betrachtungszeit_PW*Fahrleistung_PW<Q$18,0,IF(Q$18-(COUNTIF($P40:P40,">0")*$K40)>$K40,$D40,0)) -> 0 | R40: =IF(Betrachtungszeit_PW*Fahrleistung_PW<R$18,0,IF(R$18-(COUNTIF($P40:Q40,">0")*$K40)>$K40,$D40,0)) -> 0 | S40: =IF(Betrachtungszeit_PW*Fahrleistung_PW<S$18,0,IF(S$18-(COUNTIF($P40:R40,">0")*$K40)>$K40,$D40,0)) -> 0 | T40: =IF(Betrachtungszeit_PW*Fahrleistung_PW<T$18,0,IF(T$18-(COUNTIF($P40:S40,">0")*$K40)>$K40,$D40,0)) -> 0 | U40: =IF(Betrachtungszeit_PW*Fahrleistung_PW<U$18,0,IF(U$18-(COUNTIF($P40:T40,">0")*$K40)>$K40,$D40,0)) -> 0 | V40: =IF(Betrachtungszeit_PW*Fahrleistung_PW<V$18,0,IF(V$18-(COUNTIF($P40:U40,">0")*$K40)>$K40,$D40,0)) -> 0 | W40: =IF(Betrachtungszeit_PW*Fahrleistung_PW<W$18,0,IF(W$18-(COUNTIF($P40:V40,">0")*$K40)>$K40,$D40,0)) -> 0 | X40: =IF(Betrachtungszeit_PW*Fahrleistung_PW<X$18,0,IF(X$18-(COUNTIF($P40:W40,">0")*$K40)>$K40,$D40,0)) -> 0 | Y40: =IF(Betrachtungszeit_PW*Fahrleistung_PW<Y$18,0,IF(Y$18-(COUNTIF($P40:X40,">0")*$K40)>$K40,$D40,0)) -> 0 | Z40: =IF(Betrachtungszeit_PW*Fahrleistung_PW<Z$18,0,IF(Z$18-(COUNTIF($P40:Y40,">0")*$K40)>$K40,$D40,0)) -> 0 | AA40: =IF(Betrachtungszeit_PW*Fahrleistung_PW<AA$18,0,IF(AA$18-(COUNTIF($P40:Z40,">0")*$K40)>$K40,$D40,0)) -> 0 | AB40: =IF(Betrachtungszeit_PW*Fahrleistung_PW<AB$18,0,IF(AB$18-(COUNTIF($P40:AA40,">0")*$K40)>$K40,$D40,0)) -> 0 | AC40: =IF(Betrachtungszeit_PW*Fahrleistung_PW<AC$18,0,IF(AC$18-(COUNTIF($P40:AB40,">0")*$K40)>$K40,$D40,0)) -> 0 | AD40: =IF(Betrachtungszeit_PW*Fahrleistung_PW<AD$18,0,IF(AD$18-(COUNTIF($P40:AC40,">0")*$K40)>$K40,$D40,0)) -> 0 | AE40: =IF(Betrachtungszeit_PW*Fahrleistung_PW<AE$18,0,IF(AE$18-(COUNTIF($P40:AD40,">0")*$K40)>$K40,$D40,0)) -> 0 | AF40: =IF(Betrachtungszeit_PW*Fahrleistung_PW<AF$18,0,IF(AF$18-(COUNTIF($P40:AE40,">0")*$K40)>$K40,$D40,0)) -> 0 | AG40: =IF(Betrachtungszeit_PW*Fahrleistung_PW<AG$18,0,IF(AG$18-(COUNTIF($P40:AF40,">0")*$K40)>$K40,$D40,0)) -> 0 | AH40: =IF(Betrachtungszeit_PW*Fahrleistung_PW<AH$18,0,IF(AH$18-(COUNTIF($P40:AG40,">0")*$K40)>$K40,$D40,0)) -> 0 | AI40: =IF(Betrachtungszeit_PW*Fahrleistung_PW<AI$18,0,IF(AI$18-(COUNTIF($P40:AH40,">0")*$K40)>$K40,$D40,0)) -> 0 | AJ40: =IF(Betrachtungszeit_PW*Fahrleistung_PW<AJ$18,0,IF(AJ$18-(COUNTIF($P40:AI40,">0")*$K40)>$K40,$D40,0)) -> 0 | AK40: =IF(Betrachtungszeit_PW*Fahrleistung_PW<AK$18,0,IF(AK$18-(COUNTIF($P40:AJ40,">0")*$K40)>$K40,$D40,0)) -> 0 | AL40: =IF(Betrachtungszeit_PW*Fahrleistung_PW<AL$18,0,IF(AL$18-(COUNTIF($P40:AK40,">0")*$K40)>$K40,$D40,0)) -> 0 | AM40: =IF(Betrachtungszeit_PW*Fahrleistung_PW<AM$18,0,IF(AM$18-(COUNTIF($P40:AL40,">0")*$K40)>$K40,$D40,0)) -> 0 | AN40: =IF(Betrachtungszeit_PW*Fahrleistung_PW<AN$18,0,IF(AN$18-(COUNTIF($P40:AM40,">0")*$K40)>$K40,$D40,0)) -> 0 | AO40: =IF(Betrachtungszeit_PW*Fahrleistung_PW<AO$18,0,IF(AO$18-(COUNTIF($P40:AN40,">0")*$K40)>$K40,$D40,0)) -> 0 | AP40: =IF(Betrachtungszeit_PW*Fahrleistung_PW<AP$18,0,IF(AP$18-(COUNTIF($P40:AO40,">0")*$K40)>$K40,$D40,0)) -> 0 | AQ40: =IF(Betrachtungszeit_PW*Fahrleistung_PW<AQ$18,0,IF(AQ$18-(COUNTIF($P40:AP40,">0")*$K40)>$K40,$D40,0)) -> 0 | AR40: =IF(Betrachtungszeit_PW*Fahrleistung_PW<AR$18,0,IF(AR$18-(COUNTIF($P40:AQ40,">0")*$K40)>$K40,$D40,0)) -> 0 | AS40: =IF(Betrachtungszeit_PW*Fahrleistung_PW<AS$18,0,IF(AS$18-(COUNTIF($P40:AR40,">0")*$K40)>$K40,$D40,0)) -> 0 | AT40: =IF(Betrachtungszeit_PW*Fahrleistung_PW<AT$18,0,IF(AT$18-(COUNTIF($P40:AS40,">0")*$K40)>$K40,$D40,0)) -> 0 | AU40: 0 | AW40: 0 | AX40: =IF((AW40+Q40)=0,0,AW40-$M40+Q40) -> 0 | AY40: 0 | AZ40: 0 | BA40: 0 | BB40: 0 | BC40: 0 | BD40: 0 | BE40: 0 | BF40: 0 | BG40: 0 | BH40: 0 | BI40: 0 | BJ40: 0 | BK40: 0 | BL40: 0 | BM40: 0 | BN40: 0 | BO40: 0 | BP40: 0 | BQ40: 0 | BR40: 0 | BS40: 0 | BT40: 0 | BU40: 0 | BV40: 0 | BW40: 0 | BX40: 0 | BY40: 0 | BZ40: 0 | CA40: 0
B41: Weitere Ersatzteile | E41: 150000 | K41: 150000 | O41: Weitere Ersatzteile: | P41: 0 | Q41: =IF(Betrachtungszeit_PW*Fahrleistung_PW<Q$18,0,IF(Q$18-(COUNTIF($P41:P41,">0")*$K41)>$K41,$D41,0)) -> 0 | R41: =IF(Betrachtungszeit_PW*Fahrleistung_PW<R$18,0,IF(R$18-(COUNTIF($P41:Q41,">0")*$K41)>$K41,$D41,0)) -> 0 | S41: =IF(Betrachtungszeit_PW*Fahrleistung_PW<S$18,0,IF(S$18-(COUNTIF($P41:R41,">0")*$K41)>$K41,$D41,0)) -> 0 | T41: =IF(Betrachtungszeit_PW*Fahrleistung_PW<T$18,0,IF(T$18-(COUNTIF($P41:S41,">0")*$K41)>$K41,$D41,0)) -> 0 | U41: =IF(Betrachtungszeit_PW*Fahrleistung_PW<U$18,0,IF(U$18-(COUNTIF($P41:T41,">0")*$K41)>$K41,$D41,0)) -> 0 | V41: =IF(Betrachtungszeit_PW*Fahrleistung_PW<V$18,0,IF(V$18-(COUNTIF($P41:U41,">0")*$K41)>$K41,$D41,0)) -> 0 | W41: =IF(Betrachtungszeit_PW*Fahrleistung_PW<W$18,0,IF(W$18-(COUNTIF($P41:V41,">0")*$K41)>$K41,$D41,0)) -> 0 | X41: =IF(Betrachtungszeit_PW*Fahrleistung_PW<X$18,0,IF(X$18-(COUNTIF($P41:W41,">0")*$K41)>$K41,$D41,0)) -> 0 | Y41: =IF(Betrachtungszeit_PW*Fahrleistung_PW<Y$18,0,IF(Y$18-(COUNTIF($P41:X41,">0")*$K41)>$K41,$D41,0)) -> 0 | Z41: =IF(Betrachtungszeit_PW*Fahrleistung_PW<Z$18,0,IF(Z$18-(COUNTIF($P41:Y41,">0")*$K41)>$K41,$D41,0)) -> 0 | AA41: =IF(Betrachtungszeit_PW*Fahrleistung_PW<AA$18,0,IF(AA$18-(COUNTIF($P41:Z41,">0")*$K41)>$K41,$D41,0)) -> 0 | AB41: =IF(Betrachtungszeit_PW*Fahrleistung_PW<AB$18,0,IF(AB$18-(COUNTIF($P41:AA41,">0")*$K41)>$K41,$D41,0)) -> 0 | AC41: =IF(Betrachtungszeit_PW*Fahrleistung_PW<AC$18,0,IF(AC$18-(COUNTIF($P41:AB41,">0")*$K41)>$K41,$D41,0)) -> 0 | AD41: =IF(Betrachtungszeit_PW*Fahrleistung_PW<AD$18,0,IF(AD$18-(COUNTIF($P41:AC41,">0")*$K41)>$K41,$D41,0)) -> 0 | AE41: =IF(Betrachtungszeit_PW*Fahrleistung_PW<AE$18,0,IF(AE$18-(COUNTIF($P41:AD41,">0")*$K41)>$K41,$D41,0)) -> 0 | AF41: =IF(Betrachtungszeit_PW*Fahrleistung_PW<AF$18,0,IF(AF$18-(COUNTIF($P41:AE41,">0")*$K41)>$K41,$D41,0)) -> 0 | AG41: =IF(Betrachtungszeit_PW*Fahrleistung_PW<AG$18,0,IF(AG$18-(COUNTIF($P41:AF41,">0")*$K41)>$K41,$D41,0)) -> 0 | AH41: =IF(Betrachtungszeit_PW*Fahrleistung_PW<AH$18,0,IF(AH$18-(COUNTIF($P41:AG41,">0")*$K41)>$K41,$D41,0)) -> 0 | AI41: =IF(Betrachtungszeit_PW*Fahrleistung_PW<AI$18,0,IF(AI$18-(COUNTIF($P41:AH41,">0")*$K41)>$K41,$D41,0)) -> 0 | AJ41: =IF(Betrachtungszeit_PW*Fahrleistung_PW<AJ$18,0,IF(AJ$18-(COUNTIF($P41:AI41,">0")*$K41)>$K41,$D41,0)) -> 0 | AK41: =IF(Betrachtungszeit_PW*Fahrleistung_PW<AK$18,0,IF(AK$18-(COUNTIF($P41:AJ41,">0")*$K41)>$K41,$D41,0)) -> 0 | AL41: =IF(Betrachtungszeit_PW*Fahrleistung_PW<AL$18,0,IF(AL$18-(COUNTIF($P41:AK41,">0")*$K41)>$K41,$D41,0)) -> 0 | AM41: =IF(Betrachtungszeit_PW*Fahrleistung_PW<AM$18,0,IF(AM$18-(COUNTIF($P41:AL41,">0")*$K41)>$K41,$D41,0)) -> 0 | AN41: =IF(Betrachtungszeit_PW*Fahrleistung_PW<AN$18,0,IF(AN$18-(COUNTIF($P41:AM41,">0")*$K41)>$K41,$D41,0)) -> 0 | AO41: =IF(Betrachtungszeit_PW*Fahrleistung_PW<AO$18,0,IF(AO$18-(COUNTIF($P41:AN41,">0")*$K41)>$K41,$D41,0)) -> 0 | AP41: =IF(Betrachtungszeit_PW*Fahrleistung_PW<AP$18,0,IF(AP$18-(COUNTIF($P41:AO41,">0")*$K41)>$K41,$D41,0)) -> 0 | AQ41: =IF(Betrachtungszeit_PW*Fahrleistung_PW<AQ$18,0,IF(AQ$18-(COUNTIF($P41:AP41,">0")*$K41)>$K41,$D41,0)) -> 0 | AR41: =IF(Betrachtungszeit_PW*Fahrleistung_PW<AR$18,0,IF(AR$18-(COUNTIF($P41:AQ41,">0")*$K41)>$K41,$D41,0)) -> 0 | AS41: =IF(Betrachtungszeit_PW*Fahrleistung_PW<AS$18,0,IF(AS$18-(COUNTIF($P41:AR41,">0")*$K41)>$K41,$D41,0)) -> 0 | AT41: =IF(Betrachtungszeit_PW*Fahrleistung_PW<AT$18,0,IF(AT$18-(COUNTIF($P41:AS41,">0")*$K41)>$K41,$D41,0)) -> 0 | AU41: 0 | AW41: 0 | AX41: 0 | AY41: 0 | AZ41: 0 | BA41: 0 | BB41: 0 | BC41: 0 | BD41: 0 | BE41: 0 | BF41: 0 | BG41: 0 | BH41: 0 | BI41: 0 | BJ41: 0 | BK41: 0 | BL41: 0 | BM41: 0 | BN41: 0 | BO41: 0 | BP41: 0 | BQ41: 0 | BR41: 0 | BS41: 0 | BT41: 0 | BU41: 0 | BV41: 0 | BW41: 0 | BX41: 0 | BY41: 0 | BZ41: 0 | CA41: 0
B42: Weitere Ersatzteile | E42: 150000 | K42: 150000 | O42: Weitere Ersatzteile: | P42: 0 | Q42: =IF(Betrachtungszeit_PW*Fahrleistung_PW<Q$18,0,IF(Q$18-(COUNTIF($P42:P42,">0")*$K42)>$K42,$D42,0)) -> 0 | R42: =IF(Betrachtungszeit_PW*Fahrleistung_PW<R$18,0,IF(R$18-(COUNTIF($P42:Q42,">0")*$K42)>$K42,$D42,0)) -> 0 | S42: =IF(Betrachtungszeit_PW*Fahrleistung_PW<S$18,0,IF(S$18-(COUNTIF($P42:R42,">0")*$K42)>$K42,$D42,0)) -> 0 | T42: =IF(Betrachtungszeit_PW*Fahrleistung_PW<T$18,0,IF(T$18-(COUNTIF($P42:S42,">0")*$K42)>$K42,$D42,0)) -> 0 | U42: =IF(Betrachtungszeit_PW*Fahrleistung_PW<U$18,0,IF(U$18-(COUNTIF($P42:T42,">0")*$K42)>$K42,$D42,0)) -> 0 | V42: =IF(Betrachtungszeit_PW*Fahrleistung_PW<V$18,0,IF(V$18-(COUNTIF($P42:U42,">0")*$K42)>$K42,$D42,0)) -> 0 | W42: =IF(Betrachtungszeit_PW*Fahrleistung_PW<W$18,0,IF(W$18-(COUNTIF($P42:V42,">0")*$K42)>$K42,$D42,0)) -> 0 | X42: =IF(Betrachtungszeit_PW*Fahrleistung_PW<X$18,0,IF(X$18-(COUNTIF($P42:W42,">0")*$K42)>$K42,$D42,0)) -> 0 | Y42: =IF(Betrachtungszeit_PW*Fahrleistung_PW<Y$18,0,IF(Y$18-(COUNTIF($P42:X42,">0")*$K42)>$K42,$D42,0)) -> 0 | Z42: =IF(Betrachtungszeit_PW*Fahrleistung_PW<Z$18,0,IF(Z$18-(COUNTIF($P42:Y42,">0")*$K42)>$K42,$D42,0)) -> 0 | AA42: =IF(Betrachtungszeit_PW*Fahrleistung_PW<AA$18,0,IF(AA$18-(COUNTIF($P42:Z42,">0")*$K42)>$K42,$D42,0)) -> 0 | AB42: =IF(Betrachtungszeit_PW*Fahrleistung_PW<AB$18,0,IF(AB$18-(COUNTIF($P42:AA42,">0")*$K42)>$K42,$D42,0)) -> 0 | AC42: =IF(Betrachtungszeit_PW*Fahrleistung_PW<AC$18,0,IF(AC$18-(COUNTIF($P42:AB42,">0")*$K42)>$K42,$D42,0)) -> 0 | AD42: =IF(Betrachtungszeit_PW*Fahrleistung_PW<AD$18,0,IF(AD$18-(COUNTIF($P42:AC42,">0")*$K42)>$K42,$D42,0)) -> 0 | AE42: =IF(Betrachtungszeit_PW*Fahrleistung_PW<AE$18,0,IF(AE$18-(COUNTIF($P42:AD42,">0")*$K42)>$K42,$D42,0)) -> 0 | AF42: =IF(Betrachtungszeit_PW*Fahrleistung_PW<AF$18,0,IF(AF$18-(COUNTIF($P42:AE42,">0")*$K42)>$K42,$D42,0)) -> 0 | AG42: =IF(Betrachtungszeit_PW*Fahrleistung_PW<AG$18,0,IF(AG$18-(COUNTIF($P42:AF42,">0")*$K42)>$K42,$D42,0)) -> 0 | AH42: =IF(Betrachtungszeit_PW*Fahrleistung_PW<AH$18,0,IF(AH$18-(COUNTIF($P42:AG42,">0")*$K42)>$K42,$D42,0)) -> 0 | AI42: =IF(Betrachtungszeit_PW*Fahrleistung_PW<AI$18,0,IF(AI$18-(COUNTIF($P42:AH42,">0")*$K42)>$K42,$D42,0)) -> 0 | AJ42: =IF(Betrachtungszeit_PW*Fahrleistung_PW<AJ$18,0,IF(AJ$18-(COUNTIF($P42:AI42,">0")*$K42)>$K42,$D42,0)) -> 0 | AK42: =IF(Betrachtungszeit_PW*Fahrleistung_PW<AK$18,0,IF(AK$18-(COUNTIF($P42:AJ42,">0")*$K42)>$K42,$D42,0)) -> 0 | AL42: =IF(Betrachtungszeit_PW*Fahrleistung_PW<AL$18,0,IF(AL$18-(COUNTIF($P42:AK42,">0")*$K42)>$K42,$D42,0)) -> 0 | AM42: =IF(Betrachtungszeit_PW*Fahrleistung_PW<AM$18,0,IF(AM$18-(COUNTIF($P42:AL42,">0")*$K42)>$K42,$D42,0)) -> 0 | AN42: =IF(Betrachtungszeit_PW*Fahrleistung_PW<AN$18,0,IF(AN$18-(COUNTIF($P42:AM42,">0")*$K42)>$K42,$D42,0)) -> 0 | AO42: =IF(Betrachtungszeit_PW*Fahrleistung_PW<AO$18,0,IF(AO$18-(COUNTIF($P42:AN42,">0")*$K42)>$K42,$D42,0)) -> 0 | AP42: =IF(Betrachtungszeit_PW*Fahrleistung_PW<AP$18,0,IF(AP$18-(COUNTIF($P42:AO42,">0")*$K42)>$K42,$D42,0)) -> 0 | AQ42: =IF(Betrachtungszeit_PW*Fahrleistung_PW<AQ$18,0,IF(AQ$18-(COUNTIF($P42:AP42,">0")*$K42)>$K42,$D42,0)) -> 0 | AR42: =IF(Betrachtungszeit_PW*Fahrleistung_PW<AR$18,0,IF(AR$18-(COUNTIF($P42:AQ42,">0")*$K42)>$K42,$D42,0)) -> 0 | AS42: =IF(Betrachtungszeit_PW*Fahrleistung_PW<AS$18,0,IF(AS$18-(COUNTIF($P42:AR42,">0")*$K42)>$K42,$D42,0)) -> 0 | AT42: =IF(Betrachtungszeit_PW*Fahrleistung_PW<AT$18,0,IF(AT$18-(COUNTIF($P42:AS42,">0")*$K42)>$K42,$D42,0)) -> 0 | AU42: 0 | AW42: 0 | AX42: 0 | AY42: 0 | AZ42: 0 | BA42: 0 | BB42: 0 | BC42: 0 | BD42: 0 | BE42: 0 | BF42: 0 | BG42: 0 | BH42: 0 | BI42: 0 | BJ42: 0 | BK42: 0 | BL42: 0 | BM42: 0 | BN42: 0 | BO42: 0 | BP42: 0 | BQ42: 0 | BR42: 0 | BS42: 0 | BT42: 0 | BU42: 0 | BV42: 0 | BW42: 0 | BX42: 0 | BY42: 0 | BZ42: 0 | CA42: 0
B43: Weitere Ersatzteile | E43: 150000 | K43: 150000 | O43: Weitere Ersatzteile: | P43: 0 | Q43: =IF(Betrachtungszeit_PW*Fahrleistung_PW<Q$18,0,IF(Q$18-(COUNTIF($P43:P43,">0")*$K43)>$K43,$D43,0)) -> 0 | R43: =IF(Betrachtungszeit_PW*Fahrleistung_PW<R$18,0,IF(R$18-(COUNTIF($P43:Q43,">0")*$K43)>$K43,$D43,0)) -> 0 | S43: =IF(Betrachtungszeit_PW*Fahrleistung_PW<S$18,0,IF(S$18-(COUNTIF($P43:R43,">0")*$K43)>$K43,$D43,0)) -> 0 | T43: =IF(Betrachtungszeit_PW*Fahrleistung_PW<T$18,0,IF(T$18-(COUNTIF($P43:S43,">0")*$K43)>$K43,$D43,0)) -> 0 | U43: =IF(Betrachtungszeit_PW*Fahrleistung_PW<U$18,0,IF(U$18-(COUNTIF($P43:T43,">0")*$K43)>$K43,$D43,0)) -> 0 | V43: =IF(Betrachtungszeit_PW*Fahrleistung_PW<V$18,0,IF(V$18-(COUNTIF($P43:U43,">0")*$K43)>$K43,$D43,0)) -> 0 | W43: =IF(Betrachtungszeit_PW*Fahrleistung_PW<W$18,0,IF(W$18-(COUNTIF($P43:V43,">0")*$K43)>$K43,$D43,0)) -> 0 | X43: =IF(Betrachtungszeit_PW*Fahrleistung_PW<X$18,0,IF(X$18-(COUNTIF($P43:W43,">0")*$K43)>$K43,$D43,0)) -> 0 | Y43: =IF(Betrachtungszeit_PW*Fahrleistung_PW<Y$18,0,IF(Y$18-(COUNTIF($P43:X43,">0")*$K43)>$K43,$D43,0)) -> 0 | Z43: =IF(Betrachtungszeit_PW*Fahrleistung_PW<Z$18,0,IF(Z$18-(COUNTIF($P43:Y43,">0")*$K43)>$K43,$D43,0)) -> 0 | AA43: =IF(Betrachtungszeit_PW*Fahrleistung_PW<AA$18,0,IF(AA$18-(COUNTIF($P43:Z43,">0")*$K43)>$K43,$D43,0)) -> 0 | AB43: =IF(Betrachtungszeit_PW*Fahrleistung_PW<AB$18,0,IF(AB$18-(COUNTIF($P43:AA43,">0")*$K43)>$K43,$D43,0)) -> 0 | AC43: =IF(Betrachtungszeit_PW*Fahrleistung_PW<AC$18,0,IF(AC$18-(COUNTIF($P43:AB43,">0")*$K43)>$K43,$D43,0)) -> 0 | AD43: =IF(Betrachtungszeit_PW*Fahrleistung_PW<AD$18,0,IF(AD$18-(COUNTIF($P43:AC43,">0")*$K43)>$K43,$D43,0)) -> 0 | AE43: =IF(Betrachtungszeit_PW*Fahrleistung_PW<AE$18,0,IF(AE$18-(COUNTIF($P43:AD43,">0")*$K43)>$K43,$D43,0)) -> 0 | AF43: =IF(Betrachtungszeit_PW*Fahrleistung_PW<AF$18,0,IF(AF$18-(COUNTIF($P43:AE43,">0")*$K43)>$K43,$D43,0)) -> 0 | AG43: =IF(Betrachtungszeit_PW*Fahrleistung_PW<AG$18,0,IF(AG$18-(COUNTIF($P43:AF43,">0")*$K43)>$K43,$D43,0)) -> 0 | AH43: =IF(Betrachtungszeit_PW*Fahrleistung_PW<AH$18,0,IF(AH$18-(COUNTIF($P43:AG43,">0")*$K43)>$K43,$D43,0)) -> 0 | AI43: =IF(Betrachtungszeit_PW*Fahrleistung_PW<AI$18,0,IF(AI$18-(COUNTIF($P43:AH43,">0")*$K43)>$K43,$D43,0)) -> 0 | AJ43: =IF(Betrachtungszeit_PW*Fahrleistung_PW<AJ$18,0,IF(AJ$18-(COUNTIF($P43:AI43,">0")*$K43)>$K43,$D43,0)) -> 0 | AK43: =IF(Betrachtungszeit_PW*Fahrleistung_PW<AK$18,0,IF(AK$18-(COUNTIF($P43:AJ43,">0")*$K43)>$K43,$D43,0)) -> 0 | AL43: =IF(Betrachtungszeit_PW*Fahrleistung_PW<AL$18,0,IF(AL$18-(COUNTIF($P43:AK43,">0")*$K43)>$K43,$D43,0)) -> 0 | AM43: =IF(Betrachtungszeit_PW*Fahrleistung_PW<AM$18,0,IF(AM$18-(COUNTIF($P43:AL43,">0")*$K43)>$K43,$D43,0)) -> 0 | AN43: =IF(Betrachtungszeit_PW*Fahrleistung_PW<AN$18,0,IF(AN$18-(COUNTIF($P43:AM43,">0")*$K43)>$K43,$D43,0)) -> 0 | AO43: =IF(Betrachtungszeit_PW*Fahrleistung_PW<AO$18,0,IF(AO$18-(COUNTIF($P43:AN43,">0")*$K43)>$K43,$D43,0)) -> 0 | AP43: =IF(Betrachtungszeit_PW*Fahrleistung_PW<AP$18,0,IF(AP$18-(COUNTIF($P43:AO43,">0")*$K43)>$K43,$D43,0)) -> 0 | AQ43: =IF(Betrachtungszeit_PW*Fahrleistung_PW<AQ$18,0,IF(AQ$18-(COUNTIF($P43:AP43,">0")*$K43)>$K43,$D43,0)) -> 0 | AR43: =IF(Betrachtungszeit_PW*Fahrleistung_PW<AR$18,0,IF(AR$18-(COUNTIF($P43:AQ43,">0")*$K43)>$K43,$D43,0)) -> 0 | AS43: =IF(Betrachtungszeit_PW*Fahrleistung_PW<AS$18,0,IF(AS$18-(COUNTIF($P43:AR43,">0")*$K43)>$K43,$D43,0)) -> 0 | AT43: =IF(Betrachtungszeit_PW*Fahrleistung_PW<AT$18,0,IF(AT$18-(COUNTIF($P43:AS43,">0")*$K43)>$K43,$D43,0)) -> 0 | AU43: 0 | AW43: 0 | AX43: 0 | AY43: 0 | AZ43: 0 | BA43: 0 | BB43: 0 | BC43: 0 | BD43: 0 | BE43: 0 | BF43: 0 | BG43: 0 | BH43: 0 | BI43: 0 | BJ43: 0 | BK43: 0 | BL43: 0 | BM43: 0 | BN43: 0 | BO43: 0 | BP43: 0 | BQ43: 0 | BR43: 0 | BS43: 0 | BT43: 0 | BU43: 0 | BV43: 0 | BW43: 0 | BX43: 0 | BY43: 0 | BZ43: 0 | CA43: 0
B44: Weitere Ersatzteile | E44: 150000 | K44: 150000 | O44: Weitere Ersatzteile: | P44: 0 | Q44: =IF(Betrachtungszeit_PW*Fahrleistung_PW<Q$18,0,IF(Q$18-(COUNTIF($P44:P44,">0")*$K44)>$K44,$D44,0)) -> 0 | R44: =IF(Betrachtungszeit_PW*Fahrleistung_PW<R$18,0,IF(R$18-(COUNTIF($P44:Q44,">0")*$K44)>$K44,$D44,0)) -> 0 | S44: =IF(Betrachtungszeit_PW*Fahrleistung_PW<S$18,0,IF(S$18-(COUNTIF($P44:R44,">0")*$K44)>$K44,$D44,0)) -> 0 | T44: =IF(Betrachtungszeit_PW*Fahrleistung_PW<T$18,0,IF(T$18-(COUNTIF($P44:S44,">0")*$K44)>$K44,$D44,0)) -> 0 | U44: =IF(Betrachtungszeit_PW*Fahrleistung_PW<U$18,0,IF(U$18-(COUNTIF($P44:T44,">0")*$K44)>$K44,$D44,0)) -> 0 | V44: =IF(Betrachtungszeit_PW*Fahrleistung_PW<V$18,0,IF(V$18-(COUNTIF($P44:U44,">0")*$K44)>$K44,$D44,0)) -> 0 | W44: =IF(Betrachtungszeit_PW*Fahrleistung_PW<W$18,0,IF(W$18-(COUNTIF($P44:V44,">0")*$K44)>$K44,$D44,0)) -> 0 | X44: =IF(Betrachtungszeit_PW*Fahrleistung_PW<X$18,0,IF(X$18-(COUNTIF($P44:W44,">0")*$K44)>$K44,$D44,0)) -> 0 | Y44: =IF(Betrachtungszeit_PW*Fahrleistung_PW<Y$18,0,IF(Y$18-(COUNTIF($P44:X44,">0")*$K44)>$K44,$D44,0)) -> 0 | Z44: =IF(Betrachtungszeit_PW*Fahrleistung_PW<Z$18,0,IF(Z$18-(COUNTIF($P44:Y44,">0")*$K44)>$K44,$D44,0)) -> 0 | AA44: =IF(Betrachtungszeit_PW*Fahrleistung_PW<AA$18,0,IF(AA$18-(COUNTIF($P44:Z44,">0")*$K44)>$K44,$D44,0)) -> 0 | AB44: =IF(Betrachtungszeit_PW*Fahrleistung_PW<AB$18,0,IF(AB$18-(COUNTIF($P44:AA44,">0")*$K44)>$K44,$D44,0)) -> 0 | AC44: =IF(Betrachtungszeit_PW*Fahrleistung_PW<AC$18,0,IF(AC$18-(COUNTIF($P44:AB44,">0")*$K44)>$K44,$D44,0)) -> 0 | AD44: =IF(Betrachtungszeit_PW*Fahrleistung_PW<AD$18,0,IF(AD$18-(COUNTIF($P44:AC44,">0")*$K44)>$K44,$D44,0)) -> 0 | AE44: =IF(Betrachtungszeit_PW*Fahrleistung_PW<AE$18,0,IF(AE$18-(COUNTIF($P44:AD44,">0")*$K44)>$K44,$D44,0)) -> 0 | AF44: =IF(Betrachtungszeit_PW*Fahrleistung_PW<AF$18,0,IF(AF$18-(COUNTIF($P44:AE44,">0")*$K44)>$K44,$D44,0)) -> 0 | AG44: =IF(Betrachtungszeit_PW*Fahrleistung_PW<AG$18,0,IF(AG$18-(COUNTIF($P44:AF44,">0")*$K44)>$K44,$D44,0)) -> 0 | AH44: =IF(Betrachtungszeit_PW*Fahrleistung_PW<AH$18,0,IF(AH$18-(COUNTIF($P44:AG44,">0")*$K44)>$K44,$D44,0)) -> 0 | AI44: =IF(Betrachtungszeit_PW*Fahrleistung_PW<AI$18,0,IF(AI$18-(COUNTIF($P44:AH44,">0")*$K44)>$K44,$D44,0)) -> 0 | AJ44: =IF(Betrachtungszeit_PW*Fahrleistung_PW<AJ$18,0,IF(AJ$18-(COUNTIF($P44:AI44,">0")*$K44)>$K44,$D44,0)) -> 0 | AK44: =IF(Betrachtungszeit_PW*Fahrleistung_PW<AK$18,0,IF(AK$18-(COUNTIF($P44:AJ44,">0")*$K44)>$K44,$D44,0)) -> 0 | AL44: =IF(Betrachtungszeit_PW*Fahrleistung_PW<AL$18,0,IF(AL$18-(COUNTIF($P44:AK44,">0")*$K44)>$K44,$D44,0)) -> 0 | AM44: =IF(Betrachtungszeit_PW*Fahrleistung_PW<AM$18,0,IF(AM$18-(COUNTIF($P44:AL44,">0")*$K44)>$K44,$D44,0)) -> 0 | AN44: =IF(Betrachtungszeit_PW*Fahrleistung_PW<AN$18,0,IF(AN$18-(COUNTIF($P44:AM44,">0")*$K44)>$K44,$D44,0)) -> 0 | AO44: =IF(Betrachtungszeit_PW*Fahrleistung_PW<AO$18,0,IF(AO$18-(COUNTIF($P44:AN44,">0")*$K44)>$K44,$D44,0)) -> 0 | AP44: =IF(Betrachtungszeit_PW*Fahrleistung_PW<AP$18,0,IF(AP$18-(COUNTIF($P44:AO44,">0")*$K44)>$K44,$D44,0)) -> 0 | AQ44: =IF(Betrachtungszeit_PW*Fahrleistung_PW<AQ$18,0,IF(AQ$18-(COUNTIF($P44:AP44,">0")*$K44)>$K44,$D44,0)) -> 0 | AR44: =IF(Betrachtungszeit_PW*Fahrleistung_PW<AR$18,0,IF(AR$18-(COUNTIF($P44:AQ44,">0")*$K44)>$K44,$D44,0)) -> 0 | AS44: =IF(Betrachtungszeit_PW*Fahrleistung_PW<AS$18,0,IF(AS$18-(COUNTIF($P44:AR44,">0")*$K44)>$K44,$D44,0)) -> 0 | AT44: =IF(Betrachtungszeit_PW*Fahrleistung_PW<AT$18,0,IF(AT$18-(COUNTIF($P44:AS44,">0")*$K44)>$K44,$D44,0)) -> 0 | AU44: 0 | AW44: 0 | AX44: 0 | AY44: 0 | AZ44: 0 | BA44: 0 | BB44: 0 | BC44: 0 | BD44: 0 | BE44: 0 | BF44: 0 | BG44: 0 | BH44: 0 | BI44: 0 | BJ44: 0 | BK44: 0 | BL44: 0 | BM44: 0 | BN44: 0 | BO44: 0 | BP44: 0 | BQ44: 0 | BR44: 0 | BS44: 0 | BT44: 0 | BU44: 0 | BV44: 0 | BW44: 0 | BX44: 0 | BY44: 0 | BZ44: 0 | CA44: 0
B45: Weitere Ersatzteile | E45: 150000 | K45: 150000 | O45: Weitere Ersatzteile: | P45: 0 | Q45: =IF(Betrachtungszeit_PW*Fahrleistung_PW<Q$18,0,IF(Q$18-(COUNTIF($P45:P45,">0")*$K45)>$K45,$D45,0)) -> 0 | R45: =IF(Betrachtungszeit_PW*Fahrleistung_PW<R$18,0,IF(R$18-(COUNTIF($P45:Q45,">0")*$K45)>$K45,$D45,0)) -> 0 | S45: =IF(Betrachtungszeit_PW*Fahrleistung_PW<S$18,0,IF(S$18-(COUNTIF($P45:R45,">0")*$K45)>$K45,$D45,0)) -> 0 | T45: =IF(Betrachtungszeit_PW*Fahrleistung_PW<T$18,0,IF(T$18-(COUNTIF($P45:S45,">0")*$K45)>$K45,$D45,0)) -> 0 | U45: =IF(Betrachtungszeit_PW*Fahrleistung_PW<U$18,0,IF(U$18-(COUNTIF($P45:T45,">0")*$K45)>$K45,$D45,0)) -> 0 | V45: =IF(Betrachtungszeit_PW*Fahrleistung_PW<V$18,0,IF(V$18-(COUNTIF($P45:U45,">0")*$K45)>$K45,$D45,0)) -> 0 | W45: =IF(Betrachtungszeit_PW*Fahrleistung_PW<W$18,0,IF(W$18-(COUNTIF($P45:V45,">0")*$K45)>$K45,$D45,0)) -> 0 | X45: =IF(Betrachtungszeit_PW*Fahrleistung_PW<X$18,0,IF(X$18-(COUNTIF($P45:W45,">0")*$K45)>$K45,$D45,0)) -> 0 | Y45: =IF(Betrachtungszeit_PW*Fahrleistung_PW<Y$18,0,IF(Y$18-(COUNTIF($P45:X45,">0")*$K45)>$K45,$D45,0)) -> 0 | Z45: =IF(Betrachtungszeit_PW*Fahrleistung_PW<Z$18,0,IF(Z$18-(COUNTIF($P45:Y45,">0")*$K45)>$K45,$D45,0)) -> 0 | AA45: =IF(Betrachtungszeit_PW*Fahrleistung_PW<AA$18,0,IF(AA$18-(COUNTIF($P45:Z45,">0")*$K45)>$K45,$D45,0)) -> 0 | AB45: =IF(Betrachtungszeit_PW*Fahrleistung_PW<AB$18,0,IF(AB$18-(COUNTIF($P45:AA45,">0")*$K45)>$K45,$D45,0)) -> 0 | AC45: =IF(Betrachtungszeit_PW*Fahrleistung_PW<AC$18,0,IF(AC$18-(COUNTIF($P45:AB45,">0")*$K45)>$K45,$D45,0)) -> 0 | AD45: =IF(Betrachtungszeit_PW*Fahrleistung_PW<AD$18,0,IF(AD$18-(COUNTIF($P45:AC45,">0")*$K45)>$K45,$D45,0)) -> 0 | AE45: =IF(Betrachtungszeit_PW*Fahrleistung_PW<AE$18,0,IF(AE$18-(COUNTIF($P45:AD45,">0")*$K45)>$K45,$D45,0)) -> 0 | AF45: =IF(Betrachtungszeit_PW*Fahrleistung_PW<AF$18,0,IF(AF$18-(COUNTIF($P45:AE45,">0")*$K45)>$K45,$D45,0)) -> 0 | AG45: =IF(Betrachtungszeit_PW*Fahrleistung_PW<AG$18,0,IF(AG$18-(COUNTIF($P45:AF45,">0")*$K45)>$K45,$D45,0)) -> 0 | AH45: =IF(Betrachtungszeit_PW*Fahrleistung_PW<AH$18,0,IF(AH$18-(COUNTIF($P45:AG45,">0")*$K45)>$K45,$D45,0)) -> 0 | AI45: =IF(Betrachtungszeit_PW*Fahrleistung_PW<AI$18,0,IF(AI$18-(COUNTIF($P45:AH45,">0")*$K45)>$K45,$D45,0)) -> 0 | AJ45: =IF(Betrachtungszeit_PW*Fahrleistung_PW<AJ$18,0,IF(AJ$18-(COUNTIF($P45:AI45,">0")*$K45)>$K45,$D45,0)) -> 0 | AK45: =IF(Betrachtungszeit_PW*Fahrleistung_PW<AK$18,0,IF(AK$18-(COUNTIF($P45:AJ45,">0")*$K45)>$K45,$D45,0)) -> 0 | AL45: =IF(Betrachtungszeit_PW*Fahrleistung_PW<AL$18,0,IF(AL$18-(COUNTIF($P45:AK45,">0")*$K45)>$K45,$D45,0)) -> 0 | AM45: =IF(Betrachtungszeit_PW*Fahrleistung_PW<AM$18,0,IF(AM$18-(COUNTIF($P45:AL45,">0")*$K45)>$K45,$D45,0)) -> 0 | AN45: =IF(Betrachtungszeit_PW*Fahrleistung_PW<AN$18,0,IF(AN$18-(COUNTIF($P45:AM45,">0")*$K45)>$K45,$D45,0)) -> 0 | AO45: =IF(Betrachtungszeit_PW*Fahrleistung_PW<AO$18,0,IF(AO$18-(COUNTIF($P45:AN45,">0")*$K45)>$K45,$D45,0)) -> 0 | AP45: =IF(Betrachtungszeit_PW*Fahrleistung_PW<AP$18,0,IF(AP$18-(COUNTIF($P45:AO45,">0")*$K45)>$K45,$D45,0)) -> 0 | AQ45: =IF(Betrachtungszeit_PW*Fahrleistung_PW<AQ$18,0,IF(AQ$18-(COUNTIF($P45:AP45,">0")*$K45)>$K45,$D45,0)) -> 0 | AR45: =IF(Betrachtungszeit_PW*Fahrleistung_PW<AR$18,0,IF(AR$18-(COUNTIF($P45:AQ45,">0")*$K45)>$K45,$D45,0)) -> 0 | AS45: =IF(Betrachtungszeit_PW*Fahrleistung_PW<AS$18,0,IF(AS$18-(COUNTIF($P45:AR45,">0")*$K45)>$K45,$D45,0)) -> 0 | AT45: =IF(Betrachtungszeit_PW*Fahrleistung_PW<AT$18,0,IF(AT$18-(COUNTIF($P45:AS45,">0")*$K45)>$K45,$D45,0)) -> 0 | AU45: 0 | AW45: 0 | AX45: 0 | AY45: 0 | AZ45: 0 | BA45: 0 | BB45: 0 | BC45: 0 | BD45: 0 | BE45: 0 | BF45: 0 | BG45: 0 | BH45: 0 | BI45: 0 | BJ45: 0 | BK45: 0 | BL45: 0 | BM45: 0 | BN45: 0 | BO45: 0 | BP45: 0 | BQ45: 0 | BR45: 0 | BS45: 0 | BT45: 0 | BU45: 0 | BV45: 0 | BW45: 0 | BX45: 0 | BY45: 0 | BZ45: 0 | CA45: 0
B46: Restwert Ersatzteile am Ende der Betrachtungszeit | C46: CHF | D46: =SUM(AU33:AU45) -> 0 | O46: Kosten Ersatzteile abzüglich Restwert | AU46: Nettobarwert
O47: Kosten Ersatzteile | P47: =SUM(P33:P37,P39:P45) -> 0 | Q47: =SUM(Q33:Q37,Q39:Q45) -> 0 | R47: 0 | S47: 0 | T47: 0 | U47: 0 | V47: 0 | W47: 0 | X47: 0 | Y47: 0 | Z47: 0 | AA47: 0 | AB47: 0 | AC47: 0 | AD47: 0 | AE47: 0 | AF47: 0 | AG47: 0 | AH47: 0 | AI47: 0 | AJ47: 0 | AK47: 0 | AL47: 0 | AM47: 0 | AN47: 0 | AO47: 0 | AP47: 0 | AQ47: 0 | AR47: 0 | AS47: 0 | AT47: 0
O48: Restwert Ersatzteile | P48: =IF(Betrachtungszeit_PW=P17,-$D$46,0) -> 0 | Q48: 0 | R48: 0 | S48: 0 | T48: 0 | U48: 0 | V48: 0 | W48: 0 | X48: 0 | Y48: 0 | Z48: 0 | AA48: 0 | AB48: 0 | AC48: 0 | AD48: 0 | AE48: 0 | AF48: 0 | AG48: 0 | AH48: 0 | AI48: 0 | AJ48: 0 | AK48: 0 | AL48: 0 | AM48: 0 | AN48: 0 | AO48: 0 | AP48: 0 | AQ48: 0 | AR48: 0 | AS48: 0 | AT48: 0
B49: Service- und Reparaturkosten | C49: Beschreibung | D49: Kosten (alle Fahrz.) [CHF/a] | O49: Kosten inkl. Preissteigerung | P49: =SUM(P47:P48)*(1+Inflationsindex)^P$17 -> 0 | Q49: 0 | R49: 0 | S49: 0 | T49: 0 | U49: 0 | V49: 0 | W49: 0 | X49: 0 | Y49: 0 | Z49: 0 | AA49: 0 | AB49: 0 | AC49: 0 | AD49: 0 | AE49: 0 | AF49: 0 | AG49: 0 | AH49: 0 | AI49: 0 | AJ49: 0 | AK49: 0 | AL49: 0 | AM49: 0 | AN49: 0 | AO49: 0 | AP49: 0 | AQ49: 0 | AR49: 0 | AS49: 0 | AT49: 0
B50: Servicekosten | O50: Barwert | P50: =P49*(1+Kalkulationszinssatz)^-P$17 -> 0 | Q50: 0 | R50: 0 | S50: 0 | T50: 0 | U50: 0 | V50: 0 | W50: 0 | X50: 0 | Y50: 0 | Z50: 0 | AA50: 0 | AB50: 0 | AC50: 0 | AD50: 0 | AE50: 0 | AF50: 0 | AG50: 0 | AH50: 0 | AI50: 0 | AJ50: 0 | AK50: 0 | AL50: 0 | AM50: 0 | AN50: 0 | AO50: 0 | AP50: 0 | AQ50: 0 | AR50: 0 | AS50: 0 | AT50: 0 | AU50: =SUM(P50:AT50) -> 0
B51: Reperaturkosten
B52: Weitere jährliche Service- und Reparaturkosten
B53: Weitere jährliche Service- und Reparaturkosten
B54: Weitere jährliche Service- und Reparaturkosten
B55: Total | D55: =SUM(D50:D54) -> 0 | O55: Service- und Reparaturkosten | AU55: Nettobarwert
O56: Kosten inkl. Preissteigerung | P56: 0 | Q56: =IF(Q$17<=Betrachtungszeit_PW,D55+D55*Inflationsindex,0) -> 0 | R56: =IF(R$17<=Betrachtungszeit_PW,Q56+Q56*Inflationsindex,0) -> 0 | S56: 0 | T56: 0 | U56: 0 | V56: 0 | W56: 0 | X56: 0 | Y56: 0 | Z56: 0 | AA56: 0 | AB56: 0 | AC56: 0 | AD56: 0 | AE56: 0 | AF56: 0 | AG56: 0 | AH56: 0 | AI56: 0 | AJ56: 0 | AK56: 0 | AL56: 0 | AM56: 0 | AN56: 0 | AO56: 0 | AP56: 0 | AQ56: 0 | AR56: 0 | AS56: 0 | AT56: 0
A57: K | B57: Betriebskosten | O57: Barwert | P57: 0 | Q57: =Q56*(1+Kalkulationszinssatz)^-Q$17 -> 0 | R57: 0 | S57: 0 | T57: 0 | U57: 0 | V57: 0 | W57: 0 | X57: 0 | Y57: 0 | Z57: 0 | AA57: 0 | AB57: 0 | AC57: 0 | AD57: 0 | AE57: 0 | AF57: 0 | AG57: 0 | AH57: 0 | AI57: 0 | AJ57: 0 | AK57: 0 | AL57: 0 | AM57: 0 | AN57: 0 | AO57: 0 | AP57: 0 | AQ57: 0 | AR57: 0 | AS57: 0 | AT57: 0 | AU57: =SUM(P57:AT57) -> 0
B58: Verkehrssteuer
B59: Haftpflicht-Versicherung
B60: Kasko-Versicherung
B61: Weitere Versicherungen
B62: Pannenhilfe, Assistance
B63: Garagierungskosten
B64: Autobahnvignette
B65: Strassenbenützungsgebühren
B66: Mitgliedsbeiträge
B67: Nebenauslagen
B68: Fahrzeugpflege
B69: Weitere jährliche Betriebskosten | O69: Betriebskosten | AU69: Nettobarwert
B70: Weitere jährliche Betriebskosten | O70: Kosten inkl. Preissteigerung | P70: 0 | Q70: =IF(Q$17<=Betrachtungszeit_PW,D72+D72*Inflationsindex,0) -> 0 | R70: =IF(R$17<=Betrachtungszeit_PW,Q70+Q70*Inflationsindex,0) -> 0 | S70: 0 | T70: 0 | U70: 0 | V70: 0 | W70: 0 | X70: 0 | Y70: 0 | Z70: 0 | AA70: 0 | AB70: 0 | AC70: 0 | AD70: 0 | AE70: 0 | AF70: 0 | AG70: 0 | AH70: 0 | AI70: 0 | AJ70: 0 | AK70: 0 | AL70: 0 | AM70: 0 | AN70: 0 | AO70: 0 | AP70: 0 | AQ70: 0 | AR70: 0 | AS70: 0 | AT70: 0
B71: Weitere jährliche Betriebskosten | O71: Barwert | P71: 0 | Q71: =Q70*(1+Kalkulationszinssatz)^-Q$17 -> 0 | R71: 0 | S71: 0 | T71: 0 | U71: 0 | V71: 0 | W71: 0 | X71: 0 | Y71: 0 | Z71: 0 | AA71: 0 | AB71: 0 | AC71: 0 | AD71: 0 | AE71: 0 | AF71: 0 | AG71: 0 | AH71: 0 | AI71: 0 | AJ71: 0 | AK71: 0 | AL71: 0 | AM71: 0 | AN71: 0 | AO71: 0 | AP71: 0 | AQ71: 0 | AR71: 0 | AS71: 0 | AT71: 0 | AU71: =SUM(P71:AT71) -> 0
B72: Total | D72: =SUM(D58:D71) -> 0
B74: Energie- und Ladekosten | C74: ="Treibstoff: "&$C$8 -> Treibstoff: BITTE WÄHLEN | D74: Total | O74: Energie- und Ladekosten | AU74: Nettobarwert
A75: K | B75: Leistungskosten (eigene Ladestation) | C75: =IF(C13=13,C11*12,0)*VLOOKUP(C13,Input_Generell!$W$9:$AB$22,2,0) -> 0 | D75: =SUM(C75:C75) -> 0 | E75: CHF/a | O75: Leistungskosten (eigene Ladestation) inkl. Energiepreissteigerung | P75: 0 | Q75: =IF(Q$17<=Betrachtungszeit_PW,$D$75*(1+Energiepreissteigerung),0) -> 0 | R75: =IF(R$17<=Betrachtungszeit_PW,Q75*(1+Energiepreissteigerung),0) -> 0 | S75: 0 | T75: 0 | U75: 0 | V75: 0 | W75: 0 | X75: 0 | Y75: 0 | Z75: 0 | AA75: 0 | AB75: 0 | AC75: 0 | AD75: 0 | AE75: 0 | AF75: 0 | AG75: 0 | AH75: 0 | AI75: 0 | AJ75: 0 | AK75: 0 | AL75: 0 | AM75: 0 | AN75: 0 | AO75: 0 | AP75: 0 | AQ75: 0 | AR75: 0 | AS75: 0 | AT75: 0
A76: K | B76: Energiekosten (eigene Ladestation) | C76: =IF(C13=13,Anteil_Intern*C10*Stückzahl_PW*1000*(Anteil_HT*StrompreisHT/100+Anteil_NT*StrompreisNT/100),0) -> 0 | D76: =SUM(C76:C76) -> 0 | E76: CHF/a | O76: Energiekosten (eigene Ladestation) inkl. Energiepreissteigerung | P76: 0 | Q76: =IF(Q$17<=Betrachtungszeit_PW,$D$76*(1+Energiepreissteigerung),0) -> 0 | R76: =IF(R$17<=Betrachtungszeit_PW,Q76*(1+Energiepreissteigerung),0) -> 0 | S76: 0 | T76: 0 | U76: 0 | V76: 0 | W76: 0 | X76: 0 | Y76: 0 | Z76: 0 | AA76: 0 | AB76: 0 | AC76: 0 | AD76: 0 | AE76: 0 | AF76: 0 | AG76: 0 | AH76: 0 | AI76: 0 | AJ76: 0 | AK76: 0 | AL76: 0 | AM76: 0 | AN76: 0 | AO76: 0 | AP76: 0 | AQ76: 0 | AR76: 0 | AS76: 0 | AT76: 0
B77: Energiekosten (externes Tanken/Laden) | C77: =IF(C13=13,Anteil_Extern*Verbrauchsbasiert_Preis/100*C10*Stückzahl_PW*1000,VLOOKUP(C13,Input_Generell!$W$9:$AB$22,3,0)/100*C10*Stückzahl_PW*1000) -> 0 | D77: =SUM(C77:C77) -> 0 | E77: CHF/a | O77: Energiekosten (externes Tanken/Laden) inkl. Energiepreissteigerung | P77: 0 | Q77: =IF(Q$17<=Betrachtungszeit_PW,$D$77*(1+Energiepreissteigerung),0) -> 0 | R77: =IF(R$17<=Betrachtungszeit_PW,Q77*(1+Energiepreissteigerung),0) -> 0 | S77: 0 | T77: 0 | U77: 0 | V77: 0 | W77: 0 | X77: 0 | Y77: 0 | Z77: 0 | AA77: 0 | AB77: 0 | AC77: 0 | AD77: 0 | AE77: 0 | AF77: 0 | AG77: 0 | AH77: 0 | AI77: 0 | AJ77: 0 | AK77: 0 | AL77: 0 | AM77: 0 | AN77: 0 | AO77: 0 | AP77: 0 | AQ77: 0 | AR77: 0 | AS77: 0 | AT77: 0
A78: K | B78: Strompreisunabhängige Ladekosten (externes Laden) | C78: =IF(C13=13,Input_Generell!D22,0) -> 0 | D78: =SUM(C78:C78) -> 0 | E78: CHF/a | O78: Strompreisunabh. Ladekosten (externes Laden) inkl. Preissteigerung | P78: 0 | Q78: =IF(Q$17<=Betrachtungszeit_PW,$D$78*(1+Inflationsindex),0) -> 0 | R78: =IF(R$17<=Betrachtungszeit_PW,Q78*(1+Inflationsindex),0) -> 0 | S78: 0 | T78: 0 | U78: 0 | V78: 0 | W78: 0 | X78: 0 | Y78: 0 | Z78: 0 | AA78: 0 | AB78: 0 | AC78: 0 | AD78: 0 | AE78: 0 | AF78: 0 | AG78: 0 | AH78: 0 | AI78: 0 | AJ78: 0 | AK78: 0 | AL78: 0 | AM78: 0 | AN78: 0 | AO78: 0 | AP78: 0 | AQ78: 0 | AR78: 0 | AS78: 0 | AT78: 0
B79: Total | C79: =SUM(C75:C78) -> 0 | D79: =SUM(D75:D78) -> 0 | E79: CHF/a | O79: Barwert | P79: 0 | Q79: =SUM(Q75:Q78)*(1+Kalkulationszinssatz)^-Q$17 -> 0 | R79: 0 | S79: 0 | T79: 0 | U79: 0 | V79: 0 | W79: 0 | X79: 0 | Y79: 0 | Z79: 0 | AA79: 0 | AB79: 0 | AC79: 0 | AD79: 0 | AE79: 0 | AF79: 0 | AG79: 0 | AH79: 0 | AI79: 0 | AJ79: 0 | AK79: 0 | AL79: 0 | AM79: 0 | AN79: 0 | AO79: 0 | AP79: 0 | AQ79: 0 | AR79: 0 | AS79: 0 | AT79: 0 | AU79: =SUM(P79:AT79) -> 0
B81: Betrieb: Externe Kosten | C81: ="Treibstoff: "&$C$8 -> Treibstoff: BITTE WÄHLEN | D81: Total
B82: Treibhausgasemissionen (THG) | C82: =C10*Stückzahl_PW*(1/1000)*IF(C13=13,Anteil_Intern*EF_Strom+Anteil_Extern*EF_Verbrauchsbasiert,VLOOKUP(C13,Input_Generell!$W$9:$AB$22,5,0)) -> 0 | D82: =SUM(C82:C82) -> 0 | E82: tCO2eq/a | O82: Betrieb: Externe Kosten Treibhausgasemissionen | AU82: Nettobarwert
B83: Umweltbelastungspunkte UBP'13 | C83: =C10*Stückzahl_PW*1000*IF(C13=13,Anteil_Intern*UBP_Strom+Anteil_Extern*UBP_Strom_Extern,VLOOKUP(C13,Input_Generell!$W$9:$AB$22,6,0)) -> 0 | D83: =SUM(C83:C83) -> 0 | E83: UBP/a | O83: Kosten inkl. Preissteigerung | P83: 0 | Q83: =IF(Q$17<=Betrachtungszeit_PW,D84+D84*Inflationsindex,0) -> 0 | R83: =IF(R$17<=Betrachtungszeit_PW,Q83+Q83*Inflationsindex,0) -> 0 | S83: 0 | T83: 0 | U83: 0 | V83: 0 | W83: 0 | X83: 0 | Y83: 0 | Z83: 0 | AA83: 0 | AB83: 0 | AC83: 0 | AD83: 0 | AE83: 0 | AF83: 0 | AG83: 0 | AH83: 0 | AI83: 0 | AJ83: 0 | AK83: 0 | AL83: 0 | AM83: 0 | AN83: 0 | AO83: 0 | AP83: 0 | AQ83: 0 | AR83: 0 | AS83: 0 | AT83: 0
B84: =VLOOKUP(Input_Generell!$B$28,Input_Generell!$B$52:$D$55,3,0) -> Kosten für THG: nicht gewählt | C84: =C82*Kosten_THG -> 0 | D84: =SUM(C84:C84) -> 0 | E84: CHF/a | O84: Barwert | P84: 0 | Q84: =Q83*(1+Kalkulationszinssatz)^-Q$17 -> 0 | R84: 0 | S84: 0 | T84: 0 | U84: 0 | V84: 0 | W84: 0 | X84: 0 | Y84: 0 | Z84: 0 | AA84: 0 | AB84: 0 | AC84: 0 | AD84: 0 | AE84: 0 | AF84: 0 | AG84: 0 | AH84: 0 | AI84: 0 | AJ84: 0 | AK84: 0 | AL84: 0 | AM84: 0 | AN84: 0 | AO84: 0 | AP84: 0 | AQ84: 0 | AR84: 0 | AS84: 0 | AT84: 0 | AU84: =SUM(P84:AT84) -> 0
B86: Entsorgungskosten | O86: Entsorgung am Ende der Betrachtungszeit der Lebenszyklusrechnung | AU86: Nettobarwert
A87: K | B87: Entsorgungskosten | E87: CHF | O87: Kosten inkl. Preissteigerung | P87: 0 | Q87: =IF(Q$17=Betrachtungszeit_PW,$D$87*(1+Inflationsindex)^Q$17,0) -> 0 | R87: 0 | S87: 0 | T87: 0 | U87: 0 | V87: 0 | W87: 0 | X87: 0 | Y87: 0 | Z87: 0 | AA87: 0 | AB87: 0 | AC87: 0 | AD87: 0 | AE87: 0 | AF87: 0 | AG87: 0 | AH87: 0 | AI87: 0 | AJ87: 0 | AK87: 0 | AL87: 0 | AM87: 0 | AN87: 0 | AO87: 0 | AP87: 0 | AQ87: 0 | AR87: 0 | AS87: 0 | AT87: 0
O88: Barwert | P88: 0 | Q88: =Q87*(1+Kalkulationszinssatz)^-Q$17 -> 0 | R88: 0 | S88: 0 | T88: 0 | U88: 0 | V88: 0 | W88: 0 | X88: 0 | Y88: 0 | Z88: 0 | AA88: 0 | AB88: 0 | AC88: 0 | AD88: 0 | AE88: 0 | AF88: 0 | AG88: 0 | AH88: 0 | AI88: 0 | AJ88: 0 | AK88: 0 | AL88: 0 | AM88: 0 | AN88: 0 | AO88: 0 | AP88: 0 | AQ88: 0 | AR88: 0 | AS88: 0 | AT88: 0 | AU88: =SUM(P88:AT88) -> 0
B90: Umweltrelevante Angaben Erstellung und Entsorgung der Fahrzeuge
B91: Die Treibhausgas-Emissionen und Umweltbelastungspunkte, die aus der Erstellung und Entsorgung der Fahrzeuge entstehen, können nachfolgend berechnet werden. Mit Hilfe des mobitools (2017) kann die Grössenordnung der Treibhausgas-Emissionen und Umweltbelastungspunkte aus der Herstellung und Entsorgung ermittelt werden. Mobitool gibt diese Emissionen pro Kilometer aus (ausgehend von einer typischen Distanz über die Lebensdauer). Insbesondere wenn die Fahrzeuge über die Lebensdauer besonders wenig oder besonders viele Kilometer zurücklegen und/oder Fahrzeuge mit erneuerbaren Treibstoffen verglichen werden, empfiehlt sich jedoch eine genauere Abklärung. Falls aus der Erstellung und Entsorgung keine Daten einbezogen werden sollen, können die Eingabewerte leer gelassen werden. Die Vorgehensweise für die Ermittlung der Eingabewerte mit Hilfe des mobitools wird nachfolgend beschrieben. Im mobitool, in der Zeile des betroffenen Fahrzeugmodells: - Auslastung auf 1 setzen (somit werden die Werte pro Kilometer anstelle pro Personen-Kilometer ausgegeben) - Das 'Fahrzeuggewicht' sowie bei Elektro-Fahrzeugen das 'Batteriegewicht' und die 'Anzahl Batteriewechsel über Lebensdauer' anpassen - Im grauen Bereich oben links den gewünschten Indikator wählen ('Treibhausgaspotenzial' resp. 'UBP13') - In der Spalte 'Fahrzeugherstellung / -entsorgung' können die Werte für CO2eq resp. UBP abgelesen werden
B93: Erstellung und Entsorgung Fahrzeug: Externe Kosten | C93: Fahrzeugherstellung / -entsorgung | E93: Total
B94: Treibhausgasemissionen (THG) | D94: g CO2eq / km / Fahrz. | E94: =Stückzahl_PW*Betrachtungszeit_PW*Fahrleistung_PW*C94/1000000 -> 0 | F94: tCO2eq
B95: Umweltbelastungspunkte UBP'13 | D95: UBP / km / Fahrz. | E95: =Stückzahl_PW*Betrachtungszeit_PW*Fahrleistung_PW*C95 -> 0 | F95: UBP | O95: Erstellung / Entsorgung: Externe Kosten Treibhausgasemissionen | AU95: Nettobarwert
A96: K | B96: =VLOOKUP(Input_Generell!$B$28,Input_Generell!$B$52:$D$55,3,0) -> Kosten für THG: nicht gewählt | E96: =E94*Kosten_THG -> 0 | F96: CHF | O96: Barwert | P96: =E96 -> 0 | AU96: =SUM(P96:AT96) -> 0
B99: Lebenszykluskosten
B100: Kosten des Fahrzeugs über den gesamten Lebenszyklus gesehen (in Form des Nettobarwertes = Kapitalwert).
O101: Barwerte | AU101: Nettobarwert
A102: K | B102: Anschaffungskosten (abzüglich Förderbeitrag, Restwert) | E102: =AU102 -> 0 | F102: CHF | O102: =B102 -> Anschaffungskosten (abzüglich Förderbeitrag, Restwert) | P102: =P29 -> 0 | Q102: 0 | R102: 0 | S102: 0 | T102: 0 | U102: 0 | V102: 0 | W102: 0 | X102: 0 | Y102: 0 | Z102: 0 | AA102: 0 | AB102: 0 | AC102: 0 | AD102: 0 | AE102: 0 | AF102: 0 | AG102: 0 | AH102: 0 | AI102: 0 | AJ102: 0 | AK102: 0 | AL102: 0 | AM102: 0 | AN102: 0 | AO102: 0 | AP102: 0 | AQ102: 0 | AR102: 0 | AS102: 0 | AT102: 0 | AU102: 0
B103: Kosten Ersatzteile (abzüglich Restwert) | E103: =AU103 -> 0 | F103: CHF | O103: Kosten Ersatzteile (abzüglich Restwert) | P103: =P50 -> 0 | Q103: 0 | R103: 0 | S103: 0 | T103: 0 | U103: 0 | V103: 0 | W103: 0 | X103: 0 | Y103: 0 | Z103: 0 | AA103: 0 | AB103: 0 | AC103: 0 | AD103: 0 | AE103: 0 | AF103: 0 | AG103: 0 | AH103: 0 | AI103: 0 | AJ103: 0 | AK103: 0 | AL103: 0 | AM103: 0 | AN103: 0 | AO103: 0 | AP103: 0 | AQ103: 0 | AR103: 0 | AS103: 0 | AT103: 0 | AU103: 0
B104: Service- und Reparaturkosten | E104: =AU104 -> 0 | F104: CHF | O104: Service- und Reparaturkosten | P104: =P57 -> 0 | Q104: 0 | R104: 0 | S104: 0 | T104: 0 | U104: 0 | V104: 0 | W104: 0 | X104: 0 | Y104: 0 | Z104: 0 | AA104: 0 | AB104: 0 | AC104: 0 | AD104: 0 | AE104: 0 | AF104: 0 | AG104: 0 | AH104: 0 | AI104: 0 | AJ104: 0 | AK104: 0 | AL104: 0 | AM104: 0 | AN104: 0 | AO104: 0 | AP104: 0 | AQ104: 0 | AR104: 0 | AS104: 0 | AT104: 0 | AU104: 0
B105: Betriebskosten | E105: =AU105 -> 0 | F105: CHF | O105: Betriebskosten | P105: =P71 -> 0 | Q105: 0 | R105: 0 | S105: 0 | T105: 0 | U105: 0 | V105: 0 | W105: 0 | X105: 0 | Y105: 0 | Z105: 0 | AA105: 0 | AB105: 0 | AC105: 0 | AD105: 0 | AE105: 0 | AF105: 0 | AG105: 0 | AH105: 0 | AI105: 0 | AJ105: 0 | AK105: 0 | AL105: 0 | AM105: 0 | AN105: 0 | AO105: 0 | AP105: 0 | AQ105: 0 | AR105: 0 | AS105: 0 | AT105: 0 | AU105: 0
B106: Energiekosten | E106: 0 | F106: CHF | O106: Energiekosten | P106: =P79 -> 0 | Q106: 0 | R106: 0 | S106: 0 | T106: 0 | U106: 0 | V106: 0 | W106: 0 | X106: 0 | Y106: 0 | Z106: 0 | AA106: 0 | AB106: 0 | AC106: 0 | AD106: 0 | AE106: 0 | AF106: 0 | AG106: 0 | AH106: 0 | AI106: 0 | AJ106: 0 | AK106: 0 | AL106: 0 | AM106: 0 | AN106: 0 | AO106: 0 | AP106: 0 | AQ106: 0 | AR106: 0 | AS106: 0 | AT106: 0 | AU106: 0
A107: K | B107: =VLOOKUP(Input_Generell!$B$28,Input_Generell!$B$52:$D$55,3,0)&" (Betrieb und Erstellung/Entsorgung)" -> Kosten für THG: nicht gewählt (Betrieb und Erstellung/Entsorgung) | E107: 0 | F107: CHF | O107: Kosten für THG: nicht gewählt (Betrieb und Erstellung/Entsorgung) | P107: =P84+P96 -> 0 | Q107: 0 | R107: 0 | S107: 0 | T107: 0 | U107: 0 | V107: 0 | W107: 0 | X107: 0 | Y107: 0 | Z107: 0 | AA107: 0 | AB107: 0 | AC107: 0 | AD107: 0 | AE107: 0 | AF107: 0 | AG107: 0 | AH107: 0 | AI107: 0 | AJ107: 0 | AK107: 0 | AL107: 0 | AM107: 0 | AN107: 0 | AO107: 0 | AP107: 0 | AQ107: 0 | AR107: 0 | AS107: 0 | AT107: 0 | AU107: 0
B108: Entsorgungskosten | E108: 0 | F108: CHF | O108: Entsorgungskosten | P108: =P88 -> 0 | Q108: 0 | R108: 0 | S108: 0 | T108: 0 | U108: 0 | V108: 0 | W108: 0 | X108: 0 | Y108: 0 | Z108: 0 | AA108: 0 | AB108: 0 | AC108: 0 | AD108: 0 | AE108: 0 | AF108: 0 | AG108: 0 | AH108: 0 | AI108: 0 | AJ108: 0 | AK108: 0 | AL108: 0 | AM108: 0 | AN108: 0 | AO108: 0 | AP108: 0 | AQ108: 0 | AR108: 0 | AS108: 0 | AT108: 0 | AU108: 0
B109: Total | E109: 0 | F109: CHF | O109: Total | P109: =SUM(P102:P108) -> 0 | Q109: 0 | R109: 0 | S109: 0 | T109: 0 | U109: 0 | V109: 0 | W109: 0 | X109: 0 | Y109: 0 | Z109: 0 | AA109: 0 | AB109: 0 | AC109: 0 | AD109: 0 | AE109: 0 | AF109: 0 | AG109: 0 | AH109: 0 | AI109: 0 | AJ109: 0 | AK109: 0 | AL109: 0 | AM109: 0 | AN109: 0 | AO109: 0 | AP109: 0 | AQ109: 0 | AR109: 0 | AS109: 0 | AT109: 0 | AU109: 0
O110: Total aufsummiert | P110: =P109 -> 0 | Q110: =P110+Q109 -> 0 | R110: =Q110+R109 -> 0 | S110: =R110+S109 -> 0 | T110: 0 | U110: 0 | V110: 0 | W110: 0 | X110: 0 | Y110: 0 | Z110: 0 | AA110: 0 | AB110: 0 | AC110: 0 | AD110: 0 | AE110: 0 | AF110: 0 | AG110: 0 | AH110: 0 | AI110: 0 | AJ110: 0 | AK110: 0 | AL110: 0 | AM110: 0 | AN110: 0 | AO110: 0 | AP110: 0 | AQ110: 0 | AR110: 0 | AS110: 0 | AT110: =AS110+AT109 -> 0
B111: Treibhausgasemissionen Erstellung/Entsorgung Fahrzeuge (Scope 3) | E111: =E94 -> 0 | F111: tCO2eq | O111: Diagramm Anzeige Betrachtungszeit | P111: =IF(P17=Betrachtungszeit_PW,MAX(Resultate_PW!$D$14:$H$14),0) -> 0 | Q111: =IF(Q17=Betrachtungszeit_PW,MAX(Resultate_PW!$D$14:$H$14),0) -> 0 | R111: =IF(R17=Betrachtungszeit_PW,MAX(Resultate_PW!$D$14:$H$14),0) -> 0 | S111: =IF(S17=Betrachtungszeit_PW,MAX(Resultate_PW!$D$14:$H$14),0) -> 0 | T111: =IF(T17=Betrachtungszeit_PW,MAX(Resultate_PW!$D$14:$H$14),0) -> 0 | U111: =IF(U17=Betrachtungszeit_PW,MAX(Resultate_PW!$D$14:$H$14),0) -> 0 | V111: =IF(V17=Betrachtungszeit_PW,MAX(Resultate_PW!$D$14:$H$14),0) -> 0 | W111: =IF(W17=Betrachtungszeit_PW,MAX(Resultate_PW!$D$14:$H$14),0) -> 0 | X111: =IF(X17=Betrachtungszeit_PW,MAX(Resultate_PW!$D$14:$H$14),0) -> 0 | Y111: =IF(Y17=Betrachtungszeit_PW,MAX(Resultate_PW!$D$14:$H$14),0) -> 0 | Z111: =IF(Z17=Betrachtungszeit_PW,MAX(Resultate_PW!$D$14:$H$14),0) -> 0 | AA111: =IF(AA17=Betrachtungszeit_PW,MAX(Resultate_PW!$D$14:$H$14),0) -> 0 | AB111: =IF(AB17=Betrachtungszeit_PW,MAX(Resultate_PW!$D$14:$H$14),0) -> 0 | AC111: =IF(AC17=Betrachtungszeit_PW,MAX(Resultate_PW!$D$14:$H$14),0) -> 0 | AD111: =IF(AD17=Betrachtungszeit_PW,MAX(Resultate_PW!$D$14:$H$14),0) -> 0 | AE111: =IF(AE17=Betrachtungszeit_PW,MAX(Resultate_PW!$D$14:$H$14),0) -> 0 | AF111: =IF(AF17=Betrachtungszeit_PW,MAX(Resultate_PW!$D$14:$H$14),0) -> 0 | AG111: =IF(AG17=Betrachtungszeit_PW,MAX(Resultate_PW!$D$14:$H$14),0) -> 0 | AH111: =IF(AH17=Betrachtungszeit_PW,MAX(Resultate_PW!$D$14:$H$14),0) -> 0 | AI111: =IF(AI17=Betrachtungszeit_PW,MAX(Resultate_PW!$D$14:$H$14),0) -> 0 | AJ111: =IF(AJ17=Betrachtungszeit_PW,MAX(Resultate_PW!$D$14:$H$14),0) -> 0 | AK111: =IF(AK17=Betrachtungszeit_PW,MAX(Resultate_PW!$D$14:$H$14),0) -> 0 | AL111: =IF(AL17=Betrachtungszeit_PW,MAX(Resultate_PW!$D$14:$H$14),0) -> 0 | AM111: =IF(AM17=Betrachtungszeit_PW,MAX(Resultate_PW!$D$14:$H$14),0) -> 0 | AN111: =IF(AN17=Betrachtungszeit_PW,MAX(Resultate_PW!$D$14:$H$14),0) -> 0 | AO111: =IF(AO17=Betrachtungszeit_PW,MAX(Resultate_PW!$D$14:$H$14),0) -> 0 | AP111: =IF(AP17=Betrachtungszeit_PW,MAX(Resultate_PW!$D$14:$H$14),0) -> 0 | AQ111: =IF(AQ17=Betrachtungszeit_PW,MAX(Resultate_PW!$D$14:$H$14),0) -> 0 | AR111: =IF(AR17=Betrachtungszeit_PW,MAX(Resultate_PW!$D$14:$H$14),0) -> 0 | AS111: =IF(AS17=Betrachtungszeit_PW,MAX(Resultate_PW!$D$14:$H$14),0) -> 0 | AT111: =IF(AT17=Betrachtungszeit_PW,MAX(Resultate_PW!$D$14:$H$14),0) -> 0
B112: Treibhausgasemissionen Betrieb (Scope 1 und 2) | E112: =Betrachtungszeit_PW*D82 -> 0 | F112: tCO2eq
B113: Umweltbelastungspunkte UBP'13 Erstellung/Entsorgung Fahrzeuge | E113: =E95 -> 0 | F113: UBP
B114: Umweltbelastungspunkte UBP'13 Betrieb | E114: =Betrachtungszeit_PW*D83 -> 0 | F114: UBP
A115: K | B115: Gestehungskosten pro km | E115: =IF(C9=0,0,E109*100/(Stückzahl_PW*Fahrleistung_PW*Betrachtungszeit_PW)) -> 0 | F115: Rp./km
A116: K | B116: Jahreskosten pro km | E116: =IF(C9=0,0,((1+Kalkulationszinssatz)^Betrachtungszeit_PW*Kalkulationszinssatz)/((1+Kalkulationszinssatz)^Betrachtungszeit_PW-1)*E109*100/(Stückzahl_PW*Fahrleistung_PW)) -> 0 | F116: Rp./km
B120: Auswahlfelder und Defaultwerte
B122: Auswahlfeld | C122: Antrieb Nummer | D122: Energieträger-Nummer | E122: Energieträger
B123: BITTE WÄHLEN | C123: 0 | D123: 0 | E123: Energieträger
B124: Elektrizität | C124: 1 | D124: 13 | E124: Strom
B125: CNG | C125: 3 | D125: 1 | E125: ="CNG ("&Input_Generell!X10*100&"% Biogas)" -> CNG (20% Biogas)
B126: Benzin | C126: 5 | D126: 3 | E126: Benzin
B127: Diesel | C127: 6 | D127: 4 | E127: Diesel
B128: Weiterer Antrieb | C128: 14 | D128: 11 | E128: =Input_Generell!B15 -> Weitere
B131: Auswahlfeld
B132: BITTE WÄHLEN
B133: ja
B134: nein

Sheet PW_V5
B1: DATENEINGABE PERSONENWAGEN
B3: Angaben des Anbieters (mit Angebot abzugeben)
B5: Variante | C5: V5
A6: K | B6: Variantenbezeichnung (kurz) | G6: K | H6: Rechenhilfe Treibstoffverbrauch
B7: Variantenbeschreibung | H7: Energie-träger | I7: Menge | J7: kWh | L7: Umrechnungsfaktor in kWh(Heizwert)
B8: Personenwagen, Treibstoffart | C8: BITTE WÄHLEN | H8: CNG [kg] | J8: =I8*M8 -> 0 | L8: kWh/kg | M8: 13.81
A9: K | B9: Treibstoffverbrauch pro 100 km und Fahrzeug | D9: kWh/100km/Fahrzeug | H9: Benzin [Liter] | J9: =I9*M9 -> 0 | L9: kWh/Liter | M9: 8.72
B10: ="Treibstoffverbrauch ("&VLOOKUP(C12,C123:G128,3,0)&")" -> Treibstoffverbrauch (Energieträger) | C10: =C9/100*Fahrleistung_PW/1000 -> 0 | D10: MWh/a/Fahrzeug | H10: Diesel [Liter] | J10: =I10*M10 -> 0 | L10: kWh/Liter | M10: 9.91
A11: K | B11: Max. Leistungsbedarf (für Laden von Elektrofahrz.) | D11: kW
B12: Antrieb Nummer | C12: =IF(ISBLANK(C8),0,VLOOKUP(C8,$B$123:$G$128,2,0)) -> 0
B13: Energieträger Nummer | C13: =IF(ISBLANK(C8),0,VLOOKUP(C8,$B$123:$F$128,3,0)) -> 0
A15: K | B15: Förderbeiträge total | D15: CHF | K15: Rechenwerte | O15: Berechnungen | AW15: Berechnungen
P16: (Re)Investition in CHF im Jahr… | AW16: Restwert nach Abschreibung am Ende des Jahres… (Berücksichtigt Reinvestition nach Ablauf der Lebensdauer)
K17: Lebens- dauer [a] | L17: Zwischen-resultate | M17: Jährliche Ab-schreibung [CHF/a] | O17: Jahr | P17: 0 | Q17: 1 | R17: 2 | S17: 3 | T17: 4 | U17: 5 | V17: 6 | W17: 7 | X17: 8 | Y17: 9 | Z17: 10 | AA17: 11 | AB17: 12 | AC17: 13 | AD17: 14 | AE17: 15 | AF17: 16 | AG17: 17 | AH17: 18 | AI17: 19 | AJ17: 20 | AK17: 21 | AL17: 22 | AM17: 23 | AN17: 24 | AO17: 25 | AP17: 26 | AQ17: 27 | AR17: 28 | AS17: 29 | AT17: 30 | AW17: 0 | AX17: 1 | AY17: 2 | AZ17: 3 | BA17: 4 | BB17: 5 | BC17: 6 | BD17: 7 | BE17: 8 | BF17: 9 | BG17: 10 | BH17: 11 | BI17: 12 | BJ17: 13 | BK17: 14 | BL17: 15 | BM17: 16 | BN17: 17 | BO17: 18 | BP17: 19 | BQ17: 20 | BR17: 21 | BS17: 22 | BT17: 23 | BU17: 24 | BV17: 25 | BW17: 26 | BX17: 27 | BY17: 28 | BZ17: 29 | CA17: 30
A18: K | B18: Investitionskosten | C18: Beschreibung | D18: Investition (alle Fahrz.) [CHF] | E18: Lebensdauer [a] | F18: Default überschreiben | O18: Kilometer | P18: 0 | Q18: =Q17*Fahrleistung_PW -> 0 | R18: 0 | S18: 0 | T18: 0 | U18: 0 | V18: 0 | W18: 0 | X18: 0 | Y18: 0 | Z18: 0 | AA18: 0 | AB18: 0 | AC18: 0 | AD18: 0 | AE18: 0 | AF18: 0 | AG18: 0 | AH18: 0 | AI18: 0 | AJ18: 0 | AK18: 0 | AL18: 0 | AM18: 0 | AN18: 0 | AO18: 0 | AP18: 0 | AQ18: 0 | AR18: 0 | AS18: 0 | AT18: 0 | AU18: Restwert am Ende der Betrachtungszeit
A19: K | B19: Fahrzeuge | E19: 10 | G19: =IF(K19<Betrachtungszeit_PW,"Achtung: es erfolgt eine Reinvestition","") ->  | K19: =IF(ISNUMBER(F19),F19,IF(ISNUMBER(E19),E19,0)) -> 10 | O19: =B19 -> Fahrzeuge | P19: =D19 -> 0 | Q19: =IF(Betrachtungszeit_PW<Q$17,0,IF(AND(P$17<>0,P$17/($K19)=INT(P$17/($K19))),$D19,0)) -> 0 | R19: 0 | S19: 0 | T19: 0 | U19: 0 | V19: 0 | W19: 0 | X19: 0 | Y19: 0 | Z19: 0 | AA19: 0 | AB19: 0 | AC19: 0 | AD19: 0 | AE19: 0 | AF19: 0 | AG19: 0 | AH19: 0 | AI19: 0 | AJ19: 0 | AK19: 0 | AL19: 0 | AM19: 0 | AN19: 0 | AO19: 0 | AP19: 0 | AQ19: 0 | AR19: 0 | AS19: 0 | AT19: 0 | AU19: =SUMIF($AW$17:$CA$17,Betrachtungszeit_PW,AW19:CA19) -> 0 | AW19: =$D19 -> 0 | AX19: =MAX(AW19-$M26+Q19,0) -> 0 | AY19: 0 | AZ19: 0 | BA19: 0 | BB19: 0 | BC19: 0 | BD19: 0 | BE19: 0 | BF19: 0 | BG19: 0 | BH19: 0 | BI19: 0 | BJ19: 0 | BK19: 0 | BL19: 0 | BM19: 0 | BN19: 0 | BO19: 0 | BP19: 0 | BQ19: 0 | BR19: 0 | BS19: 0 | BT19: 0 | BU19: 0 | BV19: 0 | BW19: 0 | BX19: 0 | BY19: 0 | BZ19: 0 | CA19: 0
B20: Zubehör / Infrastruktur | E20: 10 | K20: 10 | M20: =1/K20*D20 -> 0 | O20: =B20&": "&C20 -> Zubehör / Infrastruktur: | P20: 0 | Q20: 0 | R20: 0 | S20: 0 | T20: 0 | U20: 0 | V20: 0 | W20: 0 | X20: 0 | Y20: 0 | Z20: 0 | AA20: 0 | AB20: 0 | AC20: 0 | AD20: 0 | AE20: 0 | AF20: 0 | AG20: 0 | AH20: 0 | AI20: 0 | AJ20: 0 | AK20: 0 | AL20: 0 | AM20: 0 | AN20: 0 | AO20: 0 | AP20: 0 | AQ20: 0 | AR20: 0 | AS20: 0 | AT20: 0 | AU20: 0 | AW20: =$D20 -> 0 | AX20: =AW20-$M20+Q20 -> 0 | AY20: =AX20-$M20+R20 -> 0 | AZ20: 0 | BA20: 0 | BB20: 0 | BC20: 0 | BD20: 0 | BE20: 0 | BF20: 0 | BG20: 0 | BH20: 0 | BI20: 0 | BJ20: 0 | BK20: 0 | BL20: 0 | BM20: 0 | BN20: 0 | BO20: 0 | BP20: 0 | BQ20: 0 | BR20: 0 | BS20: 0 | BT20: 0 | BU20: 0 | BV20: 0 | BW20: 0 | BX20: 0 | BY20: 0 | BZ20: 0 | CA20: 0
B21: Zubehör / Infrastruktur | E21: 10 | K21: 10 | M21: =1/K21*D21 -> 0 | O21: =B21&": "&C21 -> Zubehör / Infrastruktur: | P21: 0 | Q21: 0 | R21: 0 | S21: 0 | T21: 0 | U21: 0 | V21: 0 | W21: 0 | X21: 0 | Y21: 0 | Z21: 0 | AA21: 0 | AB21: 0 | AC21: 0 | AD21: 0 | AE21: 0 | AF21: 0 | AG21: 0 | AH21: 0 | AI21: 0 | AJ21: 0 | AK21: 0 | AL21: 0 | AM21: 0 | AN21: 0 | AO21: 0 | AP21: 0 | AQ21: 0 | AR21: 0 | AS21: 0 | AT21: 0 | AU21: 0 | AW21: =$D21 -> 0 | AX21: =AW21-$M21+Q21 -> 0 | AY21: 0 | AZ21: 0 | BA21: 0 | BB21: 0 | BC21: 0 | BD21: 0 | BE21: 0 | BF21: 0 | BG21: 0 | BH21: 0 | BI21: 0 | BJ21: 0 | BK21: 0 | BL21: 0 | BM21: 0 | BN21: 0 | BO21: 0 | BP21: 0 | BQ21: 0 | BR21: 0 | BS21: 0 | BT21: 0 | BU21: 0 | BV21: 0 | BW21: 0 | BX21: 0 | BY21: 0 | BZ21: 0 | CA21: 0
B22: Zubehör / Infrastruktur | E22: 10 | K22: 10 | M22: =1/K22*D22 -> 0 | O22: Zubehör / Infrastruktur: | P22: 0 | Q22: 0 | R22: 0 | S22: 0 | T22: 0 | U22: 0 | V22: 0 | W22: 0 | X22: 0 | Y22: 0 | Z22: 0 | AA22: 0 | AB22: 0 | AC22: 0 | AD22: 0 | AE22: 0 | AF22: 0 | AG22: 0 | AH22: 0 | AI22: 0 | AJ22: 0 | AK22: 0 | AL22: 0 | AM22: 0 | AN22: 0 | AO22: 0 | AP22: 0 | AQ22: 0 | AR22: 0 | AS22: 0 | AT22: 0 | AU22: 0 | AW22: 0 | AX22: 0 | AY22: 0 | AZ22: 0 | BA22: 0 | BB22: 0 | BC22: 0 | BD22: 0 | BE22: 0 | BF22: 0 | BG22: 0 | BH22: 0 | BI22: 0 | BJ22: 0 | BK22: 0 | BL22: 0 | BM22: 0 | BN22: 0 | BO22: 0 | BP22: 0 | BQ22: 0 | BR22: 0 | BS22: 0 | BT22: 0 | BU22: 0 | BV22: 0 | BW22: 0 | BX22: 0 | BY22: 0 | BZ22: 0 | CA22: 0
B23: Zubehör / Infrastruktur | E23: 10 | K23: 10 | M23: =1/K23*D23 -> 0 | O23: Zubehör / Infrastruktur: | P23: 0 | Q23: 0 | R23: 0 | S23: 0 | T23: 0 | U23: 0 | V23: 0 | W23: 0 | X23: 0 | Y23: 0 | Z23: 0 | AA23: 0 | AB23: 0 | AC23: 0 | AD23: 0 | AE23: 0 | AF23: 0 | AG23: 0 | AH23: 0 | AI23: 0 | AJ23: 0 | AK23: 0 | AL23: 0 | AM23: 0 | AN23: 0 | AO23: 0 | AP23: 0 | AQ23: 0 | AR23: 0 | AS23: 0 | AT23: 0 | AU23: 0 | AW23: 0 | AX23: 0 | AY23: 0 | AZ23: 0 | BA23: 0 | BB23: 0 | BC23: 0 | BD23: 0 | BE23: 0 | BF23: 0 | BG23: 0 | BH23: 0 | BI23: 0 | BJ23: 0 | BK23: 0 | BL23: 0 | BM23: 0 | BN23: 0 | BO23: 0 | BP23: 0 | BQ23: 0 | BR23: 0 | BS23: 0 | BT23: 0 | BU23: 0 | BV23: 0 | BW23: 0 | BX23: 0 | BY23: 0 | BZ23: 0 | CA23: 0
B24: Zubehör / Infrastruktur | E24: 10 | K24: 10 | M24: =1/K24*D24 -> 0 | O24: Zubehör / Infrastruktur: | P24: 0 | Q24: 0 | R24: 0 | S24: 0 | T24: 0 | U24: 0 | V24: 0 | W24: 0 | X24: 0 | Y24: 0 | Z24: 0 | AA24: 0 | AB24: 0 | AC24: 0 | AD24: 0 | AE24: 0 | AF24: 0 | AG24: 0 | AH24: 0 | AI24: 0 | AJ24: 0 | AK24: 0 | AL24: 0 | AM24: 0 | AN24: 0 | AO24: 0 | AP24: 0 | AQ24: 0 | AR24: 0 | AS24: 0 | AT24: 0 | AU24: 0 | AW24: 0 | AX24: 0 | AY24: 0 | AZ24: 0 | BA24: 0 | BB24: 0 | BC24: 0 | BD24: 0 | BE24: 0 | BF24: 0 | BG24: 0 | BH24: 0 | BI24: 0 | BJ24: 0 | BK24: 0 | BL24: 0 | BM24: 0 | BN24: 0 | BO24: 0 | BP24: 0 | BQ24: 0 | BR24: 0 | BS24: 0 | BT24: 0 | BU24: 0 | BV24: 0 | BW24: 0 | BX24: 0 | BY24: 0 | BZ24: 0 | CA24: 0
B25: Investitionskosten abzügl. Förderbeiträge total | D25: CHF | E25: =D19+SUM(D20:D24)-C15 -> 0 | L25: =E26*D19 -> 0 | O25: (Re)Investition abzüglich Restwert und Fördergeld | AU25: Nettobarwert
A26: K | B26: Wertminderung der Fahrzeuge pro Jahr aufgrund Lebensdauer | E26: =1/K19 -> 0.1 | M26: =L25+Fahrleistung_PW/10000*D19*L27 -> 0 | O26: (Re)Investition abzüglich Fördergeld | P26: =E25 -> 0 | Q26: =SUM(Q19:Q24) -> 0 | R26: 0 | S26: 0 | T26: 0 | U26: 0 | V26: 0 | W26: 0 | X26: 0 | Y26: 0 | Z26: 0 | AA26: 0 | AB26: 0 | AC26: 0 | AD26: 0 | AE26: 0 | AF26: 0 | AG26: 0 | AH26: 0 | AI26: 0 | AJ26: 0 | AK26: 0 | AL26: 0 | AM26: 0 | AN26: 0 | AO26: 0 | AP26: 0 | AQ26: 0 | AR26: 0 | AS26: 0 | AT26: 0
A27: K | B27: Zusätzliche Wertminderung pro 10'000 km | E27: 0.02 | L27: =IF(ISNUMBER(F27),F27,IF(ISNUMBER(E27),E27,0)) -> 0.02 | O27: Restwert | P27: =IF(Betrachtungszeit_PW=P17,-($L$28+$E$29),0) -> 0 | Q27: 0 | R27: 0 | S27: 0 | T27: 0 | U27: 0 | V27: 0 | W27: 0 | X27: 0 | Y27: 0 | Z27: 0 | AA27: 0 | AB27: 0 | AC27: 0 | AD27: 0 | AE27: 0 | AF27: 0 | AG27: 0 | AH27: 0 | AI27: 0 | AJ27: 0 | AK27: 0 | AL27: 0 | AM27: 0 | AN27: 0 | AO27: 0 | AP27: 0 | AQ27: 0 | AR27: 0 | AS27: 0 | AT27: 0
A28: K | B28: Restwert Fahrzeuge am Ende der Betrachtungszeit | D28: CHF | E28: =AU19 -> 0 | L28: =IF(ISNUMBER(F28),F28,E28) -> 0 | O28: Kosten inkl. Preissteigerung | P28: =SUM(P26:P27)*(1+Inflationsindex)^P$17 -> 0 | Q28: 0 | R28: 0 | S28: 0 | T28: 0 | U28: 0 | V28: 0 | W28: 0 | X28: 0 | Y28: 0 | Z28: 0 | AA28: 0 | AB28: 0 | AC28: 0 | AD28: 0 | AE28: 0 | AF28: 0 | AG28: 0 | AH28: 0 | AI28: 0 | AJ28: 0 | AK28: 0 | AL28: 0 | AM28: 0 | AN28: 0 | AO28: 0 | AP28: 0 | AQ28: 0 | AR28: 0 | AS28: 0 | AT28: 0
B29: Restwert Zubehör am Ende der Betrachtungszeit | D29: CHF | E29: =SUM(AU20:AU24) -> 0 | O29: Barwert | P29: =P28*(1+Kalkulationszinssatz)^-P$17 -> 0 | Q29: 0 | R29: 0 | S29: 0 | T29: 0 | U29: 0 | V29: 0 | W29: 0 | X29: 0 | Y29: 0 | Z29: 0 | AA29: 0 | AB29: 0 | AC29: 0 | AD29: 0 | AE29: 0 | AF29: 0 | AG29: 0 | AH29: 0 | AI29: 0 | AJ29: 0 | AK29: 0 | AL29: 0 | AM29: 0 | AN29: 0 | AO29: 0 | AP29: 0 | AQ29: 0 | AR29: 0 | AS29: 0 | AT29: 0 | AU29: =SUM(P29:AT29) -> 0
A31: K | B31: Ersatzteile / Verbrauchsmaterial mit erstmaliger Investition nach Lebensdauer | K31: Lebens- dauer [a] | M31: Jährliche Ab-schreibung [CHF/a] | O31: Ersatzteile | AW31: Restwert nach Abschreibung am Ende des Jahres… (Berücksichtigt Reinvestition nach Ablauf der Lebensdauer) Ersatzteile haben erst nach Ablauf der ersten Lebensdauer einen Restwert
B32: 1. Ersatzteile / Verbrauchsmaterial mit Lebensdauer in Jahren | E32: Lebensdauer [a] | O32: =B32 -> 1. Ersatzteile / Verbrauchsmaterial mit Lebensdauer in Jahren | AU32: Restwert am Ende der Betrachtungszeit
B33: Weitere Ersatzteile | E33: 10 | K33: =IF(ISNUMBER(F33),F33,IF(ISNUMBER(E33),E33,0)) -> 10 | M33: =1/K33*D33 -> 0 | O33: =B33&": "&C33 -> Weitere Ersatzteile: | P33: 0 | Q33: =IF(Betrachtungszeit_PW<Q$17,0,IF(AND(P$17<>0,P$17/($K33)=INT(P$17/($K33))),$D33,0)) -> 0 | R33: 0 | S33: 0 | T33: 0 | U33: 0 | V33: 0 | W33: 0 | X33: 0 | Y33: 0 | Z33: 0 | AA33: 0 | AB33: 0 | AC33: 0 | AD33: 0 | AE33: 0 | AF33: 0 | AG33: 0 | AH33: 0 | AI33: 0 | AJ33: 0 | AK33: 0 | AL33: 0 | AM33: 0 | AN33: 0 | AO33: 0 | AP33: 0 | AQ33: 0 | AR33: 0 | AS33: 0 | AT33: 0 | AU33: =SUMIF($AW$17:$CA$17,Betrachtungszeit_PW,AW33:CA33) -> 0 | AW33: 0 | AX33: =IF((AW33+Q33)=0,0,AW33-$M33+Q33) -> 0 | AY33: =IF((AX33+R33)=0,0,AX33-$M33+R33) -> 0 | AZ33: 0 | BA33: 0 | BB33: 0 | BC33: 0 | BD33: 0 | BE33: 0 | BF33: 0 | BG33: 0 | BH33: 0 | BI33: 0 | BJ33: 0 | BK33: 0 | BL33: 0 | BM33: 0 | BN33: 0 | BO33: 0 | BP33: 0 | BQ33: 0 | BR33: 0 | BS33: 0 | BT33: 0 | BU33: 0 | BV33: 0 | BW33: 0 | BX33: 0 | BY33: 0 | BZ33: 0 | CA33: 0
B34: Weitere Ersatzteile | E34: 10 | K34: =IF(ISNUMBER(F34),F34,IF(ISNUMBER(E34),E34,0)) -> 10 | M34: =1/K34*D34 -> 0 | O34: =B34&": "&C34 -> Weitere Ersatzteile: | P34: 0 | Q34: 0 | R34: 0 | S34: 0 | T34: 0 | U34: 0 | V34: 0 | W34: 0 | X34: 0 | Y34: 0 | Z34: 0 | AA34: 0 | AB34: 0 | AC34: 0 | AD34: 0 | AE34: 0 | AF34: 0 | AG34: 0 | AH34: 0 | AI34: 0 | AJ34: 0 | AK34: 0 | AL34: 0 | AM34: 0 | AN34: 0 | AO34: 0 | AP34: 0 | AQ34: 0 | AR34: 0 | AS34: 0 | AT34: 0 | AU34: =SUMIF($AW$17:$CA$17,Betrachtungszeit_PW,AW34:CA34) -> 0 | AW34: 0 | AX34: =IF((AW34+Q34)=0,0,AW34-$M34+Q34) -> 0 | AY34: 0 | AZ34: 0 | BA34: 0 | BB34: 0 | BC34: 0 | BD34: 0 | BE34: 0 | BF34: 0 | BG34: 0 | BH34: 0 | BI34: 0 | BJ34: 0 | BK34: 0 | BL34: 0 | BM34: 0 | BN34: 0 | BO34: 0 | BP34: 0 | BQ34: 0 | BR34: 0 | BS34: 0 | BT34: 0 | BU34: 0 | BV34: 0 | BW34: 0 | BX34: 0 | BY34: 0 | BZ34: 0 | CA34: 0
B35: Weitere Ersatzteile | E35: 10 | K35: =IF(ISNUMBER(F35),F35,IF(ISNUMBER(E35),E35,0)) -> 10 | M35: =1/K35*D35 -> 0 | O35: Weitere Ersatzteile: | P35: 0 | Q35: 0 | R35: 0 | S35: 0 | T35: 0 | U35: 0 | V35: 0 | W35: 0 | X35: 0 | Y35: 0 | Z35: 0 | AA35: 0 | AB35: 0 | AC35: 0 | AD35: 0 | AE35: 0 | AF35: 0 | AG35: 0 | AH35: 0 | AI35: 0 | AJ35: 0 | AK35: 0 | AL35: 0 | AM35: 0 | AN35: 0 | AO35: 0 | AP35: 0 | AQ35: 0 | AR35: 0 | AS35: 0 | AT35: 0 | AU35: =SUMIF($AW$17:$CA$17,Betrachtungszeit_PW,AW35:CA35) -> 0 | AW35: 0 | AX35: 0 | AY35: 0 | AZ35: 0 | BA35: 0 | BB35: 0 | BC35: 0 | BD35: 0 | BE35: 0 | BF35: 0 | BG35: 0 | BH35: 0 | BI35: 0 | BJ35: 0 | BK35: 0 | BL35: 0 | BM35: 0 | BN35: 0 | BO35: 0 | BP35: 0 | BQ35: 0 | BR35: 0 | BS35: 0 | BT35: 0 | BU35: 0 | BV35: 0 | BW35: 0 | BX35: 0 | BY35: 0 | BZ35: 0 | CA35: 0
B36: Weitere Ersatzteile | E36: 10 | K36: =IF(ISNUMBER(F36),F36,IF(ISNUMBER(E36),E36,0)) -> 10 | M36: =1/K36*D36 -> 0 | O36: Weitere Ersatzteile: | P36: 0 | Q36: 0 | R36: 0 | S36: 0 | T36: 0 | U36: 0 | V36: 0 | W36: 0 | X36: 0 | Y36: 0 | Z36: 0 | AA36: 0 | AB36: 0 | AC36: 0 | AD36: 0 | AE36: 0 | AF36: 0 | AG36: 0 | AH36: 0 | AI36: 0 | AJ36: 0 | AK36: 0 | AL36: 0 | AM36: 0 | AN36: 0 | AO36: 0 | AP36: 0 | AQ36: 0 | AR36: 0 | AS36: 0 | AT36: 0 | AU36: =SUMIF($AW$17:$CA$17,Betrachtungszeit_PW,AW36:CA36) -> 0 | AW36: 0 | AX36: 0 | AY36: 0 | AZ36: 0 | BA36: 0 | BB36: 0 | BC36: 0 | BD36: 0 | BE36: 0 | BF36: 0 | BG36: 0 | BH36: 0 | BI36: 0 | BJ36: 0 | BK36: 0 | BL36: 0 | BM36: 0 | BN36: 0 | BO36: 0 | BP36: 0 | BQ36: 0 | BR36: 0 | BS36: 0 | BT36: 0 | BU36: 0 | BV36: 0 | BW36: 0 | BX36: 0 | BY36: 0 | BZ36: 0 | CA36: 0
B37: Weitere Ersatzteile | E37: 10 | K37: =IF(ISNUMBER(F37),F37,IF(ISNUMBER(E37),E37,0)) -> 10 | M37: =1/K37*D37 -> 0 | O37: Weitere Ersatzteile: | P37: 0 | Q37: 0 | R37: 0 | S37: 0 | T37: 0 | U37: 0 | V37: 0 | W37: 0 | X37: 0 | Y37: 0 | Z37: 0 | AA37: 0 | AB37: 0 | AC37: 0 | AD37: 0 | AE37: 0 | AF37: 0 | AG37: 0 | AH37: 0 | AI37: 0 | AJ37: 0 | AK37: 0 | AL37: 0 | AM37: 0 | AN37: 0 | AO37: 0 | AP37: 0 | AQ37: 0 | AR37: 0 | AS37: 0 | AT37: 0 | AU37: =SUMIF($AW$17:$CA$17,Betrachtungszeit_PW,AW37:CA37) -> 0 | AW37: 0 | AX37: 0 | AY37: 0 | AZ37: 0 | BA37: 0 | BB37: 0 | BC37: 0 | BD37: 0 | BE37: 0 | BF37: 0 | BG37: 0 | BH37: 0 | BI37: 0 | BJ37: 0 | BK37: 0 | BL37: 0 | BM37: 0 | BN37: 0 | BO37: 0 | BP37: 0 | BQ37: 0 | BR37: 0 | BS37: 0 | BT37: 0 | BU37: 0 | BV37: 0 | BW37: 0 | BX37: 0 | BY37: 0 | BZ37: 0 | CA37: 0
B38: 2. Ersatzteile / Verbrauchsmaterial mit Lebensdauer in Kilometern | E38: Lebensdauer [km] | K38: Lebens-dauer [km] | O38: 2. Ersatzteile / Verbrauchsmaterial mit Lebensdauer in Kilometern
A39: K | B39: Ersatz-Reifen (Set) | E39: 30000 | K39: =IF(ISNUMBER(F39),F39,IF(ISNUMBER(E39),E39,0)) -> 30000 | M39: =1/(K39/Fahrleistung_PW)*D39 ->  | O39: =B39&": "&C39 -> Ersatz-Reifen (Set): | P39: 0 | Q39: =IF(Betrachtungszeit_PW*Fahrleistung_PW<Q$18,0,IF(Q$18-(COUNTIF($P39:P39,">0")*$K39)>$K39,$D39,0)) -> 0 | R39: =IF(Betrachtungszeit_PW*Fahrleistung_PW<R$18,0,IF(R$18-(COUNTIF($P39:Q39,">0")*$K39)>$K39,$D39,0)) -> 0 | S39: =IF(Betrachtungszeit_PW*Fahrleistung_PW<S$18,0,IF(S$18-(COUNTIF($P39:R39,">0")*$K39)>$K39,$D39,0)) -> 0 | T39: =IF(Betrachtungszeit_PW*Fahrleistung_PW<T$18,0,IF(T$18-(COUNTIF($P39:S39,">0")*$K39)>$K39,$D39,0)) -> 0 | U39: =IF(Betrachtungszeit_PW*Fahrleistung_PW<U$18,0,IF(U$18-(COUNTIF($P39:T39,">0")*$K39)>$K39,$D39,0)) -> 0 | V39: =IF(Betrachtungszeit_PW*Fahrleistung_PW<V$18,0,IF(V$18-(COUNTIF($P39:U39,">0")*$K39)>$K39,$D39,0)) -> 0 | W39: =IF(Betrachtungszeit_PW*Fahrleistung_PW<W$18,0,IF(W$18-(COUNTIF($P39:V39,">0")*$K39)>$K39,$D39,0)) -> 0 | X39: =IF(Betrachtungszeit_PW*Fahrleistung_PW<X$18,0,IF(X$18-(COUNTIF($P39:W39,">0")*$K39)>$K39,$D39,0)) -> 0 | Y39: =IF(Betrachtungszeit_PW*Fahrleistung_PW<Y$18,0,IF(Y$18-(COUNTIF($P39:X39,">0")*$K39)>$K39,$D39,0)) -> 0 | Z39: =IF(Betrachtungszeit_PW*Fahrleistung_PW<Z$18,0,IF(Z$18-(COUNTIF($P39:Y39,">0")*$K39)>$K39,$D39,0)) -> 0 | AA39: =IF(Betrachtungszeit_PW*Fahrleistung_PW<AA$18,0,IF(AA$18-(COUNTIF($P39:Z39,">0")*$K39)>$K39,$D39,0)) -> 0 | AB39: =IF(Betrachtungszeit_PW*Fahrleistung_PW<AB$18,0,IF(AB$18-(COUNTIF($P39:AA39,">0")*$K39)>$K39,$D39,0)) -> 0 | AC39: =IF(Betrachtungszeit_PW*Fahrleistung_PW<AC$18,0,IF(AC$18-(COUNTIF($P39:AB39,">0")*$K39)>$K39,$D39,0)) -> 0 | AD39: =IF(Betrachtungszeit_PW*Fahrleistung_PW<AD$18,0,IF(AD$18-(COUNTIF($P39:AC39,">0")*$K39)>$K39,$D39,0)) -> 0 | AE39: =IF(Betrachtungszeit_PW*Fahrleistung_PW<AE$18,0,IF(AE$18-(COUNTIF($P39:AD39,">0")*$K39)>$K39,$D39,0)) -> 0 | AF39: =IF(Betrachtungszeit_PW*Fahrleistung_PW<AF$18,0,IF(AF$18-(COUNTIF($P39:AE39,">0")*$K39)>$K39,$D39,0)) -> 0 | AG39: =IF(Betrachtungszeit_PW*Fahrleistung_PW<AG$18,0,IF(AG$18-(COUNTIF($P39:AF39,">0")*$K39)>$K39,$D39,0)) -> 0 | AH39: =IF(Betrachtungszeit_PW*Fahrleistung_PW<AH$18,0,IF(AH$18-(COUNTIF($P39:AG39,">0")*$K39)>$K39,$D39,0)) -> 0 | AI39: =IF(Betrachtungszeit_PW*Fahrleistung_PW<AI$18,0,IF(AI$18-(COUNTIF($P39:AH39,">0")*$K39)>$K39,$D39,0)) -> 0 | AJ39: =IF(Betrachtungszeit_PW*Fahrleistung_PW<AJ$18,0,IF(AJ$18-(COUNTIF($P39:AI39,">0")*$K39)>$K39,$D39,0)) -> 0 | AK39: =IF(Betrachtungszeit_PW*Fahrleistung_PW<AK$18,0,IF(AK$18-(COUNTIF($P39:AJ39,">0")*$K39)>$K39,$D39,0)) -> 0 | AL39: =IF(Betrachtungszeit_PW*Fahrleistung_PW<AL$18,0,IF(AL$18-(COUNTIF($P39:AK39,">0")*$K39)>$K39,$D39,0)) -> 0 | AM39: =IF(Betrachtungszeit_PW*Fahrleistung_PW<AM$18,0,IF(AM$18-(COUNTIF($P39:AL39,">0")*$K39)>$K39,$D39,0)) -> 0 | AN39: =IF(Betrachtungszeit_PW*Fahrleistung_PW<AN$18,0,IF(AN$18-(COUNTIF($P39:AM39,">0")*$K39)>$K39,$D39,0)) -> 0 | AO39: =IF(Betrachtungszeit_PW*Fahrleistung_PW<AO$18,0,IF(AO$18-(COUNTIF($P39:AN39,">0")*$K39)>$K39,$D39,0)) -> 0 | AP39: =IF(Betrachtungszeit_PW*Fahrleistung_PW<AP$18,0,IF(AP$18-(COUNTIF($P39:AO39,">0")*$K39)>$K39,$D39,0)) -> 0 | AQ39: =IF(Betrachtungszeit_PW*Fahrleistung_PW<AQ$18,0,IF(AQ$18-(COUNTIF($P39:AP39,">0")*$K39)>$K39,$D39,0)) -> 0 | AR39: =IF(Betrachtungszeit_PW*Fahrleistung_PW<AR$18,0,IF(AR$18-(COUNTIF($P39:AQ39,">0")*$K39)>$K39,$D39,0)) -> 0 | AS39: =IF(Betrachtungszeit_PW*Fahrleistung_PW<AS$18,0,IF(AS$18-(COUNTIF($P39:AR39,">0")*$K39)>$K39,$D39,0)) -> 0 | AT39: =IF(Betrachtungszeit_PW*Fahrleistung_PW<AT$18,0,IF(AT$18-(COUNTIF($P39:AS39,">0")*$K39)>$K39,$D39,0)) -> 0 | AU39: =SUMIF($AW$17:$CA$17,Betrachtungszeit_PW,AW39:CA39) -> 0 | AW39: 0 | AX39: =IF((AW39+Q39)=0,0,AW39-$M39+Q39) -> 0 | AY39: =IF((AX39+R39)=0,0,AX39-$M39+R39) -> 0 | AZ39: 0 | BA39: 0 | BB39: 0 | BC39: 0 | BD39: 0 | BE39: 0 | BF39: 0 | BG39: 0 | BH39: 0 | BI39: 0 | BJ39: 0 | BK39: 0 | BL39: 0 | BM39: 0 | BN39: 0 | BO39: =IF((BN39+AH39)=0,0,BN39-$M39+AH39) -> 0 | BP39: 0 | BQ39: 0 | BR39: 0 | BS39: 0 | BT39: 0 | BU39: 0 | BV39: 0 | BW39: 0 | BX39: 0 | BY39: 0 | BZ39: 0 | CA39: 0
A40: K | B40: Ersatz-Batterie bei Elektrofahrzeugen | E40: 100000 | K40: 100000 | O40: =B40&": "&C40 -> Ersatz-Batterie bei Elektrofahrzeugen: | P40: 0 | Q40: =IF(Betrachtungszeit_PW*Fahrleistung_PW<Q$18,0,IF(Q$18-(COUNTIF($P40:P40,">0")*$K40)>$K40,$D40,0)) -> 0 | R40: =IF(Betrachtungszeit_PW*Fahrleistung_PW<R$18,0,IF(R$18-(COUNTIF($P40:Q40,">0")*$K40)>$K40,$D40,0)) -> 0 | S40: =IF(Betrachtungszeit_PW*Fahrleistung_PW<S$18,0,IF(S$18-(COUNTIF($P40:R40,">0")*$K40)>$K40,$D40,0)) -> 0 | T40: =IF(Betrachtungszeit_PW*Fahrleistung_PW<T$18,0,IF(T$18-(COUNTIF($P40:S40,">0")*$K40)>$K40,$D40,0)) -> 0 | U40: =IF(Betrachtungszeit_PW*Fahrleistung_PW<U$18,0,IF(U$18-(COUNTIF($P40:T40,">0")*$K40)>$K40,$D40,0)) -> 0 | V40: =IF(Betrachtungszeit_PW*Fahrleistung_PW<V$18,0,IF(V$18-(COUNTIF($P40:U40,">0")*$K40)>$K40,$D40,0)) -> 0 | W40: =IF(Betrachtungszeit_PW*Fahrleistung_PW<W$18,0,IF(W$18-(COUNTIF($P40:V40,">0")*$K40)>$K40,$D40,0)) -> 0 | X40: =IF(Betrachtungszeit_PW*Fahrleistung_PW<X$18,0,IF(X$18-(COUNTIF($P40:W40,">0")*$K40)>$K40,$D40,0)) -> 0 | Y40: =IF(Betrachtungszeit_PW*Fahrleistung_PW<Y$18,0,IF(Y$18-(COUNTIF($P40:X40,">0")*$K40)>$K40,$D40,0)) -> 0 | Z40: =IF(Betrachtungszeit_PW*Fahrleistung_PW<Z$18,0,IF(Z$18-(COUNTIF($P40:Y40,">0")*$K40)>$K40,$D40,0)) -> 0 | AA40: =IF(Betrachtungszeit_PW*Fahrleistung_PW<AA$18,0,IF(AA$18-(COUNTIF($P40:Z40,">0")*$K40)>$K40,$D40,0)) -> 0 | AB40: =IF(Betrachtungszeit_PW*Fahrleistung_PW<AB$18,0,IF(AB$18-(COUNTIF($P40:AA40,">0")*$K40)>$K40,$D40,0)) -> 0 | AC40: =IF(Betrachtungszeit_PW*Fahrleistung_PW<AC$18,0,IF(AC$18-(COUNTIF($P40:AB40,">0")*$K40)>$K40,$D40,0)) -> 0 | AD40: =IF(Betrachtungszeit_PW*Fahrleistung_PW<AD$18,0,IF(AD$18-(COUNTIF($P40:AC40,">0")*$K40)>$K40,$D40,0)) -> 0 | AE40: =IF(Betrachtungszeit_PW*Fahrleistung_PW<AE$18,0,IF(AE$18-(COUNTIF($P40:AD40,">0")*$K40)>$K40,$D40,0)) -> 0 | AF40: =IF(Betrachtungszeit_PW*Fahrleistung_PW<AF$18,0,IF(AF$18-(COUNTIF($P40:AE40,">0")*$K40)>$K40,$D40,0)) -> 0 | AG40: =IF(Betrachtungszeit_PW*Fahrleistung_PW<AG$18,0,IF(AG$18-(COUNTIF($P40:AF40,">0")*$K40)>$K40,$D40,0)) -> 0 | AH40: =IF(Betrachtungszeit_PW*Fahrleistung_PW<AH$18,0,IF(AH$18-(COUNTIF($P40:AG40,">0")*$K40)>$K40,$D40,0)) -> 0 | AI40: =IF(Betrachtungszeit_PW*Fahrleistung_PW<AI$18,0,IF(AI$18-(COUNTIF($P40:AH40,">0")*$K40)>$K40,$D40,0)) -> 0 | AJ40: =IF(Betrachtungszeit_PW*Fahrleistung_PW<AJ$18,0,IF(AJ$18-(COUNTIF($P40:AI40,">0")*$K40)>$K40,$D40,0)) -> 0 | AK40: =IF(Betrachtungszeit_PW*Fahrleistung_PW<AK$18,0,IF(AK$18-(COUNTIF($P40:AJ40,">0")*$K40)>$K40,$D40,0)) -> 0 | AL40: =IF(Betrachtungszeit_PW*Fahrleistung_PW<AL$18,0,IF(AL$18-(COUNTIF($P40:AK40,">0")*$K40)>$K40,$D40,0)) -> 0 | AM40: =IF(Betrachtungszeit_PW*Fahrleistung_PW<AM$18,0,IF(AM$18-(COUNTIF($P40:AL40,">0")*$K40)>$K40,$D40,0)) -> 0 | AN40: =IF(Betrachtungszeit_PW*Fahrleistung_PW<AN$18,0,IF(AN$18-(COUNTIF($P40:AM40,">0")*$K40)>$K40,$D40,0)) -> 0 | AO40: =IF(Betrachtungszeit_PW*Fahrleistung_PW<AO$18,0,IF(AO$18-(COUNTIF($P40:AN40,">0")*$K40)>$K40,$D40,0)) -> 0 | AP40: =IF(Betrachtungszeit_PW*Fahrleistung_PW<AP$18,0,IF(AP$18-(COUNTIF($P40:AO40,">0")*$K40)>$K40,$D40,0)) -> 0 | AQ40: =IF(Betrachtungszeit_PW*Fahrleistung_PW<AQ$18,0,IF(AQ$18-(COUNTIF($P40:AP40,">0")*$K40)>$K40,$D40,0)) -> 0 | AR40: =IF(Betrachtungszeit_PW*Fahrleistung_PW<AR$18,0,IF(AR$18-(COUNTIF($P40:AQ40,">0")*$K40)>$K40,$D40,0)) -> 0 | AS40: =IF(Betrachtungszeit_PW*Fahrleistung_PW<AS$18,0,IF(AS$18-(COUNTIF($P40:AR40,">0")*$K40)>$K40,$D40,0)) -> 0 | AT40: =IF(Betrachtungszeit_PW*Fahrleistung_PW<AT$18,0,IF(AT$18-(COUNTIF($P40:AS40,">0")*$K40)>$K40,$D40,0)) -> 0 | AU40: 0 | AW40: 0 | AX40: =IF((AW40+Q40)=0,0,AW40-$M40+Q40) -> 0 | AY40: 0 | AZ40: 0 | BA40: 0 | BB40: 0 | BC40: 0 | BD40: 0 | BE40: 0 | BF40: 0 | BG40: 0 | BH40: 0 | BI40: 0 | BJ40: 0 | BK40: 0 | BL40: 0 | BM40: 0 | BN40: 0 | BO40: 0 | BP40: 0 | BQ40: 0 | BR40: 0 | BS40: 0 | BT40: 0 | BU40: 0 | BV40: 0 | BW40: 0 | BX40: 0 | BY40: 0 | BZ40: 0 | CA40: 0
B41: Weitere Ersatzteile | E41: 150000 | K41: 150000 | O41: Weitere Ersatzteile: | P41: 0 | Q41: =IF(Betrachtungszeit_PW*Fahrleistung_PW<Q$18,0,IF(Q$18-(COUNTIF($P41:P41,">0")*$K41)>$K41,$D41,0)) -> 0 | R41: =IF(Betrachtungszeit_PW*Fahrleistung_PW<R$18,0,IF(R$18-(COUNTIF($P41:Q41,">0")*$K41)>$K41,$D41,0)) -> 0 | S41: =IF(Betrachtungszeit_PW*Fahrleistung_PW<S$18,0,IF(S$18-(COUNTIF($P41:R41,">0")*$K41)>$K41,$D41,0)) -> 0 | T41: =IF(Betrachtungszeit_PW*Fahrleistung_PW<T$18,0,IF(T$18-(COUNTIF($P41:S41,">0")*$K41)>$K41,$D41,0)) -> 0 | U41: =IF(Betrachtungszeit_PW*Fahrleistung_PW<U$18,0,IF(U$18-(COUNTIF($P41:T41,">0")*$K41)>$K41,$D41,0)) -> 0 | V41: =IF(Betrachtungszeit_PW*Fahrleistung_PW<V$18,0,IF(V$18-(COUNTIF($P41:U41,">0")*$K41)>$K41,$D41,0)) -> 0 | W41: =IF(Betrachtungszeit_PW*Fahrleistung_PW<W$18,0,IF(W$18-(COUNTIF($P41:V41,">0")*$K41)>$K41,$D41,0)) -> 0 | X41: =IF(Betrachtungszeit_PW*Fahrleistung_PW<X$18,0,IF(X$18-(COUNTIF($P41:W41,">0")*$K41)>$K41,$D41,0)) -> 0 | Y41: =IF(Betrachtungszeit_PW*Fahrleistung_PW<Y$18,0,IF(Y$18-(COUNTIF($P41:X41,">0")*$K41)>$K41,$D41,0)) -> 0 | Z41: =IF(Betrachtungszeit_PW*Fahrleistung_PW<Z$18,0,IF(Z$18-(COUNTIF($P41:Y41,">0")*$K41)>$K41,$D41,0)) -> 0 | AA41: =IF(Betrachtungszeit_PW*Fahrleistung_PW<AA$18,0,IF(AA$18-(COUNTIF($P41:Z41,">0")*$K41)>$K41,$D41,0)) -> 0 | AB41: =IF(Betrachtungszeit_PW*Fahrleistung_PW<AB$18,0,IF(AB$18-(COUNTIF($P41:AA41,">0")*$K41)>$K41,$D41,0)) -> 0 | AC41: =IF(Betrachtungszeit_PW*Fahrleistung_PW<AC$18,0,IF(AC$18-(COUNTIF($P41:AB41,">0")*$K41)>$K41,$D41,0)) -> 0 | AD41: =IF(Betrachtungszeit_PW*Fahrleistung_PW<AD$18,0,IF(AD$18-(COUNTIF($P41:AC41,">0")*$K41)>$K41,$D41,0)) -> 0 | AE41: =IF(Betrachtungszeit_PW*Fahrleistung_PW<AE$18,0,IF(AE$18-(COUNTIF($P41:AD41,">0")*$K41)>$K41,$D41,0)) -> 0 | AF41: =IF(Betrachtungszeit_PW*Fahrleistung_PW<AF$18,0,IF(AF$18-(COUNTIF($P41:AE41,">0")*$K41)>$K41,$D41,0)) -> 0 | AG41: =IF(Betrachtungszeit_PW*Fahrleistung_PW<AG$18,0,IF(AG$18-(COUNTIF($P41:AF41,">0")*$K41)>$K41,$D41,0)) -> 0 | AH41: =IF(Betrachtungszeit_PW*Fahrleistung_PW<AH$18,0,IF(AH$18-(COUNTIF($P41:AG41,">0")*$K41)>$K41,$D41,0)) -> 0 | AI41: =IF(Betrachtungszeit_PW*Fahrleistung_PW<AI$18,0,IF(AI$18-(COUNTIF($P41:AH41,">0")*$K41)>$K41,$D41,0)) -> 0 | AJ41: =IF(Betrachtungszeit_PW*Fahrleistung_PW<AJ$18,0,IF(AJ$18-(COUNTIF($P41:AI41,">0")*$K41)>$K41,$D41,0)) -> 0 | AK41: =IF(Betrachtungszeit_PW*Fahrleistung_PW<AK$18,0,IF(AK$18-(COUNTIF($P41:AJ41,">0")*$K41)>$K41,$D41,0)) -> 0 | AL41: =IF(Betrachtungszeit_PW*Fahrleistung_PW<AL$18,0,IF(AL$18-(COUNTIF($P41:AK41,">0")*$K41)>$K41,$D41,0)) -> 0 | AM41: =IF(Betrachtungszeit_PW*Fahrleistung_PW<AM$18,0,IF(AM$18-(COUNTIF($P41:AL41,">0")*$K41)>$K41,$D41,0)) -> 0 | AN41: =IF(Betrachtungszeit_PW*Fahrleistung_PW<AN$18,0,IF(AN$18-(COUNTIF($P41:AM41,">0")*$K41)>$K41,$D41,0)) -> 0 | AO41: =IF(Betrachtungszeit_PW*Fahrleistung_PW<AO$18,0,IF(AO$18-(COUNTIF($P41:AN41,">0")*$K41)>$K41,$D41,0)) -> 0 | AP41: =IF(Betrachtungszeit_PW*Fahrleistung_PW<AP$18,0,IF(AP$18-(COUNTIF($P41:AO41,">0")*$K41)>$K41,$D41,0)) -> 0 | AQ41: =IF(Betrachtungszeit_PW*Fahrleistung_PW<AQ$18,0,IF(AQ$18-(COUNTIF($P41:AP41,">0")*$K41)>$K41,$D41,0)) -> 0 | AR41: =IF(Betrachtungszeit_PW*Fahrleistung_PW<AR$18,0,IF(AR$18-(COUNTIF($P41:AQ41,">0")*$K41)>$K41,$D41,0)) -> 0 | AS41: =IF(Betrachtungszeit_PW*Fahrleistung_PW<AS$18,0,IF(AS$18-(COUNTIF($P41:AR41,">0")*$K41)>$K41,$D41,0)) -> 0 | AT41: =IF(Betrachtungszeit_PW*Fahrleistung_PW<AT$18,0,IF(AT$18-(COUNTIF($P41:AS41,">0")*$K41)>$K41,$D41,0)) -> 0 | AU41: 0 | AW41: 0 | AX41: 0 | AY41: 0 | AZ41: 0 | BA41: 0 | BB41: 0 | BC41: 0 | BD41: 0 | BE41: 0 | BF41: 0 | BG41: 0 | BH41: 0 | BI41: 0 | BJ41: 0 | BK41: 0 | BL41: 0 | BM41: 0 | BN41: 0 | BO41: 0 | BP41: 0 | BQ41: 0 | BR41: 0 | BS41: 0 | BT41: 0 | BU41: 0 | BV41: 0 | BW41: 0 | BX41: 0 | BY41: 0 | BZ41: 0 | CA41: 0
B42: Weitere Ersatzteile | E42: 150000 | K42: 150000 | O42: Weitere Ersatzteile: | P42: 0 | Q42: =IF(Betrachtungszeit_PW*Fahrleistung_PW<Q$18,0,IF(Q$18-(COUNTIF($P42:P42,">0")*$K42)>$K42,$D42,0)) -> 0 | R42: =IF(Betrachtungszeit_PW*Fahrleistung_PW<R$18,0,IF(R$18-(COUNTIF($P42:Q42,">0")*$K42)>$K42,$D42,0)) -> 0 | S42: =IF(Betrachtungszeit_PW*Fahrleistung_PW<S$18,0,IF(S$18-(COUNTIF($P42:R42,">0")*$K42)>$K42,$D42,0)) -> 0 | T42: =IF(Betrachtungszeit_PW*Fahrleistung_PW<T$18,0,IF(T$18-(COUNTIF($P42:S42,">0")*$K42)>$K42,$D42,0)) -> 0 | U42: =IF(Betrachtungszeit_PW*Fahrleistung_PW<U$18,0,IF(U$18-(COUNTIF($P42:T42,">0")*$K42)>$K42,$D42,0)) -> 0 | V42: =IF(Betrachtungszeit_PW*Fahrleistung_PW<V$18,0,IF(V$18-(COUNTIF($P42:U42,">0")*$K42)>$K42,$D42,0)) -> 0 | W42: =IF(Betrachtungszeit_PW*Fahrleistung_PW<W$18,0,IF(W$18-(COUNTIF($P42:V42,">0")*$K42)>$K42,$D42,0)) -> 0 | X42: =IF(Betrachtungszeit_PW*Fahrleistung_PW<X$18,0,IF(X$18-(COUNTIF($P42:W42,">0")*$K42)>$K42,$D42,0)) -> 0 | Y42: =IF(Betrachtungszeit_PW*Fahrleistung_PW<Y$18,0,IF(Y$18-(COUNTIF($P42:X42,">0")*$K42)>$K42,$D42,0)) -> 0 | Z42: =IF(Betrachtungszeit_PW*Fahrleistung_PW<Z$18,0,IF(Z$18-(COUNTIF($P42:Y42,">0")*$K42)>$K42,$D42,0)) -> 0 | AA42: =IF(Betrachtungszeit_PW*Fahrleistung_PW<AA$18,0,IF(AA$18-(COUNTIF($P42:Z42,">0")*$K42)>$K42,$D42,0)) -> 0 | AB42: =IF(Betrachtungszeit_PW*Fahrleistung_PW<AB$18,0,IF(AB$18-(COUNTIF($P42:AA42,">0")*$K42)>$K42,$D42,0)) -> 0 | AC42: =IF(Betrachtungszeit_PW*Fahrleistung_PW<AC$18,0,IF(AC$18-(COUNTIF($P42:AB42,">0")*$K42)>$K42,$D42,0)) -> 0 | AD42: =IF(Betrachtungszeit_PW*Fahrleistung_PW<AD$18,0,IF(AD$18-(COUNTIF($P42:AC42,">0")*$K42)>$K42,$D42,0)) -> 0 | AE42: =IF(Betrachtungszeit_PW*Fahrleistung_PW<AE$18,0,IF(AE$18-(COUNTIF($P42:AD42,">0")*$K42)>$K42,$D42,0)) -> 0 | AF42: =IF(Betrachtungszeit_PW*Fahrleistung_PW<AF$18,0,IF(AF$18-(COUNTIF($P42:AE42,">0")*$K42)>$K42,$D42,0)) -> 0 | AG42: =IF(Betrachtungszeit_PW*Fahrleistung_PW<AG$18,0,IF(AG$18-(COUNTIF($P42:AF42,">0")*$K42)>$K42,$D42,0)) -> 0 | AH42: =IF(Betrachtungszeit_PW*Fahrleistung_PW<AH$18,0,IF(AH$18-(COUNTIF($P42:AG42,">0")*$K42)>$K42,$D42,0)) -> 0 | AI42: =IF(Betrachtungszeit_PW*Fahrleistung_PW<AI$18,0,IF(AI$18-(COUNTIF($P42:AH42,">0")*$K42)>$K42,$D42,0)) -> 0 | AJ42: =IF(Betrachtungszeit_PW*Fahrleistung_PW<AJ$18,0,IF(AJ$18-(COUNTIF($P42:AI42,">0")*$K42)>$K42,$D42,0)) -> 0 | AK42: =IF(Betrachtungszeit_PW*Fahrleistung_PW<AK$18,0,IF(AK$18-(COUNTIF($P42:AJ42,">0")*$K42)>$K42,$D42,0)) -> 0 | AL42: =IF(Betrachtungszeit_PW*Fahrleistung_PW<AL$18,0,IF(AL$18-(COUNTIF($P42:AK42,">0")*$K42)>$K42,$D42,0)) -> 0 | AM42: =IF(Betrachtungszeit_PW*Fahrleistung_PW<AM$18,0,IF(AM$18-(COUNTIF($P42:AL42,">0")*$K42)>$K42,$D42,0)) -> 0 | AN42: =IF(Betrachtungszeit_PW*Fahrleistung_PW<AN$18,0,IF(AN$18-(COUNTIF($P42:AM42,">0")*$K42)>$K42,$D42,0)) -> 0 | AO42: =IF(Betrachtungszeit_PW*Fahrleistung_PW<AO$18,0,IF(AO$18-(COUNTIF($P42:AN42,">0")*$K42)>$K42,$D42,0)) -> 0 | AP42: =IF(Betrachtungszeit_PW*Fahrleistung_PW<AP$18,0,IF(AP$18-(COUNTIF($P42:AO42,">0")*$K42)>$K42,$D42,0)) -> 0 | AQ42: =IF(Betrachtungszeit_PW*Fahrleistung_PW<AQ$18,0,IF(AQ$18-(COUNTIF($P42:AP42,">0")*$K42)>$K42,$D42,0)) -> 0 | AR42: =IF(Betrachtungszeit_PW*Fahrleistung_PW<AR$18,0,IF(AR$18-(COUNTIF($P42:AQ42,">0")*$K42)>$K42,$D42,0)) -> 0 | AS42: =IF(Betrachtungszeit_PW*Fahrleistung_PW<AS$18,0,IF(AS$18-(COUNTIF($P42:AR42,">0")*$K42)>$K42,$D42,0)) -> 0 | AT42: =IF(Betrachtungszeit_PW*Fahrleistung_PW<AT$18,0,IF(AT$18-(COUNTIF($P42:AS42,">0")*$K42)>$K42,$D42,0)) -> 0 | AU42: 0 | AW42: 0 | AX42: 0 | AY42: 0 | AZ42: 0 | BA42: 0 | BB42: 0 | BC42: 0 | BD42: 0 | BE42: 0 | BF42: 0 | BG42: 0 | BH42: 0 | BI42: 0 | BJ42: 0 | BK42: 0 | BL42: 0 | BM42: 0 | BN42: 0 | BO42: 0 | BP42: 0 | BQ42: 0 | BR42: 0 | BS42: 0 | BT42: 0 | BU42: 0 | BV42: 0 | BW42: 0 | BX42: 0 | BY42: 0 | BZ42: 0 | CA42: 0
B43: Weitere Ersatzteile | E43: 150000 | K43: 150000 | O43: Weitere Ersatzteile: | P43: 0 | Q43: =IF(Betrachtungszeit_PW*Fahrleistung_PW<Q$18,0,IF(Q$18-(COUNTIF($P43:P43,">0")*$K43)>$K43,$D43,0)) -> 0 | R43: =IF(Betrachtungszeit_PW*Fahrleistung_PW<R$18,0,IF(R$18-(COUNTIF($P43:Q43,">0")*$K43)>$K43,$D43,0)) -> 0 | S43: =IF(Betrachtungszeit_PW*Fahrleistung_PW<S$18,0,IF(S$18-(COUNTIF($P43:R43,">0")*$K43)>$K43,$D43,0)) -> 0 | T43: =IF(Betrachtungszeit_PW*Fahrleistung_PW<T$18,0,IF(T$18-(COUNTIF($P43:S43,">0")*$K43)>$K43,$D43,0)) -> 0 | U43: =IF(Betrachtungszeit_PW*Fahrleistung_PW<U$18,0,IF(U$18-(COUNTIF($P43:T43,">0")*$K43)>$K43,$D43,0)) -> 0 | V43: =IF(Betrachtungszeit_PW*Fahrleistung_PW<V$18,0,IF(V$18-(COUNTIF($P43:U43,">0")*$K43)>$K43,$D43,0)) -> 0 | W43: =IF(Betrachtungszeit_PW*Fahrleistung_PW<W$18,0,IF(W$18-(COUNTIF($P43:V43,">0")*$K43)>$K43,$D43,0)) -> 0 | X43: =IF(Betrachtungszeit_PW*Fahrleistung_PW<X$18,0,IF(X$18-(COUNTIF($P43:W43,">0")*$K43)>$K43,$D43,0)) -> 0 | Y43: =IF(Betrachtungszeit_PW*Fahrleistung_PW<Y$18,0,IF(Y$18-(COUNTIF($P43:X43,">0")*$K43)>$K43,$D43,0)) -> 0 | Z43: =IF(Betrachtungszeit_PW*Fahrleistung_PW<Z$18,0,IF(Z$18-(COUNTIF($P43:Y43,">0")*$K43)>$K43,$D43,0)) -> 0 | AA43: =IF(Betrachtungszeit_PW*Fahrleistung_PW<AA$18,0,IF(AA$18-(COUNTIF($P43:Z43,">0")*$K43)>$K43,$D43,0)) -> 0 | AB43: =IF(Betrachtungszeit_PW*Fahrleistung_PW<AB$18,0,IF(AB$18-(COUNTIF($P43:AA43,">0")*$K43)>$K43,$D43,0)) -> 0 | AC43: =IF(Betrachtungszeit_PW*Fahrleistung_PW<AC$18,0,IF(AC$18-(COUNTIF($P43:AB43,">0")*$K43)>$K43,$D43,0)) -> 0 | AD43: =IF(Betrachtungszeit_PW*Fahrleistung_PW<AD$18,0,IF(AD$18-(COUNTIF($P43:AC43,">0")*$K43)>$K43,$D43,0)) -> 0 | AE43: =IF(Betrachtungszeit_PW*Fahrleistung_PW<AE$18,0,IF(AE$18-(COUNTIF($P43:AD43,">0")*$K43)>$K43,$D43,0)) -> 0 | AF43: =IF(Betrachtungszeit_PW*Fahrleistung_PW<AF$18,0,IF(AF$18-(COUNTIF($P43:AE43,">0")*$K43)>$K43,$D43,0)) -> 0 | AG43: =IF(Betrachtungszeit_PW*Fahrleistung_PW<AG$18,0,IF(AG$18-(COUNTIF($P43:AF43,">0")*$K43)>$K43,$D43,0)) -> 0 | AH43: =IF(Betrachtungszeit_PW*Fahrleistung_PW<AH$18,0,IF(AH$18-(COUNTIF($P43:AG43,">0")*$K43)>$K43,$D43,0)) -> 0 | AI43: =IF(Betrachtungszeit_PW*Fahrleistung_PW<AI$18,0,IF(AI$18-(COUNTIF($P43:AH43,">0")*$K43)>$K43,$D43,0)) -> 0 | AJ43: =IF(Betrachtungszeit_PW*Fahrleistung_PW<AJ$18,0,IF(AJ$18-(COUNTIF($P43:AI43,">0")*$K43)>$K43,$D43,0)) -> 0 | AK43: =IF(Betrachtungszeit_PW*Fahrleistung_PW<AK$18,0,IF(AK$18-(COUNTIF($P43:AJ43,">0")*$K43)>$K43,$D43,0)) -> 0 | AL43: =IF(Betrachtungszeit_PW*Fahrleistung_PW<AL$18,0,IF(AL$18-(COUNTIF($P43:AK43,">0")*$K43)>$K43,$D43,0)) -> 0 | AM43: =IF(Betrachtungszeit_PW*Fahrleistung_PW<AM$18,0,IF(AM$18-(COUNTIF($P43:AL43,">0")*$K43)>$K43,$D43,0)) -> 0 | AN43: =IF(Betrachtungszeit_PW*Fahrleistung_PW<AN$18,0,IF(AN$18-(COUNTIF($P43:AM43,">0")*$K43)>$K43,$D43,0)) -> 0 | AO43: =IF(Betrachtungszeit_PW*Fahrleistung_PW<AO$18,0,IF(AO$18-(COUNTIF($P43:AN43,">0")*$K43)>$K43,$D43,0)) -> 0 | AP43: =IF(Betrachtungszeit_PW*Fahrleistung_PW<AP$18,0,IF(AP$18-(COUNTIF($P43:AO43,">0")*$K43)>$K43,$D43,0)) -> 0 | AQ43: =IF(Betrachtungszeit_PW*Fahrleistung_PW<AQ$18,0,IF(AQ$18-(COUNTIF($P43:AP43,">0")*$K43)>$K43,$D43,0)) -> 0 | AR43: =IF(Betrachtungszeit_PW*Fahrleistung_PW<AR$18,0,IF(AR$18-(COUNTIF($P43:AQ43,">0")*$K43)>$K43,$D43,0)) -> 0 | AS43: =IF(Betrachtungszeit_PW*Fahrleistung_PW<AS$18,0,IF(AS$18-(COUNTIF($P43:AR43,">0")*$K43)>$K43,$D43,0)) -> 0 | AT43: =IF(Betrachtungszeit_PW*Fahrleistung_PW<AT$18,0,IF(AT$18-(COUNTIF($P43:AS43,">0")*$K43)>$K43,$D43,0)) -> 0 | AU43: 0 | AW43: 0 | AX43: 0 | AY43: 0 | AZ43: 0 | BA43: 0 | BB43: 0 | BC43: 0 | BD43: 0 | BE43: 0 | BF43: 0 | BG43: 0 | BH43: 0 | BI43: 0 | BJ43: 0 | BK43: 0 | BL43: 0 | BM43: 0 | BN43: 0 | BO43: 0 | BP43: 0 | BQ43: 0 | BR43: 0 | BS43: 0 | BT43: 0 | BU43: 0 | BV43: 0 | BW43: 0 | BX43: 0 | BY43: 0 | BZ43: 0 | CA43: 0
B44: Weitere Ersatzteile | E44: 150000 | K44: 150000 | O44: Weitere Ersatzteile: | P44: 0 | Q44: =IF(Betrachtungszeit_PW*Fahrleistung_PW<Q$18,0,IF(Q$18-(COUNTIF($P44:P44,">0")*$K44)>$K44,$D44,0)) -> 0 | R44: =IF(Betrachtungszeit_PW*Fahrleistung_PW<R$18,0,IF(R$18-(COUNTIF($P44:Q44,">0")*$K44)>$K44,$D44,0)) -> 0 | S44: =IF(Betrachtungszeit_PW*Fahrleistung_PW<S$18,0,IF(S$18-(COUNTIF($P44:R44,">0")*$K44)>$K44,$D44,0)) -> 0 | T44: =IF(Betrachtungszeit_PW*Fahrleistung_PW<T$18,0,IF(T$18-(COUNTIF($P44:S44,">0")*$K44)>$K44,$D44,0)) -> 0 | U44: =IF(Betrachtungszeit_PW*Fahrleistung_PW<U$18,0,IF(U$18-(COUNTIF($P44:T44,">0")*$K44)>$K44,$D44,0)) -> 0 | V44: =IF(Betrachtungszeit_PW*Fahrleistung_PW<V$18,0,IF(V$18-(COUNTIF($P44:U44,">0")*$K44)>$K44,$D44,0)) -> 0 | W44: =IF(Betrachtungszeit_PW*Fahrleistung_PW<W$18,0,IF(W$18-(COUNTIF($P44:V44,">0")*$K44)>$K44,$D44,0)) -> 0 | X44: =IF(Betrachtungszeit_PW*Fahrleistung_PW<X$18,0,IF(X$18-(COUNTIF($P44:W44,">0")*$K44)>$K44,$D44,0)) -> 0 | Y44: =IF(Betrachtungszeit_PW*Fahrleistung_PW<Y$18,0,IF(Y$18-(COUNTIF($P44:X44,">0")*$K44)>$K44,$D44,0)) -> 0 | Z44: =IF(Betrachtungszeit_PW*Fahrleistung_PW<Z$18,0,IF(Z$18-(COUNTIF($P44:Y44,">0")*$K44)>$K44,$D44,0)) -> 0 | AA44: =IF(Betrachtungszeit_PW*Fahrleistung_PW<AA$18,0,IF(AA$18-(COUNTIF($P44:Z44,">0")*$K44)>$K44,$D44,0)) -> 0 | AB44: =IF(Betrachtungszeit_PW*Fahrleistung_PW<AB$18,0,IF(AB$18-(COUNTIF($P44:AA44,">0")*$K44)>$K44,$D44,0)) -> 0 | AC44: =IF(Betrachtungszeit_PW*Fahrleistung_PW<AC$18,0,IF(AC$18-(COUNTIF($P44:AB44,">0")*$K44)>$K44,$D44,0)) -> 0 | AD44: =IF(Betrachtungszeit_PW*Fahrleistung_PW<AD$18,0,IF(AD$18-(COUNTIF($P44:AC44,">0")*$K44)>$K44,$D44,0)) -> 0 | AE44: =IF(Betrachtungszeit_PW*Fahrleistung_PW<AE$18,0,IF(AE$18-(COUNTIF($P44:AD44,">0")*$K44)>$K44,$D44,0)) -> 0 | AF44: =IF(Betrachtungszeit_PW*Fahrleistung_PW<AF$18,0,IF(AF$18-(COUNTIF($P44:AE44,">0")*$K44)>$K44,$D44,0)) -> 0 | AG44: =IF(Betrachtungszeit_PW*Fahrleistung_PW<AG$18,0,IF(AG$18-(COUNTIF($P44:AF44,">0")*$K44)>$K44,$D44,0)) -> 0 | AH44: =IF(Betrachtungszeit_PW*Fahrleistung_PW<AH$18,0,IF(AH$18-(COUNTIF($P44:AG44,">0")*$K44)>$K44,$D44,0)) -> 0 | AI44: =IF(Betrachtungszeit_PW*Fahrleistung_PW<AI$18,0,IF(AI$18-(COUNTIF($P44:AH44,">0")*$K44)>$K44,$D44,0)) -> 0 | AJ44: =IF(Betrachtungszeit_PW*Fahrleistung_PW<AJ$18,0,IF(AJ$18-(COUNTIF($P44:AI44,">0")*$K44)>$K44,$D44,0)) -> 0 | AK44: =IF(Betrachtungszeit_PW*Fahrleistung_PW<AK$18,0,IF(AK$18-(COUNTIF($P44:AJ44,">0")*$K44)>$K44,$D44,0)) -> 0 | AL44: =IF(Betrachtungszeit_PW*Fahrleistung_PW<AL$18,0,IF(AL$18-(COUNTIF($P44:AK44,">0")*$K44)>$K44,$D44,0)) -> 0 | AM44: =IF(Betrachtungszeit_PW*Fahrleistung_PW<AM$18,0,IF(AM$18-(COUNTIF($P44:AL44,">0")*$K44)>$K44,$D44,0)) -> 0 | AN44: =IF(Betrachtungszeit_PW*Fahrleistung_PW<AN$18,0,IF(AN$18-(COUNTIF($P44:AM44,">0")*$K44)>$K44,$D44,0)) -> 0 | AO44: =IF(Betrachtungszeit_PW*Fahrleistung_PW<AO$18,0,IF(AO$18-(COUNTIF($P44:AN44,">0")*$K44)>$K44,$D44,0)) -> 0 | AP44: =IF(Betrachtungszeit_PW*Fahrleistung_PW<AP$18,0,IF(AP$18-(COUNTIF($P44:AO44,">0")*$K44)>$K44,$D44,0)) -> 0 | AQ44: =IF(Betrachtungszeit_PW*Fahrleistung_PW<AQ$18,0,IF(AQ$18-(COUNTIF($P44:AP44,">0")*$K44)>$K44,$D44,0)) -> 0 | AR44: =IF(Betrachtungszeit_PW*Fahrleistung_PW<AR$18,0,IF(AR$18-(COUNTIF($P44:AQ44,">0")*$K44)>$K44,$D44,0)) -> 0 | AS44: =IF(Betrachtungszeit_PW*Fahrleistung_PW<AS$18,0,IF(AS$18-(COUNTIF($P44:AR44,">0")*$K44)>$K44,$D44,0)) -> 0 | AT44: =IF(Betrachtungszeit_PW*Fahrleistung_PW<AT$18,0,IF(AT$18-(COUNTIF($P44:AS44,">0")*$K44)>$K44,$D44,0)) -> 0 | AU44: 0 | AW44: 0 | AX44: 0 | AY44: 0 | AZ44: 0 | BA44: 0 | BB44: 0 | BC44: 0 | BD44: 0 | BE44: 0 | BF44: 0 | BG44: 0 | BH44: 0 | BI44: 0 | BJ44: 0 | BK44: 0 | BL44: 0 | BM44: 0 | BN44: 0 | BO44: 0 | BP44: 0 | BQ44: 0 | BR44: 0 | BS44: 0 | BT44: 0 | BU44: 0 | BV44: 0 | BW44: 0 | BX44: 0 | BY44: 0 | BZ44: 0 | CA44: 0
